Workbook

Sheet Instructions
A1: Fertilizer Cost Comparison Tool (Fruit)
A4: Template by: Jon LaPorte, Farm Management Educator
A5: Michigan State University Extension
A6: 120 N. Broadway, Suite 116, Cassopolis, MI 49031
A7: Phone: (269) 445-4356 Email: laportej@msu.edu
A10: 1) | B10: Each TAB represents an important aspect of fertilizer planning (i.e., nutrient management, sources of fertilizer, and overall fertilizer plan for each commodity grown). Click on a TAB to enter specific information.
B11: These include:
C13: Nutrient Management | D13: - | E13: Input yield goals, soil test based nutrient recommendations, manure nutrient analysis, and nutrient credits. This section will determine the total amount of nutrients that will need to be supplied through commercial fertilizer products.
E15: This section provides detailed information for use with the Fertilizer Plan sections to determine how much commercial fertilizer will need to be applied.
C16: Fertilizer Products & Pricing | D16: - | E16: Input the products and prices for fertilizer, lime, and nitrogen stabilizers to use in the Fertilizer Plan. Common fertilizer products are already provided.
E17: Each crop has its own tab (i.e. Fertilizer - Corn)
C18: Fertilizer Plan Tabs | D18: - | E18: Choose the fertilizer from the drop-down menu and enter product/acre to be used. (i.e. 100lbs/acre of 9-23-30 = 50lbs 18-46-0 & 50lbs 0-0-62lbs)
C19: (Fruit 1, Fruit 2,Fruit 3) | E19: Note: Includes an in-depth assessment of nutrients provided at each application of the farm's fertilizer program.
C20: Tri-State Recommendations | D20: - | E20: This section allows for calculating of P and K values needed to meet yield goals based on Tri-State Recommendations. The information can be transferred to the Nutrient Management page for use in commercial fertilizer cost comparison.
E22: Note: This section is not a replacement for recommendations from a soil test analysis obtained from soil test laboratories.
E23: For soil test based recommendations, visit the MSU Soil and Plant Nutrient Laboratory: | P23: https://www.canr.msu.edu/spnl/
C24: Simple Fertilizer Calculator | D24: - | E24: This section contains a calculation for finding cost per acre on select fertilizer products. There are also calculators to extract nitrogen and sulfur costs from combination fertilizer products.
C27: Manure Applications ---START HERE | E27: Do you plan to include manure cost in your fertilizer plan? Go to the Fertilizer Products & Pricing worksheet
E28: Note: There is a Manure Calculator to input nutrient analysis values. The calculator will adjust values based on selected number of days before manure is expected to be incorporated. Retention factors used to adjust values are based on 2022 proposed MI GAAMPS charts.
E30: Do you plan to include only commercial fertilizer products in your fertilizer plan? Go to the Nutrient Management worksheet
E31: Note: Step 4 provides an area to include values of manure, preferably based on a nutrient analysis. Values can also be adjusted based on selected number of days before manure is expected to be incorporated. Retention factors used to adjust values are based on 2022 proposed MI GAAMPS charts.
A34: 2) | B34: Only items that are colored in BLUE should be altered in each TAB. Changing the value of an item not marked BLUE can cause the formulas in the spreadsheet to stop working.
A36: 3) | B36: The Nutrient Management and Fertilizer Plan Tabs can be printed for your farm records. The Fertilizer Plan Tab also allows for printing of three different plans for your chosen commodity. This allows for comparison of different fertilizer sources to identify the best way to meet nutrient needs at the lowest possible cost.

Sheet Nutrient Management
B1: Nutrient Management | P1: Additional Resources:
B2: Enter Crop Name | F2: Enter Crop Name | J2: Enter Crop Name | P2: For more information on Fertilizer Recommendations, see:
P3: MSU Bulletin E-2934, Nutrient Recommendations for Vegetables in Michigan
A4: Step 1: | B4: Yield Goal:
C5: (Enter Below) | D5: (Enter Below) | G5: (Enter Below) | H5: (Enter Below) | K5: (Enter Below) | L5: (Enter Below) | P5: MSU Fertilizer Recommendation Program
C6: 0 | D6: Unit | G6: 0 | H6: Unit | K6: 0 | L6: Unit | P6: https://www.canr.msu.edu/fertrec/
D7: (tons, cwt, etc.) | H7: (tons, cwt, etc.) | L7: (tons, cwt, etc.)
A8: Step 2: | B8: Soil Test Based Recommendations: | P8: PPM to Pounds (Lbs) Conversion Calculator
B9: Obtained from MSU Fertilizer Recommendation Program or your local soil lab. | P9: (Enter Below)
B10: (Enter Below) | C10: (Enter Below) | D10: (Enter Below) | F10: (Enter Below) | G10: (Enter Below) | H10: (Enter Below) | J10: (Enter Below) | K10: (Enter Below) | L10: (Enter Below) | P10: PPM | R10: Pounds (Lbs)
B11: N | C11: P | D11: K | F11: N | G11: P | H11: K | J11: N | K11: P | L11: K | P11: 0 | Q11: x 2 | R11: =P11*2 -> 0
B12: 0 | C12: 0 | D12: 0 | F12: 0 | G12: 0 | H12: 0 | J12: 0 | K12: 0 | L12: 0
B13: S | C13: Ca | D13: Mag | F13: S | G13: Ca | H13: Mag | J13: S | K13: Ca | L13: Mag | N13: More
B14: 0 | C14: 0 | D14: 0 | F14: 0 | G14: 0 | H14: 0 | J14: 0 | K14: 0 | L14: 0 | N14: Below | P14: Note:
B15: Z | C15: B | D15: Mn | F15: Z | G15: B | H15: Mn | J15: Z | K15: B | L15: Mn | N15: ¯ | P15: Nutrient removal rates are based on soil nutrients at "maintenance levels." Soil testing is recommended to confirm maintenance levels exist prior to consideration of removal rates.
B16: 0 | C16: 0 | D16: 0 | F16: 0 | G16: 0 | H16: 0 | J16: 0 | K16: 0 | L16: 0
B17: Cu | C17: Mo | D17: Fe | F17: Cu | G17: Mo | H17: Fe | J17: Cu | K17: Mo | L17: Fe
B18: 0 | C18: 0 | D18: 0 | F18: 0 | G18: 0 | H18: 0 | J18: 0 | K18: 0 | L18: 0
B19: Lbs/Acre | C19: Lbs/Acre | D19: Lbs/Acre | F19: Lbs/Acre | G19: Lbs/Acre | H19: Lbs/Acre | J19: Lbs/Acre | K19: Lbs/Acre | L19: Lbs/Acre | N19: ¯
A21: Step 3: | B21: Nutrient Removal
B22: Amount of nutrients being removed based on yield goal.
B24: N | C24: P | D24: K | F24: N | G24: P | H24: K | J24: N | K24: P | L24: K
B25: =VLOOKUP($B$2,'Nutrient Removal Table'!$A$6:$D$40,2,FALSE)*$C$6 ->  | C25: =VLOOKUP($B$2,'Nutrient Removal Table'!$A$6:$D$40,4,FALSE)*$C$6 ->  | D25: =VLOOKUP($B$2,'Nutrient Removal Table'!$A$6:$D$40,3,FALSE)*$C$6 ->  | F25: =VLOOKUP($F$2,'Nutrient Removal Table'!$A$6:$D$40,2,FALSE)*$G$6 ->  | G25: =VLOOKUP($F$2,'Nutrient Removal Table'!$A$6:$D$40,4,FALSE)*$G$6 ->  | H25: =VLOOKUP($F$2,'Nutrient Removal Table'!$A$6:$D$40,3,FALSE)*$G$6 ->  | J25: =VLOOKUP($J$2,'Nutrient Removal Table'!$A$6:$D$40,2,FALSE)*$K$6 ->  | K25: =VLOOKUP($J$2,'Nutrient Removal Table'!$A$6:$D$40,4,FALSE)*$K$6 ->  | L25: =VLOOKUP($J$2,'Nutrient Removal Table'!$A$6:$D$40,3,FALSE)*$K$6 -> 
B26: S | C26: Ca | D26: Mag | F26: S | G26: Ca | H26: Mag | J26: S | K26: Ca | L26: Mag
B27: 0 | C27: 0 | D27: 0 | F27: 0 | G27: 0 | H27: 0 | J27: 0 | K27: 0 | L27: 0
B28: Lbs/Acre | C28: Lbs/Acre | D28: Lbs/Acre | F28: Lbs/Acre | G28: Lbs/Acre | H28: Lbs/Acre | J28: Lbs/Acre | K28: Lbs/Acre | L28: Lbs/Acre
A30: Step 3: | B30: Manure Application - This Year
B31: Input nutrients being provided in manure applications "this year" (based on nutrient analysis results).
B32: (Enter Below) | C32: (Enter Below) | D32: (Enter Below) | F32: (Enter Below) | G32: (Enter Below) | H32: (Enter Below) | J32: (Enter Below) | K32: (Enter Below) | L32: (Enter Below)
B33: N | C33: P | D33: K | F33: N | G33: P | H33: K | J33: N | K33: P | L33: K | P33: MSU recommends using soil test-based information to address nutrient needs of your intended yield goals.
B34: 0 | C34: 0 | D34: 0 | F34: 0 | G34: 0 | H34: 0 | J34: 0 | K34: 0 | L34: 0
B35: S | F35: S | J35: S
A36: Note: these values are subtracted in Step 6 | B36: 0 | D36: (Select Below) | F36: 0 | H36: (Select Below) | J36: 0 | L36: (Select Below)
B37: Days Before Incorporation | D37: ---- | F37: Days Before Incorporation | H37: ---- | J37: Days Before Incorporation | L37: ---- | P37: Manure Resources
B38: *for all liquid and solid manure types | F38: *for all liquid and solid manure types | J38: *for all liquid and solid manure types | P38: Manure application methods and nitrogen losses (University of Minnesota)
P39: Michigan GAAMPS | R39: ← See table A4 in Manure Mgmt & Utilization section for approximate manure values in place of nutrient analysis
A40: Step 4: | B40: Nutrient Credit: Manure - Previous Year(s)
B41: Input nutrients being provided in manure applications from previous year(s). | P41: Note:
B42: (Enter Below) | C42: (Enter Below) | D42: (Enter Below) | F42: (Enter Below) | G42: (Enter Below) | H42: (Enter Below) | J42: (Enter Below) | K42: (Enter Below) | L42: (Enter Below) | N42: More | P42: If you are using manure or compost, for best results a nutrient analysis is highly recommended.
B43: N | C43: P | D43: K | F43: N | G43: P | H43: K | J43: N | K43: P | L43: K | N43: Below
A44: Note: these values are subtracted in Step 6 | B44: 0 | C44: 0 | D44: 0 | F44: 0 | G44: 0 | H44: 0 | J44: 20 | K44: 32 | L44: 25 | N44: ¯
A46: Step 5: | B46: Nutrient Credit: Previous Crop | P46: For use with Step 6 (per MSU Bulletin: E-2904)
B47: Input nutrients being credited from legume crops planted in previous year.
B48: (Select Below) | D48: N | F48: (Select Below) | H48: N | J48: (Select Below) | L48: N
A49: Note: these values are subtracted in Step 6 | B49: Select Previous Crop | D49: =VLOOKUP(B49,'Manure and Nutrient Credits'!$A$3:$B$16,2,FALSE) -> 0 | F49: Select Previous Crop | H49: =VLOOKUP(F49,'Manure and Nutrient Credits'!$A$3:$B$16,2,FALSE) -> 0 | J49: Select Previous Crop | L49: =VLOOKUP(J49,'Manure and Nutrient Credits'!$A$3:$B$16,2,FALSE) -> 0
A51: Step 6: | B51: Total Nutrient Needs
B52: Based on comparison of soil test recommendations minus any manure or nutrient credits.
B54: N | C54: P | D54: K | F54: N | G54: P | H54: K | J54: N | K54: P | L54: K
B55: =B12-(B34*'Manure and Nutrient Credits'!$D$27)-B44-D49 -> 0 | C55: =C12-(C34*'Manure and Nutrient Credits'!$D$27)-C44 -> 0 | D55: =D12-(D34*'Manure and Nutrient Credits'!$D$27)-D44 -> 0 | F55: =F12-(F34*'Manure and Nutrient Credits'!$D$30)-F44-H49 -> 0 | G55: =G12-(G34*'Manure and Nutrient Credits'!$D$30)-G44 -> 0 | H55: =H12-(H34*'Manure and Nutrient Credits'!$D$30)-H44 -> 0 | J55: =J12-(J34*'Manure and Nutrient Credits'!$D$33)-J44-L49 -> -20 | K55: =K12-(K34*'Manure and Nutrient Credits'!$D$33)-K44 -> -32 | L55: =L12-(L34*'Manure and Nutrient Credits'!$D$33)-L44 -> -25
B56: =MAX(0,B55) -> 0 | C56: =MAX(0,C55) -> 0 | D56: 0 | F56: =MAX(0,F55) -> 0 | G56: =MAX(0,G55) -> 0 | H56: =MAX(0,H55) -> 0 | J56: =MAX(0,J55) -> 0 | K56: =MAX(0,K55) -> 0 | L56: =MAX(0,L55) -> 0
B57: S | C57: Ca | D57: Mag | F57: S | G57: Ca | H57: Mag | J57: S | K57: Ca | L57: Mag
B58: =B14-(B36*'Manure and Nutrient Credits'!$D$27) -> 0 | C58: =C14 -> 0 | D58: =D14 -> 0 | F58: =F14-(F36*'Manure and Nutrient Credits'!$D$30) -> 0 | G58: =G14 -> 0 | H58: =H14 -> 0 | J58: =J14-(J36*'Manure and Nutrient Credits'!$D$33) -> 0 | K58: =K14 -> 0 | L58: =L14 -> 0
B59: =MAX(0,B58) -> 0 | C59: =MAX(0,C58) -> 0 | D59: 0 | F59: =MAX(0,F58) -> 0 | G59: =MAX(0,G58) -> 0 | H59: =MAX(0,H58) -> 0 | J59: =MAX(0,J58) -> 0 | K59: =MAX(0,K58) -> 0 | L59: =MAX(0,L58) -> 0
B60: Z | C60: B | D60: Mn | F60: Z | G60: B | H60: Mn | J60: Z | K60: B | L60: Mn
B61: =B16 -> 0 | C61: =C16 -> 0 | D61: 0 | F61: 0 | G61: 0 | H61: 0 | J61: 0 | K61: 0 | L61: 0
B62: Cu | C62: Mo | D62: Fe | F62: Cu | G62: Mo | H62: Fe | J62: Cu | K62: Mo | L62: Fe
B63: =B18 -> 0 | C63: =C18 -> 0 | D63: 0 | F63: 0 | G63: 0 | H63: 0 | J63: 0 | K63: 0 | L63: 0
J65: Enter Farm Name
B67: Use this information to help determine the amount of commercial fertilizer needed in the Fertilizer Plan tab.
B69: Soil Test Based Recommendations | F69: Soil Test Based Recommendations | J69: Soil Test Based Recommendations
B70: =B12-(B34*'Manure and Nutrient Credits'!$D$27)-B44-D49 -> 0 | C70: =C12-(C34*'Manure and Nutrient Credits'!$D$27)-C44 -> 0 | D70: =D12-(D34*'Manure and Nutrient Credits'!$D$27)-D44 -> 0 | F70: =F12-(F34*'Manure and Nutrient Credits'!$D$30)-F44-H49 -> 0 | G70: =G12-(G34*'Manure and Nutrient Credits'!$D$30)-G44 -> 0 | H70: =H12-(H34*'Manure and Nutrient Credits'!$D$30)-H44 -> 0 | J70: =J12-(J34*'Manure and Nutrient Credits'!$D$33)-J44-L49 -> -20 | K70: =K12-(K34*'Manure and Nutrient Credits'!$D$33)-K44 -> -32 | L70: =L12-(L34*'Manure and Nutrient Credits'!$D$33)-L44 -> -25
B71: =MAX(0,B70) -> 0 | C71: =MAX(0,C70) -> 0 | D71: 0 | F71: =MAX(0,F70) -> 0 | G71: =MAX(0,G70) -> 0 | H71: =MAX(0,H70) -> 0 | J71: =MAX(0,J70) -> 0 | K71: =MAX(0,K70) -> 0 | L71: =MAX(0,L70) -> 0
B72: =B14-(B36*'Manure and Nutrient Credits'!$D$27) -> 0 | F72: =F14-(F36*'Manure and Nutrient Credits'!$D$30) -> 0 | J72: =J14-(J36*'Manure and Nutrient Credits'!$D$33) -> 0
B73: =MAX(0,B72) -> 0 | F73: =MAX(0,F72) -> 0 | J73: =MAX(0,J72) -> 0
B75: Nutrient Removal | F75: Nutrient Removal | J75: Nutrient Removal
B76: =B25-(B34*'Manure and Nutrient Credits'!$D$27)-B44-D49 ->  | C76: =C25-(C34*'Manure and Nutrient Credits'!$D$27)-C44 ->  | D76: =D25-(D34*'Manure and Nutrient Credits'!$D$27)-D44 ->  | F76: =F25-(F34*'Manure and Nutrient Credits'!$D$30)-F44-H49 ->  | G76: =G25-(G34*'Manure and Nutrient Credits'!$D$30)-G44 ->  | H76: =H25-(H34*'Manure and Nutrient Credits'!$D$30)-H44 ->  | J76: =J25-(J34*'Manure and Nutrient Credits'!$D$33)-J44-L49 ->  | K76: =K25-(K34*'Manure and Nutrient Credits'!$D$33)-K44 ->  | L76: =L25-(L34*'Manure and Nutrient Credits'!$D$33)-L44 -> 
B77: =MAX(0,B76) ->  | C77: =MAX(0,C76) ->  | D77: =MAX(0,D76) ->  | F77: =MAX(0,F76) ->  | G77: =MAX(0,G76) ->  | H77: =MAX(0,H76) ->  | J77: =MAX(0,J76) ->  | K77: =MAX(0,K76) ->  | L77: =MAX(0,L76) -> 
B78: =B27-(B36*'Manure and Nutrient Credits'!$D$27) -> 0 | F78: =F27-(F36*'Manure and Nutrient Credits'!$D$30) -> 0 | J78: =J27-(J36*'Manure and Nutrient Credits'!$D$33) -> 0
B79: =MAX(0,B78) -> 0 | F79: =MAX(0,F78) -> 0 | J79: =MAX(0,J78) -> 0

Sheet Corn K Calculations (hidden)
A1: 9 | B1: 50 | C1: IF(AND(E8<=50,'Crop Budget (Main)'!C14<=100,D14<=9),125,IF(AND(E8<=50,'Crop Budget (Main)'!C14<=120,D14<=9),130,IF(AND(E8<=50,'Crop Budget (Main)'!C14<=140,D14<=9),135,IF(AND(E8<=50,'Crop Budget (Main)'!C14<=160,D14<=9),140,IF(AND(E8<=50,'Crop Budget (Main)'!C14<=180,D14<=9),145,IF(AND(E8<=50,'Crop Budget (Main)'!C14>180,D14<=9),145
A2: 9 | B2: 100 | C2: IF(AND(E8<=100,'Crop Budget (Main)'!C14<=100,D14<=9),95,IF(AND(E8<=100,'Crop Budget (Main)'!C14<=120,D14<=9),100,IF(AND(E8<=100,'Crop Budget (Main)'!C14<=140,D14<=9),105,IF(AND(E8<=100,'Crop Budget (Main)'!C14<=160,D14<=9),110,IF(AND(E8<=100,'Crop Budget (Main)'!C14<=180,D14<=9),115,IF(AND(E8<=100,'Crop Budget (Main)'!C14>180,D14<=9),115
A3: 9 | B3: 150 | C3: IF(AND(E8<=150,'Crop Budget (Main)'!C14<=100,D14<=9),65,IF(AND(E8<=150,'Crop Budget (Main)'!C14<=120,D14<=9),70,IF(AND(E8<=150,'Crop Budget (Main)'!C14<=140,D14<=9),75,IF(AND(E8<=150,'Crop Budget (Main)'!C14<=160,D14<=9),80,IF(AND(E8<=150,'Crop Budget (Main)'!C14<=180,D14<=9),85,IF(AND(E8<=150,'Crop Budget (Main)'!C14>180,D14<=9),80
A4: 9 | B4: 235
A5: 9 | B5: 260
A6: 9 | B6: 280
A7: 19 | B7: 50 | C7: IF(AND(E8<=50,'Crop Budget (Main)'!C14<=100,D14<=19),160,IF(AND(E8<=50,'Crop Budget (Main)'!C14<=120,D14<=19),165,IF(AND(E8<=50,'Crop Budget (Main)'!C14<=140,D14<=19),170,IF(AND(E8<=50,'Crop Budget (Main)'!C14<=160,D14<=19),175,IF(AND(E8<=50,'Crop Budget (Main)'!C14<=180,D14<=19),180,IF(AND(E8<=50,'Crop Budget (Main)'!C14>180,D14<=19),180
A8: 19 | B8: 100 | C8: IF(AND(E8<=100,'Crop Budget (Main)'!C14<=100,D14<=19),120,IF(AND(E8<=100,'Crop Budget (Main)'!C14<=120,D14<=19),125,IF(AND(E8<=100,'Crop Budget (Main)'!C14<=140,D14<=19),135,IF(AND(E8<=100,'Crop Budget (Main)'!C14<=160,D14<=19),140,IF(AND(E8<=100,'Crop Budget (Main)'!C14<=180,D14<=19),145,IF(AND(E8<=100,'Crop Budget (Main)'!C14>180,D14<=19),145
A9: 19 | B9: 150 | C9: IF(AND(E8<=150,'Crop Budget (Main)'!C14<=100,D14<=19),85,IF(AND(E8<=150,'Crop Budget (Main)'!C14<=120,D14<=19),90,IF(AND(E8<=150,'Crop Budget (Main)'!C14<=140,D14<=19),95,IF(AND(E8<=150,'Crop Budget (Main)'!C14<=160,D14<=19),100,IF(AND(E8<=150,'Crop Budget (Main)'!C14<=180,D14<=19),105,IF(AND(E8<=150,'Crop Budget (Main)'!C14>180,D14<=19),100
A10: 19 | B10: 250 | C10: IF(AND(E8<=250,'Crop Budget (Main)'!C14<=100,D14<=19),45,IF(AND(E8<=250,'Crop Budget (Main)'!C14<=120,D14<=19),50,IF(AND(E8<=250,'Crop Budget (Main)'!C14<=140,D14<=19),60,IF(AND(E8<=250,'Crop Budget (Main)'!C14<=160,D14<=19),65,IF(AND(E8<=250,'Crop Budget (Main)'!C14<=180,D14<=19),70,IF(AND(E8<=250,'Crop Budget (Main)'!C14>180,D14<=19),70
A11: 19 | B11: 280
A12: 19 | B12: 300
A13: 29 | B13: 100 | C13: IF(AND(E8<=100,'Crop Budget (Main)'!C14<=100,D14<=29),195,IF(AND(E8<=100,'Crop Budget (Main)'!C14<=120,D14<=29),200,IF(AND(E8<=100,'Crop Budget (Main)'!C14<=140,D14<=29),210,IF(AND(E8<=100,'Crop Budget (Main)'!C14<=160,D14<=29),215,IF(AND(E8<=100,'Crop Budget (Main)'!C14<=180,D14<=29),220,IF(AND(E8<=100,'Crop Budget (Main)'!C14>180,D14<=29),220
A14: 29 | B14: 150 | C14: IF(AND(E8<=150,'Crop Budget (Main)'!C14<=100,D14<=29),145,IF(AND(E8<=150,'Crop Budget (Main)'!C14<=120,D14<=29),150,IF(AND(E8<=150,'Crop Budget (Main)'!C14<=140,D14<=29),160,IF(AND(E8<=150,'Crop Budget (Main)'!C14<=160,D14<=29),165,IF(AND(E8<=150,'Crop Budget (Main)'!C14<=180,D14<=29),170,IF(AND(E8<=150,'Crop Budget (Main)'!C14>180,D14<=29),170
A15: 29 | B15: 250 | C15: IF(AND(E8<=250,'Crop Budget (Main)'!C14<=100,D14<=29),95,IF(AND(E8<=250,'Crop Budget (Main)'!C14<=120,D14<=29),100,IF(AND(E8<=250,'Crop Budget (Main)'!C14<=140,D14<=29),110,IF(AND(E8<=250,'Crop Budget (Main)'!C14<=160,D14<=29),115,IF(AND(E8<=250,'Crop Budget (Main)'!C14<=180,D14<=29),120,IF(AND(E8<=250,'Crop Budget (Main)'!C14>180,D14<=29),120
A16: 29 | B16: 310
A17: 29 | B17: 330
A18: 29 | B18: 350 | D18: IF(AND(E8<=50,'Crop Budget (Main)'!C14<=100,D14<=9),125,IF(AND(E8<=50,'Crop Budget (Main)'!C14<=120,D14<=9),130,IF(AND(E8<=50,'Crop Budget (Main)'!C14<=140,D14<=9),135,IF(AND(E8<=50,'Crop Budget (Main)'!C14<=160,D14<=9),140,IF(AND(E8<=50,'Crop Budget (Main)'!C14<=180,D14<=9),145,IF(AND(E8<=50,'Crop Budget (Main)'!C14>180,D14<=9),145,IF(AND(E8<=100,'Crop Budget (Main)'!C14<=100,D14<=9),95,IF(AND(E8<=100,'Crop Budget (Main)'!C14<=120,D14<=9),100,IF(AND(E8<=100,'Crop Budget (Main)'!C14<=140,D14<=9),105,IF(AND(E8<=100,'Crop Budget (Main)'!C14<=160,D14<=9),110,IF(AND(E8<=100,'Crop Budget (Main)'!C14<=180,D14<=9),115,IF(AND(E8<=100,'Crop Budget (Main)'!C14>180,D14<=9),115,IF(AND(E8<=150,'Crop Budget (Main)'!C14<=100,D14<=9),65,IF(AND(E8<=150,'Crop Budget (Main)'!C14<=120,D14<=9),70,IF(AND(E8<=150,'Crop Budget (Main)'!C14<=140,D14<=9),75,IF(AND(E8<=150,'Crop Budget (Main)'!C14<=160,D14<=9),80,IF(AND(E8<=150,'Crop Budget (Main)'!C14<=180,D14<=9),85,IF(AND(E8<=150,'Crop Budget (Main)'!C14>180,D14<=9),80,IF(AND(E8<=50,'Crop Budget (Main)'!C14<=100,D14<=19),160,IF(AND(E8<=50,'Crop Budget (Main)'!C14<=120,D14<=19),165,IF(AND(E8<=50,'Crop Budget (Main)'!C14<=140,D14<=19),170,IF(AND(E8<=50,'Crop Budget (Main)'!C14<=160,D14<=19),175,IF(AND(E8<=50,'Crop Budget (Main)'!C14<=180,D14<=19),180,IF(AND(E8<=50,'Crop Budget (Main)'!C14>180,D14<=19),180,IF(AND(E8<=100,'Crop Budget (Main)'!C14<=100,D14<=19),120,IF(AND(E8<=100,'Crop Budget (Main)'!C14<=120,D14<=19),125,IF(AND(E8<=100,'Crop Budget (Main)'!C14<=140,D14<=19),135,IF(AND(E8<=100,'Crop Budget (Main)'!C14<=160,D14<=19),140,IF(AND(E8<=100,'Crop Budget (Main)'!C14<=180,D14<=19),145,IF(AND(E8<=100,'Crop Budget (Main)'!C14>180,D14<=19),145,IF(AND(E8<=150,'Crop Budget (Main)'!C14<=100,D14<=19),85,IF(AND(E8<=150,'Crop Budget (Main)'!C14<=120,D14<=19),90,IF(AND(E8<=150,'Crop Budget (Main)'!C14<=140,D14<=19),95,IF(AND(E8<=150,'Crop Budget (Main)'!C14<=160,D14<=19),100,IF(AND(E8<=150,'Crop Budget (Main)'!C14<=180,D14<=19),105,IF(AND(E8<=150,'Crop Budget (Main)'!C14>180,D14<=19),100,IF(AND(E8<=200,'Crop Budget (Main)'!C14<=100,D14<=19),45,IF(AND(E8<=200,'Crop Budget (Main)'!C14<=120,D14<=19),50,IF(AND(E8<=200,'Crop Budget (Main)'!C14<=140,D14<=19),60,IF(AND(E8<=200,'Crop Budget (Main)'!C14<=160,D14<=19),65,IF(AND(E8<=200,'Crop Budget (Main)'!C14<=180,D14<=19),70,IF(AND(E8<=200,'Crop Budget (Main)'!C14>180,D14<=19),70,IF(AND(E8<=100,'Crop Budget (Main)'!C14<=100,D14<=29),195,IF(AND(E8<=100,'Crop Budget (Main)'!C14<=120,D14<=29),200,IF(AND(E8<=100,'Crop Budget (Main)'!C14<=140,D14<=29),210,IF(AND(E8<=100,'Crop Budget (Main)'!C14<=160,D14<=29),215,IF(AND(E8<=100,'Crop Budget (Main)'!C14<=180,D14<=29),220,IF(AND(E8<=100,'Crop Budget (Main)'!C14>180,D14<=29),220,IF(AND(E8<=150,'Crop Budget (Main)'!C14<=100,D14<=29),145,IF(AND(E8<=150,'Crop Budget (Main)'!C14<=120,D14<=29),150,IF(AND(E8<=150,'Crop Budget (Main)'!C14<=140,D14<=29),160,IF(AND(E8<=150,'Crop Budget (Main)'!C14<=160,D14<=29),165,IF(AND(E8<=150,'Crop Budget (Main)'!C14<=180,D14<=29),170,IF(AND(E8<=150,'Crop Budget (Main)'!C14>180,D14<=29),170,IF(AND(E8<=200,'Crop Budget (Main)'!C14<=100,D14<=29),95,IF(AND(E8<=200,'Crop Budget (Main)'!C14<=120,D14<=29),100,IF(AND(E8<=200,'Crop Budget (Main)'!C14<=140,D14<=29),110,IF(AND(E8<=200,'Crop Budget (Main)'!C14<=160,D14<=29),115,IF(AND(E8<=200,'Crop Budget (Main)'!C14<=180,D14<=29),120,IF(AND(E8<=200,'Crop Budget (Main)'!C14>180,D14<=29),120
A19: 30 | B19: 150
A20: 30 | B20: 200
A21: 30 | B21: 250
A22: 30 | B22: 360
A23: 30 | B23: 380
A24: 30 | B24: 400

Sheet Soybean K Calculations (hidden)
A1: 9 | B1: 50 | C1: IF(AND(I8<=50,'Crop Budget (Main)'!G14<=30,H14<=9),140,IF(AND(I8<=50,'Crop Budget (Main)'!G14<=40,H14<=9),155,IF(AND(I8<=50,'Crop Budget (Main)'!G14<=50,H14<=9),170,IF(AND(I8<=50,'Crop Budget (Main)'!G14<=60,H14<=9),180,IF(AND(I8<=50,'Crop Budget (Main)'!G14<=70,H14<=9),195,IF(AND(I8<=50,'Crop Budget (Main)'!G14>70,H14<=9),195
A2: 9 | B2: 100 | C2: IF(AND(I8<=100,'Crop Budget (Main)'!G14<=30,H14<=9),110,IF(AND(I8<=100,'Crop Budget (Main)'!G14<=40,H14<=9),125,IF(AND(I8<=100,'Crop Budget (Main)'!G14<=50,H14<=9),135,IF(AND(I8<=100,'Crop Budget (Main)'!G14<=60,H14<=9),150,IF(AND(I8<=100,'Crop Budget (Main)'!G14<=70,H14<=9),165,IF(AND(I8<=100,'Crop Budget (Main)'!G14>70,H14<=9),165
A3: 9 | B3: 150 | C3: IF(AND(I8<=150,'Crop Budget (Main)'!G14<=30,H14<=9),80,IF(AND(I8<=150,'Crop Budget (Main)'!G14<=40,H14<=9),90,IF(AND(I8<=150,'Crop Budget (Main)'!G14<=50,H14<=9),105,IF(AND(I8<=150,'Crop Budget (Main)'!G14<=60,H14<=9),105,IF(AND(I8<=150,'Crop Budget (Main)'!G14<=70,H14<=9),120,IF(AND(I8<=150,'Crop Budget (Main)'!G14>70,H14<=9),120
A4: 9 | B4: 235
A5: 9 | B5: 260
A6: 9 | B6: 280
A7: 19 | B7: 50 | C7: IF(AND(I8<=50,'Crop Budget (Main)'!G14<=30,H14<=19),175,IF(AND(I8<=50,'Crop Budget (Main)'!G14<=40,H14<=19),190,IF(AND(I8<=50,'Crop Budget (Main)'!G14<=50,H14<=19),205,IF(AND(I8<=50,'Crop Budget (Main)'!G14<=60,H14<=19),215,IF(AND(I8<=50,'Crop Budget (Main)'!G14<=70,H14<=19),230,IF(AND(I8<=50,'Crop Budget (Main)'!G14>70,H14<=19),230
A8: 19 | B8: 100 | C8: IF(AND(I8<=100,'Crop Budget (Main)'!G14<=30,H14<=19),135,IF(AND(I8<=100,'Crop Budget (Main)'!G14<=40,H14<=19),150,IF(AND(I8<=100,'Crop Budget (Main)'!G14<=50,H14<=19),165,IF(AND(I8<=100,'Crop Budget (Main)'!G14<=60,H14<=19),180,IF(AND(I8<=100,'Crop Budget (Main)'!G14<=70,H14<=19),195,IF(AND(I8<=100,'Crop Budget (Main)'!G14>70,H14<=19),195
A9: 19 | B9: 150 | C9: IF(AND(I8<=150,'Crop Budget (Main)'!G14<=30,H14<=19),100,IF(AND(I8<=150,'Crop Budget (Main)'!G14<=40,H14<=19),115,IF(AND(I8<=150,'Crop Budget (Main)'!G14<=50,H14<=19),130,IF(AND(I8<=150,'Crop Budget (Main)'!G14<=60,H14<=19),140,IF(AND(I8<=150,'Crop Budget (Main)'!G14<=70,H14<=19),155,IF(AND(I8<=150,'Crop Budget (Main)'!G14>70,H14<=19),155
A10: 19 | B10: 250 | C10: IF(AND(I8<=250,'Crop Budget (Main)'!G14<=30,H14<=19),60,IF(AND(I8<=250,'Crop Budget (Main)'!G14<=40,H14<=19),75,IF(AND(I8<=250,'Crop Budget (Main)'!G14<=50,H14<=19),90,IF(AND(I8<=250,'Crop Budget (Main)'!G14<=60,H14<=19),105,IF(AND(I8<=250,'Crop Budget (Main)'!G14<=70,H14<=19),120,IF(AND(I8<=250,'Crop Budget (Main)'!G14>70,H14<=19),120
A11: 19 | B11: 280
A12: 19 | B12: 300
A13: 29 | B13: 100 | C13: IF(AND(I8<=100,'Crop Budget (Main)'!G14<=100,H14<=29),210,IF(AND(I8<=100,'Crop Budget (Main)'!G14<=120,H14<=29),225,IF(AND(I8<=100,'Crop Budget (Main)'!G14<=140,H14<=29),240,IF(AND(I8<=100,'Crop Budget (Main)'!G14<=160,H14<=29),255,IF(AND(I8<=100,'Crop Budget (Main)'!G14<=180,H14<=29),270,IF(AND(I8<=100,'Crop Budget (Main)'!G14>180,H14<=29),270
A14: 29 | B14: 150 | C14: IF(AND(I8<=150,'Crop Budget (Main)'!G14<=100,H14<=29),160,IF(AND(I8<=150,'Crop Budget (Main)'!G14<=120,H14<=29),175,IF(AND(I8<=150,'Crop Budget (Main)'!G14<=140,H14<=29),190,IF(AND(I8<=150,'Crop Budget (Main)'!G14<=160,H14<=29),205,IF(AND(I8<=150,'Crop Budget (Main)'!G14<=180,H14<=29),220,IF(AND(I8<=150,'Crop Budget (Main)'!G14>180,H14<=29),220
A15: 29 | B15: 250 | C15: IF(AND(I8<=250,'Crop Budget (Main)'!G14<=100,H14<=29),110,IF(AND(I8<=250,'Crop Budget (Main)'!G14<=120,H14<=29),125,IF(AND(I8<=250,'Crop Budget (Main)'!G14<=140,H14<=29),140,IF(AND(I8<=250,'Crop Budget (Main)'!G14<=160,H14<=29),155,IF(AND(I8<=250,'Crop Budget (Main)'!G14<=180,H14<=29),170,IF(AND(I8<=250,'Crop Budget (Main)'!G14>180,H14<=29),170
A16: 29 | B16: 310
A17: 29 | B17: 330
A18: 29 | B18: 350 | D18: IF(AND(I8<=50,'Crop Budget (Main)'!G14<=30,H14<=9),140,IF(AND(I8<=50,'Crop Budget (Main)'!G14<=40,H14<=9),155,IF(AND(I8<=50,'Crop Budget (Main)'!G14<=50,H14<=9),170,IF(AND(I8<=50,'Crop Budget (Main)'!G14<=60,H14<=9),180,IF(AND(I8<=50,'Crop Budget (Main)'!G14<=70,H14<=9),195,IF(AND(I8<=50,'Crop Budget (Main)'!G14>70,H14<=9),195,IF(AND(I8<=100,'Crop Budget (Main)'!G14<=30,H14<=9),110,IF(AND(I8<=100,'Crop Budget (Main)'!G14<=40,H14<=9),125,IF(AND(I8<=100,'Crop Budget (Main)'!G14<=50,H14<=9),135,IF(AND(I8<=100,'Crop Budget (Main)'!G14<=60,H14<=9),150,IF(AND(I8<=100,'Crop Budget (Main)'!G14<=70,H14<=9),165,IF(AND(I8<=100,'Crop Budget (Main)'!G14>70,H14<=9),165,IF(AND(I8<=150,'Crop Budget (Main)'!G14<=30,H14<=9),80,IF(AND(I8<=150,'Crop Budget (Main)'!G14<=40,H14<=9),90,IF(AND(I8<=150,'Crop Budget (Main)'!G14<=50,H14<=9),105,IF(AND(I8<=150,'Crop Budget (Main)'!G14<=60,H14<=9),105,IF(AND(I8<=150,'Crop Budget (Main)'!G14<=70,H14<=9),120,IF(AND(I8<=150,'Crop Budget (Main)'!G14>70,H14<=9),120,IF(AND(I8<=50,'Crop Budget (Main)'!G14<=30,H14<=19),175,IF(AND(I8<=50,'Crop Budget (Main)'!G14<=40,H14<=19),190,IF(AND(I8<=50,'Crop Budget (Main)'!G14<=50,H14<=19),205,IF(AND(I8<=50,'Crop Budget (Main)'!G14<=60,H14<=19),215,IF(AND(I8<=50,'Crop Budget (Main)'!G14<=70,H14<=19),230,IF(AND(I8<=50,'Crop Budget (Main)'!G14>70,H14<=19),230,IF(AND(I8<=100,'Crop Budget (Main)'!G14<=30,H14<=19),135,IF(AND(I8<=100,'Crop Budget (Main)'!G14<=40,H14<=19),150,IF(AND(I8<=100,'Crop Budget (Main)'!G14<=50,H14<=19),165,IF(AND(I8<=100,'Crop Budget (Main)'!G14<=60,H14<=19),180,IF(AND(I8<=100,'Crop Budget (Main)'!G14<=70,H14<=19),195,IF(AND(I8<=100,'Crop Budget (Main)'!G14>70,H14<=19),195,IF(AND(I8<=150,'Crop Budget (Main)'!G14<=30,H14<=19),100,IF(AND(I8<=150,'Crop Budget (Main)'!G14<=40,H14<=19),115,IF(AND(I8<=150,'Crop Budget (Main)'!G14<=50,H14<=19),130,IF(AND(I8<=150,'Crop Budget (Main)'!G14<=60,H14<=19),140,IF(AND(I8<=150,'Crop Budget (Main)'!G14<=70,H14<=19),155,IF(AND(I8<=150,'Crop Budget (Main)'!G14>70,H14<=19),155,IF(AND(I8<=250,'Crop Budget (Main)'!G14<=30,H14<=19),60,IF(AND(I8<=250,'Crop Budget (Main)'!G14<=40,H14<=19),75,IF(AND(I8<=250,'Crop Budget (Main)'!G14<=50,H14<=19),90,IF(AND(I8<=250,'Crop Budget (Main)'!G14<=60,H14<=19),105,IF(AND(I8<=250,'Crop Budget (Main)'!G14<=70,H14<=19),120,IF(AND(I8<=250,'Crop Budget (Main)'!G14>70,H14<=19),120,IF(AND(I8<=100,'Crop Budget (Main)'!G14<=100,H14<=29),210,IF(AND(I8<=100,'Crop Budget (Main)'!G14<=120,H14<=29),225,IF(AND(I8<=100,'Crop Budget (Main)'!G14<=140,H14<=29),240,IF(AND(I8<=100,'Crop Budget (Main)'!G14<=160,H14<=29),255,IF(AND(I8<=100,'Crop Budget (Main)'!G14<=180,H14<=29),270,IF(AND(I8<=100,'Crop Budget (Main)'!G14>180,H14<=29),270,IF(AND(I8<=150,'Crop Budget (Main)'!G14<=100,H14<=29),160,IF(AND(I8<=150,'Crop Budget (Main)'!G14<=120,H14<=29),175,IF(AND(I8<=150,'Crop Budget (Main)'!G14<=140,H14<=29),190,IF(AND(I8<=150,'Crop Budget (Main)'!G14<=160,H14<=29),205,IF(AND(I8<=150,'Crop Budget (Main)'!G14<=180,H14<=29),220,IF(AND(I8<=150,'Crop Budget (Main)'!G14>180,H14<=29),220,IF(AND(I8<=250,'Crop Budget (Main)'!G14<=100,H14<=29),110,IF(AND(I8<=250,'Crop Budget (Main)'!G14<=120,H14<=29),125,IF(AND(I8<=250,'Crop Budget (Main)'!G14<=140,H14<=29),140,IF(AND(I8<=250,'Crop Budget (Main)'!G14<=160,H14<=29),155,IF(AND(I8<=250,'Crop Budget (Main)'!G14<=180,H14<=29),170,IF(AND(I8<=250,'Crop Budget (Main)'!G14>180,H14<=29),170
A19: 30 | B19: 150
A20: 30 | B20: 200
A21: 30 | B21: 250
A22: 30 | B22: 360
A23: 30 | B23: 380
A24: 30 | B24: 400

Sheet Wheat K Calculations (hidden)
A1: 9 | B1: 50 | C1: IF(AND(M8<=50,'Crop Budget (Main)'!K14<=50,L14<=9),115,IF(AND(M8<=50,'Crop Budget (Main)'!K14<=60,L14<=9),130,IF(AND(M8<=50,'Crop Budget (Main)'!K14<=70,L14<=9),125,IF(AND(M8<=50,'Crop Budget (Main)'!K14<=80,L14<=9),130,IF(AND(M8<=50,'Crop Budget (Main)'!K14<=90,L14<=9),130,IF(AND(M8<=50,'Crop Budget (Main)'!K14>90,L14<=9),130
A2: 9 | B2: 100 | C2: IF(AND(M8<=100,'Crop Budget (Main)'!K14<=50,L14<=9),85,IF(AND(M8<=100,'Crop Budget (Main)'!K14<=60,L14<=9),90,IF(AND(M8<=100,'Crop Budget (Main)'!K14<=70,L14<=9),95,IF(AND(M8<=100,'Crop Budget (Main)'!K14<=80,L14<=9),95,IF(AND(M8<=100,'Crop Budget (Main)'!K14<=90,L14<=9),100,IF(AND(M8<=100,'Crop Budget (Main)'!K14>90,L14<=9),100
A3: 9 | B3: 150 | C3: IF(AND(M8<=150,'Crop Budget (Main)'!K14<=50,L14<=9),55,IF(AND(M8<=150,'Crop Budget (Main)'!K14<=60,L14<=9),60,IF(AND(M8<=150,'Crop Budget (Main)'!K14<=70,L14<=9),60,IF(AND(M8<=150,'Crop Budget (Main)'!K14<=80,L14<=9),65,IF(AND(M8<=150,'Crop Budget (Main)'!K14<=90,L14<=9),70,IF(AND(M8<=150,'Crop Budget (Main)'!K14>90,L14<=9),70
A4: 9 | B4: 235
A5: 9 | B5: 260
A6: 9 | B6: 280
A7: 19 | B7: 50 | C7: IF(AND(M8<=50,'Crop Budget (Main)'!K14<=50,L14<=19),150,IF(AND(M8<=50,'Crop Budget (Main)'!K14<=60,L14<=19),155,IF(AND(M8<=50,'Crop Budget (Main)'!K14<=70,L14<=19),160,IF(AND(M8<=50,'Crop Budget (Main)'!K14<=80,L14<=19),160,IF(AND(M8<=50,'Crop Budget (Main)'!K14<=90,L14<=19),165,IF(AND(M8<=50,'Crop Budget (Main)'!K14>90,L14<=19),165
A8: 19 | B8: 100 | C8: IF(AND(M8<=100,'Crop Budget (Main)'!K14<=50,L14<=19),115,IF(AND(M8<=100,'Crop Budget (Main)'!K14<=60,L14<=19),115,IF(AND(M8<=100,'Crop Budget (Main)'!K14<=70,L14<=19),120,IF(AND(M8<=100,'Crop Budget (Main)'!K14<=80,L14<=19),125,IF(AND(M8<=100,'Crop Budget (Main)'!K14<=90,L14<=19),130,IF(AND(M8<=100,'Crop Budget (Main)'!K14>90,L14<=19),130
A9: 19 | B9: 150 | C9: IF(AND(M8<=150,'Crop Budget (Main)'!K14<=50,L14<=19),75,IF(AND(M8<=150,'Crop Budget (Main)'!K14<=60,L14<=19),80,IF(AND(M8<=150,'Crop Budget (Main)'!K14<=70,L14<=19),85,IF(AND(M8<=150,'Crop Budget (Main)'!K14<=80,L14<=19),85,IF(AND(M8<=150,'Crop Budget (Main)'!K14<=90,L14<=19),90,IF(AND(M8<=150,'Crop Budget (Main)'!K14>90,L14<=19),90
A10: 19 | B10: 200 | C10: IF(AND(M8<=200,'Crop Budget (Main)'!K14<=50,L14<=19),40,IF(AND(M8<=200,'Crop Budget (Main)'!K14<=60,L14<=19),40,IF(AND(M8<=200,'Crop Budget (Main)'!K14<=70,L14<=19),45,IF(AND(M8<=200,'Crop Budget (Main)'!K14<=80,L14<=19),50,IF(AND(M8<=200,'Crop Budget (Main)'!K14<=90,L14<=19),50,IF(AND(M8<=200,'Crop Budget (Main)'!K14>90,L14<=19),50
A11: 19 | B11: 280
A12: 19 | B12: 300
A13: 29 | B13: 100 | C13: IF(AND(M8<=100,'Crop Budget (Main)'!K14<=50,L14<=29),190,IF(AND(M8<=100,'Crop Budget (Main)'!K14<=60,L14<=29),190,IF(AND(M8<=100,'Crop Budget (Main)'!K14<=70,L14<=29),195,IF(AND(M8<=100,'Crop Budget (Main)'!K14<=80,L14<=29),200,IF(AND(M8<=100,'Crop Budget (Main)'!K14<=90,L14<=29),205,IF(AND(M8<=100,'Crop Budget (Main)'!K14>90,L14<=29),205
A14: 29 | B14: 150 | C14: IF(AND(M8<=150,'Crop Budget (Main)'!K14<=50,L14<=29),140,IF(AND(M8<=150,'Crop Budget (Main)'!K14<=60,L14<=29),140,IF(AND(M8<=150,'Crop Budget (Main)'!K14<=70,L14<=29),145,IF(AND(M8<=150,'Crop Budget (Main)'!K14<=80,L14<=29),150,IF(AND(M8<=150,'Crop Budget (Main)'!K14<=90,L14<=29),155,IF(AND(M8<=150,'Crop Budget (Main)'!K14>90,L14<=29),155
A15: 29 | B15: 200 | C15: IF(AND(M8<=200,'Crop Budget (Main)'!K14<=50,L14<=29),90,IF(AND(M8<=200,'Crop Budget (Main)'!K14<=60,L14<=29),90,IF(AND(M8<=200,'Crop Budget (Main)'!K14<=70,L14<=29),95,IF(AND(M8<=200,'Crop Budget (Main)'!K14<=80,L14<=29),100,IF(AND(M8<=200,'Crop Budget (Main)'!K14<=90,L14<=29),105,IF(AND(M8<=200,'Crop Budget (Main)'!K14>90,L14<=29),105
A16: 29 | B16: 310
A17: 29 | B17: 330
A18: 29 | B18: 350 | D18: IF(AND(M8<=50,'Crop Budget (Main)'!K14<=50,L14<=9),115,IF(AND(M8<=50,'Crop Budget (Main)'!K14<=60,L14<=9),130,IF(AND(M8<=50,'Crop Budget (Main)'!K14<=70,L14<=9),125,IF(AND(M8<=50,'Crop Budget (Main)'!K14<=80,L14<=9),130,IF(AND(M8<=50,'Crop Budget (Main)'!K14<=90,L14<=9),130,IF(AND(M8<=50,'Crop Budget (Main)'!K14>90,L14<=9),130,IF(AND(M8<=100,'Crop Budget (Main)'!K14<=50,L14<=9),85,IF(AND(M8<=100,'Crop Budget (Main)'!K14<=60,L14<=9),90,IF(AND(M8<=100,'Crop Budget (Main)'!K14<=70,L14<=9),95,IF(AND(M8<=100,'Crop Budget (Main)'!K14<=80,L14<=9),95,IF(AND(M8<=100,'Crop Budget (Main)'!K14<=90,L14<=9),100,IF(AND(M8<=100,'Crop Budget (Main)'!K14>90,L14<=9),100,IF(AND(M8<=150,'Crop Budget (Main)'!K14<=50,L14<=9),55,IF(AND(M8<=150,'Crop Budget (Main)'!K14<=60,L14<=9),60,IF(AND(M8<=150,'Crop Budget (Main)'!K14<=70,L14<=9),60,IF(AND(M8<=150,'Crop Budget (Main)'!K14<=80,L14<=9),65,IF(AND(M8<=150,'Crop Budget (Main)'!K14<=90,L14<=9),70,IF(AND(M8<=150,'Crop Budget (Main)'!K14>90,L14<=9),70,IF(AND(M8<=50,'Crop Budget (Main)'!K14<=50,L14<=19),150,IF(AND(M8<=50,'Crop Budget (Main)'!K14<=60,L14<=19),155,IF(AND(M8<=50,'Crop Budget (Main)'!K14<=70,L14<=19),160,IF(AND(M8<=50,'Crop Budget (Main)'!K14<=80,L14<=19),160,IF(AND(M8<=50,'Crop Budget (Main)'!K14<=90,L14<=19),165,IF(AND(M8<=50,'Crop Budget (Main)'!K14>90,L14<=19),165,IF(AND(M8<=100,'Crop Budget (Main)'!K14<=50,L14<=19),115,IF(AND(M8<=100,'Crop Budget (Main)'!K14<=60,L14<=19),115,IF(AND(M8<=100,'Crop Budget (Main)'!K14<=70,L14<=19),120,IF(AND(M8<=100,'Crop Budget (Main)'!K14<=80,L14<=19),125,IF(AND(M8<=100,'Crop Budget (Main)'!K14<=90,L14<=19),130,IF(AND(M8<=100,'Crop Budget (Main)'!K14>90,L14<=19),130,IF(AND(M8<=150,'Crop Budget (Main)'!K14<=50,L14<=19),75,IF(AND(M8<=150,'Crop Budget (Main)'!K14<=60,L14<=19),80,IF(AND(M8<=150,'Crop Budget (Main)'!K14<=70,L14<=19),85,IF(AND(M8<=150,'Crop Budget (Main)'!K14<=80,L14<=19),85,IF(AND(M8<=150,'Crop Budget (Main)'!K14<=90,L14<=19),90,IF(AND(M8<=150,'Crop Budget (Main)'!K14>90,L14<=19),90,IF(AND(M8<=200,'Crop Budget (Main)'!K14<=50,L14<=19),40,IF(AND(M8<=200,'Crop Budget (Main)'!K14<=60,L14<=19),40,IF(AND(M8<=200,'Crop Budget (Main)'!K14<=70,L14<=19),45,IF(AND(M8<=200,'Crop Budget (Main)'!K14<=80,L14<=19),50,IF(AND(M8<=200,'Crop Budget (Main)'!K14<=90,L14<=19),50,IF(AND(M8<=200,'Crop Budget (Main)'!K14>90,L14<=19),50,IF(AND(M8<=100,'Crop Budget (Main)'!K14<=50,L14<=29),190,IF(AND(M8<=100,'Crop Budget (Main)'!K14<=60,L14<=29),190,IF(AND(M8<=100,'Crop Budget (Main)'!K14<=70,L14<=29),195,IF(AND(M8<=100,'Crop Budget (Main)'!K14<=80,L14<=29),200,IF(AND(M8<=100,'Crop Budget (Main)'!K14<=90,L14<=29),205,IF(AND(M8<=100,'Crop Budget (Main)'!K14>90,L14<=29),205,IF(AND(M8<=150,'Crop Budget (Main)'!K14<=50,L14<=29),140,IF(AND(M8<=150,'Crop Budget (Main)'!K14<=60,L14<=29),140,IF(AND(M8<=150,'Crop Budget (Main)'!K14<=70,L14<=29),145,IF(AND(M8<=150,'Crop Budget (Main)'!K14<=80,L14<=29),150,IF(AND(M8<=150,'Crop Budget (Main)'!K14<=90,L14<=29),155,IF(AND(M8<=150,'Crop Budget (Main)'!K14>90,L14<=29),155,IF(AND(M8<=200,'Crop Budget (Main)'!K14<=50,L14<=29),90,IF(AND(M8<=200,'Crop Budget (Main)'!K14<=60,L14<=29),90,IF(AND(M8<=200,'Crop Budget (Main)'!K14<=70,L14<=29),95,IF(AND(M8<=200,'Crop Budget (Main)'!K14<=80,L14<=29),100,IF(AND(M8<=200,'Crop Budget (Main)'!K14<=90,L14<=29),105,IF(AND(M8<=200,'Crop Budget (Main)'!K14>90,L14<=29),105
A19: 30 | B19: 150
A20: 30 | B20: 200
A21: 30 | B21: 250
A22: 30 | B22: 360
A23: 30 | B23: 380
A24: 30 | B24: 400

Sheet Fertilizer Products & Pricing
A1: 1 | B1: 2 | C1: 3 | D1: 4 | E1: 5 | F1: 6 | G1: 7 | H1: 8 | I1: 9 | J1: 10 | K1: 11 | L1: 12 | M1: 13 | N1: 14 | O1: 15 | P1: 16 | Q1: 17 | R1: 18
B2: Pounds per Material | R2: (Enter Below) | T2: Cost Per Lb Calculations | Y2: Lbs Per Purchase Unit | AC2: Total per Ton | AE2: Percentage of Total
A3: Macronutrients | B3: Nitrogen | C3: Phosphorus | D3: Potassium | E3: Sulfur | F3: Magnesium | G3: Calcium | H3: Zinc | I3: Boron | J3: Manganese | K3: Copper | L3: Molybdenum | M3: Iron | N3: Unit Size | O3: App Units | P3: Units/Pkg | Q3: Purchase Units | R3: Price/Unit | T3: N | U3: P | V3: K | W3: S | Y3: N | Z3: P | AA3: K | AB3: S | AD3: Inert Material | AE3: N | AF3: P | AG3: K | AH3: S | AI3: Inert Material
A4: None | P4: 1 | Q4: None | R4: 0
A5: Ammonium polyphosphate (10-34-0) | B5: =N5*0.1 -> 1.17 | C5: =N5*0.34 -> 3.978 | N5: 11.7 | O5: gal | P5: 2000 | Q5: Tons | R5: 0 | T5: =IFERROR($R5/($P5*(B5/$N5))*AE5,0) -> 0 | U5: =IFERROR($R5/($P5*(C5/$N5))*AF5,0) -> 0 | V5: =IFERROR($R5/($P5*(D5/$N5))*AG5,0) -> 0 | W5: =IFERROR($R5/($P5*(E5/$N5))*AH5,0) -> 0 | Y5: =2000*(B5/$N5) -> 200 | Z5: =2000*(C5/$N5) -> 680 | AA5: =2000*(D5/$N5) -> 0 | AB5: =2000*(E5/$N5) -> 0 | AC5: =Y5+Z5+AA5+AB5 -> 880 | AD5: =2000-AC5 -> 1120 | AE5: =Y5/AC5 -> 0.2272727273 | AF5: =Z5/AC5 -> 0.7727272727 | AG5: =AA5/AC5 -> 0 | AH5: =AB5/AC5 -> 0 | AK5: Note: | AL5: All listed product values are based on nutrient analysis from product labels
A6: AMS (21-0-0-24S) | B6: 0.21 | E6: 0.24 | N6: 1 | O6: lbs | P6: 2000 | Q6: Tons | R6: 0 | T6: 0 | U6: 0 | V6: 0 | W6: 0 | Y6: =2000*(B6/$N6) -> 420 | Z6: =2000*(C6/$N6) -> 0 | AA6: =2000*(D6/$N6) -> 0 | AB6: =2000*(E6/$N6) -> 480 | AC6: 900 | AD6: =2000-AC6 -> 1100 | AE6: =Y6/AC6 -> 0.4666666667 | AF6: =Z6/AC6 -> 0 | AG6: =AA6/AC6 -> 0 | AH6: =AB6/AC6 -> 0.5333333333
A7: Anhydrous (82-0-0) | B7: 0.82 | N7: 1 | O7: lbs | P7: 2000 | Q7: Tons | R7: 0 | T7: 0 | U7: 0 | V7: 0 | W7: 0 | Y7: 1640 | Z7: 0 | AA7: 0 | AB7: 0 | AC7: 1640 | AD7: 360 | AE7: 1 | AF7: 0 | AG7: 0 | AH7: 0
A8: Calcium Nitrate (16-0-0-19Ca) | B8: 0.16 | G8: 0.19 | N8: 1 | O8: lbs | P8: 2000 | Q8: Tons | R8: 0
A9: DAP (18-46-0) | B9: 0.18 | C9: 0.46 | N9: 1 | O9: lbs | P9: 2000 | Q9: Tons | R9: 0 | T9: 0 | U9: 0 | V9: 0 | W9: 0 | Y9: 360 | Z9: 920 | AA9: 0 | AB9: 0 | AC9: 1280 | AD9: 720 | AE9: 0.28125 | AF9: 0.71875 | AG9: 0 | AH9: 0
A10: ESN (44-0-0) | B10: 0.44 | N10: 1 | O10: lbs | P10: 2000 | Q10: Tons | R10: 0 | T10: 0 | U10: 0 | V10: 0 | W10: 0 | Y10: 880 | Z10: 0 | AA10: 0 | AB10: 0 | AC10: 880 | AD10: 1120 | AE10: 1 | AF10: 0 | AG10: 0 | AH10: 0
A11: Gypsum (0-0-0-17S-21Ca) | E11: 0.17 | G11: 0.21 | N11: 1 | O11: lbs | P11: 2000 | Q11: Tons | R11: 0 | T11: 0 | U11: 0 | V11: 0 | W11: 0 | Y11: 0 | Z11: 0 | AA11: 0 | AB11: 340 | AC11: 340 | AD11: 1660 | AE11: 0 | AF11: 0 | AG11: 0 | AH11: 1
A12: K-Mag (0-0-22-11Mg-21S) | D12: 0.22 | E12: 0.21 | F12: 0.11 | N12: 1 | O12: lbs | P12: 2000 | Q12: Tons | R12: 0 | T12: 0 | U12: 0 | V12: 0 | W12: 0 | Y12: 0 | Z12: 0 | AA12: 440 | AB12: 420 | AC12: 860 | AD12: 1140 | AE12: 0 | AF12: 0 | AG12: 0.511627907 | AH12: 0.488372093
A13: MAP (11-52-00) | B13: 0.11 | C13: 0.52 | N13: 1 | O13: lbs | P13: 2000 | Q13: Tons | R13: 0 | T13: 0 | U13: 0 | V13: 0 | W13: 0 | Y13: 220 | Z13: 1040 | AA13: 0 | AB13: 0 | AC13: 1260 | AD13: 740 | AE13: 0.1746031746 | AF13: 0.8253968254 | AG13: 0 | AH13: 0
A14: MESZ (12-40-0-10S-1Z) | B14: 0.12 | C14: 0.4 | E14: 0.1 | H14: 0.01 | N14: 1 | O14: lbs | P14: 2000 | Q14: Tons | R14: 0 | T14: 0 | U14: 0 | V14: 0 | W14: 0 | Y14: 240 | Z14: 800 | AA14: 0 | AB14: 200 | AC14: 1240 | AD14: 760 | AE14: 0.1935483871 | AF14: 0.6451612903 | AG14: 0 | AH14: 0.1612903226
A15: Potash (0-0-60) | D15: 0.6 | N15: 1 | O15: lbs | P15: 2000 | Q15: Tons | R15: 0 | T15: 0 | U15: 0 | V15: 0 | W15: 0 | Y15: 0 | Z15: 0 | AA15: 1200 | AB15: 0 | AC15: 1200 | AD15: 800 | AE15: 0 | AF15: 0 | AG15: 1 | AH15: 0
A16: Potassium Acetate (0-0-24) | D16: 0.24 | N16: 10.65 | O16: gal | P16: 2000 | Q16: Gallons | R16: 0 | T16: 0 | U16: 0 | V16: 0 | W16: 0 | Y16: 0 | Z16: 0 | AA16: 45.07042254 | AB16: 0 | AC16: 45.07042254 | AD16: 1954.929577 | AE16: 0 | AF16: 0 | AG16: 1 | AH16: 0
A17: Potassium Sulphate (0-0-52-18S) | D17: 0.52 | E17: 0.18 | N17: 1 | O17: lbs | P17: 2000 | Q17: Tons | R17: 0 | T17: 0 | U17: 0 | V17: 0 | W17: 0 | Y17: 0 | Z17: 0 | AA17: 1040 | AB17: 360 | AC17: 1400 | AD17: 600 | AE17: 0 | AF17: 0 | AG17: 0.7428571429 | AH17: 0.2571428571
A18: SuperU (46-0-0) | B18: 0.46 | N18: 1 | O18: lbs | P18: 2000 | Q18: Tons | R18: 0
A19: Thiosul (12-0-0-26) | B19: =N19*0.12 -> 1.3248 | E19: =N19*0.26 -> 2.8704 | N19: 11.04 | O19: gal | P19: 2000 | Q19: Tons | R19: 0 | T19: 0 | U19: 0 | V19: 0 | W19: 0 | Y19: 240 | Z19: 0 | AA19: 0 | AB19: 520 | AC19: 760 | AD19: 1240 | AE19: 0.3157894737 | AF19: 0 | AG19: 0 | AH19: 0.6842105263
A20: Triple Superphosphate (0-46-0) | C20: 0.46 | N20: 1 | O20: lbs | P20: 2000 | Q20: Tons | R20: 0 | T20: 0 | U20: 0 | V20: 0 | W20: 0 | Y20: 0 | Z20: 920 | AA20: 0 | AB20: 0 | AC20: 920 | AD20: 1080 | AE20: 0 | AF20: 1 | AG20: 0 | AH20: 0
A21: UAN 28% (28-0-0) | B21: =N21*0.28 -> 2.9876 | N21: 10.67 | O21: gal | P21: 2000 | Q21: Tons | R21: 0 | T21: 0 | U21: 0 | V21: 0 | W21: 0 | Y21: 560 | Z21: 0 | AA21: 0 | AB21: 0 | AC21: 560 | AD21: 1440 | AE21: 1 | AF21: 0 | AG21: 0 | AH21: 0
A22: UAN 32% (32-0-0) | B22: =N22*0.32 -> 3.5392 | N22: 11.06 | O22: gal | P22: 2000 | Q22: Tons | R22: 0 | T22: 0 | U22: 0 | V22: 0 | W22: 0 | Y22: 640 | Z22: 0 | AA22: 0 | AB22: 0 | AC22: 640 | AD22: 1360 | AE22: 1 | AF22: 0 | AG22: 0 | AH22: 0
A23: Urea (46-0-0) | B23: =0.46 -> 0.46 | N23: 1 | O23: lbs | P23: 2000 | Q23: Tons | R23: 0 | T23: 0 | U23: 0 | V23: 0 | W23: 0 | Y23: 920 | Z23: 0 | AA23: 0 | AB23: 0 | AC23: 920 | AD23: 1080 | AE23: 1 | AF23: 0 | AG23: 0 | AH23: 0
A24: 9-18-9 (liquid) | B24: 0.9873 | C24: 1.9746 | D24: 0.9873 | N24: 1 | O24: gal | P24: 1 | Q24: Gallons | R24: 0 | T24: 0 | U24: 0 | V24: 0 | W24: 0 | Y24: 1974.6 | Z24: 3949.2 | AA24: 1974.6 | AB24: 0 | AC24: 7898.4 | AD24: -5898.4 | AE24: 0.25 | AF24: 0.5 | AG24: 0.25 | AH24: 0
A25: 6-24-6 (liquid) | B25: 0.6654 | C25: 2.6616 | D25: 0.6654 | N25: 1 | O25: gal | P25: 1 | Q25: Gallons | R25: 0 | T25: 0 | U25: 0 | V25: 0 | W25: 0 | Y25: 1330.8 | Z25: 5323.2 | AA25: 1330.8 | AB25: 0 | AC25: 7984.8 | AD25: -5984.8 | AE25: 0.1666666667 | AF25: 0.6666666667 | AG25: 0.1666666667 | AH25: 0 | AL25: Manure Resources
A26: 6-12-12 (dry) | B26: 0.06 | C26: 0.12 | D26: 0.12 | N26: 1 | O26: lbs | P26: 2000 | Q26: Tons | R26: 0 | T26: 0 | U26: 0 | V26: 0 | W26: 0 | Y26: 120 | Z26: 240 | AA26: 240 | AB26: 0 | AC26: 600 | AD26: 1400 | AE26: 0.2 | AF26: 0.4 | AG26: 0.4 | AH26: 0 | AL26: Manure application methods and nitrogen losses (University of Minnesota)
A27: 5-10-5 (dry) | B27: 0.05 | C27: 0.1 | D27: 0.05 | N27: 1 | O27: lbs | P27: 2000 | Q27: Tons | R27: 0 | T27: 0 | U27: 0 | V27: 0 | W27: 0 | Y27: 100 | Z27: 200 | AA27: 100 | AB27: 0 | AC27: 400 | AD27: 1600 | AE27: 0.25 | AF27: 0.5 | AG27: 0.25 | AH27: 0 | AL27: Michigan GAAMPS | AN27: ← See table A4 in Manure Mgmt & Utilization section for approximate manure values in place of nutrient analysis
A28: 3-18-18 (liquid) | B28: 0.351 | C28: 2.106 | D28: 2.106 | N28: 1 | O28: gal | P28: 1 | Q28: Gallons | R28: 0 | T28: 0 | U28: 0 | V28: 0 | W28: 0 | Y28: 702 | Z28: 4212 | AA28: 4212 | AB28: 0 | AC28: 9126 | AD28: -7126 | AE28: 0.07692307692 | AF28: 0.4615384615 | AG28: 0.4615384615 | AH28: 0
A29: 19-19-19 (dry) | B29: 0.19 | C29: 0.19 | D29: 0.19 | N29: 1 | O29: lbs | P29: 2000 | Q29: Tons | R29: 0 | T29: 0 | U29: 0 | V29: 0 | W29: 0 | Y29: 380 | Z29: 380 | AA29: 380 | AB29: 0 | AC29: 1140 | AD29: 860 | AE29: 0.3333333333 | AF29: 0.3333333333 | AG29: 0.3333333333 | AH29: 0 | AL29: Note:
A30: 15-15-2 (liquid) | B30: 1.738 | C30: 1.65 | D30: 0.22 | N30: 1 | O30: gal | P30: 1 | Q30: Gallons | R30: 0 | T30: 0 | U30: 0 | V30: 0 | W30: 0 | Y30: 3476 | Z30: 3300 | AA30: 440 | AB30: 0 | AC30: 7216 | AD30: -5216 | AE30: 0.4817073171 | AF30: 0.4573170732 | AG30: 0.06097560976 | AH30: 0 | AL30: If you are using manure or compost, for best results a nutrient analysis is highly recommended.
A31: 15-15-15 (dry) | B31: 0.15 | C31: 0.15 | D31: 0.15 | N31: 1 | O31: lbs | P31: 2000 | Q31: Tons | R31: 0 | T31: 0 | U31: 0 | V31: 0 | W31: 0 | Y31: 300 | Z31: 300 | AA31: 300 | AB31: 0 | AC31: 900 | AD31: 1100 | AE31: 0.3333333333 | AF31: 0.3333333333 | AG31: 0.3333333333 | AH31: 0
A32: 12-24-24 (dry) | B32: 0.12 | C32: 0.24 | D32: 0.24 | N32: 1 | O32: lbs | P32: 2000 | Q32: Tons | R32: 0 | T32: 0 | U32: 0 | V32: 0 | W32: 0 | Y32: 240 | Z32: 480 | AA32: 480 | AB32: 0 | AC32: 1200 | AD32: 800 | AE32: 0.2 | AF32: 0.4 | AG32: 0.4 | AH32: 0
A33: 10-10-10 (dry) | B33: 0.1 | C33: 0.1 | D33: 0.1 | N33: 1 | O33: lbs | P33: 2000 | Q33: Tons | R33: 0 | T33: 0 | U33: 0 | V33: 0 | W33: 0 | Y33: 200 | Z33: 200 | AA33: 200 | AB33: 0 | AC33: 600 | AD33: 1400 | AE33: 0.3333333333 | AF33: 0.3333333333 | AG33: 0.3333333333 | AH33: 0 | AL33: Manure Calculator
A34: Manure (solid) | B34: =AL37 -> 29.4 | C34: =AM37 -> 52.5 | D34: 39.9 | E34: 5.6 | N34: 2000 | O34: Tons | P34: 2000 | Q34: Tons | R34: 0 | S34: calculator → | T34: 0 | U34: 0 | V34: 0 | W34: 0 | Y34: 29.4 | Z34: 52.5 | AA34: 39.9 | AB34: 5.6 | AC34: 127.4 | AD34: 1872.6 | AE34: 0.2307692308 | AF34: 0.4120879121 | AG34: 0.3131868132 | AH34: 0.04395604396 | AL34: Manure (Solid) | AP34: Days of Incorporation %
A35: Manure (liquid) | B35: =AL42 -> 30.1 | C35: =AM42 -> 11.9 | D35: 26.6 | E35: 7 | N35: 1 | O35: 1,000 gal | P35: 1 | Q35: Gallons | R35: 0 | S35: calculator → | AL35: N | AM35: P | AN35: K | AO35: S
A36: Compost | B36: 0 | C36: 0 | D36: 0 | E36: 0 | F36: 0 | G36: 0 | H36: 0 | I36: 0 | J36: 0 | K36: 0 | L36: 0 | M36: 0 | N36: 0 | O36: 0 | P36: 0 | Q36: Enter | R36: 0 | T36: 0 | U36: 0 | V36: 0 | W36: 0 | AL36: 42 | AM36: 75 | AN36: 57 | AO36: 8 | AP36: 0-1 days
A37: Enter | B37: 0 | C37: 0 | D37: 0 | E37: 0 | F37: 0 | G37: 0 | H37: 0 | I37: 0 | J37: 0 | K37: 0 | L37: 0 | M37: 0 | N37: 0 | O37: 0 | P37: 0 | Q37: Enter | R37: 0 | T37: 0 | U37: 0 | V37: 0 | W37: 0 | AL37: ='Manure and Nutrient Credits'!E38 -> 29.4 | AM37: ='Manure and Nutrient Credits'!F38 -> 52.5 | AN37: ='Manure and Nutrient Credits'!G38 -> 39.9 | AO37: ='Manure and Nutrient Credits'!H38 -> 5.6 | AP37: ←Incorporation Adjustment
A38: Enter | B38: 0 | C38: 0 | D38: 0 | E38: 0 | F38: 0 | G38: 0 | H38: 0 | I38: 0 | J38: 0 | K38: 0 | L38: 0 | M38: 0 | N38: 0 | O38: 0 | P38: 0 | Q38: Enter | R38: 0 | T38: 0 | U38: 0 | V38: 0 | W38: 0
A39: Enter | B39: 0 | C39: 0 | D39: 0 | E39: 0 | F39: 0 | G39: 0 | H39: 0 | I39: 0 | J39: 0 | K39: 0 | L39: 0 | M39: 0 | N39: 0 | O39: 0 | P39: 0 | Q39: Enter | R39: 0 | T39: 0 | U39: 0 | V39: 0 | W39: 0 | AL39: Manure (Liquid) | AP39: Days of Incorporation %
A40: Enter | B40: 0 | C40: 0 | D40: 0 | E40: 0 | F40: 0 | G40: 0 | H40: 0 | I40: 0 | J40: 0 | K40: 0 | L40: 0 | M40: 0 | N40: 0 | O40: 0 | P40: 0 | Q40: Enter | R40: 0 | T40: 0 | U40: 0 | V40: 0 | W40: 0 | AL40: N | AM40: P | AN40: K | AO40: S
AL41: 43 | AM41: 17 | AN41: 38 | AO41: 10 | AP41: 0-1 days
AL42: ='Manure and Nutrient Credits'!E41 -> 30.1 | AM42: ='Manure and Nutrient Credits'!F41 -> 11.9 | AN42: ='Manure and Nutrient Credits'!G41 -> 26.6 | AO42: ='Manure and Nutrient Credits'!H41 -> 7 | AP42: ←Incorporation Adjustment
A43: Micronutrients | B43: Nitrogen | C43: Phosphorus | D43: Potassium | E43: Sulfur | F43: Magnesium | G43: Calcium | H43: Zinc | I43: Boron | J43: Manganese | K43: Copper | L43: Molybdenum | M43: Iron | N43: Unit Size | O43: App Units | P43: Units/Pkg | Q43: Purchase Units | R43: (Enter Below)
A44: None | P44: 1 | Q44: None | R44: 0
A45: Boron (14.3%) | I45: 0.143 | N45: 1 | O45: lbs | P45: 1 | Q45: Pound | R45: 0 | AL45: *Do NOT use manure values if already input on Nutrient Management tab. This will double count values in fertilizer plan.
A46: Zinc (35.5%) | H46: 0.355 | N46: 1 | O46: lbs | P46: 1 | Q46: Pound | R46: 0
A47: Zinc Liquid (12-0-0-12zn) | B47: 0.318 | H47: 0.318 | N47: 1 | O47: qts | P47: 4 | Q47: Gallons | R47: 0
A48: Boron Liquid (0-0-0-10B) | I48: =(11.12*0.25)*0.1 -> 0.278 | N48: 1 | O48: qts | P48: 4 | Q48: Gallons | R48: 0
A49: Manganese Sulfate | E49: 0.18 | J49: 0.33 | N49: 1 | O49: lbs | P49: 1 | Q49: Pound | R49: 0
A50: Zinc Sulphate | B50: 35.5 | E50: 0.185 | N50: 1 | O50: lbs | P50: 1 | Q50: Pound | R50: 0
A51: Magnesium Sulfate | E51: 0.14 | F51: 0.091 | N51: 1 | O51: lbs | P51: 1 | Q51: Pound | R51: 0
A52: Borosol 10 | I52: 0.1 | N52: 1 | O52: gal | P52: 1 | Q52: Gallons | R52: 0
A53: EDTA ZN (9%) | B53: 0.04 | H53: 0.09 | N53: 1 | O53: gal | P53: 1 | Q53: Gallons | R53: 0
A54: Enter | B54: 0 | C54: 0 | D54: 0 | E54: 0 | F54: 0 | G54: 0 | H54: 0 | I54: 0 | J54: 0 | K54: 0 | L54: 0 | M54: 0 | N54: 0 | O54: 0 | P54: 0 | Q54: Enter | R54: 0
A55: Enter | B55: 0 | C55: 0 | D55: 0 | E55: 0 | F55: 0 | G55: 0 | H55: 0 | I55: 0 | J55: 0 | K55: 0 | L55: 0 | M55: 0 | N55: 0 | O55: 0 | P55: 0 | Q55: Enter | R55: 0
A56: Enter | B56: 0 | C56: 0 | D56: 0 | E56: 0 | F56: 0 | G56: 0 | H56: 0 | I56: 0 | J56: 0 | K56: 0 | L56: 0 | M56: 0 | N56: 0 | O56: 0 | P56: 0 | Q56: Enter | R56: 0
A57: Enter | B57: 0 | C57: 0 | D57: 0 | E57: 0 | F57: 0 | G57: 0 | H57: 0 | I57: 0 | J57: 0 | K57: 0 | L57: 0 | M57: 0 | N57: 0 | O57: 0 | P57: 0 | Q57: Enter | R57: 0
A60: Lime | B60: Nitrogen | C60: Phosphorus | D60: Potassium | E60: Sulfur | F60: Magnesium | G60: Calcium | H60: Zinc | I60: Boron | J60: Manganese | K60: Copper | L60: Molybdenum | M60: Iron | N60: Unit Size | O60: App Units | P60: Units/Pkg | Q60: Purchase Units | R60: (Enter Below)
A61: None | P61: 1 | Q61: None | R61: 0
A62: Pelleted Lime | F62: 0.03 | G62: 0.22 | N62: 1 | O62: lbs | P62: 2000 | Q62: Ton | R62: 0
A63: Sugar Beet Lime | B63: 0.55 | C63: 0.01 | D63: 0.0036 | G63: 29 | N63: 1 | O63: tons | P63: 1 | Q63: Ton | R63: 0
A64: Dolometic | F64: 11 | G64: 42 | N64: 1 | O64: tons | P64: 1 | Q64: Ton | R64: 0
A65: High Calcium | G65: 80 | N65: 1 | O65: tons | P65: 1 | Q65: Ton | R65: 0
A66: Enter | B66: 0 | C66: 0 | D66: 0 | E66: 0 | F66: 0 | G66: 0 | H66: 0 | I66: 0 | J66: 0 | K66: 0 | L66: 0 | M66: 0 | N66: 0 | O66: 0 | P66: 0 | Q66: Enter | R66: 0
A67: Enter | B67: 0 | C67: 0 | D67: 0 | E67: 0 | F67: 0 | G67: 0 | H67: 0 | I67: 0 | J67: 0 | K67: 0 | L67: 0 | M67: 0 | N67: 0 | O67: 0 | P67: 0 | Q67: Enter | R67: 0
A68: Enter | B68: 0 | C68: 0 | D68: 0 | E68: 0 | F68: 0 | G68: 0 | H68: 0 | I68: 0 | J68: 0 | K68: 0 | L68: 0 | M68: 0 | N68: 0 | O68: 0 | P68: 0 | Q68: Enter | R68: 0
A69: Enter | B69: 0 | C69: 0 | D69: 0 | E69: 0 | F69: 0 | G69: 0 | H69: 0 | I69: 0 | J69: 0 | K69: 0 | L69: 0 | M69: 0 | N69: 0 | O69: 0 | P69: 0 | Q69: Enter | R69: 0
A72: Nitrogen Stabilizers | N72: Unit Size | O72: Units | P72: Units/Pkg | Q72: Purchase Units | R72: (Enter Below)
A73: None | P73: 1 | Q73: None | R73: 0
A74: N-Serve | N74: 1 | O74: ozs | P74: 128 | Q74: Gallons | R74: 0
A75: Instinct | N75: 1 | O75: ozs | P75: 128 | Q75: Gallons | R75: 0
A76: Factor | N76: 1 | O76: qt/ton | P76: 4 | Q76: Gallons | R76: 0
A77: Nutrisphere | N77: 1 | O77: qt/ton | P77: 4 | Q77: Gallons | R77: 0
A78: Agrotain | N78: 1 | O78: qt/ton | P78: 4 | Q78: Gallons | R78: 0
A79: Enter | N79: 0 | O79: 0 | P79: 0 | Q79: Enter | R79: 0
A80: Enter | N80: 0 | O80: 0 | P80: 0 | Q80: Enter | R80: 0
A81: Enter | N81: 0 | O81: 0 | P81: 0 | Q81: Enter | R81: 0
A82: Enter | N82: 0 | O82: 0 | P82: 0 | Q82: Enter | R82: 0
A84: Foliars | B84: Nitrogen | C84: Phosphorus | D84: Potassium | E84: Sulfur | F84: Magnesium | G84: Calcium | H84: Zinc | I84: Boron | J84: Manganese | K84: Copper | L84: Molybdenum | M84: Iron | N84: Unit Size | O84: App Units | P84: Units/Pkg | Q84: Purchase Units | R84: (Enter Below)
A85: None | P85: 1 | Q85: None | R85: 0
A86: 0-0-0-4Ca (Sysstem-Cal) | G86: 0.4 | N86: 10.01 | O86: qts | P86: 4 | Q86: Gallons | R86: 0
A87: 0-0-0-2Ca (Calexin) | G87: 0.18 | N87: 9.13 | O87: pts | P87: 8 | Q87: Gallons | R87: 0
A88: 0-0-15 (Teca Fruit) | D88: 1.73 | N88: 11.5 | O88: gal | P88: 1 | Q88: Gallons | R88: 0
A89: 0-0-24 (ReKovery Fruit) | D89: 2.61 | N89: 10.86 | O89: qts | P89: 4 | Q89: Gallons | R89: 0
A90: 0-0-26 (Signature StarPhite) | D90: 3.22 | N90: 12.4 | O90: pts | P90: 8 | Q90: Gallons | R90: 0
A91: 0-21-26 (Carbol Optifruit) | C91: 2.63 | D91: 3.26 | N91: 12.53 | O91: qts | P91: 4 | Q91: Gallons | R91: 0
A92: 13-8-8-17B (Perfection Fruit & Veg Foliar | B92: 1.42 | C92: 0.88 | D92: 0.88 | I92: 1.86 | N92: 10.94 | O92: gal | P92: 1 | Q92: Gallons | R92: 0
A93: 15-0-7 (SizeN) | B93: 1.62 | D93: 0.76 | N93: 10.8 | O93: qts | P93: 4 | Q93: Gallons | R93: 0
A94: 26-0-0 (N-PACT) | B94: 2.6 | N94: 10.01 | O94: qts | P94: 4 | Q94: Gallons | R94: 0
A95: 3-3-7-1Z-0.5Mn (Maxifruit) | B95: 0.3 | C95: 0.3 | D95: 0.7 | H95: 0.01 | J95: 0.005 | N95: 10.02 | O95: pts | P95: 8 | Q95: Gallons | R95: 0
A96: Enter | B96: 0 | C96: 0 | D96: 0 | E96: 0 | F96: 0 | G96: 0 | H96: 0 | I96: 0 | J96: 0 | K96: 0 | L96: 0 | M96: 0 | N96: 0 | O96: 0 | P96: 0 | Q96: Enter | R96: 0
A97: Enter | B97: 0 | C97: 0 | D97: 0 | E97: 0 | F97: 0 | G97: 0 | H97: 0 | I97: 0 | J97: 0 | K97: 0 | L97: 0 | M97: 0 | N97: 0 | O97: 0 | P97: 0 | Q97: Enter | R97: 0
A98: Enter | B98: 0 | C98: 0 | D98: 0 | E98: 0 | F98: 0 | G98: 0 | H98: 0 | I98: 0 | J98: 0 | K98: 0 | L98: 0 | M98: 0 | N98: 0 | O98: 0 | P98: 0 | Q98: Enter | R98: 0
A99: Enter | B99: 0 | C99: 0 | D99: 0 | E99: 0 | F99: 0 | G99: 0 | H99: 0 | I99: 0 | J99: 0 | K99: 0 | L99: 0 | M99: 0 | N99: 0 | O99: Enter | P99: 0 | Q99: Enter | R99: 0
A100: Enter | B100: 0 | C100: 0 | D100: 0 | E100: 0 | F100: 0 | G100: 0 | H100: 0 | I100: 0 | J100: 0 | K100: 0 | L100: 0 | M100: 0 | N100: 0 | O100: Enter | P100: 0 | Q100: Enter | R100: 0
A101: Enter | B101: 0 | C101: 0 | D101: 0 | E101: 0 | F101: 0 | G101: 0 | H101: 0 | I101: 0 | J101: 0 | K101: 0 | L101: 0 | M101: 0 | N101: 0 | O101: Enter | P101: 0 | Q101: Enter | R101: 0
A102: Enter | B102: 0 | C102: 0 | D102: 0 | E102: 0 | F102: 0 | G102: 0 | H102: 0 | I102: 0 | J102: 0 | K102: 0 | L102: 0 | M102: 0 | N102: 0 | O102: Enter | P102: 0 | Q102: Enter | R102: 0
A103: Enter | B103: 0 | C103: 0 | D103: 0 | E103: 0 | F103: 0 | G103: 0 | H103: 0 | I103: 0 | J103: 0 | K103: 0 | L103: 0 | M103: 0 | N103: 0 | O103: 0 | P103: 0 | Q103: Enter | R103: 0
O104: 0
O105: 0
A106: Fertigation | B106: Nitrogen | C106: Phosphorus | D106: Potassium | E106: Sulfur | F106: Magnesium | G106: Calcium | H106: Zinc | I106: Boron | J106: Manganese | K106: Copper | L106: Molybdenum | M106: Iron | N106: Unit Size | O106: App Units | P106: Units/Pkg | Q106: Purchase Units | R106: (Enter Below)
A107: None | P107: 1 | Q107: None | R107: 0
A108: UAN 28% (28-0-0) | B108: =N108*0.28 -> 2.9876 | N108: 10.67 | O108: gal | P108: 2000 | Q108: Tons | R108: 0
A109: Urea (46-0-0) Low Biuret | B109: 0.46 | N109: 1 | O109: lb | P109: 1 | Q109: Pound | R109: 0
A110: K-Mag (0-29-5-4.1Mg) liquid | C110: 3.49 | D110: 0.6 | F110: 0.49 | N110: 12.05 | O110: gal | P110: 1 | Q110: Gallons | R110: 0
A111: Enter | B111: 0 | C111: 0 | D111: 0 | E111: 0 | F111: 0 | G111: 0 | H111: 0 | I111: 0 | J111: 0 | K111: 0 | L111: 0 | M111: 0 | N111: 0 | O111: 0 | P111: 0 | Q111: Enter | R111: 0
A112: Enter | B112: 0 | C112: 0 | D112: 0 | E112: 0 | F112: 0 | G112: 0 | H112: 0 | I112: 0 | J112: 0 | K112: 0 | L112: 0 | M112: 0 | N112: 0 | O112: 0 | P112: 0 | Q112: Enter | R112: 0
A113: Enter | B113: 0 | C113: 0 | D113: 0 | E113: 0 | F113: 0 | G113: 0 | H113: 0 | I113: 0 | J113: 0 | K113: 0 | L113: 0 | M113: 0 | N113: 0 | O113: 0 | P113: 0 | Q113: Enter | R113: 0
A114: Enter | B114: 0 | C114: 0 | D114: 0 | E114: 0 | F114: 0 | G114: 0 | H114: 0 | I114: 0 | J114: 0 | K114: 0 | L114: 0 | M114: 0 | N114: 0 | O114: 0 | P114: 0 | Q114: Enter | R114: 0
A115: Enter | B115: 0 | C115: 0 | D115: 0 | E115: 0 | F115: 0 | G115: 0 | H115: 0 | I115: 0 | J115: 0 | K115: 0 | L115: 0 | M115: 0 | N115: 0 | O115: 0 | P115: 0 | Q115: Enter | R115: 0
A116: Enter | B116: 0 | C116: 0 | D116: 0 | E116: 0 | F116: 0 | G116: 0 | H116: 0 | I116: 0 | J116: 0 | K116: 0 | L116: 0 | M116: 0 | N116: 0 | O116: Enter | P116: 0 | Q116: Enter | R116: 0
A117: Enter | B117: 0 | C117: 0 | D117: 0 | E117: 0 | F117: 0 | G117: 0 | H117: 0 | I117: 0 | J117: 0 | K117: 0 | L117: 0 | M117: 0 | N117: 0 | O117: Enter | P117: 0 | Q117: Enter | R117: 0
A118: Enter | B118: 0 | C118: 0 | D118: 0 | E118: 0 | F118: 0 | G118: 0 | H118: 0 | I118: 0 | J118: 0 | K118: 0 | L118: 0 | M118: 0 | N118: 0 | O118: Enter | P118: 0 | Q118: Enter | R118: 0

Sheet Manure and Nutrient Credits (hidden)
A3: Select Previous Crop | B3: 0 | L3: Select Option Below
A4: Alfalfa, established | B4: 40 | L4: Nutrient Removal
A5: Alfalfa, seeding | B5: 40 | L5: Soil Test Based Recs
A6: Clover, established | B6: 40
A7: Clover, seeding | B7: 20
A8: Trefoil, established | B8: 40
A9: Barley + legume | B9: 30
A10: Oats + legume | B10: 30
A11: Wheat + legume | B11: 30
A12: Clover-grass hay | B12: 40
A13: Grass hay | B13: 40
A14: Dry edible beans | B14: 20
A15: Soybeans | B15: 30
A16: CRP land | B16: 40
A25: Days Before Incorporation | B25: Retention Factor | D25: Manure Nitrogen Multiplier (corn)
A26: ---- | B26: 1 | D26: Factor | E26: Nitrogen | F26: Phosphorus | G26: Potassium | H26: Sulfur
A27: 0-1 days | B27: 0.7 | D27: =VLOOKUP('Nutrient Management'!D37,'Manure and Nutrient Credits'!A26:B30,2,FALSE) -> 1 | E27: =$D$27*'Nutrient Management'!B34 -> 0 | F27: =$D$27*'Nutrient Management'!C34 -> 0 | G27: =$D$27*'Nutrient Management'!D34 -> 0 | H27: =$D$27*'Nutrient Management'!B36 -> 0
A28: 2-3 days | B28: 0.4 | D28: Manure Nitrogen Multiplier (soybeans)
A29: 4-7 days | B29: 0.2
A30: >7 days | B30: 0.1 | D30: =VLOOKUP('Nutrient Management'!H37,A26:B30,2,FALSE) -> 1 | E30: =$D$30*'Nutrient Management'!F34 -> 0 | F30: =$D$30*'Nutrient Management'!G34 -> 0 | G30: =$D$30*'Nutrient Management'!H34 -> 0 | H30: =$D$30*'Nutrient Management'!F36 -> 0
D31: Manure Nitrogen Multiplier (wheat)
D33: =VLOOKUP('Nutrient Management'!L37,A26:B30,2,FALSE) -> 1 | E33: =$D$33*'Nutrient Management'!J34 -> 0 | F33: =$D$33*'Nutrient Management'!K34 -> 0 | G33: =$D$33*'Nutrient Management'!L34 -> 0 | H33: =$D$33*'Nutrient Management'!J36 -> 0
A35: Fertilizer Products & Pricing
A36: Days Before Incorporation | B36: Retention Factor | D36: Manure (solid)
A37: ---- | B37: 1 | D37: Factor | E37: Nitrogen | F37: Phosphorus | G37: Potassium | H37: Sulfur
A38: 0-1 days | B38: 0.7 | D38: =VLOOKUP('Fertilizer Products & Pricing'!AP36,A37:B41,2,FALSE) -> 0.7 | E38: =$D$38*'Fertilizer Products & Pricing'!AL36 -> 29.4 | F38: =$D$38*'Fertilizer Products & Pricing'!AM36 -> 52.5 | G38: =$D$38*'Fertilizer Products & Pricing'!AN36 -> 39.9 | H38: =$D$38*'Fertilizer Products & Pricing'!AO36 -> 5.6
A39: 2-3 days | B39: 0.4 | D39: Manure (liquid)
A40: 4-7 days | B40: 0.2
A41: >7 days | B41: 0.1 | D41: =VLOOKUP('Fertilizer Products & Pricing'!AP41,A37:B41,2,FALSE) -> 0.7 | E41: =$D$41*'Fertilizer Products & Pricing'!AL41 -> 30.1 | F41: =$D$41*'Fertilizer Products & Pricing'!AM41 -> 11.9 | G41: =$D$41*'Fertilizer Products & Pricing'!AN41 -> 26.6 | H41: =$D$41*'Fertilizer Products & Pricing'!AO41 -> 7

Sheet Fertilizer Plan (Fruit 1)
A1: ='Nutrient Management'!F2 -> Enter Crop Name | M1: =A1 -> Enter Crop Name | Y1: =A1 -> Enter Crop Name
A2: Comparison Plan 1 | M2: Comparison Plan 2 | Y2: Comparison Plan 3
A3: 1st Application (i.e., Pre-Plant or Broadcast Fertilizer) | M3: 1st Application (i.e., Pre-Plant or Broadcast Fertilizer) | Y3: 1st Application (i.e., Pre-Plant or Broadcast Fertilizer)
A4: Fertilizer Source | B4: Purchase Units | C4: Package Price (Gals, Lbs, etc.) | D4: Units/Pkg | E4: Rate/Acre | F4: Units | G4: Cost | M4: Fertilizer Source | N4: Purchase Units | O4: Package Price (Gals, Lbs, etc.) | P4: Units/Pkg | Q4: Rate/Acre | R4: Units | S4: Cost | Y4: Fertilizer Source | Z4: Purchase Units | AA4: Package Price (Gals, Lbs, etc.) | AB4: Units/Pkg | AC4: Rate/Acre | AD4: Units | AE4: Cost
A5: Macronutrients (drop down menu) | E5: (Enter Below) | I5: N | J5: P | K5: K | M5: Macronutrients (drop down menu) | Q5: (Enter Below) | U5: N | V5: P | W5: K | Y5: Macronutrients (drop down menu) | AC5: (Enter Below) | AG5: N | AH5: P | AI5: K
A6: None | B6: =VLOOKUP(A6,Macronutrients,18,FALSE) -> 0 | C6: =VLOOKUP(A6,Macronutrients,18,FALSE) -> 0 | D6: =VLOOKUP(A6,Macronutrients,16,FALSE) -> 1 | E6: 0 | F6: =VLOOKUP(A6,Macronutrients,15,FALSE) -> 0 | G6: =(E6*VLOOKUP(A6,Macronutrients,14,FALSE)/D6)*C6 -> 0 | I6: =VLOOKUP(A6,Macronutrients,2,FALSE)*E6+VLOOKUP(A7,Macronutrients,2,FALSE)*E7+VLOOKUP(A8,Macronutrients,2,FALSE)*E8+VLOOKUP(A9,Macronutrients,2,FALSE)*E9+VLOOKUP(A10,Macronutrients,2,FALSE)*E10+VLOOKUP(A11,Macronutrients,2,FALSE)*E11+VLOOKUP(A14,Micronutrients,2,FALSE)*E14+VLOOKUP(A15,Micronutrients,2,FALSE)*E15+VLOOKUP(A16,Micronutrients,2,FALSE)*E16+VLOOKUP(A17,Micronutrients,2,FALSE)*E17 -> 0 | J6: =VLOOKUP(A6,Macronutrients,3,FALSE)*E6+VLOOKUP(A7,Macronutrients,3,FALSE)*E7+VLOOKUP(A8,Macronutrients,3,FALSE)*E8+VLOOKUP(A9,Macronutrients,3,FALSE)*E9+VLOOKUP(A10,Macronutrients,3,FALSE)*E10+VLOOKUP(A11,Macronutrients,3,FALSE)*E11+VLOOKUP(A14,Micronutrients,3,FALSE)*E14+VLOOKUP(A15,Micronutrients,3,FALSE)*E15+VLOOKUP(A16,Micronutrients,3,FALSE)*E16+VLOOKUP(A17,Micronutrients,3,FALSE)*E17 -> 0 | K6: =VLOOKUP(A6,Macronutrients,4,FALSE)*E6+VLOOKUP(A7,Macronutrients,4,FALSE)*E7+VLOOKUP(A8,Macronutrients,4,FALSE)*E8+VLOOKUP(A9,Macronutrients,4,FALSE)*E9+VLOOKUP(A10,Macronutrients,4,FALSE)*E10+VLOOKUP(A11,Macronutrients,4,FALSE)*E11+VLOOKUP(A14,Micronutrients,4,FALSE)*E14+VLOOKUP(A15,Micronutrients,4,FALSE)*E15+VLOOKUP(A16,Micronutrients,4,FALSE)*E16+VLOOKUP(A17,Micronutrients,4,FALSE)*E17 -> 0 | M6: None | N6: =VLOOKUP(M6,Macronutrients,14,FALSE) -> 0 | O6: =VLOOKUP(M6,Macronutrients,18,FALSE) -> 0 | P6: =VLOOKUP(M6,Macronutrients,16,FALSE) -> 1 | Q6: 0 | R6: =VLOOKUP(M6,Macronutrients,15,FALSE) -> 0 | S6: =(Q6*VLOOKUP(M6,Macronutrients,14,FALSE)/P6)*O6 -> 0 | U6: =VLOOKUP(M6,Macronutrients,2,FALSE)*Q6+VLOOKUP(M7,Macronutrients,2,FALSE)*Q7+VLOOKUP(M8,Macronutrients,2,FALSE)*Q8+VLOOKUP(M9,Macronutrients,2,FALSE)*Q9+VLOOKUP(M10,Macronutrients,2,FALSE)*Q10+VLOOKUP(M11,Macronutrients,2,FALSE)*Q11+VLOOKUP(M14,Micronutrients,2,FALSE)*Q14+VLOOKUP(M15,Micronutrients,2,FALSE)*Q15+VLOOKUP(M16,Micronutrients,2,FALSE)*Q16+VLOOKUP(M17,Micronutrients,2,FALSE)*Q17 -> 0 | V6: =VLOOKUP(M6,Macronutrients,3,FALSE)*Q6+VLOOKUP(M7,Macronutrients,3,FALSE)*Q7+VLOOKUP(M8,Macronutrients,3,FALSE)*Q8+VLOOKUP(M9,Macronutrients,3,FALSE)*Q9+VLOOKUP(M10,Macronutrients,3,FALSE)*Q10+VLOOKUP(M11,Macronutrients,3,FALSE)*Q11+VLOOKUP(M14,Micronutrients,3,FALSE)*Q14+VLOOKUP(M15,Micronutrients,3,FALSE)*Q15+VLOOKUP(M16,Micronutrients,3,FALSE)*Q16+VLOOKUP(M17,Micronutrients,3,FALSE)*Q17 -> 0 | W6: =VLOOKUP(M6,Macronutrients,4,FALSE)*Q6+VLOOKUP(M7,Macronutrients,4,FALSE)*Q7+VLOOKUP(M8,Macronutrients,4,FALSE)*Q8+VLOOKUP(M9,Macronutrients,4,FALSE)*Q9+VLOOKUP(M10,Macronutrients,4,FALSE)*Q10+VLOOKUP(M11,Macronutrients,4,FALSE)*Q11+VLOOKUP(M14,Micronutrients,4,FALSE)*Q14+VLOOKUP(M15,Micronutrients,4,FALSE)*Q15+VLOOKUP(M16,Micronutrients,4,FALSE)*Q16+VLOOKUP(M17,Micronutrients,4,FALSE)*Q17 -> 0 | Y6: None | Z6: =VLOOKUP(Y6,Macronutrients,14,FALSE) -> 0 | AA6: =VLOOKUP(Y6,Macronutrients,18,FALSE) -> 0 | AB6: =VLOOKUP(Y6,Macronutrients,16,FALSE) -> 1 | AC6: 0 | AD6: =VLOOKUP(Y6,Macronutrients,15,FALSE) -> 0 | AE6: =(AC6*VLOOKUP(Y6,Macronutrients,14,FALSE)/AB6)*AA6 -> 0 | AG6: =VLOOKUP(Y6,Macronutrients,2,FALSE)*AC6+VLOOKUP(Y7,Macronutrients,2,FALSE)*AC7+VLOOKUP(Y8,Macronutrients,2,FALSE)*AC8+VLOOKUP(Y9,Macronutrients,2,FALSE)*AC9+VLOOKUP(Y10,Macronutrients,2,FALSE)*AC10+VLOOKUP(Y11,Macronutrients,2,FALSE)*AC11+VLOOKUP(Y14,Micronutrients,2,FALSE)*AC14+VLOOKUP(Y15,Micronutrients,2,FALSE)*AC15+VLOOKUP(Y16,Micronutrients,2,FALSE)*AC16+VLOOKUP(Y17,Micronutrients,2,FALSE)*AC17 -> 0 | AH6: =VLOOKUP(Y6,Macronutrients,3,FALSE)*AC6+VLOOKUP(Y7,Macronutrients,3,FALSE)*AC7+VLOOKUP(Y8,Macronutrients,3,FALSE)*AC8+VLOOKUP(Y9,Macronutrients,3,FALSE)*AC9+VLOOKUP(Y10,Macronutrients,3,FALSE)*AC10+VLOOKUP(Y11,Macronutrients,3,FALSE)*AC11+VLOOKUP(Y14,Micronutrients,3,FALSE)*AC14+VLOOKUP(Y15,Micronutrients,3,FALSE)*AC15+VLOOKUP(Y16,Micronutrients,3,FALSE)*AC16+VLOOKUP(Y17,Micronutrients,3,FALSE)*AC17 -> 0 | AI6: =VLOOKUP(Y6,Macronutrients,4,FALSE)*AC6+VLOOKUP(Y7,Macronutrients,4,FALSE)*AC7+VLOOKUP(Y8,Macronutrients,4,FALSE)*AC8+VLOOKUP(Y9,Macronutrients,4,FALSE)*AC9+VLOOKUP(Y10,Macronutrients,4,FALSE)*AC10+VLOOKUP(Y11,Macronutrients,4,FALSE)*AC11+VLOOKUP(Y14,Micronutrients,4,FALSE)*AC14+VLOOKUP(Y15,Micronutrients,4,FALSE)*AC15+VLOOKUP(Y16,Micronutrients,4,FALSE)*AC16+VLOOKUP(Y17,Micronutrients,4,FALSE)*AC17 -> 0
A7: None | B7: =VLOOKUP(A7,Macronutrients,18,FALSE) -> 0 | C7: 0 | D7: 1 | E7: 0 | F7: 0 | G7: 0 | M7: None | N7: 0 | O7: 0 | P7: 1 | Q7: 0 | R7: 0 | S7: 0 | Y7: None | Z7: 0 | AA7: 0 | AB7: 1 | AC7: 0 | AD7: 0 | AE7: 0
A8: None | B8: =VLOOKUP(A8,Macronutrients,14,FALSE) -> 0 | C8: 0 | D8: 1 | E8: 0 | F8: 0 | G8: 0 | I8: S | J8: Ca | K8: Mg | M8: None | N8: 0 | O8: 0 | P8: 1 | Q8: 0 | R8: 0 | S8: 0 | U8: S | V8: Ca | W8: Mg | Y8: None | Z8: 0 | AA8: 0 | AB8: 1 | AC8: 0 | AD8: 0 | AE8: 0 | AG8: S | AH8: Ca | AI8: Mg
A9: None | B9: 0 | C9: 0 | D9: 1 | E9: 0 | F9: 0 | G9: 0 | I9: =VLOOKUP(A6,Macronutrients,5,FALSE)*E6+VLOOKUP(A7,Macronutrients,5,FALSE)*E7+VLOOKUP(A8,Macronutrients,5,FALSE)*E8+VLOOKUP(A9,Macronutrients,5,FALSE)*E9+VLOOKUP(A10,Macronutrients,5,FALSE)*E10+VLOOKUP(A11,Macronutrients,5,FALSE)*E11+VLOOKUP(A14,Micronutrients,5,FALSE)*E14+VLOOKUP(A15,Micronutrients,5,FALSE)*E15+VLOOKUP(A16,Micronutrients,5,FALSE)*E16+VLOOKUP(A17,Micronutrients,5,FALSE)*E17+VLOOKUP(A20,Lime,5,FALSE)*E20 -> 0 | J9: =VLOOKUP(A6,Macronutrients,7,FALSE)*E6+VLOOKUP(A7,Macronutrients,7,FALSE)*E7+VLOOKUP(A8,Macronutrients,7,FALSE)*E8+VLOOKUP(A9,Macronutrients,7,FALSE)*E9+VLOOKUP(A10,Macronutrients,7,FALSE)*E10+VLOOKUP(A11,Macronutrients,7,FALSE)*E11+VLOOKUP(A14,Micronutrients,7,FALSE)*E14+VLOOKUP(A15,Micronutrients,7,FALSE)*E15+VLOOKUP(A16,Micronutrients,7,FALSE)*E16+VLOOKUP(A17,Micronutrients,7,FALSE)*E17+VLOOKUP(A20,Lime,7,FALSE)*E20 -> 0 | K9: =VLOOKUP($A6,Macronutrients,6,FALSE)*$E$6+VLOOKUP($A7,Macronutrients,6,FALSE)*$E$7+VLOOKUP($A8,Macronutrients,6,FALSE)*$E$8+VLOOKUP($A9,Macronutrients,6,FALSE)*$E$9+VLOOKUP($A10,Macronutrients,6,FALSE)*$E$10+VLOOKUP($A11,Macronutrients,6,FALSE)*$E$11+VLOOKUP($A14,Micronutrients,6,FALSE)*$E$14+VLOOKUP($A15,Micronutrients,6,FALSE)*E15+VLOOKUP($A16,Micronutrients,6,FALSE)*$E$16+VLOOKUP($A17,Micronutrients,6,FALSE)*$E$17+VLOOKUP($A20,Lime,6,FALSE)*E20 -> 0 | M9: None | N9: 0 | O9: 0 | P9: 1 | Q9: 0 | R9: 0 | S9: 0 | U9: =VLOOKUP(M6,Macronutrients,5,FALSE)*Q6+VLOOKUP(M7,Macronutrients,5,FALSE)*Q7+VLOOKUP(M8,Macronutrients,5,FALSE)*Q8+VLOOKUP(M9,Macronutrients,5,FALSE)*Q9+VLOOKUP(M10,Macronutrients,5,FALSE)*Q10+VLOOKUP(M11,Macronutrients,5,FALSE)*Q11+VLOOKUP(M14,Micronutrients,5,FALSE)*Q14+VLOOKUP(M15,Micronutrients,5,FALSE)*Q15+VLOOKUP(M16,Micronutrients,5,FALSE)*Q16+VLOOKUP(M17,Micronutrients,5,FALSE)*Q17+VLOOKUP(M20,Lime,5,FALSE)*Q20 -> 0 | V9: =VLOOKUP(M6,Macronutrients,7,FALSE)*Q6+VLOOKUP(M7,Macronutrients,7,FALSE)*Q7+VLOOKUP(M8,Macronutrients,7,FALSE)*Q8+VLOOKUP(M9,Macronutrients,7,FALSE)*Q9+VLOOKUP(M10,Macronutrients,7,FALSE)*Q10+VLOOKUP(M11,Macronutrients,7,FALSE)*Q11+VLOOKUP(M14,Micronutrients,7,FALSE)*Q14+VLOOKUP(M15,Micronutrients,7,FALSE)*Q15+VLOOKUP(M16,Micronutrients,7,FALSE)*Q16+VLOOKUP(M17,Micronutrients,7,FALSE)*Q17+VLOOKUP(M20,Lime,7,FALSE)*Q20 -> 0 | W9: =VLOOKUP($A6,Macronutrients,6,FALSE)*$E$6+VLOOKUP($A7,Macronutrients,6,FALSE)*$E$7+VLOOKUP($A8,Macronutrients,6,FALSE)*$E$8+VLOOKUP($A9,Macronutrients,6,FALSE)*$E$9+VLOOKUP($A10,Macronutrients,6,FALSE)*$E$10+VLOOKUP($A11,Macronutrients,6,FALSE)*$E$11+VLOOKUP($A14,Micronutrients,6,FALSE)*$E$14+VLOOKUP($A15,Micronutrients,6,FALSE)*Q15+VLOOKUP($A16,Micronutrients,6,FALSE)*$E$16+VLOOKUP($A17,Micronutrients,6,FALSE)*$E$17+VLOOKUP($A20,Lime,6,FALSE)*Q20 -> 0 | Y9: None | Z9: 0 | AA9: 0 | AB9: 1 | AC9: 0 | AD9: 0 | AE9: 0 | AG9: =VLOOKUP(Y6,Macronutrients,5,FALSE)*AC6+VLOOKUP(Y7,Macronutrients,5,FALSE)*AC7+VLOOKUP(Y8,Macronutrients,5,FALSE)*AC8+VLOOKUP(Y9,Macronutrients,5,FALSE)*AC9+VLOOKUP(Y10,Macronutrients,5,FALSE)*AC10+VLOOKUP(Y11,Macronutrients,5,FALSE)*AC11+VLOOKUP(Y14,Micronutrients,5,FALSE)*AC14+VLOOKUP(Y15,Micronutrients,5,FALSE)*AC15+VLOOKUP(Y16,Micronutrients,5,FALSE)*AC16+VLOOKUP(Y17,Micronutrients,5,FALSE)*AC17+VLOOKUP(Y20,Lime,5,FALSE)*AC20 -> 0 | AH9: =VLOOKUP(Y6,Macronutrients,7,FALSE)*AC6+VLOOKUP(Y7,Macronutrients,7,FALSE)*AC7+VLOOKUP(Y8,Macronutrients,7,FALSE)*AC8+VLOOKUP(Y9,Macronutrients,7,FALSE)*AC9+VLOOKUP(Y10,Macronutrients,7,FALSE)*AC10+VLOOKUP(Y11,Macronutrients,7,FALSE)*AC11+VLOOKUP(Y14,Micronutrients,7,FALSE)*AC14+VLOOKUP(Y15,Micronutrients,7,FALSE)*AC15+VLOOKUP(Y16,Micronutrients,7,FALSE)*AC16+VLOOKUP(Y17,Micronutrients,7,FALSE)*AC17+VLOOKUP(Y20,Lime,7,FALSE)*AC20 -> 0 | AI9: =VLOOKUP($A6,Macronutrients,6,FALSE)*$E$6+VLOOKUP($A7,Macronutrients,6,FALSE)*$E$7+VLOOKUP($A8,Macronutrients,6,FALSE)*$E$8+VLOOKUP($A9,Macronutrients,6,FALSE)*$E$9+VLOOKUP($A10,Macronutrients,6,FALSE)*$E$10+VLOOKUP($A11,Macronutrients,6,FALSE)*$E$11+VLOOKUP($A14,Micronutrients,6,FALSE)*$E$14+VLOOKUP($A15,Micronutrients,6,FALSE)*AC15+VLOOKUP($A16,Micronutrients,6,FALSE)*$E$16+VLOOKUP($A17,Micronutrients,6,FALSE)*$E$17+VLOOKUP($A20,Lime,6,FALSE)*AC20 -> 0
A10: None | B10: 0 | C10: 0 | D10: 1 | E10: 0 | F10: 0 | G10: 0 | M10: None | N10: 0 | O10: 0 | P10: 1 | Q10: 0 | R10: 0 | S10: 0 | Y10: None | Z10: 0 | AA10: 0 | AB10: 1 | AC10: 0 | AD10: 0 | AE10: 0
A11: None | B11: 0 | C11: 0 | D11: 1 | E11: 0 | F11: 0 | G11: 0 | I11: Z | J11: B | K11: Mn | M11: None | N11: 0 | O11: 0 | P11: 1 | Q11: 0 | R11: 0 | S11: 0 | U11: Z | V11: B | W11: Mn | Y11: None | Z11: 0 | AA11: 0 | AB11: 1 | AC11: 0 | AD11: 0 | AE11: 0 | AG11: Z | AH11: B | AI11: Mn
I12: =VLOOKUP(A6,Macronutrients,8,FALSE)*E6+VLOOKUP(A7,Macronutrients,8,FALSE)*E7+VLOOKUP(A8,Macronutrients,8,FALSE)*E8+VLOOKUP(A9,Macronutrients,8,FALSE)*E9+VLOOKUP(A10,Macronutrients,8,FALSE)*E10+VLOOKUP(A11,Macronutrients,8,FALSE)*E11+VLOOKUP(A14,Micronutrients,8,FALSE)*E14+VLOOKUP(A15,Micronutrients,8,FALSE)*E15+VLOOKUP(A16,Micronutrients,8,FALSE)*E16+VLOOKUP(A17,Micronutrients,8,FALSE)*E17+VLOOKUP(A20,Lime,8,FALSE)*E20 -> 0 | J12: =VLOOKUP(A6,Macronutrients,9,FALSE)*E6+VLOOKUP(A7,Macronutrients,9,FALSE)*E7+VLOOKUP(A8,Macronutrients,9,FALSE)*E8+VLOOKUP(A9,Macronutrients,9,FALSE)*E9+VLOOKUP(A10,Macronutrients,9,FALSE)*E10+VLOOKUP(A11,Macronutrients,9,FALSE)*E11+VLOOKUP(A14,Micronutrients,9,FALSE)*E14+VLOOKUP(A15,Micronutrients,9,FALSE)*E15+VLOOKUP(A16,Micronutrients,9,FALSE)*E16+VLOOKUP(A17,Micronutrients,9,FALSE)*E17+VLOOKUP(A20,Lime,9,FALSE)*E20 -> 0 | K12: =VLOOKUP(A6,Macronutrients,10,FALSE)*E6+VLOOKUP(A7,Macronutrients,10,FALSE)*E7+VLOOKUP(A8,Macronutrients,10,FALSE)*E8+VLOOKUP(A9,Macronutrients,10,FALSE)*E9+VLOOKUP(A10,Macronutrients,10,FALSE)*E10+VLOOKUP(A11,Macronutrients,10,FALSE)*E11+VLOOKUP(A14,Micronutrients,10,FALSE)*E14+VLOOKUP(A15,Micronutrients,10,FALSE)*E15+VLOOKUP(A16,Micronutrients,10,FALSE)*E16+VLOOKUP(A17,Micronutrients,10,FALSE)*E17+VLOOKUP(A20,Lime,10,FALSE)*E20 -> 0 | U12: =VLOOKUP(M6,Macronutrients,8,FALSE)*Q6+VLOOKUP(M7,Macronutrients,8,FALSE)*Q7+VLOOKUP(M8,Macronutrients,8,FALSE)*Q8+VLOOKUP(M9,Macronutrients,8,FALSE)*Q9+VLOOKUP(M10,Macronutrients,8,FALSE)*Q10+VLOOKUP(M11,Macronutrients,8,FALSE)*Q11+VLOOKUP(M14,Micronutrients,8,FALSE)*Q14+VLOOKUP(M15,Micronutrients,8,FALSE)*Q15+VLOOKUP(M16,Micronutrients,8,FALSE)*Q16+VLOOKUP(M17,Micronutrients,8,FALSE)*Q17+VLOOKUP(M20,Lime,8,FALSE)*Q20 -> 0 | V12: =VLOOKUP(M6,Macronutrients,9,FALSE)*Q6+VLOOKUP(M7,Macronutrients,9,FALSE)*Q7+VLOOKUP(M8,Macronutrients,9,FALSE)*Q8+VLOOKUP(M9,Macronutrients,9,FALSE)*Q9+VLOOKUP(M10,Macronutrients,9,FALSE)*Q10+VLOOKUP(M11,Macronutrients,9,FALSE)*Q11+VLOOKUP(M14,Micronutrients,9,FALSE)*Q14+VLOOKUP(M15,Micronutrients,9,FALSE)*Q15+VLOOKUP(M16,Micronutrients,9,FALSE)*Q16+VLOOKUP(M17,Micronutrients,9,FALSE)*Q17+VLOOKUP(M20,Lime,9,FALSE)*Q20 -> 0 | W12: =VLOOKUP(M6,Macronutrients,10,FALSE)*Q6+VLOOKUP(M7,Macronutrients,10,FALSE)*Q7+VLOOKUP(M8,Macronutrients,10,FALSE)*Q8+VLOOKUP(M9,Macronutrients,10,FALSE)*Q9+VLOOKUP(M10,Macronutrients,10,FALSE)*Q10+VLOOKUP(M11,Macronutrients,10,FALSE)*Q11+VLOOKUP(M14,Micronutrients,10,FALSE)*Q14+VLOOKUP(M15,Micronutrients,10,FALSE)*Q15+VLOOKUP(M16,Micronutrients,10,FALSE)*Q16+VLOOKUP(M17,Micronutrients,10,FALSE)*Q17+VLOOKUP(M20,Lime,10,FALSE)*Q20 -> 0 | AG12: =VLOOKUP(Y6,Macronutrients,8,FALSE)*AC6+VLOOKUP(Y7,Macronutrients,8,FALSE)*AC7+VLOOKUP(Y8,Macronutrients,8,FALSE)*AC8+VLOOKUP(Y9,Macronutrients,8,FALSE)*AC9+VLOOKUP(Y10,Macronutrients,8,FALSE)*AC10+VLOOKUP(Y11,Macronutrients,8,FALSE)*AC11+VLOOKUP(Y14,Micronutrients,8,FALSE)*AC14+VLOOKUP(Y15,Micronutrients,8,FALSE)*AC15+VLOOKUP(Y16,Micronutrients,8,FALSE)*AC16+VLOOKUP(Y17,Micronutrients,8,FALSE)*AC17+VLOOKUP(Y20,Lime,8,FALSE)*AC20 -> 0 | AH12: =VLOOKUP(Y6,Macronutrients,9,FALSE)*AC6+VLOOKUP(Y7,Macronutrients,9,FALSE)*AC7+VLOOKUP(Y8,Macronutrients,9,FALSE)*AC8+VLOOKUP(Y9,Macronutrients,9,FALSE)*AC9+VLOOKUP(Y10,Macronutrients,9,FALSE)*AC10+VLOOKUP(Y11,Macronutrients,9,FALSE)*AC11+VLOOKUP(Y14,Micronutrients,9,FALSE)*AC14+VLOOKUP(Y15,Micronutrients,9,FALSE)*AC15+VLOOKUP(Y16,Micronutrients,9,FALSE)*AC16+VLOOKUP(Y17,Micronutrients,9,FALSE)*AC17+VLOOKUP(Y20,Lime,9,FALSE)*AC20 -> 0 | AI12: =VLOOKUP(Y6,Macronutrients,10,FALSE)*AC6+VLOOKUP(Y7,Macronutrients,10,FALSE)*AC7+VLOOKUP(Y8,Macronutrients,10,FALSE)*AC8+VLOOKUP(Y9,Macronutrients,10,FALSE)*AC9+VLOOKUP(Y10,Macronutrients,10,FALSE)*AC10+VLOOKUP(Y11,Macronutrients,10,FALSE)*AC11+VLOOKUP(Y14,Micronutrients,10,FALSE)*AC14+VLOOKUP(Y15,Micronutrients,10,FALSE)*AC15+VLOOKUP(Y16,Micronutrients,10,FALSE)*AC16+VLOOKUP(Y17,Micronutrients,10,FALSE)*AC17+VLOOKUP(Y20,Lime,10,FALSE)*AC20 -> 0
A13: Micronutrients (drop down menu) | M13: Micronutrients (drop down menu) | Y13: Micronutrients (drop down menu)
A14: None | B14: =VLOOKUP($A14,Micronutrients,18,FALSE) -> 0 | C14: =VLOOKUP(A14,Micronutrients,18,FALSE) -> 0 | D14: =VLOOKUP(A14,Micronutrients,16,FALSE) -> 1 | E14: 0 | F14: =VLOOKUP(A14,Micronutrients,15,FALSE) -> 0 | G14: =(E14*VLOOKUP(A14,Micronutrients,14,FALSE)/D14)*C14 -> 0 | I14: Cu | J14: Mo | K14: Fe | M14: None | N14: =VLOOKUP($A14,Micronutrients,14,FALSE) -> 0 | O14: =VLOOKUP(M14,Micronutrients,18,FALSE) -> 0 | P14: =VLOOKUP(M14,Micronutrients,16,FALSE) -> 1 | Q14: 0 | R14: =VLOOKUP(M14,Micronutrients,15,FALSE) -> 0 | S14: =(Q14*VLOOKUP(M14,Micronutrients,14,FALSE)/P14)*O14 -> 0 | U14: Cu | V14: Mo | W14: Fe | Y14: None | Z14: =VLOOKUP($A14,Micronutrients,14,FALSE) -> 0 | AA14: =VLOOKUP(Y14,Micronutrients,18,FALSE) -> 0 | AB14: =VLOOKUP(Y14,Micronutrients,16,FALSE) -> 1 | AC14: 0 | AD14: =VLOOKUP(Y14,Micronutrients,15,FALSE) -> 0 | AE14: =(AC14*VLOOKUP(Y14,Micronutrients,14,FALSE)/AB14)*AA14 -> 0 | AG14: Cu | AH14: Mo | AI14: Fe
A15: None | B15: =VLOOKUP($A15,Micronutrients,14,FALSE) -> 0 | C15: =VLOOKUP(A15,Micronutrients,18,FALSE) -> 0 | D15: =VLOOKUP(A15,Micronutrients,16,FALSE) -> 1 | E15: 0 | F15: =VLOOKUP(A15,Micronutrients,15,FALSE) -> 0 | G15: =(E15*VLOOKUP(A15,Micronutrients,14,FALSE)/D15)*C15 -> 0 | I15: =VLOOKUP(A6,Macronutrients,11,FALSE)*E6+VLOOKUP(A7,Macronutrients,11,FALSE)*E7+VLOOKUP(A8,Macronutrients,11,FALSE)*E8+VLOOKUP(A9,Macronutrients,11,FALSE)*E9+VLOOKUP(A10,Macronutrients,11,FALSE)*E10+VLOOKUP(A11,Macronutrients,11,FALSE)*E11+VLOOKUP(A14,Micronutrients,11,FALSE)*E14+VLOOKUP(A15,Micronutrients,11,FALSE)*E15+VLOOKUP(A16,Micronutrients,11,FALSE)*E16+VLOOKUP(A17,Micronutrients,11,FALSE)*E17+VLOOKUP(A20,Lime,11,FALSE)*E20 -> 0 | J15: =VLOOKUP(A6,Macronutrients,12,FALSE)*E6+VLOOKUP(A7,Macronutrients,12,FALSE)*E7+VLOOKUP(A8,Macronutrients,12,FALSE)*E8+VLOOKUP(A9,Macronutrients,12,FALSE)*E9+VLOOKUP(A10,Macronutrients,12,FALSE)*E10+VLOOKUP(A11,Macronutrients,12,FALSE)*E11+VLOOKUP(A14,Micronutrients,12,FALSE)*E14+VLOOKUP(A15,Micronutrients,12,FALSE)*E15+VLOOKUP(A16,Micronutrients,12,FALSE)*E16+VLOOKUP(A17,Micronutrients,12,FALSE)*E17+VLOOKUP(A20,Lime,12,FALSE)*E20 -> 0 | K15: =VLOOKUP(A6,Macronutrients,13,FALSE)*E6+VLOOKUP(A7,Macronutrients,13,FALSE)*E7+VLOOKUP(A8,Macronutrients,13,FALSE)*E8+VLOOKUP(A9,Macronutrients,13,FALSE)*E9+VLOOKUP(A10,Macronutrients,13,FALSE)*E10+VLOOKUP(A11,Macronutrients,13,FALSE)*E11+VLOOKUP(A14,Micronutrients,13,FALSE)*E14+VLOOKUP(A15,Micronutrients,13,FALSE)*E15+VLOOKUP(A16,Micronutrients,13,FALSE)*E16+VLOOKUP(A17,Micronutrients,13,FALSE)*E17+VLOOKUP(A20,Lime,13,FALSE)*E20 -> 0 | M15: None | N15: =VLOOKUP($A15,Micronutrients,14,FALSE) -> 0 | O15: =VLOOKUP(M15,Micronutrients,18,FALSE) -> 0 | P15: =VLOOKUP(M15,Micronutrients,16,FALSE) -> 1 | Q15: 0 | R15: =VLOOKUP(M15,Micronutrients,15,FALSE) -> 0 | S15: =(Q15*VLOOKUP(M15,Micronutrients,14,FALSE)/P15)*O15 -> 0 | U15: =VLOOKUP(M6,Macronutrients,11,FALSE)*Q6+VLOOKUP(M7,Macronutrients,11,FALSE)*Q7+VLOOKUP(M8,Macronutrients,11,FALSE)*Q8+VLOOKUP(M9,Macronutrients,11,FALSE)*Q9+VLOOKUP(M10,Macronutrients,11,FALSE)*Q10+VLOOKUP(M11,Macronutrients,11,FALSE)*Q11+VLOOKUP(M14,Micronutrients,11,FALSE)*Q14+VLOOKUP(M15,Micronutrients,11,FALSE)*Q15+VLOOKUP(M16,Micronutrients,11,FALSE)*Q16+VLOOKUP(M17,Micronutrients,11,FALSE)*Q17+VLOOKUP(M20,Lime,11,FALSE)*Q20 -> 0 | V15: =VLOOKUP(M6,Macronutrients,12,FALSE)*Q6+VLOOKUP(M7,Macronutrients,12,FALSE)*Q7+VLOOKUP(M8,Macronutrients,12,FALSE)*Q8+VLOOKUP(M9,Macronutrients,12,FALSE)*Q9+VLOOKUP(M10,Macronutrients,12,FALSE)*Q10+VLOOKUP(M11,Macronutrients,12,FALSE)*Q11+VLOOKUP(M14,Micronutrients,12,FALSE)*Q14+VLOOKUP(M15,Micronutrients,12,FALSE)*Q15+VLOOKUP(M16,Micronutrients,12,FALSE)*Q16+VLOOKUP(M17,Micronutrients,12,FALSE)*Q17+VLOOKUP(M20,Lime,12,FALSE)*Q20 -> 0 | W15: =VLOOKUP(M6,Macronutrients,13,FALSE)*Q6+VLOOKUP(M7,Macronutrients,13,FALSE)*Q7+VLOOKUP(M8,Macronutrients,13,FALSE)*Q8+VLOOKUP(M9,Macronutrients,13,FALSE)*Q9+VLOOKUP(M10,Macronutrients,13,FALSE)*Q10+VLOOKUP(M11,Macronutrients,13,FALSE)*Q11+VLOOKUP(M14,Micronutrients,13,FALSE)*Q14+VLOOKUP(M15,Micronutrients,13,FALSE)*Q15+VLOOKUP(M16,Micronutrients,13,FALSE)*Q16+VLOOKUP(M17,Micronutrients,13,FALSE)*Q17+VLOOKUP(M20,Lime,13,FALSE)*Q20 -> 0 | Y15: None | Z15: =VLOOKUP($A15,Micronutrients,14,FALSE) -> 0 | AA15: =VLOOKUP(Y15,Micronutrients,18,FALSE) -> 0 | AB15: =VLOOKUP(Y15,Micronutrients,16,FALSE) -> 1 | AC15: 0 | AD15: =VLOOKUP(Y15,Micronutrients,15,FALSE) -> 0 | AE15: =(AC15*VLOOKUP(Y15,Micronutrients,14,FALSE)/AB15)*AA15 -> 0 | AG15: =VLOOKUP(Y6,Macronutrients,11,FALSE)*AC6+VLOOKUP(Y7,Macronutrients,11,FALSE)*AC7+VLOOKUP(Y8,Macronutrients,11,FALSE)*AC8+VLOOKUP(Y9,Macronutrients,11,FALSE)*AC9+VLOOKUP(Y10,Macronutrients,11,FALSE)*AC10+VLOOKUP(Y11,Macronutrients,11,FALSE)*AC11+VLOOKUP(Y14,Micronutrients,11,FALSE)*AC14+VLOOKUP(Y15,Micronutrients,11,FALSE)*AC15+VLOOKUP(Y16,Micronutrients,11,FALSE)*AC16+VLOOKUP(Y17,Micronutrients,11,FALSE)*AC17+VLOOKUP(Y20,Lime,11,FALSE)*AC20 -> 0 | AH15: =VLOOKUP(Y6,Macronutrients,12,FALSE)*AC6+VLOOKUP(Y7,Macronutrients,12,FALSE)*AC7+VLOOKUP(Y8,Macronutrients,12,FALSE)*AC8+VLOOKUP(Y9,Macronutrients,12,FALSE)*AC9+VLOOKUP(Y10,Macronutrients,12,FALSE)*AC10+VLOOKUP(Y11,Macronutrients,12,FALSE)*AC11+VLOOKUP(Y14,Micronutrients,12,FALSE)*AC14+VLOOKUP(Y15,Micronutrients,12,FALSE)*AC15+VLOOKUP(Y16,Micronutrients,12,FALSE)*AC16+VLOOKUP(Y17,Micronutrients,12,FALSE)*AC17+VLOOKUP(Y20,Lime,12,FALSE)*AC20 -> 0 | AI15: =VLOOKUP(Y6,Macronutrients,13,FALSE)*AC6+VLOOKUP(Y7,Macronutrients,13,FALSE)*AC7+VLOOKUP(Y8,Macronutrients,13,FALSE)*AC8+VLOOKUP(Y9,Macronutrients,13,FALSE)*AC9+VLOOKUP(Y10,Macronutrients,13,FALSE)*AC10+VLOOKUP(Y11,Macronutrients,13,FALSE)*AC11+VLOOKUP(Y14,Micronutrients,13,FALSE)*AC14+VLOOKUP(Y15,Micronutrients,13,FALSE)*AC15+VLOOKUP(Y16,Micronutrients,13,FALSE)*AC16+VLOOKUP(Y17,Micronutrients,13,FALSE)*AC17+VLOOKUP(Y20,Lime,13,FALSE)*AC20 -> 0
A16: None | B16: =VLOOKUP($A16,Micronutrients,14,FALSE) -> 0 | C16: =VLOOKUP(A16,Micronutrients,18,FALSE) -> 0 | D16: =VLOOKUP(A16,Micronutrients,16,FALSE) -> 1 | E16: 0 | F16: =VLOOKUP(A16,Micronutrients,15,FALSE) -> 0 | G16: =(E16*VLOOKUP(A16,Micronutrients,14,FALSE)/D16)*C16 -> 0 | M16: None | N16: =VLOOKUP($A16,Micronutrients,14,FALSE) -> 0 | O16: =VLOOKUP(M16,Micronutrients,18,FALSE) -> 0 | P16: =VLOOKUP(M16,Micronutrients,16,FALSE) -> 1 | Q16: 0 | R16: =VLOOKUP(M16,Micronutrients,15,FALSE) -> 0 | S16: =(Q16*VLOOKUP(M16,Micronutrients,14,FALSE)/P16)*O16 -> 0 | Y16: None | Z16: =VLOOKUP($A16,Micronutrients,14,FALSE) -> 0 | AA16: =VLOOKUP(Y16,Micronutrients,18,FALSE) -> 0 | AB16: =VLOOKUP(Y16,Micronutrients,16,FALSE) -> 1 | AC16: 0 | AD16: =VLOOKUP(Y16,Micronutrients,15,FALSE) -> 0 | AE16: =(AC16*VLOOKUP(Y16,Micronutrients,14,FALSE)/AB16)*AA16 -> 0
A17: None | B17: =VLOOKUP($A17,Micronutrients,14,FALSE) -> 0 | C17: =VLOOKUP(A17,Micronutrients,18,FALSE) -> 0 | D17: =VLOOKUP(A17,Micronutrients,16,FALSE) -> 1 | E17: 0 | F17: =VLOOKUP(A17,Micronutrients,15,FALSE) -> 0 | G17: =(E17*VLOOKUP(A17,Micronutrients,14,FALSE)/D17)*C17 -> 0 | M17: None | N17: =VLOOKUP($A17,Micronutrients,14,FALSE) -> 0 | O17: =VLOOKUP(M17,Micronutrients,18,FALSE) -> 0 | P17: =VLOOKUP(M17,Micronutrients,16,FALSE) -> 1 | Q17: 0 | R17: =VLOOKUP(M17,Micronutrients,15,FALSE) -> 0 | S17: =(Q17*VLOOKUP(M17,Micronutrients,14,FALSE)/P17)*O17 -> 0 | Y17: None | Z17: =VLOOKUP($A17,Micronutrients,14,FALSE) -> 0 | AA17: =VLOOKUP(Y17,Micronutrients,18,FALSE) -> 0 | AB17: =VLOOKUP(Y17,Micronutrients,16,FALSE) -> 1 | AC17: 0 | AD17: =VLOOKUP(Y17,Micronutrients,15,FALSE) -> 0 | AE17: =(AC17*VLOOKUP(Y17,Micronutrients,14,FALSE)/AB17)*AA17 -> 0
A19: Lime (drop down menu) | M19: Lime (drop down menu) | Y19: Lime (drop down menu)
A20: None | B20: =VLOOKUP(A20,Lime,14,FALSE) -> 0 | C20: =VLOOKUP(A20,Lime,18,FALSE) -> 0 | D20: =VLOOKUP(A20,Lime,16,FALSE) -> 1 | E20: 0 | F20: =VLOOKUP(A20,Lime,15,FALSE) -> 0 | G20: =(E20*VLOOKUP(A20,Lime,14,FALSE)/D20)*C20 -> 0 | M20: None | N20: =VLOOKUP(M20,Lime,14,FALSE) -> 0 | O20: =VLOOKUP(M20,Lime,18,FALSE) -> 0 | P20: =VLOOKUP(M20,Lime,16,FALSE) -> 1 | Q20: 0 | R20: =VLOOKUP(M20,Lime,15,FALSE) -> 0 | S20: =(Q20*VLOOKUP(M20,Lime,14,FALSE)/P20)*O20 -> 0 | Y20: None | Z20: =VLOOKUP(Y20,Lime,14,FALSE) -> 0 | AA20: =VLOOKUP(Y20,Lime,18,FALSE) -> 0 | AB20: =VLOOKUP(Y20,Lime,16,FALSE) -> 1 | AC20: 0 | AD20: =VLOOKUP(Y20,Lime,15,FALSE) -> 0 | AE20: =(AC20*VLOOKUP(Y20,Lime,14,FALSE)/AB20)*AA20 -> 0
A21: 1st Application Fertilizer Cost/Acre | G21: =SUM(G6:G20) -> 0 | M21: 1st Application Fertilizer Cost/Acre | S21: =SUM(S6:S20) -> 0 | Y21: 1st Application Fertilizer Cost/Acre | AE21: =SUM(AE6:AE20) -> 0
A23: 2nd Application (i.e., Broadcast) | M23: 2nd Application (i.e., Broadcast) | Y23: 2nd Application (i.e., Broadcast)
A24: Fertilizer Source | B24: Purchase Units | C24: Package Price (Gals, Lbs, etc.) | D24: Units/Pkg | E24: Rate/Acre | F24: Units | G24: Cost | M24: Fertilizer Source | N24: Purchase Units | O24: Package Price (Gals, Lbs, etc.) | P24: Units/Pkg | Q24: Rate/Acre | R24: Units | S24: Cost | Y24: Fertilizer Source | Z24: Purchase Units | AA24: Package Price (Gals, Lbs, etc.) | AB24: Units/Pkg | AC24: Rate/Acre | AD24: Units | AE24: Cost
A25: Macronutrients (drop down menu) | E25: (Enter Below) | I25: N | J25: P | K25: K | M25: Macronutrients (drop down menu) | Q25: (Enter Below) | U25: N | V25: P | W25: K | Y25: Macronutrients (drop down menu) | AC25: (Enter Below) | AG25: N | AH25: P | AI25: K
A26: None | B26: =VLOOKUP(A26,Macronutrients,14,FALSE) -> 0 | C26: =VLOOKUP(A26,Macronutrients,18,FALSE) -> 0 | D26: =VLOOKUP(A26,Macronutrients,16,FALSE) -> 1 | E26: 0 | F26: =VLOOKUP(A26,Macronutrients,15,FALSE) -> 0 | G26: =(E26*VLOOKUP(A26,Macronutrients,14,FALSE)/D26)*C26 -> 0 | I26: =VLOOKUP(A26,Macronutrients,2,FALSE)*E26+VLOOKUP(A27,Macronutrients,2,FALSE)*E27+VLOOKUP(A28,Macronutrients,2,FALSE)*E28+VLOOKUP(A29,Macronutrients,2,FALSE)*E29+VLOOKUP(A30,Macronutrients,2,FALSE)*E30+VLOOKUP(A31,Macronutrients,2,FALSE)*E31+VLOOKUP(A34,Micronutrients,2,FALSE)*E34+VLOOKUP(A35,Micronutrients,2,FALSE)*E35+VLOOKUP(A36,Micronutrients,2,FALSE)*E36+VLOOKUP(A37,Micronutrients,2,FALSE)*E37 -> 0 | J26: =VLOOKUP(A26,Macronutrients,3,FALSE)*E26+VLOOKUP(A27,Macronutrients,3,FALSE)*E27+VLOOKUP(A28,Macronutrients,3,FALSE)*E28+VLOOKUP(A29,Macronutrients,3,FALSE)*E29+VLOOKUP(A30,Macronutrients,3,FALSE)*E30+VLOOKUP(A31,Macronutrients,3,FALSE)*E31+VLOOKUP(A34,Micronutrients,3,FALSE)*E34+VLOOKUP(A35,Micronutrients,3,FALSE)*E35+VLOOKUP(A36,Micronutrients,3,FALSE)*E36+VLOOKUP(A37,Micronutrients,3,FALSE)*E37 -> 0 | K26: =VLOOKUP(A26,Macronutrients,4,FALSE)*E26+VLOOKUP(A27,Macronutrients,4,FALSE)*E27+VLOOKUP(A28,Macronutrients,4,FALSE)*E28+VLOOKUP(A29,Macronutrients,4,FALSE)*E29+VLOOKUP(A30,Macronutrients,4,FALSE)*E30+VLOOKUP(A31,Macronutrients,4,FALSE)*E31+VLOOKUP(A34,Micronutrients,4,FALSE)*E34+VLOOKUP(A35,Micronutrients,4,FALSE)*E35+VLOOKUP(A36,Micronutrients,4,FALSE)*E36+VLOOKUP(A37,Micronutrients,4,FALSE)*E37 -> 0 | M26: None | N26: =VLOOKUP(M26,Macronutrients,14,FALSE) -> 0 | O26: =VLOOKUP(M26,Macronutrients,18,FALSE) -> 0 | P26: =VLOOKUP(M26,Macronutrients,16,FALSE) -> 1 | Q26: 0 | R26: =VLOOKUP(M26,Macronutrients,15,FALSE) -> 0 | S26: =(Q26*VLOOKUP(M26,Macronutrients,14,FALSE)/P26)*O26 -> 0 | U26: =VLOOKUP(M26,Macronutrients,2,FALSE)*Q26+VLOOKUP(M27,Macronutrients,2,FALSE)*Q27+VLOOKUP(M28,Macronutrients,2,FALSE)*Q28+VLOOKUP(M29,Macronutrients,2,FALSE)*Q29+VLOOKUP(M30,Macronutrients,2,FALSE)*Q30+VLOOKUP(M31,Macronutrients,2,FALSE)*Q31+VLOOKUP(M34,Micronutrients,2,FALSE)*Q34+VLOOKUP(M35,Micronutrients,2,FALSE)*Q35+VLOOKUP(M36,Micronutrients,2,FALSE)*Q36+VLOOKUP(M37,Micronutrients,2,FALSE)*Q37 -> 0 | V26: =VLOOKUP(M26,Macronutrients,3,FALSE)*Q26+VLOOKUP(M27,Macronutrients,3,FALSE)*Q27+VLOOKUP(M28,Macronutrients,3,FALSE)*Q28+VLOOKUP(M29,Macronutrients,3,FALSE)*Q29+VLOOKUP(M30,Macronutrients,3,FALSE)*Q30+VLOOKUP(M31,Macronutrients,3,FALSE)*Q31+VLOOKUP(M34,Micronutrients,3,FALSE)*Q34+VLOOKUP(M35,Micronutrients,3,FALSE)*Q35+VLOOKUP(M36,Micronutrients,3,FALSE)*Q36+VLOOKUP(M37,Micronutrients,3,FALSE)*Q37 -> 0 | W26: =VLOOKUP(M26,Macronutrients,4,FALSE)*Q26+VLOOKUP(M27,Macronutrients,4,FALSE)*Q27+VLOOKUP(M28,Macronutrients,4,FALSE)*Q28+VLOOKUP(M29,Macronutrients,4,FALSE)*Q29+VLOOKUP(M30,Macronutrients,4,FALSE)*Q30+VLOOKUP(M31,Macronutrients,4,FALSE)*Q31+VLOOKUP(M34,Micronutrients,4,FALSE)*Q34+VLOOKUP(M35,Micronutrients,4,FALSE)*Q35+VLOOKUP(M36,Micronutrients,4,FALSE)*Q36+VLOOKUP(M37,Micronutrients,4,FALSE)*Q37 -> 0 | Y26: None | Z26: =VLOOKUP(Y26,Macronutrients,14,FALSE) -> 0 | AA26: =VLOOKUP(Y26,Macronutrients,18,FALSE) -> 0 | AB26: =VLOOKUP(Y26,Macronutrients,16,FALSE) -> 1 | AC26: 0 | AD26: =VLOOKUP(Y26,Macronutrients,15,FALSE) -> 0 | AE26: =(AC26*VLOOKUP(Y26,Macronutrients,14,FALSE)/AB26)*AA26 -> 0 | AG26: =VLOOKUP(Y26,Macronutrients,2,FALSE)*AC26+VLOOKUP(Y27,Macronutrients,2,FALSE)*AC27+VLOOKUP(Y28,Macronutrients,2,FALSE)*AC28+VLOOKUP(Y29,Macronutrients,2,FALSE)*AC29+VLOOKUP(Y30,Macronutrients,2,FALSE)*AC30+VLOOKUP(Y31,Macronutrients,2,FALSE)*AC31+VLOOKUP(Y34,Micronutrients,2,FALSE)*AC34+VLOOKUP(Y35,Micronutrients,2,FALSE)*AC35+VLOOKUP(Y36,Micronutrients,2,FALSE)*AC36+VLOOKUP(Y37,Micronutrients,2,FALSE)*AC37 -> 0 | AH26: =VLOOKUP(Y26,Macronutrients,3,FALSE)*AC26+VLOOKUP(Y27,Macronutrients,3,FALSE)*AC27+VLOOKUP(Y28,Macronutrients,3,FALSE)*AC28+VLOOKUP(Y29,Macronutrients,3,FALSE)*AC29+VLOOKUP(Y30,Macronutrients,3,FALSE)*AC30+VLOOKUP(Y31,Macronutrients,3,FALSE)*AC31+VLOOKUP(Y34,Micronutrients,3,FALSE)*AC34+VLOOKUP(Y35,Micronutrients,3,FALSE)*AC35+VLOOKUP(Y36,Micronutrients,3,FALSE)*AC36+VLOOKUP(Y37,Micronutrients,3,FALSE)*AC37 -> 0 | AI26: =VLOOKUP(Y26,Macronutrients,4,FALSE)*AC26+VLOOKUP(Y27,Macronutrients,4,FALSE)*AC27+VLOOKUP(Y28,Macronutrients,4,FALSE)*AC28+VLOOKUP(Y29,Macronutrients,4,FALSE)*AC29+VLOOKUP(Y30,Macronutrients,4,FALSE)*AC30+VLOOKUP(Y31,Macronutrients,4,FALSE)*AC31+VLOOKUP(Y34,Micronutrients,4,FALSE)*AC34+VLOOKUP(Y35,Micronutrients,4,FALSE)*AC35+VLOOKUP(Y36,Micronutrients,4,FALSE)*AC36+VLOOKUP(Y37,Micronutrients,4,FALSE)*AC37 -> 0
A27: None | B27: 0 | C27: 0 | D27: 1 | E27: 0 | F27: 0 | G27: 0 | M27: None | N27: 0 | O27: 0 | P27: 1 | Q27: 0 | R27: 0 | S27: 0 | Y27: None | Z27: 0 | AA27: 0 | AB27: 1 | AC27: 0 | AD27: 0 | AE27: 0
A28: None | B28: 0 | C28: 0 | D28: 1 | E28: 0 | F28: 0 | G28: 0 | I28: S | J28: Ca | K28: Mg | M28: None | N28: 0 | O28: 0 | P28: 1 | Q28: 0 | R28: 0 | S28: 0 | U28: S | V28: Ca | W28: Mg | Y28: None | Z28: 0 | AA28: 0 | AB28: 1 | AC28: 0 | AD28: 0 | AE28: 0 | AG28: S | AH28: Ca | AI28: Mg
A29: None | B29: 0 | C29: 0 | D29: 1 | E29: 0 | F29: 0 | G29: 0 | I29: =VLOOKUP(A26,Macronutrients,5,FALSE)*E26+VLOOKUP(A27,Macronutrients,5,FALSE)*E27+VLOOKUP(A28,Macronutrients,5,FALSE)*E28+VLOOKUP(A29,Macronutrients,5,FALSE)*E29+VLOOKUP(A30,Macronutrients,5,FALSE)*E30+VLOOKUP(A31,Macronutrients,5,FALSE)*E31+VLOOKUP(A34,Micronutrients,5,FALSE)*E34+VLOOKUP(A35,Micronutrients,5,FALSE)*E35+VLOOKUP(A36,Micronutrients,5,FALSE)*E36+VLOOKUP(A37,Micronutrients,5,FALSE)*E37 -> 0 | J29: =VLOOKUP(A26,Macronutrients,7,FALSE)*E26+VLOOKUP(A27,Macronutrients,7,FALSE)*E27+VLOOKUP(A28,Macronutrients,7,FALSE)*E28+VLOOKUP(A29,Macronutrients,7,FALSE)*E29+VLOOKUP(A30,Macronutrients,7,FALSE)*E30+VLOOKUP(A31,Macronutrients,7,FALSE)*E31+VLOOKUP(A34,Micronutrients,7,FALSE)*E34+VLOOKUP(A35,Micronutrients,7,FALSE)*E35+VLOOKUP(A36,Micronutrients,7,FALSE)*E36+VLOOKUP(A37,Micronutrients,7,FALSE)*E37 -> 0 | K29: =VLOOKUP($A26,Macronutrients,6,FALSE)*$E$6+VLOOKUP($A27,Macronutrients,6,FALSE)*$E$7+VLOOKUP($A28,Macronutrients,6,FALSE)*$E$8+VLOOKUP($A29,Macronutrients,6,FALSE)*$E$9+VLOOKUP($A30,Macronutrients,6,FALSE)*$E$10+VLOOKUP($A31,Macronutrients,6,FALSE)*$E$11+VLOOKUP($A34,Micronutrients,6,FALSE)*$E$14+VLOOKUP($A35,Micronutrients,6,FALSE)*E35+VLOOKUP($A36,Micronutrients,6,FALSE)*$E$16+VLOOKUP($A37,Micronutrients,6,FALSE)*$E$17 -> 0 | M29: None | N29: 0 | O29: 0 | P29: 1 | Q29: 0 | R29: 0 | S29: 0 | U29: =VLOOKUP(M26,Macronutrients,5,FALSE)*Q26+VLOOKUP(M27,Macronutrients,5,FALSE)*Q27+VLOOKUP(M28,Macronutrients,5,FALSE)*Q28+VLOOKUP(M29,Macronutrients,5,FALSE)*Q29+VLOOKUP(M30,Macronutrients,5,FALSE)*Q30+VLOOKUP(M31,Macronutrients,5,FALSE)*Q31+VLOOKUP(M34,Micronutrients,5,FALSE)*Q34+VLOOKUP(M35,Micronutrients,5,FALSE)*Q35+VLOOKUP(M36,Micronutrients,5,FALSE)*Q36+VLOOKUP(M37,Micronutrients,5,FALSE)*Q37 -> 0 | V29: =VLOOKUP(M26,Macronutrients,7,FALSE)*Q26+VLOOKUP(M27,Macronutrients,7,FALSE)*Q27+VLOOKUP(M28,Macronutrients,7,FALSE)*Q28+VLOOKUP(M29,Macronutrients,7,FALSE)*Q29+VLOOKUP(M30,Macronutrients,7,FALSE)*Q30+VLOOKUP(M31,Macronutrients,7,FALSE)*Q31+VLOOKUP(M34,Micronutrients,7,FALSE)*Q34+VLOOKUP(M35,Micronutrients,7,FALSE)*Q35+VLOOKUP(M36,Micronutrients,7,FALSE)*Q36+VLOOKUP(M37,Micronutrients,7,FALSE)*Q37 -> 0 | W29: =VLOOKUP($A26,Macronutrients,6,FALSE)*$E$6+VLOOKUP($A27,Macronutrients,6,FALSE)*$E$7+VLOOKUP($A28,Macronutrients,6,FALSE)*$E$8+VLOOKUP($A29,Macronutrients,6,FALSE)*$E$9+VLOOKUP($A30,Macronutrients,6,FALSE)*$E$10+VLOOKUP($A31,Macronutrients,6,FALSE)*$E$11+VLOOKUP($A34,Micronutrients,6,FALSE)*$E$14+VLOOKUP($A35,Micronutrients,6,FALSE)*Q35+VLOOKUP($A36,Micronutrients,6,FALSE)*$E$16+VLOOKUP($A37,Micronutrients,6,FALSE)*$E$17 -> 0 | Y29: None | Z29: 0 | AA29: 0 | AB29: 1 | AC29: 0 | AD29: 0 | AE29: 0 | AG29: =VLOOKUP(Y26,Macronutrients,5,FALSE)*AC26+VLOOKUP(Y27,Macronutrients,5,FALSE)*AC27+VLOOKUP(Y28,Macronutrients,5,FALSE)*AC28+VLOOKUP(Y29,Macronutrients,5,FALSE)*AC29+VLOOKUP(Y30,Macronutrients,5,FALSE)*AC30+VLOOKUP(Y31,Macronutrients,5,FALSE)*AC31+VLOOKUP(Y34,Micronutrients,5,FALSE)*AC34+VLOOKUP(Y35,Micronutrients,5,FALSE)*AC35+VLOOKUP(Y36,Micronutrients,5,FALSE)*AC36+VLOOKUP(Y37,Micronutrients,5,FALSE)*AC37 -> 0 | AH29: =VLOOKUP(Y26,Macronutrients,7,FALSE)*AC26+VLOOKUP(Y27,Macronutrients,7,FALSE)*AC27+VLOOKUP(Y28,Macronutrients,7,FALSE)*AC28+VLOOKUP(Y29,Macronutrients,7,FALSE)*AC29+VLOOKUP(Y30,Macronutrients,7,FALSE)*AC30+VLOOKUP(Y31,Macronutrients,7,FALSE)*AC31+VLOOKUP(Y34,Micronutrients,7,FALSE)*AC34+VLOOKUP(Y35,Micronutrients,7,FALSE)*AC35+VLOOKUP(Y36,Micronutrients,7,FALSE)*AC36+VLOOKUP(Y37,Micronutrients,7,FALSE)*AC37 -> 0 | AI29: =VLOOKUP($A26,Macronutrients,6,FALSE)*$E$6+VLOOKUP($A27,Macronutrients,6,FALSE)*$E$7+VLOOKUP($A28,Macronutrients,6,FALSE)*$E$8+VLOOKUP($A29,Macronutrients,6,FALSE)*$E$9+VLOOKUP($A30,Macronutrients,6,FALSE)*$E$10+VLOOKUP($A31,Macronutrients,6,FALSE)*$E$11+VLOOKUP($A34,Micronutrients,6,FALSE)*$E$14+VLOOKUP($A35,Micronutrients,6,FALSE)*AC35+VLOOKUP($A36,Micronutrients,6,FALSE)*$E$16+VLOOKUP($A37,Micronutrients,6,FALSE)*$E$17 -> 0
A30: None | B30: 0 | C30: 0 | D30: 1 | E30: 0 | F30: 0 | G30: 0 | M30: None | N30: 0 | O30: 0 | P30: 1 | Q30: 0 | R30: 0 | S30: 0 | Y30: None | Z30: 0 | AA30: 0 | AB30: 1 | AC30: 0 | AD30: 0 | AE30: 0
A31: None | B31: 0 | C31: 0 | D31: 1 | E31: 0 | F31: 0 | G31: 0 | I31: Z | J31: B | K31: Mn | M31: None | N31: 0 | O31: 0 | P31: 1 | Q31: 0 | R31: 0 | S31: 0 | U31: Z | V31: B | W31: Mn | Y31: None | Z31: 0 | AA31: 0 | AB31: 1 | AC31: 0 | AD31: 0 | AE31: 0 | AG31: Z | AH31: B | AI31: Mn
I32: =VLOOKUP(A26,Macronutrients,8,FALSE)*E26+VLOOKUP(A27,Macronutrients,8,FALSE)*E27+VLOOKUP(A28,Macronutrients,8,FALSE)*E28+VLOOKUP(A29,Macronutrients,8,FALSE)*E29+VLOOKUP(A30,Macronutrients,8,FALSE)*E30+VLOOKUP(A31,Macronutrients,8,FALSE)*E31+VLOOKUP(A34,Micronutrients,8,FALSE)*E34+VLOOKUP(A35,Micronutrients,8,FALSE)*E35+VLOOKUP(A36,Micronutrients,8,FALSE)*E36+VLOOKUP(A37,Micronutrients,8,FALSE)*E37 -> 0 | J32: =VLOOKUP(A26,Macronutrients,9,FALSE)*E26+VLOOKUP(A27,Macronutrients,9,FALSE)*E27+VLOOKUP(A28,Macronutrients,9,FALSE)*E28+VLOOKUP(A29,Macronutrients,9,FALSE)*E29+VLOOKUP(A30,Macronutrients,9,FALSE)*E30+VLOOKUP(A31,Macronutrients,9,FALSE)*E31+VLOOKUP(A34,Micronutrients,9,FALSE)*E34+VLOOKUP(A35,Micronutrients,9,FALSE)*E35+VLOOKUP(A36,Micronutrients,9,FALSE)*E36+VLOOKUP(A37,Micronutrients,9,FALSE) -> 0 | K32: =VLOOKUP(A26,Macronutrients,10,FALSE)*E26+VLOOKUP(A27,Macronutrients,10,FALSE)*E27+VLOOKUP(A28,Macronutrients,10,FALSE)*E28+VLOOKUP(A29,Macronutrients,10,FALSE)*E29+VLOOKUP(A30,Macronutrients,10,FALSE)*E30+VLOOKUP(A31,Macronutrients,10,FALSE)*E31+VLOOKUP(A34,Micronutrients,10,FALSE)*E34+VLOOKUP(A35,Micronutrients,10,FALSE)*E35+VLOOKUP(A36,Micronutrients,10,FALSE)*E36+VLOOKUP(A37,Micronutrients,10,FALSE)*E37 -> 0 | U32: =VLOOKUP(M26,Macronutrients,8,FALSE)*Q26+VLOOKUP(M27,Macronutrients,8,FALSE)*Q27+VLOOKUP(M28,Macronutrients,8,FALSE)*Q28+VLOOKUP(M29,Macronutrients,8,FALSE)*Q29+VLOOKUP(M30,Macronutrients,8,FALSE)*Q30+VLOOKUP(M31,Macronutrients,8,FALSE)*Q31+VLOOKUP(M34,Micronutrients,8,FALSE)*Q34+VLOOKUP(M35,Micronutrients,8,FALSE)*Q35+VLOOKUP(M36,Micronutrients,8,FALSE)*Q36+VLOOKUP(M37,Micronutrients,8,FALSE)*Q37 -> 0 | V32: =VLOOKUP(M26,Macronutrients,9,FALSE)*Q26+VLOOKUP(M27,Macronutrients,9,FALSE)*Q27+VLOOKUP(M28,Macronutrients,9,FALSE)*Q28+VLOOKUP(M29,Macronutrients,9,FALSE)*Q29+VLOOKUP(M30,Macronutrients,9,FALSE)*Q30+VLOOKUP(M31,Macronutrients,9,FALSE)*Q31+VLOOKUP(M34,Micronutrients,9,FALSE)*Q34+VLOOKUP(M35,Micronutrients,9,FALSE)*Q35+VLOOKUP(M36,Micronutrients,9,FALSE)*Q36+VLOOKUP(M37,Micronutrients,9,FALSE) -> 0 | W32: =VLOOKUP(M26,Macronutrients,10,FALSE)*Q26+VLOOKUP(M27,Macronutrients,10,FALSE)*Q27+VLOOKUP(M28,Macronutrients,10,FALSE)*Q28+VLOOKUP(M29,Macronutrients,10,FALSE)*Q29+VLOOKUP(M30,Macronutrients,10,FALSE)*Q30+VLOOKUP(M31,Macronutrients,10,FALSE)*Q31+VLOOKUP(M34,Micronutrients,10,FALSE)*Q34+VLOOKUP(M35,Micronutrients,10,FALSE)*Q35+VLOOKUP(M36,Micronutrients,10,FALSE)*Q36+VLOOKUP(M37,Micronutrients,10,FALSE)*Q37 -> 0 | AG32: =VLOOKUP(Y26,Macronutrients,8,FALSE)*AC26+VLOOKUP(Y27,Macronutrients,8,FALSE)*AC27+VLOOKUP(Y28,Macronutrients,8,FALSE)*AC28+VLOOKUP(Y29,Macronutrients,8,FALSE)*AC29+VLOOKUP(Y30,Macronutrients,8,FALSE)*AC30+VLOOKUP(Y31,Macronutrients,8,FALSE)*AC31+VLOOKUP(Y34,Micronutrients,8,FALSE)*AC34+VLOOKUP(Y35,Micronutrients,8,FALSE)*AC35+VLOOKUP(Y36,Micronutrients,8,FALSE)*AC36+VLOOKUP(Y37,Micronutrients,8,FALSE)*AC37 -> 0 | AH32: =VLOOKUP(Y26,Macronutrients,9,FALSE)*AC26+VLOOKUP(Y27,Macronutrients,9,FALSE)*AC27+VLOOKUP(Y28,Macronutrients,9,FALSE)*AC28+VLOOKUP(Y29,Macronutrients,9,FALSE)*AC29+VLOOKUP(Y30,Macronutrients,9,FALSE)*AC30+VLOOKUP(Y31,Macronutrients,9,FALSE)*AC31+VLOOKUP(Y34,Micronutrients,9,FALSE)*AC34+VLOOKUP(Y35,Micronutrients,9,FALSE)*AC35+VLOOKUP(Y36,Micronutrients,9,FALSE)*AC36+VLOOKUP(Y37,Micronutrients,9,FALSE) -> 0 | AI32: =VLOOKUP(Y26,Macronutrients,10,FALSE)*AC26+VLOOKUP(Y27,Macronutrients,10,FALSE)*AC27+VLOOKUP(Y28,Macronutrients,10,FALSE)*AC28+VLOOKUP(Y29,Macronutrients,10,FALSE)*AC29+VLOOKUP(Y30,Macronutrients,10,FALSE)*AC30+VLOOKUP(Y31,Macronutrients,10,FALSE)*AC31+VLOOKUP(Y34,Micronutrients,10,FALSE)*AC34+VLOOKUP(Y35,Micronutrients,10,FALSE)*AC35+VLOOKUP(Y36,Micronutrients,10,FALSE)*AC36+VLOOKUP(Y37,Micronutrients,10,FALSE)*AC37 -> 0
A33: Micronutrients (drop down menu) | M33: Micronutrients (drop down menu) | Y33: Micronutrients (drop down menu)
A34: None | B34: =VLOOKUP($A34,Micronutrients,14,FALSE) -> 0 | C34: =VLOOKUP(A34,Micronutrients,18,FALSE) -> 0 | D34: =VLOOKUP(A34,Micronutrients,16,FALSE) -> 1 | E34: 0 | F34: =VLOOKUP(A34,Micronutrients,15,FALSE) -> 0 | G34: =(E34*VLOOKUP(A34,Micronutrients,14,FALSE)/D34)*C34 -> 0 | I34: Cu | J34: Mo | K34: Fe | M34: None | N34: =VLOOKUP($A34,Micronutrients,14,FALSE) -> 0 | O34: =VLOOKUP(M34,Micronutrients,18,FALSE) -> 0 | P34: =VLOOKUP(M34,Micronutrients,16,FALSE) -> 1 | Q34: 0 | R34: =VLOOKUP(M34,Micronutrients,15,FALSE) -> 0 | S34: =(Q34*VLOOKUP(M34,Micronutrients,14,FALSE)/P34)*O34 -> 0 | U34: Cu | V34: Mo | W34: Fe | Y34: None | Z34: =VLOOKUP($A34,Micronutrients,14,FALSE) -> 0 | AA34: =VLOOKUP(Y34,Micronutrients,18,FALSE) -> 0 | AB34: =VLOOKUP(Y34,Micronutrients,16,FALSE) -> 1 | AC34: 0 | AD34: =VLOOKUP(Y34,Micronutrients,15,FALSE) -> 0 | AE34: =(AC34*VLOOKUP(Y34,Micronutrients,14,FALSE)/AB34)*AA34 -> 0 | AG34: Cu | AH34: Mo | AI34: Fe
A35: None | B35: =VLOOKUP($A35,Micronutrients,14,FALSE) -> 0 | C35: =VLOOKUP(A35,Micronutrients,18,FALSE) -> 0 | D35: =VLOOKUP(A35,Micronutrients,16,FALSE) -> 1 | E35: 0 | F35: =VLOOKUP(A35,Micronutrients,15,FALSE) -> 0 | G35: =(E35*VLOOKUP(A35,Micronutrients,14,FALSE)/D35)*C35 -> 0 | I35: =VLOOKUP(A26,Macronutrients,11,FALSE)*E26+VLOOKUP(A27,Macronutrients,11,FALSE)*E27+VLOOKUP(A28,Macronutrients,11,FALSE)*E28+VLOOKUP(A29,Macronutrients,11,FALSE)*E29+VLOOKUP(A30,Macronutrients,11,FALSE)*E30+VLOOKUP(A31,Macronutrients,11,FALSE)*E31+VLOOKUP(A34,Micronutrients,11,FALSE)*E34+VLOOKUP(A35,Micronutrients,11,FALSE)*E35+VLOOKUP(A36,Micronutrients,11,FALSE)*E36+VLOOKUP(A37,Micronutrients,11,FALSE)*E37 -> 0 | J35: =VLOOKUP(A26,Macronutrients,12,FALSE)*E26+VLOOKUP(A27,Macronutrients,12,FALSE)*E27+VLOOKUP(A28,Macronutrients,12,FALSE)*E28+VLOOKUP(A29,Macronutrients,12,FALSE)*E29+VLOOKUP(A30,Macronutrients,12,FALSE)*E30+VLOOKUP(A31,Macronutrients,12,FALSE)*E31+VLOOKUP(A34,Micronutrients,12,FALSE)*E34+VLOOKUP(A35,Micronutrients,12,FALSE)*E35+VLOOKUP(A36,Micronutrients,12,FALSE)*E36+VLOOKUP(A37,Micronutrients,12,FALSE)*E37 -> 0 | K35: =VLOOKUP(A26,Macronutrients,13,FALSE)*E26+VLOOKUP(A27,Macronutrients,13,FALSE)*E27+VLOOKUP(A28,Macronutrients,13,FALSE)*E28+VLOOKUP(A29,Macronutrients,13,FALSE)*E29+VLOOKUP(A30,Macronutrients,13,FALSE)*E30+VLOOKUP(A31,Macronutrients,13,FALSE)*E31+VLOOKUP(A34,Micronutrients,13,FALSE)*E34+VLOOKUP(A35,Micronutrients,13,FALSE)*E35+VLOOKUP(A36,Micronutrients,13,FALSE)*E36+VLOOKUP(A37,Micronutrients,13,FALSE)*E37 -> 0 | M35: None | N35: =VLOOKUP($A35,Micronutrients,14,FALSE) -> 0 | O35: =VLOOKUP(M35,Micronutrients,18,FALSE) -> 0 | P35: =VLOOKUP(M35,Micronutrients,16,FALSE) -> 1 | Q35: 0 | R35: =VLOOKUP(M35,Micronutrients,15,FALSE) -> 0 | S35: =(Q35*VLOOKUP(M35,Micronutrients,14,FALSE)/P35)*O35 -> 0 | U35: =VLOOKUP(M26,Macronutrients,11,FALSE)*Q26+VLOOKUP(M27,Macronutrients,11,FALSE)*Q27+VLOOKUP(M28,Macronutrients,11,FALSE)*Q28+VLOOKUP(M29,Macronutrients,11,FALSE)*Q29+VLOOKUP(M30,Macronutrients,11,FALSE)*Q30+VLOOKUP(M31,Macronutrients,11,FALSE)*Q31+VLOOKUP(M34,Micronutrients,11,FALSE)*Q34+VLOOKUP(M35,Micronutrients,11,FALSE)*Q35+VLOOKUP(M36,Micronutrients,11,FALSE)*Q36+VLOOKUP(M37,Micronutrients,11,FALSE)*Q37 -> 0 | V35: =VLOOKUP(M26,Macronutrients,12,FALSE)*Q26+VLOOKUP(M27,Macronutrients,12,FALSE)*Q27+VLOOKUP(M28,Macronutrients,12,FALSE)*Q28+VLOOKUP(M29,Macronutrients,12,FALSE)*Q29+VLOOKUP(M30,Macronutrients,12,FALSE)*Q30+VLOOKUP(M31,Macronutrients,12,FALSE)*Q31+VLOOKUP(M34,Micronutrients,12,FALSE)*Q34+VLOOKUP(M35,Micronutrients,12,FALSE)*Q35+VLOOKUP(M36,Micronutrients,12,FALSE)*Q36+VLOOKUP(M37,Micronutrients,12,FALSE)*Q37 -> 0 | W35: =VLOOKUP(M26,Macronutrients,13,FALSE)*Q26+VLOOKUP(M27,Macronutrients,13,FALSE)*Q27+VLOOKUP(M28,Macronutrients,13,FALSE)*Q28+VLOOKUP(M29,Macronutrients,13,FALSE)*Q29+VLOOKUP(M30,Macronutrients,13,FALSE)*Q30+VLOOKUP(M31,Macronutrients,13,FALSE)*Q31+VLOOKUP(M34,Micronutrients,13,FALSE)*Q34+VLOOKUP(M35,Micronutrients,13,FALSE)*Q35+VLOOKUP(M36,Micronutrients,13,FALSE)*Q36+VLOOKUP(M37,Micronutrients,13,FALSE)*Q37 -> 0 | Y35: None | Z35: =VLOOKUP($A35,Micronutrients,14,FALSE) -> 0 | AA35: =VLOOKUP(Y35,Micronutrients,18,FALSE) -> 0 | AB35: =VLOOKUP(Y35,Micronutrients,16,FALSE) -> 1 | AC35: 0 | AD35: =VLOOKUP(Y35,Micronutrients,15,FALSE) -> 0 | AE35: =(AC35*VLOOKUP(Y35,Micronutrients,14,FALSE)/AB35)*AA35 -> 0 | AG35: =VLOOKUP(Y26,Macronutrients,11,FALSE)*AC26+VLOOKUP(Y27,Macronutrients,11,FALSE)*AC27+VLOOKUP(Y28,Macronutrients,11,FALSE)*AC28+VLOOKUP(Y29,Macronutrients,11,FALSE)*AC29+VLOOKUP(Y30,Macronutrients,11,FALSE)*AC30+VLOOKUP(Y31,Macronutrients,11,FALSE)*AC31+VLOOKUP(Y34,Micronutrients,11,FALSE)*AC34+VLOOKUP(Y35,Micronutrients,11,FALSE)*AC35+VLOOKUP(Y36,Micronutrients,11,FALSE)*AC36+VLOOKUP(Y37,Micronutrients,11,FALSE)*AC37 -> 0 | AH35: =VLOOKUP(Y26,Macronutrients,12,FALSE)*AC26+VLOOKUP(Y27,Macronutrients,12,FALSE)*AC27+VLOOKUP(Y28,Macronutrients,12,FALSE)*AC28+VLOOKUP(Y29,Macronutrients,12,FALSE)*AC29+VLOOKUP(Y30,Macronutrients,12,FALSE)*AC30+VLOOKUP(Y31,Macronutrients,12,FALSE)*AC31+VLOOKUP(Y34,Micronutrients,12,FALSE)*AC34+VLOOKUP(Y35,Micronutrients,12,FALSE)*AC35+VLOOKUP(Y36,Micronutrients,12,FALSE)*AC36+VLOOKUP(Y37,Micronutrients,12,FALSE)*AC37 -> 0 | AI35: =VLOOKUP(Y26,Macronutrients,13,FALSE)*AC26+VLOOKUP(Y27,Macronutrients,13,FALSE)*AC27+VLOOKUP(Y28,Macronutrients,13,FALSE)*AC28+VLOOKUP(Y29,Macronutrients,13,FALSE)*AC29+VLOOKUP(Y30,Macronutrients,13,FALSE)*AC30+VLOOKUP(Y31,Macronutrients,13,FALSE)*AC31+VLOOKUP(Y34,Micronutrients,13,FALSE)*AC34+VLOOKUP(Y35,Micronutrients,13,FALSE)*AC35+VLOOKUP(Y36,Micronutrients,13,FALSE)*AC36+VLOOKUP(Y37,Micronutrients,13,FALSE)*AC37 -> 0
A36: None | B36: =VLOOKUP($A36,Micronutrients,14,FALSE) -> 0 | C36: =VLOOKUP(A36,Micronutrients,18,FALSE) -> 0 | D36: =VLOOKUP(A36,Micronutrients,16,FALSE) -> 1 | E36: 0 | F36: =VLOOKUP(A36,Micronutrients,15,FALSE) -> 0 | G36: =(E36*VLOOKUP(A36,Micronutrients,14,FALSE)/D36)*C36 -> 0 | M36: None | N36: =VLOOKUP($A36,Micronutrients,14,FALSE) -> 0 | O36: =VLOOKUP(M36,Micronutrients,18,FALSE) -> 0 | P36: =VLOOKUP(M36,Micronutrients,16,FALSE) -> 1 | Q36: 0 | R36: =VLOOKUP(M36,Micronutrients,15,FALSE) -> 0 | S36: =(Q36*VLOOKUP(M36,Micronutrients,14,FALSE)/P36)*O36 -> 0 | Y36: None | Z36: =VLOOKUP($A36,Micronutrients,14,FALSE) -> 0 | AA36: =VLOOKUP(Y36,Micronutrients,18,FALSE) -> 0 | AB36: =VLOOKUP(Y36,Micronutrients,16,FALSE) -> 1 | AC36: 0 | AD36: =VLOOKUP(Y36,Micronutrients,15,FALSE) -> 0 | AE36: =(AC36*VLOOKUP(Y36,Micronutrients,14,FALSE)/AB36)*AA36 -> 0
A37: None | B37: =VLOOKUP($A37,Micronutrients,14,FALSE) -> 0 | C37: =VLOOKUP(A37,Micronutrients,18,FALSE) -> 0 | D37: =VLOOKUP(A37,Micronutrients,16,FALSE) -> 1 | E37: 0 | F37: =VLOOKUP(A37,Micronutrients,15,FALSE) -> 0 | G37: =(E37*VLOOKUP(A37,Micronutrients,14,FALSE)/D37)*C37 -> 0 | K37: More | M37: None | N37: =VLOOKUP($A37,Micronutrients,14,FALSE) -> 0 | O37: =VLOOKUP(M37,Micronutrients,18,FALSE) -> 0 | P37: =VLOOKUP(M37,Micronutrients,16,FALSE) -> 1 | Q37: 0 | R37: =VLOOKUP(M37,Micronutrients,15,FALSE) -> 0 | S37: =(Q37*VLOOKUP(M37,Micronutrients,14,FALSE)/P37)*O37 -> 0 | W37: More | Y37: None | Z37: =VLOOKUP($A37,Micronutrients,14,FALSE) -> 0 | AA37: =VLOOKUP(Y37,Micronutrients,18,FALSE) -> 0 | AB37: =VLOOKUP(Y37,Micronutrients,16,FALSE) -> 1 | AC37: 0 | AD37: =VLOOKUP(Y37,Micronutrients,15,FALSE) -> 0 | AE37: =(AC37*VLOOKUP(Y37,Micronutrients,14,FALSE)/AB37)*AA37 -> 0 | AI37: More
A38: 2nd Application Fertilizer Cost/Acre | G38: =SUM(G26:G37) -> 0 | K38: Below | M38: 2nd Application Fertilizer Cost/Acre | S38: =SUM(S26:S37) -> 0 | W38: Below | Y38: 2nd Application Fertilizer Cost/Acre | AE38: =SUM(AE26:AE37) -> 0 | AI38: Below
K39: ¯ | W39: ¯ | AI39: ¯
A40: Foliar Applications | M40: Foliar Applications | Y40: Foliar Applications
A41: Fertilizer Source | B41: Purchase Units | C41: Package Price (Gals, Lbs, etc.) | D41: Units/Pkg | E41: Rate/Acre | F41: Units | G41: Cost | M41: Fertilizer Source | N41: Purchase Units | O41: Package Price (Gals, Lbs, etc.) | P41: Units/Pkg | Q41: Rate/Acre | R41: Units | S41: Cost | Y41: Fertilizer Source | Z41: Purchase Units | AA41: Package Price (Gals, Lbs, etc.) | AB41: Units/Pkg | AC41: Rate/Acre | AD41: Units | AE41: Cost
A42: Foliars (drop down menu) | E42: (Enter Below) | I42: N | J42: P | K42: K | M42: Foliars (drop down menu) | Q42: (Enter Below) | U42: N | V42: P | W42: K | Y42: Foliars (drop down menu) | AC42: (Enter Below) | AG42: N | AH42: P | AI42: K
A43: None | B43: =VLOOKUP(A43,Foliars,14,FALSE) -> 0 | C43: =VLOOKUP(A43,Foliars,18,FALSE) -> 0 | D43: =VLOOKUP(A43,Foliars,16,FALSE) -> 1 | E43: 0 | F43: =VLOOKUP(A43,Foliars,15,FALSE) -> 0 | G43: =(E43*VLOOKUP(A43,Foliars,14,FALSE)/D43)*C43 -> 0 | I43: =VLOOKUP(A$43,Foliars,2,FALSE)*E$43+VLOOKUP(A$44,Foliars,2,FALSE)*E$44+VLOOKUP(A$45,Foliars,2,FALSE)*E$45+VLOOKUP(A$46,Foliars,2,FALSE)*E$46+VLOOKUP(A$47,Foliars,2,FALSE)*E$47+VLOOKUP(A$48,Foliars,2,FALSE)*E$48 -> 0 | J43: =VLOOKUP(A$43,Foliars,3,FALSE)*E$43+VLOOKUP(A$44,Foliars,3,FALSE)*E$44+VLOOKUP(A$45,Foliars,3,FALSE)*E$45+VLOOKUP(A$46,Foliars,3,FALSE)*E$46+VLOOKUP(A$47,Foliars,3,FALSE)*E$47+VLOOKUP(A$48,Foliars,3,FALSE)*E$48 -> 0 | K43: =VLOOKUP(A$43,Foliars,4,FALSE)*E$43+VLOOKUP(A$44,Foliars,4,FALSE)*E$44+VLOOKUP(A$45,Foliars,4,FALSE)*E$45+VLOOKUP(A$46,Foliars,4,FALSE)*E$46+VLOOKUP(A$47,Foliars,4,FALSE)*E$47+VLOOKUP(A$48,Foliars,4,FALSE)*E$48 -> 0 | M43: None | N43: =VLOOKUP(M43,Foliars,14,FALSE) -> 0 | O43: =VLOOKUP(M43,Foliars,18,FALSE) -> 0 | P43: =VLOOKUP(M43,Foliars,16,FALSE) -> 1 | Q43: 0 | R43: =VLOOKUP(M43,Foliars,15,FALSE) -> 0 | S43: =(Q43*VLOOKUP(M43,Foliars,14,FALSE)/P43)*O43 -> 0 | U43: =VLOOKUP(M$43,Foliars,2,FALSE)*Q$43+VLOOKUP(M$44,Foliars,2,FALSE)*Q$44+VLOOKUP(M$45,Foliars,2,FALSE)*Q$45+VLOOKUP(M$46,Foliars,2,FALSE)*Q$46+VLOOKUP(M$47,Foliars,2,FALSE)*Q$47+VLOOKUP(M$48,Foliars,2,FALSE)*Q$48 -> 0 | V43: =VLOOKUP(M$43,Foliars,3,FALSE)*Q$43+VLOOKUP(M$44,Foliars,3,FALSE)*Q$44+VLOOKUP(M$45,Foliars,3,FALSE)*Q$45+VLOOKUP(M$46,Foliars,3,FALSE)*Q$46+VLOOKUP(M$47,Foliars,3,FALSE)*Q$47+VLOOKUP(M$48,Foliars,3,FALSE)*Q$48 -> 0 | W43: =VLOOKUP(M$43,Foliars,4,FALSE)*Q$43+VLOOKUP(M$44,Foliars,4,FALSE)*Q$44+VLOOKUP(M$45,Foliars,4,FALSE)*Q$45+VLOOKUP(M$46,Foliars,4,FALSE)*Q$46+VLOOKUP(M$47,Foliars,4,FALSE)*Q$47+VLOOKUP(M$48,Foliars,4,FALSE)*Q$48 -> 0 | Y43: None | Z43: =VLOOKUP(Y43,Foliars,14,FALSE) -> 0 | AA43: =VLOOKUP(Y43,Foliars,18,FALSE) -> 0 | AB43: =VLOOKUP(Y43,Foliars,16,FALSE) -> 1 | AC43: 0 | AD43: =VLOOKUP(Y43,Foliars,15,FALSE) -> 0 | AE43: =(AC43*VLOOKUP(Y43,Foliars,14,FALSE)/AB43)*AA43 -> 0 | AG43: =VLOOKUP(Y$43,Foliars,2,FALSE)*AC$43+VLOOKUP(Y$44,Foliars,2,FALSE)*AC$44+VLOOKUP(Y$45,Foliars,2,FALSE)*AC$45+VLOOKUP(Y$46,Foliars,2,FALSE)*AC$46+VLOOKUP(Y$47,Foliars,2,FALSE)*AC$47+VLOOKUP(Y$48,Foliars,2,FALSE)*AC$48 -> 0 | AH43: =VLOOKUP(Y$43,Foliars,3,FALSE)*AC$43+VLOOKUP(Y$44,Foliars,3,FALSE)*AC$44+VLOOKUP(Y$45,Foliars,3,FALSE)*AC$45+VLOOKUP(Y$46,Foliars,3,FALSE)*AC$46+VLOOKUP(Y$47,Foliars,3,FALSE)*AC$47+VLOOKUP(Y$48,Foliars,3,FALSE)*AC$48 -> 0 | AI43: =VLOOKUP(Y$43,Foliars,4,FALSE)*AC$43+VLOOKUP(Y$44,Foliars,4,FALSE)*AC$44+VLOOKUP(Y$45,Foliars,4,FALSE)*AC$45+VLOOKUP(Y$46,Foliars,4,FALSE)*AC$46+VLOOKUP(Y$47,Foliars,4,FALSE)*AC$47+VLOOKUP(Y$48,Foliars,4,FALSE)*AC$48 -> 0
A44: None | B44: =VLOOKUP(A44,Foliars,14,FALSE) -> 0 | C44: 0 | D44: 1 | E44: 0 | F44: 0 | G44: 0 | M44: None | N44: 0 | O44: 0 | P44: 1 | Q44: 0 | R44: 0 | S44: 0 | Y44: None | Z44: 0 | AA44: 0 | AB44: 1 | AC44: 0 | AD44: 0 | AE44: 0
A45: None | B45: 0 | C45: 0 | D45: 1 | E45: 0 | F45: 0 | G45: 0 | I45: S | J45: Ca | K45: Mg | M45: None | N45: 0 | O45: 0 | P45: 1 | Q45: 0 | R45: 0 | S45: 0 | U45: S | V45: Ca | W45: Mg | Y45: None | Z45: 0 | AA45: 0 | AB45: 1 | AC45: 0 | AD45: 0 | AE45: 0 | AG45: S | AH45: Ca | AI45: Mg
A46: None | B46: 0 | C46: 0 | D46: 1 | E46: 0 | F46: 0 | G46: 0 | I46: =VLOOKUP(A$43,Foliars,5,FALSE)*E$43+VLOOKUP(A$44,Foliars,5,FALSE)*E$44+VLOOKUP(A$45,Foliars,5,FALSE)*E$45+VLOOKUP(A$46,Foliars,5,FALSE)*E$46+VLOOKUP(A$47,Foliars,5,FALSE)*E$47+VLOOKUP(A$48,Foliars,5,FALSE)*E$48 -> 0 | J46: =VLOOKUP(A$43,Foliars,7,FALSE)*E$43+VLOOKUP(A$44,Foliars,7,FALSE)*E$44+VLOOKUP(A$45,Foliars,7,FALSE)*E$45+VLOOKUP(A$46,Foliars,7,FALSE)*E$46+VLOOKUP(A$47,Foliars,7,FALSE)*E$47+VLOOKUP(A$48,Foliars,7,FALSE)*E$48 -> 0 | K46: =VLOOKUP(A$43,Foliars,6,FALSE)*E$43+VLOOKUP(A$44,Foliars,6,FALSE)*E$44+VLOOKUP(A$45,Foliars,6,FALSE)*E$45+VLOOKUP(A$46,Foliars,6,FALSE)*E$46+VLOOKUP(A$47,Foliars,6,FALSE)*E$47+VLOOKUP(A$48,Foliars,6,FALSE)*E$48 -> 0 | M46: None | N46: 0 | O46: 0 | P46: 1 | Q46: 0 | R46: 0 | S46: 0 | U46: =VLOOKUP(M$43,Foliars,5,FALSE)*Q$43+VLOOKUP(M$44,Foliars,5,FALSE)*Q$44+VLOOKUP(M$45,Foliars,5,FALSE)*Q$45+VLOOKUP(M$46,Foliars,5,FALSE)*Q$46+VLOOKUP(M$47,Foliars,5,FALSE)*Q$47+VLOOKUP(M$48,Foliars,5,FALSE)*Q$48 -> 0 | V46: =VLOOKUP(M$43,Foliars,7,FALSE)*Q$43+VLOOKUP(M$44,Foliars,7,FALSE)*Q$44+VLOOKUP(M$45,Foliars,7,FALSE)*Q$45+VLOOKUP(M$46,Foliars,7,FALSE)*Q$46+VLOOKUP(M$47,Foliars,7,FALSE)*Q$47+VLOOKUP(M$48,Foliars,7,FALSE)*Q$48 -> 0 | W46: =VLOOKUP(M$43,Foliars,6,FALSE)*Q$43+VLOOKUP(M$44,Foliars,6,FALSE)*Q$44+VLOOKUP(M$45,Foliars,6,FALSE)*Q$45+VLOOKUP(M$46,Foliars,6,FALSE)*Q$46+VLOOKUP(M$47,Foliars,6,FALSE)*Q$47+VLOOKUP(M$48,Foliars,6,FALSE)*Q$48 -> 0 | Y46: None | Z46: 0 | AA46: 0 | AB46: 1 | AC46: 0 | AD46: 0 | AE46: 0 | AG46: =VLOOKUP(Y$43,Foliars,5,FALSE)*AC$43+VLOOKUP(Y$44,Foliars,5,FALSE)*AC$44+VLOOKUP(Y$45,Foliars,5,FALSE)*AC$45+VLOOKUP(Y$46,Foliars,5,FALSE)*AC$46+VLOOKUP(Y$47,Foliars,5,FALSE)*AC$47+VLOOKUP(Y$48,Foliars,5,FALSE)*AC$48 -> 0 | AH46: =VLOOKUP(Y$43,Foliars,7,FALSE)*AC$43+VLOOKUP(Y$44,Foliars,7,FALSE)*AC$44+VLOOKUP(Y$45,Foliars,7,FALSE)*AC$45+VLOOKUP(Y$46,Foliars,7,FALSE)*AC$46+VLOOKUP(Y$47,Foliars,7,FALSE)*AC$47+VLOOKUP(Y$48,Foliars,7,FALSE)*AC$48 -> 0 | AI46: =VLOOKUP(Y$43,Foliars,6,FALSE)*AC$43+VLOOKUP(Y$44,Foliars,6,FALSE)*AC$44+VLOOKUP(Y$45,Foliars,6,FALSE)*AC$45+VLOOKUP(Y$46,Foliars,6,FALSE)*AC$46+VLOOKUP(Y$47,Foliars,6,FALSE)*AC$47+VLOOKUP(Y$48,Foliars,6,FALSE)*AC$48 -> 0
A47: None | B47: 0 | C47: 0 | D47: 1 | E47: 0 | F47: 0 | G47: 0 | M47: None | N47: 0 | O47: 0 | P47: 1 | Q47: 0 | R47: 0 | S47: 0 | Y47: None | Z47: 0 | AA47: 0 | AB47: 1 | AC47: 0 | AD47: 0 | AE47: 0
A48: None | B48: 0 | C48: 0 | D48: 1 | E48: 0 | F48: 0 | G48: 0 | I48: Z | J48: B | K48: Mn | M48: None | N48: 0 | O48: 0 | P48: 1 | Q48: 0 | R48: 0 | S48: 0 | U48: Z | V48: B | W48: Mn | Y48: None | Z48: 0 | AA48: 0 | AB48: 1 | AC48: 0 | AD48: 0 | AE48: 0 | AG48: Z | AH48: B | AI48: Mn
I49: =VLOOKUP(A$43,Foliars,8,FALSE)*E$43+VLOOKUP(A$44,Foliars,8,FALSE)*E$44+VLOOKUP(A$45,Foliars,8,FALSE)*E$45+VLOOKUP(A$46,Foliars,8,FALSE)*E$46+VLOOKUP(A$47,Foliars,8,FALSE)*E$47+VLOOKUP(A$48,Foliars,8,FALSE)*E$48 -> 0 | J49: =VLOOKUP(A$43,Foliars,9,FALSE)*E$43+VLOOKUP(A$44,Foliars,9,FALSE)*E$44+VLOOKUP(A$45,Foliars,9,FALSE)*E$45+VLOOKUP(A$46,Foliars,9,FALSE)*E$46+VLOOKUP(A$47,Foliars,9,FALSE)*E$47+VLOOKUP(A$48,Foliars,9,FALSE)*E$48 -> 0 | K49: =VLOOKUP(A$43,Foliars,10,FALSE)*E$43+VLOOKUP(A$44,Foliars,10,FALSE)*E$44+VLOOKUP(A$45,Foliars,10,FALSE)*E$45+VLOOKUP(A$46,Foliars,10,FALSE)*E$46+VLOOKUP(A$47,Foliars,10,FALSE)*E$47+VLOOKUP(A$48,Foliars,10,FALSE)*E$48 -> 0 | U49: =VLOOKUP(M$43,Foliars,8,FALSE)*Q$43+VLOOKUP(M$44,Foliars,8,FALSE)*Q$44+VLOOKUP(M$45,Foliars,8,FALSE)*Q$45+VLOOKUP(M$46,Foliars,8,FALSE)*Q$46+VLOOKUP(M$47,Foliars,8,FALSE)*Q$47+VLOOKUP(M$48,Foliars,8,FALSE)*Q$48 -> 0 | V49: =VLOOKUP(M$43,Foliars,9,FALSE)*Q$43+VLOOKUP(M$44,Foliars,9,FALSE)*Q$44+VLOOKUP(M$45,Foliars,9,FALSE)*Q$45+VLOOKUP(M$46,Foliars,9,FALSE)*Q$46+VLOOKUP(M$47,Foliars,9,FALSE)*Q$47+VLOOKUP(M$48,Foliars,9,FALSE)*Q$48 -> 0 | W49: =VLOOKUP(M$43,Foliars,10,FALSE)*Q$43+VLOOKUP(M$44,Foliars,10,FALSE)*Q$44+VLOOKUP(M$45,Foliars,10,FALSE)*Q$45+VLOOKUP(M$46,Foliars,10,FALSE)*Q$46+VLOOKUP(M$47,Foliars,10,FALSE)*Q$47+VLOOKUP(M$48,Foliars,10,FALSE)*Q$48 -> 0 | AG49: =VLOOKUP(Y$43,Foliars,8,FALSE)*AC$43+VLOOKUP(Y$44,Foliars,8,FALSE)*AC$44+VLOOKUP(Y$45,Foliars,8,FALSE)*AC$45+VLOOKUP(Y$46,Foliars,8,FALSE)*AC$46+VLOOKUP(Y$47,Foliars,8,FALSE)*AC$47+VLOOKUP(Y$48,Foliars,8,FALSE)*AC$48 -> 0 | AH49: =VLOOKUP(Y$43,Foliars,9,FALSE)*AC$43+VLOOKUP(Y$44,Foliars,9,FALSE)*AC$44+VLOOKUP(Y$45,Foliars,9,FALSE)*AC$45+VLOOKUP(Y$46,Foliars,9,FALSE)*AC$46+VLOOKUP(Y$47,Foliars,9,FALSE)*AC$47+VLOOKUP(Y$48,Foliars,9,FALSE)*AC$48 -> 0 | AI49: =VLOOKUP(Y$43,Foliars,10,FALSE)*AC$43+VLOOKUP(Y$44,Foliars,10,FALSE)*AC$44+VLOOKUP(Y$45,Foliars,10,FALSE)*AC$45+VLOOKUP(Y$46,Foliars,10,FALSE)*AC$46+VLOOKUP(Y$47,Foliars,10,FALSE)*AC$47+VLOOKUP(Y$48,Foliars,10,FALSE)*AC$48 -> 0
A51: Total Foliar Application Cost/Acre | G51: =SUM(G43:G48) -> 0 | I51: Cu | J51: Mo | K51: Fe | M51: Total Foliar Application Cost/Acre | S51: =SUM(S43:S48) -> 0 | U51: Cu | V51: Mo | W51: Fe | Y51: Total Foliar Application Cost/Acre | AE51: =SUM(AE43:AE48) -> 0 | AG51: Cu | AH51: Mo | AI51: Fe
I52: =VLOOKUP(A43,Foliars,11,FALSE)*E43+VLOOKUP(A44,Foliars,11,FALSE)*E44+VLOOKUP(A45,Foliars,11,FALSE)*E45+VLOOKUP(A46,Foliars,11,FALSE)*E46+VLOOKUP(A47,Foliars,11,FALSE)*E47+VLOOKUP(A48,Foliars,11,FALSE)*E48 -> 0 | J52: =VLOOKUP(A43,Foliars,12,FALSE)*E43+VLOOKUP(A44,Foliars,12,FALSE)*E44+VLOOKUP(A45,Foliars,12,FALSE)*E45+VLOOKUP(A46,Foliars,12,FALSE)*E46+VLOOKUP(A47,Foliars,12,FALSE)*E47+VLOOKUP(A48,Foliars,12,FALSE)*E48 -> 0 | K52: =VLOOKUP(A43,Foliars,13,FALSE)*E43+VLOOKUP(A44,Foliars,13,FALSE)*E44+VLOOKUP(A45,Foliars,13,FALSE)*E45+VLOOKUP(A46,Foliars,13,FALSE)*E46+VLOOKUP(A47,Foliars,13,FALSE)*E47+VLOOKUP(A48,Foliars,13,FALSE)*E48 -> 0 | U52: =VLOOKUP(M43,Foliars,11,FALSE)*Q43+VLOOKUP(M44,Foliars,11,FALSE)*Q44+VLOOKUP(M45,Foliars,11,FALSE)*Q45+VLOOKUP(M46,Foliars,11,FALSE)*Q46+VLOOKUP(M47,Foliars,11,FALSE)*Q47+VLOOKUP(M48,Foliars,11,FALSE)*Q48 -> 0 | V52: =VLOOKUP(M43,Foliars,12,FALSE)*Q43+VLOOKUP(M44,Foliars,12,FALSE)*Q44+VLOOKUP(M45,Foliars,12,FALSE)*Q45+VLOOKUP(M46,Foliars,12,FALSE)*Q46+VLOOKUP(M47,Foliars,12,FALSE)*Q47+VLOOKUP(M48,Foliars,12,FALSE)*Q48 -> 0 | W52: =VLOOKUP(M43,Foliars,13,FALSE)*Q43+VLOOKUP(M44,Foliars,13,FALSE)*Q44+VLOOKUP(M45,Foliars,13,FALSE)*Q45+VLOOKUP(M46,Foliars,13,FALSE)*Q46+VLOOKUP(M47,Foliars,13,FALSE)*Q47+VLOOKUP(M48,Foliars,13,FALSE)*Q48 -> 0 | AG52: =VLOOKUP(Y43,Foliars,11,FALSE)*AC43+VLOOKUP(Y44,Foliars,11,FALSE)*AC44+VLOOKUP(Y45,Foliars,11,FALSE)*AC45+VLOOKUP(Y46,Foliars,11,FALSE)*AC46+VLOOKUP(Y47,Foliars,11,FALSE)*AC47+VLOOKUP(Y48,Foliars,11,FALSE)*AC48 -> 0 | AH52: =VLOOKUP(Y43,Foliars,12,FALSE)*AC43+VLOOKUP(Y44,Foliars,12,FALSE)*AC44+VLOOKUP(Y45,Foliars,12,FALSE)*AC45+VLOOKUP(Y46,Foliars,12,FALSE)*AC46+VLOOKUP(Y47,Foliars,12,FALSE)*AC47+VLOOKUP(Y48,Foliars,12,FALSE)*AC48 -> 0 | AI52: =VLOOKUP(Y43,Foliars,13,FALSE)*AC43+VLOOKUP(Y44,Foliars,13,FALSE)*AC44+VLOOKUP(Y45,Foliars,13,FALSE)*AC45+VLOOKUP(Y46,Foliars,13,FALSE)*AC46+VLOOKUP(Y47,Foliars,13,FALSE)*AC47+VLOOKUP(Y48,Foliars,13,FALSE)*AC48 -> 0
A53: Fertigation Applications | M53: Fertigation Applications | Y53: Fertigation Applications
A54: Fertilizer Source | B54: Purchase Units | C54: Package Price (Gals, Lbs, etc.) | D54: Units/Pkg | E54: Rate/Acre | F54: Units | G54: Cost | M54: Fertilizer Source | N54: Purchase Units | O54: Package Price (Gals, Lbs, etc.) | P54: Units/Pkg | Q54: Rate/Acre | R54: Units | S54: Cost | Y54: Fertilizer Source | Z54: Purchase Units | AA54: Package Price (Gals, Lbs, etc.) | AB54: Units/Pkg | AC54: Rate/Acre | AD54: Units | AE54: Cost
A55: Fertigation (drop down menu) | E55: (Enter Below) | I55: N | J55: P | K55: K | M55: Fertigation (drop down menu) | Q55: (Enter Below) | U55: N | V55: P | W55: K | Y55: Fertigation (drop down menu) | AC55: (Enter Below) | AG55: N | AH55: P | AI55: K
A56: None | B56: =VLOOKUP(A56,Fertigation,14,FALSE) -> 0 | C56: =VLOOKUP(A56,Fertigation,18,FALSE) -> 0 | D56: =VLOOKUP(A56,Fertigation,16,FALSE) -> 1 | E56: 0 | F56: =VLOOKUP(A56,Fertigation,15,FALSE) -> 0 | G56: =(E56*VLOOKUP(A56,Fertigation,14,FALSE)/D56)*C56 -> 0 | I56: =VLOOKUP(A$56,Fertigation,2,FALSE)*E$56+VLOOKUP(A$57,Fertigation,2,FALSE)*E$57+VLOOKUP(A$58,Fertigation,2,FALSE)*E$58+VLOOKUP(A$59,Fertigation,2,FALSE)*E$59+VLOOKUP(A$60,Fertigation,2,FALSE)*E$60+VLOOKUP(A$61,Fertigation,2,FALSE)*E$61 -> 0 | J56: =VLOOKUP(A$56,Fertigation,3,FALSE)*E$56+VLOOKUP(A$57,Fertigation,3,FALSE)*E$57+VLOOKUP(A$58,Fertigation,3,FALSE)*E$58+VLOOKUP(A$59,Fertigation,3,FALSE)*E$59+VLOOKUP(A$60,Fertigation,3,FALSE)*E$60+VLOOKUP(A$61,Fertigation,3,FALSE)*E$61 -> 0 | K56: =VLOOKUP(A$56,Fertigation,4,FALSE)*E$56+VLOOKUP(A$57,Fertigation,4,FALSE)*E$57+VLOOKUP(A$58,Fertigation,4,FALSE)*E$58+VLOOKUP(A$59,Fertigation,4,FALSE)*E$59+VLOOKUP(A$60,Fertigation,4,FALSE)*E$60+VLOOKUP(A$61,Fertigation,4,FALSE)*E$61 -> 0 | M56: None | N56: =VLOOKUP(M56,Fertigation,14,FALSE) -> 0 | O56: =VLOOKUP(M56,Fertigation,18,FALSE) -> 0 | P56: =VLOOKUP(M56,Fertigation,16,FALSE) -> 1 | Q56: 0 | R56: =VLOOKUP(M56,Fertigation,15,FALSE) -> 0 | S56: =(Q56*VLOOKUP(M56,Foliars,14,FALSE)/P56)*O56 -> 0 | U56: =VLOOKUP(M$56,Fertigation,2,FALSE)*Q$56+VLOOKUP(M$57,Fertigation,2,FALSE)*Q$57+VLOOKUP(M$58,Fertigation,2,FALSE)*Q$58+VLOOKUP(M$59,Fertigation,2,FALSE)*Q$59+VLOOKUP(M$60,Fertigation,2,FALSE)*Q$60+VLOOKUP(M$61,Fertigation,2,FALSE)*Q$61 -> 0 | V56: =VLOOKUP(M$56,Fertigation,3,FALSE)*Q$56+VLOOKUP(M$57,Fertigation,3,FALSE)*Q$57+VLOOKUP(M$58,Fertigation,3,FALSE)*Q$58+VLOOKUP(M$59,Fertigation,3,FALSE)*Q$59+VLOOKUP(M$60,Fertigation,3,FALSE)*Q$60+VLOOKUP(M$61,Fertigation,3,FALSE)*Q$61 -> 0 | W56: =VLOOKUP(M$56,Fertigation,4,FALSE)*Q$56+VLOOKUP(M$57,Fertigation,4,FALSE)*Q$57+VLOOKUP(M$58,Fertigation,4,FALSE)*Q$58+VLOOKUP(M$59,Fertigation,4,FALSE)*Q$59+VLOOKUP(M$60,Fertigation,4,FALSE)*Q$60+VLOOKUP(M$61,Fertigation,4,FALSE)*Q$61 -> 0 | Y56: None | Z56: =VLOOKUP(Y56,Fertigation,14,FALSE) -> 0 | AA56: =VLOOKUP(Y56,Fertigation,18,FALSE) -> 0 | AB56: =VLOOKUP(Y56,Fertigation,16,FALSE) -> 1 | AC56: 0 | AD56: =VLOOKUP(Y56,Fertigation,15,FALSE) -> 0 | AE56: =(AC56*VLOOKUP(Y56,Foliars,14,FALSE)/AB56)*AA56 -> 0 | AG56: =VLOOKUP(Y$56,Fertigation,2,FALSE)*AC$56+VLOOKUP(Y$57,Fertigation,2,FALSE)*AC$57+VLOOKUP(Y$58,Fertigation,2,FALSE)*AC$58+VLOOKUP(Y$59,Fertigation,2,FALSE)*AC$59+VLOOKUP(Y$60,Fertigation,2,FALSE)*AC$60+VLOOKUP(Y$61,Fertigation,2,FALSE)*AC$61 -> 0 | AH56: =VLOOKUP(Y$56,Fertigation,3,FALSE)*AC$56+VLOOKUP(Y$57,Fertigation,3,FALSE)*AC$57+VLOOKUP(Y$58,Fertigation,3,FALSE)*AC$58+VLOOKUP(Y$59,Fertigation,3,FALSE)*AC$59+VLOOKUP(Y$60,Fertigation,3,FALSE)*AC$60+VLOOKUP(Y$61,Fertigation,3,FALSE)*AC$61 -> 0 | AI56: =VLOOKUP(Y$56,Fertigation,4,FALSE)*AC$56+VLOOKUP(Y$57,Fertigation,4,FALSE)*AC$57+VLOOKUP(Y$58,Fertigation,4,FALSE)*AC$58+VLOOKUP(Y$59,Fertigation,4,FALSE)*AC$59+VLOOKUP(Y$60,Fertigation,4,FALSE)*AC$60+VLOOKUP(Y$61,Fertigation,4,FALSE)*AC$61 -> 0
A57: None | B57: =VLOOKUP(A57,Foliars,14,FALSE) -> 0 | C57: 0 | D57: 1 | E57: 0 | F57: 0 | G57: 0 | M57: None | N57: =VLOOKUP(M57,Foliars,14,FALSE) -> 0 | O57: 0 | P57: 1 | Q57: 0 | R57: 0 | S57: 0 | Y57: None | Z57: =VLOOKUP(Y57,Foliars,14,FALSE) -> 0 | AA57: 0 | AB57: 1 | AC57: 0 | AD57: 0 | AE57: 0
A58: None | B58: =VLOOKUP(A58,Foliars,14,FALSE) -> 0 | C58: 0 | D58: 1 | E58: 0 | F58: 0 | G58: 0 | I58: S | J58: Ca | K58: Mg | M58: None | N58: =VLOOKUP(M58,Foliars,14,FALSE) -> 0 | O58: 0 | P58: 1 | Q58: 0 | R58: 0 | S58: 0 | U58: S | V58: Ca | W58: Mg | Y58: None | Z58: =VLOOKUP(Y58,Foliars,14,FALSE) -> 0 | AA58: 0 | AB58: 1 | AC58: 0 | AD58: 0 | AE58: 0 | AG58: S | AH58: Ca | AI58: Mg
A59: None | B59: =VLOOKUP(A59,Foliars,14,FALSE) -> 0 | C59: 0 | D59: 1 | E59: 0 | F59: 0 | G59: 0 | I59: =VLOOKUP(A$56,Fertigation,5,FALSE)*E$56+VLOOKUP(A$57,Fertigation,5,FALSE)*E$57+VLOOKUP(A$58,Fertigation,5,FALSE)*E$58+VLOOKUP(A$59,Fertigation,5,FALSE)*E$59+VLOOKUP(A$60,Fertigation,5,FALSE)*E$60+VLOOKUP(A$61,Fertigation,5,FALSE)*E$61 -> 0 | J59: =VLOOKUP(A$56,Fertigation,7,FALSE)*E$56+VLOOKUP(A$57,Fertigation,7,FALSE)*E$57+VLOOKUP(A$58,Fertigation,7,FALSE)*E$58+VLOOKUP(A$59,Fertigation,7,FALSE)*E$59+VLOOKUP(A$60,Fertigation,7,FALSE)*E$60+VLOOKUP(A$61,Fertigation,7,FALSE)*E$61 -> 0 | K59: =VLOOKUP(A$56,Fertigation,6,FALSE)*E$56+VLOOKUP(A$57,Fertigation,6,FALSE)*E$57+VLOOKUP(A$58,Fertigation,6,FALSE)*E$58+VLOOKUP(A$59,Fertigation,6,FALSE)*E$59+VLOOKUP(A$60,Fertigation,6,FALSE)*E$60+VLOOKUP(A$61,Fertigation,6,FALSE)*E$61 -> 0 | M59: None | N59: =VLOOKUP(M59,Foliars,14,FALSE) -> 0 | O59: 0 | P59: 1 | Q59: 0 | R59: 0 | S59: 0 | U59: =VLOOKUP(M$56,Fertigation,5,FALSE)*Q$56+VLOOKUP(M$57,Fertigation,5,FALSE)*Q$57+VLOOKUP(M$58,Fertigation,5,FALSE)*Q$58+VLOOKUP(M$59,Fertigation,5,FALSE)*Q$59+VLOOKUP(M$60,Fertigation,5,FALSE)*Q$60+VLOOKUP(M$61,Fertigation,5,FALSE)*Q$61 -> 0 | V59: =VLOOKUP(M$56,Fertigation,7,FALSE)*Q$56+VLOOKUP(M$57,Fertigation,7,FALSE)*Q$57+VLOOKUP(M$58,Fertigation,7,FALSE)*Q$58+VLOOKUP(M$59,Fertigation,7,FALSE)*Q$59+VLOOKUP(M$60,Fertigation,7,FALSE)*Q$60+VLOOKUP(M$61,Fertigation,7,FALSE)*Q$61 -> 0 | W59: =VLOOKUP(M$56,Fertigation,6,FALSE)*Q$56+VLOOKUP(M$57,Fertigation,6,FALSE)*Q$57+VLOOKUP(M$58,Fertigation,6,FALSE)*Q$58+VLOOKUP(M$59,Fertigation,6,FALSE)*Q$59+VLOOKUP(M$60,Fertigation,6,FALSE)*Q$60+VLOOKUP(M$61,Fertigation,6,FALSE)*Q$61 -> 0 | Y59: None | Z59: =VLOOKUP(Y59,Foliars,14,FALSE) -> 0 | AA59: 0 | AB59: 1 | AC59: 0 | AD59: 0 | AE59: 0 | AG59: =VLOOKUP(Y$56,Fertigation,5,FALSE)*AC$56+VLOOKUP(Y$57,Fertigation,5,FALSE)*AC$57+VLOOKUP(Y$58,Fertigation,5,FALSE)*AC$58+VLOOKUP(Y$59,Fertigation,5,FALSE)*AC$59+VLOOKUP(Y$60,Fertigation,5,FALSE)*AC$60+VLOOKUP(Y$61,Fertigation,5,FALSE)*AC$61 -> 0 | AH59: =VLOOKUP(Y$56,Fertigation,7,FALSE)*AC$56+VLOOKUP(Y$57,Fertigation,7,FALSE)*AC$57+VLOOKUP(Y$58,Fertigation,7,FALSE)*AC$58+VLOOKUP(Y$59,Fertigation,7,FALSE)*AC$59+VLOOKUP(Y$60,Fertigation,7,FALSE)*AC$60+VLOOKUP(Y$61,Fertigation,7,FALSE)*AC$61 -> 0 | AI59: =VLOOKUP(Y$56,Fertigation,6,FALSE)*AC$56+VLOOKUP(Y$57,Fertigation,6,FALSE)*AC$57+VLOOKUP(Y$58,Fertigation,6,FALSE)*AC$58+VLOOKUP(Y$59,Fertigation,6,FALSE)*AC$59+VLOOKUP(Y$60,Fertigation,6,FALSE)*AC$60+VLOOKUP(Y$61,Fertigation,6,FALSE)*AC$61 -> 0
A60: None | B60: =VLOOKUP(A60,Foliars,14,FALSE) -> 0 | C60: 0 | D60: 1 | E60: 0 | F60: 0 | G60: 0 | M60: None | N60: =VLOOKUP(M60,Foliars,14,FALSE) -> 0 | O60: 0 | P60: 1 | Q60: 0 | R60: 0 | S60: 0 | Y60: None | Z60: =VLOOKUP(Y60,Foliars,14,FALSE) -> 0 | AA60: 0 | AB60: 1 | AC60: 0 | AD60: 0 | AE60: 0
A61: None | B61: =VLOOKUP(A61,Foliars,14,FALSE) -> 0 | C61: 0 | D61: 1 | E61: 0 | F61: 0 | G61: 0 | I61: Z | J61: B | K61: Mn | M61: None | N61: =VLOOKUP(M61,Foliars,14,FALSE) -> 0 | O61: 0 | P61: 1 | Q61: 0 | R61: 0 | S61: 0 | U61: Z | V61: B | W61: Mn | Y61: None | Z61: =VLOOKUP(Y61,Foliars,14,FALSE) -> 0 | AA61: 0 | AB61: 1 | AC61: 0 | AD61: 0 | AE61: 0 | AG61: Z | AH61: B | AI61: Mn
I62: =VLOOKUP(A$56,Fertigation,8,FALSE)*E$56+VLOOKUP(A$57,Fertigation,8,FALSE)*E$57+VLOOKUP(A$58,Fertigation,8,FALSE)*E$58+VLOOKUP(A$59,Fertigation,8,FALSE)*E$59+VLOOKUP(A$60,Fertigation,8,FALSE)*E$60+VLOOKUP(A$61,Fertigation,8,FALSE)*E$61 -> 0 | J62: =VLOOKUP(A$56,Fertigation,9,FALSE)*E$56+VLOOKUP(A$57,Fertigation,9,FALSE)*E$57+VLOOKUP(A$58,Fertigation,9,FALSE)*E$58+VLOOKUP(A$59,Fertigation,9,FALSE)*E$59+VLOOKUP(A$60,Fertigation,9,FALSE)*E$60+VLOOKUP(A$61,Fertigation,9,FALSE)*E$61 -> 0 | K62: =VLOOKUP(A$56,Fertigation,10,FALSE)*E$56+VLOOKUP(A$57,Fertigation,10,FALSE)*E$57+VLOOKUP(A$58,Fertigation,10,FALSE)*E$58+VLOOKUP(A$59,Fertigation,10,FALSE)*E$59+VLOOKUP(A$60,Fertigation,10,FALSE)*E$60+VLOOKUP(A$61,Fertigation,10,FALSE)*E$61 -> 0 | U62: =VLOOKUP(M$56,Fertigation,8,FALSE)*Q$56+VLOOKUP(M$57,Fertigation,8,FALSE)*Q$57+VLOOKUP(M$58,Fertigation,8,FALSE)*Q$58+VLOOKUP(M$59,Fertigation,8,FALSE)*Q$59+VLOOKUP(M$60,Fertigation,8,FALSE)*Q$60+VLOOKUP(M$61,Fertigation,8,FALSE)*Q$61 -> 0 | V62: =VLOOKUP(M$56,Fertigation,9,FALSE)*Q$56+VLOOKUP(M$57,Fertigation,9,FALSE)*Q$57+VLOOKUP(M$58,Fertigation,9,FALSE)*Q$58+VLOOKUP(M$59,Fertigation,9,FALSE)*Q$59+VLOOKUP(M$60,Fertigation,9,FALSE)*Q$60+VLOOKUP(M$61,Fertigation,9,FALSE)*Q$61 -> 0 | W62: =VLOOKUP(M$56,Fertigation,10,FALSE)*Q$56+VLOOKUP(M$57,Fertigation,10,FALSE)*Q$57+VLOOKUP(M$58,Fertigation,10,FALSE)*Q$58+VLOOKUP(M$59,Fertigation,10,FALSE)*Q$59+VLOOKUP(M$60,Fertigation,10,FALSE)*Q$60+VLOOKUP(M$61,Fertigation,10,FALSE)*Q$61 -> 0 | AG62: =VLOOKUP(Y$56,Fertigation,8,FALSE)*AC$56+VLOOKUP(Y$57,Fertigation,8,FALSE)*AC$57+VLOOKUP(Y$58,Fertigation,8,FALSE)*AC$58+VLOOKUP(Y$59,Fertigation,8,FALSE)*AC$59+VLOOKUP(Y$60,Fertigation,8,FALSE)*AC$60+VLOOKUP(Y$61,Fertigation,8,FALSE)*AC$61 -> 0 | AH62: =VLOOKUP(Y$56,Fertigation,9,FALSE)*AC$56+VLOOKUP(Y$57,Fertigation,9,FALSE)*AC$57+VLOOKUP(Y$58,Fertigation,9,FALSE)*AC$58+VLOOKUP(Y$59,Fertigation,9,FALSE)*AC$59+VLOOKUP(Y$60,Fertigation,9,FALSE)*AC$60+VLOOKUP(Y$61,Fertigation,9,FALSE)*AC$61 -> 0 | AI62: =VLOOKUP(Y$56,Fertigation,10,FALSE)*AC$56+VLOOKUP(Y$57,Fertigation,10,FALSE)*AC$57+VLOOKUP(Y$58,Fertigation,10,FALSE)*AC$58+VLOOKUP(Y$59,Fertigation,10,FALSE)*AC$59+VLOOKUP(Y$60,Fertigation,10,FALSE)*AC$60+VLOOKUP(Y$61,Fertigation,10,FALSE)*AC$61 -> 0
A64: Total Fertigation Cost/Acre | G64: =SUM(G56:G61) -> 0 | I64: Cu | J64: Mo | K64: Fe | M64: Total Fertigation Cost/Acre | S64: =SUM(S56:S61) -> 0 | U64: Cu | V64: Mo | W64: Fe | Y64: Total Fertigation Cost/Acre | AE64: =SUM(AE56:AE61) -> 0 | AG64: Cu | AH64: Mo | AI64: Fe
I65: =VLOOKUP(A56,Fertigation,11,FALSE)*E56+VLOOKUP(A57,Fertigation,11,FALSE)*E57+VLOOKUP(A58,Fertigation,11,FALSE)*E58+VLOOKUP(A59,Fertigation,11,FALSE)*E59+VLOOKUP(A60,Fertigation,11,FALSE)*E60+VLOOKUP(A61,Fertigation,11,FALSE)*E61 -> 0 | J65: =VLOOKUP(A56,Fertigation,12,FALSE)*E56+VLOOKUP(A57,Fertigation,12,FALSE)*E57+VLOOKUP(A58,Fertigation,12,FALSE)*E58+VLOOKUP(A59,Fertigation,12,FALSE)*E59+VLOOKUP(A60,Fertigation,12,FALSE)*E60+VLOOKUP(A61,Fertigation,12,FALSE)*E61 -> 0 | K65: =VLOOKUP(A56,Fertigation,13,FALSE)*E56+VLOOKUP(A57,Fertigation,13,FALSE)*E57+VLOOKUP(A58,Fertigation,13,FALSE)*E58+VLOOKUP(A59,Fertigation,13,FALSE)*E59+VLOOKUP(A60,Fertigation,13,FALSE)*E60+VLOOKUP(A61,Fertigation,13,FALSE)*E61 -> 0 | U65: =VLOOKUP(M56,Fertigation,11,FALSE)*Q56+VLOOKUP(M57,Fertigation,11,FALSE)*Q57+VLOOKUP(M58,Fertigation,11,FALSE)*Q58+VLOOKUP(M59,Fertigation,11,FALSE)*Q59+VLOOKUP(M60,Fertigation,11,FALSE)*Q60+VLOOKUP(M61,Fertigation,11,FALSE)*Q61 -> 0 | V65: =VLOOKUP(M56,Fertigation,12,FALSE)*Q56+VLOOKUP(M57,Fertigation,12,FALSE)*Q57+VLOOKUP(M58,Fertigation,12,FALSE)*Q58+VLOOKUP(M59,Fertigation,12,FALSE)*Q59+VLOOKUP(M60,Fertigation,12,FALSE)*Q60+VLOOKUP(M61,Fertigation,12,FALSE)*Q61 -> 0 | W65: =VLOOKUP(M56,Fertigation,13,FALSE)*Q56+VLOOKUP(M57,Fertigation,13,FALSE)*Q57+VLOOKUP(M58,Fertigation,13,FALSE)*Q58+VLOOKUP(M59,Fertigation,13,FALSE)*Q59+VLOOKUP(M60,Fertigation,13,FALSE)*Q60+VLOOKUP(M61,Fertigation,13,FALSE)*Q61 -> 0 | AG65: =VLOOKUP(Y56,Fertigation,11,FALSE)*AC56+VLOOKUP(Y57,Fertigation,11,FALSE)*AC57+VLOOKUP(Y58,Fertigation,11,FALSE)*AC58+VLOOKUP(Y59,Fertigation,11,FALSE)*AC59+VLOOKUP(Y60,Fertigation,11,FALSE)*AC60+VLOOKUP(Y61,Fertigation,11,FALSE)*AC61 -> 0 | AH65: =VLOOKUP(Y56,Fertigation,12,FALSE)*AC56+VLOOKUP(Y57,Fertigation,12,FALSE)*AC57+VLOOKUP(Y58,Fertigation,12,FALSE)*AC58+VLOOKUP(Y59,Fertigation,12,FALSE)*AC59+VLOOKUP(Y60,Fertigation,12,FALSE)*AC60+VLOOKUP(Y61,Fertigation,12,FALSE)*AC61 -> 0 | AI65: =VLOOKUP(Y56,Fertigation,13,FALSE)*AC56+VLOOKUP(Y57,Fertigation,13,FALSE)*AC57+VLOOKUP(Y58,Fertigation,13,FALSE)*AC58+VLOOKUP(Y59,Fertigation,13,FALSE)*AC59+VLOOKUP(Y60,Fertigation,13,FALSE)*AC60+VLOOKUP(Y61,Fertigation,13,FALSE)*AC61 -> 0
A67: Total Fertilizer Cost/Acre | G67: =G38+G21+G51 -> 0 | M67: Total Fertilizer Cost/Acre | S67: =S38+S21+S51 -> 0 | Y67: Total Fertilizer Cost/Acre | AE67: =AE38+AE21+AE51 -> 0
E69: Total Nutrient Needs | I69: Total Fertilizer Program | Q69: Total Nutrient Needs | U69: Total Fertilizer Program | AC69: Total Nutrient Needs | AG69: Total Fertilizer Program
E70: Based on: | F70: Soil Test Based Recs | I70: Comparison 1 | Q70: Based on: | R70: Soil Test Based Recs | U70: Comparison 2 | AC70: Based on: | AD70: Soil Test Based Recs | AG70: Comparison 3
A71: Farm Name | E71: N | F71: P | G71: K | I71: N | J71: P | K71: K | M71: =A71 -> Farm Name | Q71: N | R71: P | S71: K | U71: N | V71: P | W71: K | Y71: =A71 -> Farm Name | AC71: N | AD71: P | AE71: K | AG71: N | AH71: P | AI71: K
A72: Farm Tract | E72: ='Nutrient Management'!$B$56 -> 0 | F72: ='Nutrient Management'!$C$56 -> 0 | G72: ='Nutrient Management'!$D$56 -> 0 | I72: =I43+I26+I6+I56 -> 0 | J72: =J43+J26+J6+J56 -> 0 | K72: =K43+K26+K6+K56 -> 0 | M72: =A72 -> Farm Tract | Q72: ='Nutrient Management'!$B$56 -> 0 | R72: ='Nutrient Management'!$C$56 -> 0 | S72: ='Nutrient Management'!$D$56 -> 0 | U72: =U43+U26+U6+U56 -> 0 | V72: =V43+V26+V6+V56 -> 0 | W72: =W43+W26+W6+W56 -> 0 | Y72: =A72 -> Farm Tract | AC72: ='Nutrient Management'!$B$56 -> 0 | AD72: ='Nutrient Management'!$C$56 -> 0 | AE72: ='Nutrient Management'!$D$56 -> 0 | AG72: =AG43+AG26+AG6+AG56 -> 0 | AH72: =AH43+AH26+AH6+AH56 -> 0 | AI72: =AI43+AI26+AI6+AI56 -> 0
A73: Farm Number | E73: S | F73: Ca | G73: Mg | I73: S | J73: Ca | K73: Mg | M73: Farm Number | Q73: S | R73: Ca | S73: Mg | U73: S | V73: Ca | W73: Mg | Y73: Farm Number | AC73: S | AD73: Ca | AE73: Mg | AG73: S | AH73: Ca | AI73: Mg
E74: ='Nutrient Management'!$B$59 -> 0 | F74: ='Nutrient Management'!$C$59 -> 0 | G74: ='Nutrient Management'!$D$59 -> 0 | I74: =I46+I29+I9+I59 -> 0 | J74: =J46+J29+J9+J59 -> 0 | K74: =K46+K29+K9+K59 -> 0 | Q74: ='Nutrient Management'!$B$59 -> 0 | R74: ='Nutrient Management'!$C$59 -> 0 | S74: ='Nutrient Management'!$D$59 -> 0 | U74: =U46+U29+U9+U59 -> 0 | V74: =V46+V29+V9+V59 -> 0 | W74: =W46+W29+W9+W59 -> 0 | AC74: ='Nutrient Management'!$B$59 -> 0 | AD74: ='Nutrient Management'!$C$59 -> 0 | AE74: ='Nutrient Management'!$D$59 -> 0 | AG74: =AG46+AG29+AG9+AG59 -> 0 | AH74: =AH46+AH29+AH9+AH59 -> 0 | AI74: =AI46+AI29+AI9+AI59 -> 0
E75: Z | F75: B | G75: Mn | I75: Z | J75: B | K75: Mn | Q75: Z | R75: B | S75: Mn | U75: Z | V75: B | W75: Mn | AC75: Z | AD75: B | AE75: Mn | AG75: Z | AH75: B | AI75: Mn
E76: ='Nutrient Management'!$B$61 -> 0 | F76: ='Nutrient Management'!$C$61 -> 0 | G76: ='Nutrient Management'!$D$61 -> 0 | I76: =I49+I32+I12+I62 -> 0 | J76: =J49+J32+J12+J62 -> 0 | K76: =K49+K32+K12+K62 -> 0 | Q76: ='Nutrient Management'!$B$61 -> 0 | R76: ='Nutrient Management'!$C$61 -> 0 | S76: ='Nutrient Management'!$D$61 -> 0 | U76: =U49+U32+U12+U62 -> 0 | V76: =V49+V32+V12+V62 -> 0 | W76: =W49+W32+W12+W62 -> 0 | AC76: ='Nutrient Management'!$B$61 -> 0 | AD76: ='Nutrient Management'!$C$61 -> 0 | AE76: ='Nutrient Management'!$D$61 -> 0 | AG76: =AG49+AG32+AG12+AG62 -> 0 | AH76: =AH49+AH32+AH12+AH62 -> 0 | AI76: =AI49+AI32+AI12+AI62 -> 0
E77: Cu | F77: Mo | G77: Fe | I77: Cu | J77: Mo | K77: Fe | Q77: Cu | R77: Mo | S77: Fe | U77: Cu | V77: Mo | W77: Fe | AC77: Cu | AD77: Mo | AE77: Fe | AG77: Cu | AH77: Mo | AI77: Fe
E78: ='Nutrient Management'!$B$63 -> 0 | F78: ='Nutrient Management'!$C$63 -> 0 | G78: ='Nutrient Management'!$D$63 -> 0 | I78: =I65+I52+I35+I15 -> 0 | J78: =J65+J52+J35+J15 -> 0 | K78: 0 | Q78: ='Nutrient Management'!$B$63 -> 0 | R78: ='Nutrient Management'!$C$63 -> 0 | S78: ='Nutrient Management'!$D$63 -> 0 | U78: =U65+U52+U35+U15 -> 0 | V78: =V65+V52+V35+V15 -> 0 | W78: 0 | AC78: ='Nutrient Management'!$B$63 -> 0 | AD78: ='Nutrient Management'!$C$63 -> 0 | AE78: ='Nutrient Management'!$D$63 -> 0 | AG78: =AG65+AG52+AG35+AG15 -> 0 | AH78: =AH65+AH52+AH35+AH15 -> 0 | AI78: 0
E79: * from Nutrient Management tab | Q79: * from Nutrient Management tab | AC79: * from Nutrient Management tab

Sheet Fertilizer Plan (Fruit 2)
A1: ='Nutrient Management'!B2 -> Enter Crop Name | M1: =A1 -> Enter Crop Name | Y1: =A1 -> Enter Crop Name
A2: Comparison Plan 1 | M2: Comparison Plan 2 | Y2: Comparison Plan 3
A3: 1st Application (i.e., Pre-Plant or Broadcast Fertilizer) | M3: 1st Application (i.e., Pre-Plant or Broadcast Fertilizer) | Y3: 1st Application (i.e., Pre-Plant or Broadcast Fertilizer)
A4: Fertilizer Source | B4: Purchase Units | C4: Package Price (Gals, Lbs, etc.) | D4: Units/Pkg | E4: Rate/Acre | F4: Units | G4: Cost | M4: Fertilizer Source | N4: Purchase Units | O4: Package Price (Gals, Lbs, etc.) | P4: Units/Pkg | Q4: Rate/Acre | R4: Units | S4: Cost | Y4: Fertilizer Source | Z4: Purchase Units | AA4: Package Price (Gals, Lbs, etc.) | AB4: Units/Pkg | AC4: Rate/Acre | AD4: Units | AE4: Cost
A5: Macronutrients (drop down menu) | E5: (Enter Below) | I5: N | J5: P | K5: K | M5: Macronutrients (drop down menu) | Q5: (Enter Below) | U5: N | V5: P | W5: K | Y5: Macronutrients (drop down menu) | AC5: (Enter Below) | AG5: N | AH5: P | AI5: K
A6: None | B6: =VLOOKUP(A6,Macronutrients,18,FALSE) -> 0 | C6: =VLOOKUP(A6,Macronutrients,18,FALSE) -> 0 | D6: =VLOOKUP(A6,Macronutrients,16,FALSE) -> 1 | E6: 0 | F6: =VLOOKUP(A6,Macronutrients,15,FALSE) -> 0 | G6: =(E6*VLOOKUP(A6,Macronutrients,14,FALSE)/D6)*C6 -> 0 | I6: =VLOOKUP(A6,Macronutrients,2,FALSE)*E6+VLOOKUP(A7,Macronutrients,2,FALSE)*E7+VLOOKUP(A8,Macronutrients,2,FALSE)*E8+VLOOKUP(A9,Macronutrients,2,FALSE)*E9+VLOOKUP(A10,Macronutrients,2,FALSE)*E10+VLOOKUP(A11,Macronutrients,2,FALSE)*E11+VLOOKUP(A14,Micronutrients,2,FALSE)*E14+VLOOKUP(A15,Micronutrients,2,FALSE)*E15+VLOOKUP(A16,Micronutrients,2,FALSE)*E16+VLOOKUP(A17,Micronutrients,2,FALSE)*E17 -> 0 | J6: =VLOOKUP(A6,Macronutrients,3,FALSE)*E6+VLOOKUP(A7,Macronutrients,3,FALSE)*E7+VLOOKUP(A8,Macronutrients,3,FALSE)*E8+VLOOKUP(A9,Macronutrients,3,FALSE)*E9+VLOOKUP(A10,Macronutrients,3,FALSE)*E10+VLOOKUP(A11,Macronutrients,3,FALSE)*E11+VLOOKUP(A14,Micronutrients,3,FALSE)*E14+VLOOKUP(A15,Micronutrients,3,FALSE)*E15+VLOOKUP(A16,Micronutrients,3,FALSE)*E16+VLOOKUP(A17,Micronutrients,3,FALSE)*E17 -> 0 | K6: =VLOOKUP(A6,Macronutrients,4,FALSE)*E6+VLOOKUP(A7,Macronutrients,4,FALSE)*E7+VLOOKUP(A8,Macronutrients,4,FALSE)*E8+VLOOKUP(A9,Macronutrients,4,FALSE)*E9+VLOOKUP(A10,Macronutrients,4,FALSE)*E10+VLOOKUP(A11,Macronutrients,4,FALSE)*E11+VLOOKUP(A14,Micronutrients,4,FALSE)*E14+VLOOKUP(A15,Micronutrients,4,FALSE)*E15+VLOOKUP(A16,Micronutrients,4,FALSE)*E16+VLOOKUP(A17,Micronutrients,4,FALSE)*E17 -> 0 | M6: None | N6: =VLOOKUP(M6,Macronutrients,14,FALSE) -> 0 | O6: =VLOOKUP(M6,Macronutrients,18,FALSE) -> 0 | P6: =VLOOKUP(M6,Macronutrients,16,FALSE) -> 1 | Q6: 0 | R6: =VLOOKUP(M6,Macronutrients,15,FALSE) -> 0 | S6: =(Q6*VLOOKUP(M6,Macronutrients,14,FALSE)/P6)*O6 -> 0 | U6: =VLOOKUP(M6,Macronutrients,2,FALSE)*Q6+VLOOKUP(M7,Macronutrients,2,FALSE)*Q7+VLOOKUP(M8,Macronutrients,2,FALSE)*Q8+VLOOKUP(M9,Macronutrients,2,FALSE)*Q9+VLOOKUP(M10,Macronutrients,2,FALSE)*Q10+VLOOKUP(M11,Macronutrients,2,FALSE)*Q11+VLOOKUP(M14,Micronutrients,2,FALSE)*Q14+VLOOKUP(M15,Micronutrients,2,FALSE)*Q15+VLOOKUP(M16,Micronutrients,2,FALSE)*Q16+VLOOKUP(M17,Micronutrients,2,FALSE)*Q17 -> 0 | V6: =VLOOKUP(M6,Macronutrients,3,FALSE)*Q6+VLOOKUP(M7,Macronutrients,3,FALSE)*Q7+VLOOKUP(M8,Macronutrients,3,FALSE)*Q8+VLOOKUP(M9,Macronutrients,3,FALSE)*Q9+VLOOKUP(M10,Macronutrients,3,FALSE)*Q10+VLOOKUP(M11,Macronutrients,3,FALSE)*Q11+VLOOKUP(M14,Micronutrients,3,FALSE)*Q14+VLOOKUP(M15,Micronutrients,3,FALSE)*Q15+VLOOKUP(M16,Micronutrients,3,FALSE)*Q16+VLOOKUP(M17,Micronutrients,3,FALSE)*Q17 -> 0 | W6: =VLOOKUP(M6,Macronutrients,4,FALSE)*Q6+VLOOKUP(M7,Macronutrients,4,FALSE)*Q7+VLOOKUP(M8,Macronutrients,4,FALSE)*Q8+VLOOKUP(M9,Macronutrients,4,FALSE)*Q9+VLOOKUP(M10,Macronutrients,4,FALSE)*Q10+VLOOKUP(M11,Macronutrients,4,FALSE)*Q11+VLOOKUP(M14,Micronutrients,4,FALSE)*Q14+VLOOKUP(M15,Micronutrients,4,FALSE)*Q15+VLOOKUP(M16,Micronutrients,4,FALSE)*Q16+VLOOKUP(M17,Micronutrients,4,FALSE)*Q17 -> 0 | Y6: None | Z6: =VLOOKUP(Y6,Macronutrients,14,FALSE) -> 0 | AA6: =VLOOKUP(Y6,Macronutrients,18,FALSE) -> 0 | AB6: =VLOOKUP(Y6,Macronutrients,16,FALSE) -> 1 | AC6: 0 | AD6: =VLOOKUP(Y6,Macronutrients,15,FALSE) -> 0 | AE6: =(AC6*VLOOKUP(Y6,Macronutrients,14,FALSE)/AB6)*AA6 -> 0 | AG6: =VLOOKUP(Y6,Macronutrients,2,FALSE)*AC6+VLOOKUP(Y7,Macronutrients,2,FALSE)*AC7+VLOOKUP(Y8,Macronutrients,2,FALSE)*AC8+VLOOKUP(Y9,Macronutrients,2,FALSE)*AC9+VLOOKUP(Y10,Macronutrients,2,FALSE)*AC10+VLOOKUP(Y11,Macronutrients,2,FALSE)*AC11+VLOOKUP(Y14,Micronutrients,2,FALSE)*AC14+VLOOKUP(Y15,Micronutrients,2,FALSE)*AC15+VLOOKUP(Y16,Micronutrients,2,FALSE)*AC16+VLOOKUP(Y17,Micronutrients,2,FALSE)*AC17 -> 0 | AH6: =VLOOKUP(Y6,Macronutrients,3,FALSE)*AC6+VLOOKUP(Y7,Macronutrients,3,FALSE)*AC7+VLOOKUP(Y8,Macronutrients,3,FALSE)*AC8+VLOOKUP(Y9,Macronutrients,3,FALSE)*AC9+VLOOKUP(Y10,Macronutrients,3,FALSE)*AC10+VLOOKUP(Y11,Macronutrients,3,FALSE)*AC11+VLOOKUP(Y14,Micronutrients,3,FALSE)*AC14+VLOOKUP(Y15,Micronutrients,3,FALSE)*AC15+VLOOKUP(Y16,Micronutrients,3,FALSE)*AC16+VLOOKUP(Y17,Micronutrients,3,FALSE)*AC17 -> 0 | AI6: =VLOOKUP(Y6,Macronutrients,4,FALSE)*AC6+VLOOKUP(Y7,Macronutrients,4,FALSE)*AC7+VLOOKUP(Y8,Macronutrients,4,FALSE)*AC8+VLOOKUP(Y9,Macronutrients,4,FALSE)*AC9+VLOOKUP(Y10,Macronutrients,4,FALSE)*AC10+VLOOKUP(Y11,Macronutrients,4,FALSE)*AC11+VLOOKUP(Y14,Micronutrients,4,FALSE)*AC14+VLOOKUP(Y15,Micronutrients,4,FALSE)*AC15+VLOOKUP(Y16,Micronutrients,4,FALSE)*AC16+VLOOKUP(Y17,Micronutrients,4,FALSE)*AC17 -> 0
A7: None | B7: =VLOOKUP(A7,Macronutrients,18,FALSE) -> 0 | C7: 0 | D7: 1 | E7: 0 | F7: 0 | G7: 0 | M7: None | N7: 0 | O7: 0 | P7: 1 | Q7: 0 | R7: 0 | S7: 0 | Y7: None | Z7: 0 | AA7: 0 | AB7: 1 | AC7: 0 | AD7: 0 | AE7: 0
A8: None | B8: =VLOOKUP(A8,Macronutrients,14,FALSE) -> 0 | C8: 0 | D8: 1 | E8: 0 | F8: 0 | G8: 0 | I8: S | J8: Ca | K8: Mg | M8: None | N8: 0 | O8: 0 | P8: 1 | Q8: 0 | R8: 0 | S8: 0 | U8: S | V8: Ca | W8: Mg | Y8: None | Z8: 0 | AA8: 0 | AB8: 1 | AC8: 0 | AD8: 0 | AE8: 0 | AG8: S | AH8: Ca | AI8: Mg
A9: None | B9: 0 | C9: 0 | D9: 1 | E9: 0 | F9: 0 | G9: 0 | I9: =VLOOKUP(A6,Macronutrients,5,FALSE)*E6+VLOOKUP(A7,Macronutrients,5,FALSE)*E7+VLOOKUP(A8,Macronutrients,5,FALSE)*E8+VLOOKUP(A9,Macronutrients,5,FALSE)*E9+VLOOKUP(A10,Macronutrients,5,FALSE)*E10+VLOOKUP(A11,Macronutrients,5,FALSE)*E11+VLOOKUP(A14,Micronutrients,5,FALSE)*E14+VLOOKUP(A15,Micronutrients,5,FALSE)*E15+VLOOKUP(A16,Micronutrients,5,FALSE)*E16+VLOOKUP(A17,Micronutrients,5,FALSE)*E17+VLOOKUP(A20,Lime,5,FALSE)*E20 -> 0 | J9: =VLOOKUP(A6,Macronutrients,7,FALSE)*E6+VLOOKUP(A7,Macronutrients,7,FALSE)*E7+VLOOKUP(A8,Macronutrients,7,FALSE)*E8+VLOOKUP(A9,Macronutrients,7,FALSE)*E9+VLOOKUP(A10,Macronutrients,7,FALSE)*E10+VLOOKUP(A11,Macronutrients,7,FALSE)*E11+VLOOKUP(A14,Micronutrients,7,FALSE)*E14+VLOOKUP(A15,Micronutrients,7,FALSE)*E15+VLOOKUP(A16,Micronutrients,7,FALSE)*E16+VLOOKUP(A17,Micronutrients,7,FALSE)*E17+VLOOKUP(A20,Lime,7,FALSE)*E20 -> 0 | K9: =VLOOKUP($A6,Macronutrients,6,FALSE)*$E$6+VLOOKUP($A7,Macronutrients,6,FALSE)*$E$7+VLOOKUP($A8,Macronutrients,6,FALSE)*$E$8+VLOOKUP($A9,Macronutrients,6,FALSE)*$E$9+VLOOKUP($A10,Macronutrients,6,FALSE)*$E$10+VLOOKUP($A11,Macronutrients,6,FALSE)*$E$11+VLOOKUP($A14,Micronutrients,6,FALSE)*$E$14+VLOOKUP($A15,Micronutrients,6,FALSE)*E15+VLOOKUP($A16,Micronutrients,6,FALSE)*$E$16+VLOOKUP($A17,Micronutrients,6,FALSE)*$E$17+VLOOKUP($A20,Lime,6,FALSE)*E20 -> 0 | M9: None | N9: 0 | O9: 0 | P9: 1 | Q9: 0 | R9: 0 | S9: 0 | U9: =VLOOKUP(M6,Macronutrients,5,FALSE)*Q6+VLOOKUP(M7,Macronutrients,5,FALSE)*Q7+VLOOKUP(M8,Macronutrients,5,FALSE)*Q8+VLOOKUP(M9,Macronutrients,5,FALSE)*Q9+VLOOKUP(M10,Macronutrients,5,FALSE)*Q10+VLOOKUP(M11,Macronutrients,5,FALSE)*Q11+VLOOKUP(M14,Micronutrients,5,FALSE)*Q14+VLOOKUP(M15,Micronutrients,5,FALSE)*Q15+VLOOKUP(M16,Micronutrients,5,FALSE)*Q16+VLOOKUP(M17,Micronutrients,5,FALSE)*Q17+VLOOKUP(M20,Lime,5,FALSE)*Q20 -> 0 | V9: =VLOOKUP(M6,Macronutrients,7,FALSE)*Q6+VLOOKUP(M7,Macronutrients,7,FALSE)*Q7+VLOOKUP(M8,Macronutrients,7,FALSE)*Q8+VLOOKUP(M9,Macronutrients,7,FALSE)*Q9+VLOOKUP(M10,Macronutrients,7,FALSE)*Q10+VLOOKUP(M11,Macronutrients,7,FALSE)*Q11+VLOOKUP(M14,Micronutrients,7,FALSE)*Q14+VLOOKUP(M15,Micronutrients,7,FALSE)*Q15+VLOOKUP(M16,Micronutrients,7,FALSE)*Q16+VLOOKUP(M17,Micronutrients,7,FALSE)*Q17+VLOOKUP(M20,Lime,7,FALSE)*Q20 -> 0 | W9: =VLOOKUP($A6,Macronutrients,6,FALSE)*$E$6+VLOOKUP($A7,Macronutrients,6,FALSE)*$E$7+VLOOKUP($A8,Macronutrients,6,FALSE)*$E$8+VLOOKUP($A9,Macronutrients,6,FALSE)*$E$9+VLOOKUP($A10,Macronutrients,6,FALSE)*$E$10+VLOOKUP($A11,Macronutrients,6,FALSE)*$E$11+VLOOKUP($A14,Micronutrients,6,FALSE)*$E$14+VLOOKUP($A15,Micronutrients,6,FALSE)*Q15+VLOOKUP($A16,Micronutrients,6,FALSE)*$E$16+VLOOKUP($A17,Micronutrients,6,FALSE)*$E$17+VLOOKUP($A20,Lime,6,FALSE)*Q20 -> 0 | Y9: None | Z9: 0 | AA9: 0 | AB9: 1 | AC9: 0 | AD9: 0 | AE9: 0 | AG9: =VLOOKUP(Y6,Macronutrients,5,FALSE)*AC6+VLOOKUP(Y7,Macronutrients,5,FALSE)*AC7+VLOOKUP(Y8,Macronutrients,5,FALSE)*AC8+VLOOKUP(Y9,Macronutrients,5,FALSE)*AC9+VLOOKUP(Y10,Macronutrients,5,FALSE)*AC10+VLOOKUP(Y11,Macronutrients,5,FALSE)*AC11+VLOOKUP(Y14,Micronutrients,5,FALSE)*AC14+VLOOKUP(Y15,Micronutrients,5,FALSE)*AC15+VLOOKUP(Y16,Micronutrients,5,FALSE)*AC16+VLOOKUP(Y17,Micronutrients,5,FALSE)*AC17+VLOOKUP(Y20,Lime,5,FALSE)*AC20 -> 0 | AH9: =VLOOKUP(Y6,Macronutrients,7,FALSE)*AC6+VLOOKUP(Y7,Macronutrients,7,FALSE)*AC7+VLOOKUP(Y8,Macronutrients,7,FALSE)*AC8+VLOOKUP(Y9,Macronutrients,7,FALSE)*AC9+VLOOKUP(Y10,Macronutrients,7,FALSE)*AC10+VLOOKUP(Y11,Macronutrients,7,FALSE)*AC11+VLOOKUP(Y14,Micronutrients,7,FALSE)*AC14+VLOOKUP(Y15,Micronutrients,7,FALSE)*AC15+VLOOKUP(Y16,Micronutrients,7,FALSE)*AC16+VLOOKUP(Y17,Micronutrients,7,FALSE)*AC17+VLOOKUP(Y20,Lime,7,FALSE)*AC20 -> 0 | AI9: =VLOOKUP($A6,Macronutrients,6,FALSE)*$E$6+VLOOKUP($A7,Macronutrients,6,FALSE)*$E$7+VLOOKUP($A8,Macronutrients,6,FALSE)*$E$8+VLOOKUP($A9,Macronutrients,6,FALSE)*$E$9+VLOOKUP($A10,Macronutrients,6,FALSE)*$E$10+VLOOKUP($A11,Macronutrients,6,FALSE)*$E$11+VLOOKUP($A14,Micronutrients,6,FALSE)*$E$14+VLOOKUP($A15,Micronutrients,6,FALSE)*AC15+VLOOKUP($A16,Micronutrients,6,FALSE)*$E$16+VLOOKUP($A17,Micronutrients,6,FALSE)*$E$17+VLOOKUP($A20,Lime,6,FALSE)*AC20 -> 0
A10: None | B10: 0 | C10: 0 | D10: 1 | E10: 0 | F10: 0 | G10: 0 | M10: None | N10: 0 | O10: 0 | P10: 1 | Q10: 0 | R10: 0 | S10: 0 | Y10: None | Z10: 0 | AA10: 0 | AB10: 1 | AC10: 0 | AD10: 0 | AE10: 0
A11: None | B11: 0 | C11: 0 | D11: 1 | E11: 0 | F11: 0 | G11: 0 | I11: Z | J11: B | K11: Mn | M11: None | N11: 0 | O11: 0 | P11: 1 | Q11: 0 | R11: 0 | S11: 0 | U11: Z | V11: B | W11: Mn | Y11: None | Z11: 0 | AA11: 0 | AB11: 1 | AC11: 0 | AD11: 0 | AE11: 0 | AG11: Z | AH11: B | AI11: Mn
I12: =VLOOKUP(A6,Macronutrients,8,FALSE)*E6+VLOOKUP(A7,Macronutrients,8,FALSE)*E7+VLOOKUP(A8,Macronutrients,8,FALSE)*E8+VLOOKUP(A9,Macronutrients,8,FALSE)*E9+VLOOKUP(A10,Macronutrients,8,FALSE)*E10+VLOOKUP(A11,Macronutrients,8,FALSE)*E11+VLOOKUP(A14,Micronutrients,8,FALSE)*E14+VLOOKUP(A15,Micronutrients,8,FALSE)*E15+VLOOKUP(A16,Micronutrients,8,FALSE)*E16+VLOOKUP(A17,Micronutrients,8,FALSE)*E17+VLOOKUP(A20,Lime,8,FALSE)*E20 -> 0 | J12: =VLOOKUP(A6,Macronutrients,9,FALSE)*E6+VLOOKUP(A7,Macronutrients,9,FALSE)*E7+VLOOKUP(A8,Macronutrients,9,FALSE)*E8+VLOOKUP(A9,Macronutrients,9,FALSE)*E9+VLOOKUP(A10,Macronutrients,9,FALSE)*E10+VLOOKUP(A11,Macronutrients,9,FALSE)*E11+VLOOKUP(A14,Micronutrients,9,FALSE)*E14+VLOOKUP(A15,Micronutrients,9,FALSE)*E15+VLOOKUP(A16,Micronutrients,9,FALSE)*E16+VLOOKUP(A17,Micronutrients,9,FALSE)*E17+VLOOKUP(A20,Lime,9,FALSE)*E20 -> 0 | K12: =VLOOKUP(A6,Macronutrients,10,FALSE)*E6+VLOOKUP(A7,Macronutrients,10,FALSE)*E7+VLOOKUP(A8,Macronutrients,10,FALSE)*E8+VLOOKUP(A9,Macronutrients,10,FALSE)*E9+VLOOKUP(A10,Macronutrients,10,FALSE)*E10+VLOOKUP(A11,Macronutrients,10,FALSE)*E11+VLOOKUP(A14,Micronutrients,10,FALSE)*E14+VLOOKUP(A15,Micronutrients,10,FALSE)*E15+VLOOKUP(A16,Micronutrients,10,FALSE)*E16+VLOOKUP(A17,Micronutrients,10,FALSE)*E17+VLOOKUP(A20,Lime,10,FALSE)*E20 -> 0 | U12: =VLOOKUP(M6,Macronutrients,8,FALSE)*Q6+VLOOKUP(M7,Macronutrients,8,FALSE)*Q7+VLOOKUP(M8,Macronutrients,8,FALSE)*Q8+VLOOKUP(M9,Macronutrients,8,FALSE)*Q9+VLOOKUP(M10,Macronutrients,8,FALSE)*Q10+VLOOKUP(M11,Macronutrients,8,FALSE)*Q11+VLOOKUP(M14,Micronutrients,8,FALSE)*Q14+VLOOKUP(M15,Micronutrients,8,FALSE)*Q15+VLOOKUP(M16,Micronutrients,8,FALSE)*Q16+VLOOKUP(M17,Micronutrients,8,FALSE)*Q17+VLOOKUP(M20,Lime,8,FALSE)*Q20 -> 0 | V12: =VLOOKUP(M6,Macronutrients,9,FALSE)*Q6+VLOOKUP(M7,Macronutrients,9,FALSE)*Q7+VLOOKUP(M8,Macronutrients,9,FALSE)*Q8+VLOOKUP(M9,Macronutrients,9,FALSE)*Q9+VLOOKUP(M10,Macronutrients,9,FALSE)*Q10+VLOOKUP(M11,Macronutrients,9,FALSE)*Q11+VLOOKUP(M14,Micronutrients,9,FALSE)*Q14+VLOOKUP(M15,Micronutrients,9,FALSE)*Q15+VLOOKUP(M16,Micronutrients,9,FALSE)*Q16+VLOOKUP(M17,Micronutrients,9,FALSE)*Q17+VLOOKUP(M20,Lime,9,FALSE)*Q20 -> 0 | W12: =VLOOKUP(M6,Macronutrients,10,FALSE)*Q6+VLOOKUP(M7,Macronutrients,10,FALSE)*Q7+VLOOKUP(M8,Macronutrients,10,FALSE)*Q8+VLOOKUP(M9,Macronutrients,10,FALSE)*Q9+VLOOKUP(M10,Macronutrients,10,FALSE)*Q10+VLOOKUP(M11,Macronutrients,10,FALSE)*Q11+VLOOKUP(M14,Micronutrients,10,FALSE)*Q14+VLOOKUP(M15,Micronutrients,10,FALSE)*Q15+VLOOKUP(M16,Micronutrients,10,FALSE)*Q16+VLOOKUP(M17,Micronutrients,10,FALSE)*Q17+VLOOKUP(M20,Lime,10,FALSE)*Q20 -> 0 | AG12: =VLOOKUP(Y6,Macronutrients,8,FALSE)*AC6+VLOOKUP(Y7,Macronutrients,8,FALSE)*AC7+VLOOKUP(Y8,Macronutrients,8,FALSE)*AC8+VLOOKUP(Y9,Macronutrients,8,FALSE)*AC9+VLOOKUP(Y10,Macronutrients,8,FALSE)*AC10+VLOOKUP(Y11,Macronutrients,8,FALSE)*AC11+VLOOKUP(Y14,Micronutrients,8,FALSE)*AC14+VLOOKUP(Y15,Micronutrients,8,FALSE)*AC15+VLOOKUP(Y16,Micronutrients,8,FALSE)*AC16+VLOOKUP(Y17,Micronutrients,8,FALSE)*AC17+VLOOKUP(Y20,Lime,8,FALSE)*AC20 -> 0 | AH12: =VLOOKUP(Y6,Macronutrients,9,FALSE)*AC6+VLOOKUP(Y7,Macronutrients,9,FALSE)*AC7+VLOOKUP(Y8,Macronutrients,9,FALSE)*AC8+VLOOKUP(Y9,Macronutrients,9,FALSE)*AC9+VLOOKUP(Y10,Macronutrients,9,FALSE)*AC10+VLOOKUP(Y11,Macronutrients,9,FALSE)*AC11+VLOOKUP(Y14,Micronutrients,9,FALSE)*AC14+VLOOKUP(Y15,Micronutrients,9,FALSE)*AC15+VLOOKUP(Y16,Micronutrients,9,FALSE)*AC16+VLOOKUP(Y17,Micronutrients,9,FALSE)*AC17+VLOOKUP(Y20,Lime,9,FALSE)*AC20 -> 0 | AI12: =VLOOKUP(Y6,Macronutrients,10,FALSE)*AC6+VLOOKUP(Y7,Macronutrients,10,FALSE)*AC7+VLOOKUP(Y8,Macronutrients,10,FALSE)*AC8+VLOOKUP(Y9,Macronutrients,10,FALSE)*AC9+VLOOKUP(Y10,Macronutrients,10,FALSE)*AC10+VLOOKUP(Y11,Macronutrients,10,FALSE)*AC11+VLOOKUP(Y14,Micronutrients,10,FALSE)*AC14+VLOOKUP(Y15,Micronutrients,10,FALSE)*AC15+VLOOKUP(Y16,Micronutrients,10,FALSE)*AC16+VLOOKUP(Y17,Micronutrients,10,FALSE)*AC17+VLOOKUP(Y20,Lime,10,FALSE)*AC20 -> 0
A13: Micronutrients (drop down menu) | M13: Micronutrients (drop down menu) | Y13: Micronutrients (drop down menu)
A14: None | B14: =VLOOKUP($A14,Micronutrients,18,FALSE) -> 0 | C14: =VLOOKUP(A14,Micronutrients,18,FALSE) -> 0 | D14: =VLOOKUP(A14,Micronutrients,16,FALSE) -> 1 | E14: 0 | F14: =VLOOKUP(A14,Micronutrients,15,FALSE) -> 0 | G14: =(E14*VLOOKUP(A14,Micronutrients,14,FALSE)/D14)*C14 -> 0 | I14: Cu | J14: Mo | K14: Fe | M14: None | N14: =VLOOKUP($A14,Micronutrients,14,FALSE) -> 0 | O14: =VLOOKUP(M14,Micronutrients,18,FALSE) -> 0 | P14: =VLOOKUP(M14,Micronutrients,16,FALSE) -> 1 | Q14: 0 | R14: =VLOOKUP(M14,Micronutrients,15,FALSE) -> 0 | S14: =(Q14*VLOOKUP(M14,Micronutrients,14,FALSE)/P14)*O14 -> 0 | U14: Cu | V14: Mo | W14: Fe | Y14: None | Z14: =VLOOKUP($A14,Micronutrients,14,FALSE) -> 0 | AA14: =VLOOKUP(Y14,Micronutrients,18,FALSE) -> 0 | AB14: =VLOOKUP(Y14,Micronutrients,16,FALSE) -> 1 | AC14: 0 | AD14: =VLOOKUP(Y14,Micronutrients,15,FALSE) -> 0 | AE14: =(AC14*VLOOKUP(Y14,Micronutrients,14,FALSE)/AB14)*AA14 -> 0 | AG14: Cu | AH14: Mo | AI14: Fe
A15: None | B15: =VLOOKUP($A15,Micronutrients,14,FALSE) -> 0 | C15: =VLOOKUP(A15,Micronutrients,18,FALSE) -> 0 | D15: =VLOOKUP(A15,Micronutrients,16,FALSE) -> 1 | E15: 0 | F15: =VLOOKUP(A15,Micronutrients,15,FALSE) -> 0 | G15: =(E15*VLOOKUP(A15,Micronutrients,14,FALSE)/D15)*C15 -> 0 | I15: =VLOOKUP(A6,Macronutrients,11,FALSE)*E6+VLOOKUP(A7,Macronutrients,11,FALSE)*E7+VLOOKUP(A8,Macronutrients,11,FALSE)*E8+VLOOKUP(A9,Macronutrients,11,FALSE)*E9+VLOOKUP(A10,Macronutrients,11,FALSE)*E10+VLOOKUP(A11,Macronutrients,11,FALSE)*E11+VLOOKUP(A14,Micronutrients,11,FALSE)*E14+VLOOKUP(A15,Micronutrients,11,FALSE)*E15+VLOOKUP(A16,Micronutrients,11,FALSE)*E16+VLOOKUP(A17,Micronutrients,11,FALSE)*E17+VLOOKUP(A20,Lime,11,FALSE)*E20 -> 0 | J15: =VLOOKUP(A6,Macronutrients,12,FALSE)*E6+VLOOKUP(A7,Macronutrients,12,FALSE)*E7+VLOOKUP(A8,Macronutrients,12,FALSE)*E8+VLOOKUP(A9,Macronutrients,12,FALSE)*E9+VLOOKUP(A10,Macronutrients,12,FALSE)*E10+VLOOKUP(A11,Macronutrients,12,FALSE)*E11+VLOOKUP(A14,Micronutrients,12,FALSE)*E14+VLOOKUP(A15,Micronutrients,12,FALSE)*E15+VLOOKUP(A16,Micronutrients,12,FALSE)*E16+VLOOKUP(A17,Micronutrients,12,FALSE)*E17+VLOOKUP(A20,Lime,12,FALSE)*E20 -> 0 | K15: =VLOOKUP(A6,Macronutrients,13,FALSE)*E6+VLOOKUP(A7,Macronutrients,13,FALSE)*E7+VLOOKUP(A8,Macronutrients,13,FALSE)*E8+VLOOKUP(A9,Macronutrients,13,FALSE)*E9+VLOOKUP(A10,Macronutrients,13,FALSE)*E10+VLOOKUP(A11,Macronutrients,13,FALSE)*E11+VLOOKUP(A14,Micronutrients,13,FALSE)*E14+VLOOKUP(A15,Micronutrients,13,FALSE)*E15+VLOOKUP(A16,Micronutrients,13,FALSE)*E16+VLOOKUP(A17,Micronutrients,13,FALSE)*E17+VLOOKUP(A20,Lime,13,FALSE)*E20 -> 0 | M15: None | N15: =VLOOKUP($A15,Micronutrients,14,FALSE) -> 0 | O15: =VLOOKUP(M15,Micronutrients,18,FALSE) -> 0 | P15: =VLOOKUP(M15,Micronutrients,16,FALSE) -> 1 | Q15: 0 | R15: =VLOOKUP(M15,Micronutrients,15,FALSE) -> 0 | S15: =(Q15*VLOOKUP(M15,Micronutrients,14,FALSE)/P15)*O15 -> 0 | U15: =VLOOKUP(M6,Macronutrients,11,FALSE)*Q6+VLOOKUP(M7,Macronutrients,11,FALSE)*Q7+VLOOKUP(M8,Macronutrients,11,FALSE)*Q8+VLOOKUP(M9,Macronutrients,11,FALSE)*Q9+VLOOKUP(M10,Macronutrients,11,FALSE)*Q10+VLOOKUP(M11,Macronutrients,11,FALSE)*Q11+VLOOKUP(M14,Micronutrients,11,FALSE)*Q14+VLOOKUP(M15,Micronutrients,11,FALSE)*Q15+VLOOKUP(M16,Micronutrients,11,FALSE)*Q16+VLOOKUP(M17,Micronutrients,11,FALSE)*Q17+VLOOKUP(M20,Lime,11,FALSE)*Q20 -> 0 | V15: =VLOOKUP(M6,Macronutrients,12,FALSE)*Q6+VLOOKUP(M7,Macronutrients,12,FALSE)*Q7+VLOOKUP(M8,Macronutrients,12,FALSE)*Q8+VLOOKUP(M9,Macronutrients,12,FALSE)*Q9+VLOOKUP(M10,Macronutrients,12,FALSE)*Q10+VLOOKUP(M11,Macronutrients,12,FALSE)*Q11+VLOOKUP(M14,Micronutrients,12,FALSE)*Q14+VLOOKUP(M15,Micronutrients,12,FALSE)*Q15+VLOOKUP(M16,Micronutrients,12,FALSE)*Q16+VLOOKUP(M17,Micronutrients,12,FALSE)*Q17+VLOOKUP(M20,Lime,12,FALSE)*Q20 -> 0 | W15: =VLOOKUP(M6,Macronutrients,13,FALSE)*Q6+VLOOKUP(M7,Macronutrients,13,FALSE)*Q7+VLOOKUP(M8,Macronutrients,13,FALSE)*Q8+VLOOKUP(M9,Macronutrients,13,FALSE)*Q9+VLOOKUP(M10,Macronutrients,13,FALSE)*Q10+VLOOKUP(M11,Macronutrients,13,FALSE)*Q11+VLOOKUP(M14,Micronutrients,13,FALSE)*Q14+VLOOKUP(M15,Micronutrients,13,FALSE)*Q15+VLOOKUP(M16,Micronutrients,13,FALSE)*Q16+VLOOKUP(M17,Micronutrients,13,FALSE)*Q17+VLOOKUP(M20,Lime,13,FALSE)*Q20 -> 0 | Y15: None | Z15: =VLOOKUP($A15,Micronutrients,14,FALSE) -> 0 | AA15: =VLOOKUP(Y15,Micronutrients,18,FALSE) -> 0 | AB15: =VLOOKUP(Y15,Micronutrients,16,FALSE) -> 1 | AC15: 0 | AD15: =VLOOKUP(Y15,Micronutrients,15,FALSE) -> 0 | AE15: =(AC15*VLOOKUP(Y15,Micronutrients,14,FALSE)/AB15)*AA15 -> 0 | AG15: =VLOOKUP(Y6,Macronutrients,11,FALSE)*AC6+VLOOKUP(Y7,Macronutrients,11,FALSE)*AC7+VLOOKUP(Y8,Macronutrients,11,FALSE)*AC8+VLOOKUP(Y9,Macronutrients,11,FALSE)*AC9+VLOOKUP(Y10,Macronutrients,11,FALSE)*AC10+VLOOKUP(Y11,Macronutrients,11,FALSE)*AC11+VLOOKUP(Y14,Micronutrients,11,FALSE)*AC14+VLOOKUP(Y15,Micronutrients,11,FALSE)*AC15+VLOOKUP(Y16,Micronutrients,11,FALSE)*AC16+VLOOKUP(Y17,Micronutrients,11,FALSE)*AC17+VLOOKUP(Y20,Lime,11,FALSE)*AC20 -> 0 | AH15: =VLOOKUP(Y6,Macronutrients,12,FALSE)*AC6+VLOOKUP(Y7,Macronutrients,12,FALSE)*AC7+VLOOKUP(Y8,Macronutrients,12,FALSE)*AC8+VLOOKUP(Y9,Macronutrients,12,FALSE)*AC9+VLOOKUP(Y10,Macronutrients,12,FALSE)*AC10+VLOOKUP(Y11,Macronutrients,12,FALSE)*AC11+VLOOKUP(Y14,Micronutrients,12,FALSE)*AC14+VLOOKUP(Y15,Micronutrients,12,FALSE)*AC15+VLOOKUP(Y16,Micronutrients,12,FALSE)*AC16+VLOOKUP(Y17,Micronutrients,12,FALSE)*AC17+VLOOKUP(Y20,Lime,12,FALSE)*AC20 -> 0 | AI15: =VLOOKUP(Y6,Macronutrients,13,FALSE)*AC6+VLOOKUP(Y7,Macronutrients,13,FALSE)*AC7+VLOOKUP(Y8,Macronutrients,13,FALSE)*AC8+VLOOKUP(Y9,Macronutrients,13,FALSE)*AC9+VLOOKUP(Y10,Macronutrients,13,FALSE)*AC10+VLOOKUP(Y11,Macronutrients,13,FALSE)*AC11+VLOOKUP(Y14,Micronutrients,13,FALSE)*AC14+VLOOKUP(Y15,Micronutrients,13,FALSE)*AC15+VLOOKUP(Y16,Micronutrients,13,FALSE)*AC16+VLOOKUP(Y17,Micronutrients,13,FALSE)*AC17+VLOOKUP(Y20,Lime,13,FALSE)*AC20 -> 0
A16: None | B16: =VLOOKUP($A16,Micronutrients,14,FALSE) -> 0 | C16: =VLOOKUP(A16,Micronutrients,18,FALSE) -> 0 | D16: =VLOOKUP(A16,Micronutrients,16,FALSE) -> 1 | E16: 0 | F16: =VLOOKUP(A16,Micronutrients,15,FALSE) -> 0 | G16: =(E16*VLOOKUP(A16,Micronutrients,14,FALSE)/D16)*C16 -> 0 | M16: None | N16: =VLOOKUP($A16,Micronutrients,14,FALSE) -> 0 | O16: =VLOOKUP(M16,Micronutrients,18,FALSE) -> 0 | P16: =VLOOKUP(M16,Micronutrients,16,FALSE) -> 1 | Q16: 0 | R16: =VLOOKUP(M16,Micronutrients,15,FALSE) -> 0 | S16: =(Q16*VLOOKUP(M16,Micronutrients,14,FALSE)/P16)*O16 -> 0 | Y16: None | Z16: =VLOOKUP($A16,Micronutrients,14,FALSE) -> 0 | AA16: =VLOOKUP(Y16,Micronutrients,18,FALSE) -> 0 | AB16: =VLOOKUP(Y16,Micronutrients,16,FALSE) -> 1 | AC16: 0 | AD16: =VLOOKUP(Y16,Micronutrients,15,FALSE) -> 0 | AE16: =(AC16*VLOOKUP(Y16,Micronutrients,14,FALSE)/AB16)*AA16 -> 0
A17: None | B17: =VLOOKUP($A17,Micronutrients,14,FALSE) -> 0 | C17: =VLOOKUP(A17,Micronutrients,18,FALSE) -> 0 | D17: =VLOOKUP(A17,Micronutrients,16,FALSE) -> 1 | E17: 0 | F17: =VLOOKUP(A17,Micronutrients,15,FALSE) -> 0 | G17: =(E17*VLOOKUP(A17,Micronutrients,14,FALSE)/D17)*C17 -> 0 | M17: None | N17: =VLOOKUP($A17,Micronutrients,14,FALSE) -> 0 | O17: =VLOOKUP(M17,Micronutrients,18,FALSE) -> 0 | P17: =VLOOKUP(M17,Micronutrients,16,FALSE) -> 1 | Q17: 0 | R17: =VLOOKUP(M17,Micronutrients,15,FALSE) -> 0 | S17: =(Q17*VLOOKUP(M17,Micronutrients,14,FALSE)/P17)*O17 -> 0 | Y17: None | Z17: =VLOOKUP($A17,Micronutrients,14,FALSE) -> 0 | AA17: =VLOOKUP(Y17,Micronutrients,18,FALSE) -> 0 | AB17: =VLOOKUP(Y17,Micronutrients,16,FALSE) -> 1 | AC17: 0 | AD17: =VLOOKUP(Y17,Micronutrients,15,FALSE) -> 0 | AE17: =(AC17*VLOOKUP(Y17,Micronutrients,14,FALSE)/AB17)*AA17 -> 0
A19: Lime (drop down menu) | M19: Lime (drop down menu) | Y19: Lime (drop down menu)
A20: None | B20: =VLOOKUP(A20,Lime,14,FALSE) -> 0 | C20: =VLOOKUP(A20,Lime,18,FALSE) -> 0 | D20: =VLOOKUP(A20,Lime,16,FALSE) -> 1 | E20: 0 | F20: =VLOOKUP(A20,Lime,15,FALSE) -> 0 | G20: =(E20*VLOOKUP(A20,Lime,14,FALSE)/D20)*C20 -> 0 | M20: None | N20: =VLOOKUP(M20,Lime,14,FALSE) -> 0 | O20: =VLOOKUP(M20,Lime,18,FALSE) -> 0 | P20: =VLOOKUP(M20,Lime,16,FALSE) -> 1 | Q20: 0 | R20: =VLOOKUP(M20,Lime,15,FALSE) -> 0 | S20: =(Q20*VLOOKUP(M20,Lime,14,FALSE)/P20)*O20 -> 0 | Y20: None | Z20: =VLOOKUP(Y20,Lime,14,FALSE) -> 0 | AA20: =VLOOKUP(Y20,Lime,18,FALSE) -> 0 | AB20: =VLOOKUP(Y20,Lime,16,FALSE) -> 1 | AC20: 0 | AD20: =VLOOKUP(Y20,Lime,15,FALSE) -> 0 | AE20: =(AC20*VLOOKUP(Y20,Lime,14,FALSE)/AB20)*AA20 -> 0
A21: 1st Application Fertilizer Cost/Acre | G21: =SUM(G6:G20) -> 0 | M21: 1st Application Fertilizer Cost/Acre | S21: =SUM(S6:S20) -> 0 | Y21: 1st Application Fertilizer Cost/Acre | AE21: =SUM(AE6:AE20) -> 0
A23: 2nd Application (i.e., Broadcast) | M23: 2nd Application (i.e., Broadcast) | Y23: 2nd Application (i.e., Broadcast)
A24: Fertilizer Source | B24: Purchase Units | C24: Package Price (Gals, Lbs, etc.) | D24: Units/Pkg | E24: Rate/Acre | F24: Units | G24: Cost | M24: Fertilizer Source | N24: Purchase Units | O24: Package Price (Gals, Lbs, etc.) | P24: Units/Pkg | Q24: Rate/Acre | R24: Units | S24: Cost | Y24: Fertilizer Source | Z24: Purchase Units | AA24: Package Price (Gals, Lbs, etc.) | AB24: Units/Pkg | AC24: Rate/Acre | AD24: Units | AE24: Cost
A25: Macronutrients (drop down menu) | E25: (Enter Below) | I25: N | J25: P | K25: K | M25: Macronutrients (drop down menu) | Q25: (Enter Below) | U25: N | V25: P | W25: K | Y25: Macronutrients (drop down menu) | AC25: (Enter Below) | AG25: N | AH25: P | AI25: K
A26: None | B26: =VLOOKUP(A26,Macronutrients,14,FALSE) -> 0 | C26: =VLOOKUP(A26,Macronutrients,18,FALSE) -> 0 | D26: =VLOOKUP(A26,Macronutrients,16,FALSE) -> 1 | E26: 0 | F26: =VLOOKUP(A26,Macronutrients,15,FALSE) -> 0 | G26: =(E26*VLOOKUP(A26,Macronutrients,14,FALSE)/D26)*C26 -> 0 | I26: =VLOOKUP(A26,Macronutrients,2,FALSE)*E26+VLOOKUP(A27,Macronutrients,2,FALSE)*E27+VLOOKUP(A28,Macronutrients,2,FALSE)*E28+VLOOKUP(A29,Macronutrients,2,FALSE)*E29+VLOOKUP(A30,Macronutrients,2,FALSE)*E30+VLOOKUP(A31,Macronutrients,2,FALSE)*E31+VLOOKUP(A34,Micronutrients,2,FALSE)*E34+VLOOKUP(A35,Micronutrients,2,FALSE)*E35+VLOOKUP(A36,Micronutrients,2,FALSE)*E36+VLOOKUP(A37,Micronutrients,2,FALSE)*E37 -> 0 | J26: =VLOOKUP(A26,Macronutrients,3,FALSE)*E26+VLOOKUP(A27,Macronutrients,3,FALSE)*E27+VLOOKUP(A28,Macronutrients,3,FALSE)*E28+VLOOKUP(A29,Macronutrients,3,FALSE)*E29+VLOOKUP(A30,Macronutrients,3,FALSE)*E30+VLOOKUP(A31,Macronutrients,3,FALSE)*E31+VLOOKUP(A34,Micronutrients,3,FALSE)*E34+VLOOKUP(A35,Micronutrients,3,FALSE)*E35+VLOOKUP(A36,Micronutrients,3,FALSE)*E36+VLOOKUP(A37,Micronutrients,3,FALSE)*E37 -> 0 | K26: =VLOOKUP(A26,Macronutrients,4,FALSE)*E26+VLOOKUP(A27,Macronutrients,4,FALSE)*E27+VLOOKUP(A28,Macronutrients,4,FALSE)*E28+VLOOKUP(A29,Macronutrients,4,FALSE)*E29+VLOOKUP(A30,Macronutrients,4,FALSE)*E30+VLOOKUP(A31,Macronutrients,4,FALSE)*E31+VLOOKUP(A34,Micronutrients,4,FALSE)*E34+VLOOKUP(A35,Micronutrients,4,FALSE)*E35+VLOOKUP(A36,Micronutrients,4,FALSE)*E36+VLOOKUP(A37,Micronutrients,4,FALSE)*E37 -> 0 | M26: None | N26: =VLOOKUP(M26,Macronutrients,14,FALSE) -> 0 | O26: =VLOOKUP(M26,Macronutrients,18,FALSE) -> 0 | P26: =VLOOKUP(M26,Macronutrients,16,FALSE) -> 1 | Q26: 0 | R26: =VLOOKUP(M26,Macronutrients,15,FALSE) -> 0 | S26: =(Q26*VLOOKUP(M26,Macronutrients,14,FALSE)/P26)*O26 -> 0 | U26: =VLOOKUP(M26,Macronutrients,2,FALSE)*Q26+VLOOKUP(M27,Macronutrients,2,FALSE)*Q27+VLOOKUP(M28,Macronutrients,2,FALSE)*Q28+VLOOKUP(M29,Macronutrients,2,FALSE)*Q29+VLOOKUP(M30,Macronutrients,2,FALSE)*Q30+VLOOKUP(M31,Macronutrients,2,FALSE)*Q31+VLOOKUP(M34,Micronutrients,2,FALSE)*Q34+VLOOKUP(M35,Micronutrients,2,FALSE)*Q35+VLOOKUP(M36,Micronutrients,2,FALSE)*Q36+VLOOKUP(M37,Micronutrients,2,FALSE)*Q37 -> 0 | V26: =VLOOKUP(M26,Macronutrients,3,FALSE)*Q26+VLOOKUP(M27,Macronutrients,3,FALSE)*Q27+VLOOKUP(M28,Macronutrients,3,FALSE)*Q28+VLOOKUP(M29,Macronutrients,3,FALSE)*Q29+VLOOKUP(M30,Macronutrients,3,FALSE)*Q30+VLOOKUP(M31,Macronutrients,3,FALSE)*Q31+VLOOKUP(M34,Micronutrients,3,FALSE)*Q34+VLOOKUP(M35,Micronutrients,3,FALSE)*Q35+VLOOKUP(M36,Micronutrients,3,FALSE)*Q36+VLOOKUP(M37,Micronutrients,3,FALSE)*Q37 -> 0 | W26: =VLOOKUP(M26,Macronutrients,4,FALSE)*Q26+VLOOKUP(M27,Macronutrients,4,FALSE)*Q27+VLOOKUP(M28,Macronutrients,4,FALSE)*Q28+VLOOKUP(M29,Macronutrients,4,FALSE)*Q29+VLOOKUP(M30,Macronutrients,4,FALSE)*Q30+VLOOKUP(M31,Macronutrients,4,FALSE)*Q31+VLOOKUP(M34,Micronutrients,4,FALSE)*Q34+VLOOKUP(M35,Micronutrients,4,FALSE)*Q35+VLOOKUP(M36,Micronutrients,4,FALSE)*Q36+VLOOKUP(M37,Micronutrients,4,FALSE)*Q37 -> 0 | Y26: None | Z26: =VLOOKUP(Y26,Macronutrients,14,FALSE) -> 0 | AA26: =VLOOKUP(Y26,Macronutrients,18,FALSE) -> 0 | AB26: =VLOOKUP(Y26,Macronutrients,16,FALSE) -> 1 | AC26: 0 | AD26: =VLOOKUP(Y26,Macronutrients,15,FALSE) -> 0 | AE26: =(AC26*VLOOKUP(Y26,Macronutrients,14,FALSE)/AB26)*AA26 -> 0 | AG26: =VLOOKUP(Y26,Macronutrients,2,FALSE)*AC26+VLOOKUP(Y27,Macronutrients,2,FALSE)*AC27+VLOOKUP(Y28,Macronutrients,2,FALSE)*AC28+VLOOKUP(Y29,Macronutrients,2,FALSE)*AC29+VLOOKUP(Y30,Macronutrients,2,FALSE)*AC30+VLOOKUP(Y31,Macronutrients,2,FALSE)*AC31+VLOOKUP(Y34,Micronutrients,2,FALSE)*AC34+VLOOKUP(Y35,Micronutrients,2,FALSE)*AC35+VLOOKUP(Y36,Micronutrients,2,FALSE)*AC36+VLOOKUP(Y37,Micronutrients,2,FALSE)*AC37 -> 0 | AH26: =VLOOKUP(Y26,Macronutrients,3,FALSE)*AC26+VLOOKUP(Y27,Macronutrients,3,FALSE)*AC27+VLOOKUP(Y28,Macronutrients,3,FALSE)*AC28+VLOOKUP(Y29,Macronutrients,3,FALSE)*AC29+VLOOKUP(Y30,Macronutrients,3,FALSE)*AC30+VLOOKUP(Y31,Macronutrients,3,FALSE)*AC31+VLOOKUP(Y34,Micronutrients,3,FALSE)*AC34+VLOOKUP(Y35,Micronutrients,3,FALSE)*AC35+VLOOKUP(Y36,Micronutrients,3,FALSE)*AC36+VLOOKUP(Y37,Micronutrients,3,FALSE)*AC37 -> 0 | AI26: =VLOOKUP(Y26,Macronutrients,4,FALSE)*AC26+VLOOKUP(Y27,Macronutrients,4,FALSE)*AC27+VLOOKUP(Y28,Macronutrients,4,FALSE)*AC28+VLOOKUP(Y29,Macronutrients,4,FALSE)*AC29+VLOOKUP(Y30,Macronutrients,4,FALSE)*AC30+VLOOKUP(Y31,Macronutrients,4,FALSE)*AC31+VLOOKUP(Y34,Micronutrients,4,FALSE)*AC34+VLOOKUP(Y35,Micronutrients,4,FALSE)*AC35+VLOOKUP(Y36,Micronutrients,4,FALSE)*AC36+VLOOKUP(Y37,Micronutrients,4,FALSE)*AC37 -> 0
A27: None | B27: 0 | C27: 0 | D27: 1 | E27: 0 | F27: 0 | G27: 0 | M27: None | N27: 0 | O27: 0 | P27: 1 | Q27: 0 | R27: 0 | S27: 0 | Y27: None | Z27: 0 | AA27: 0 | AB27: 1 | AC27: 0 | AD27: 0 | AE27: 0
A28: None | B28: 0 | C28: 0 | D28: 1 | E28: 0 | F28: 0 | G28: 0 | I28: S | J28: Ca | K28: Mg | M28: None | N28: 0 | O28: 0 | P28: 1 | Q28: 0 | R28: 0 | S28: 0 | U28: S | V28: Ca | W28: Mg | Y28: None | Z28: 0 | AA28: 0 | AB28: 1 | AC28: 0 | AD28: 0 | AE28: 0 | AG28: S | AH28: Ca | AI28: Mg
A29: None | B29: 0 | C29: 0 | D29: 1 | E29: 0 | F29: 0 | G29: 0 | I29: =VLOOKUP(A26,Macronutrients,5,FALSE)*E26+VLOOKUP(A27,Macronutrients,5,FALSE)*E27+VLOOKUP(A28,Macronutrients,5,FALSE)*E28+VLOOKUP(A29,Macronutrients,5,FALSE)*E29+VLOOKUP(A30,Macronutrients,5,FALSE)*E30+VLOOKUP(A31,Macronutrients,5,FALSE)*E31+VLOOKUP(A34,Micronutrients,5,FALSE)*E34+VLOOKUP(A35,Micronutrients,5,FALSE)*E35+VLOOKUP(A36,Micronutrients,5,FALSE)*E36+VLOOKUP(A37,Micronutrients,5,FALSE)*E37 -> 0 | J29: =VLOOKUP(A26,Macronutrients,7,FALSE)*E26+VLOOKUP(A27,Macronutrients,7,FALSE)*E27+VLOOKUP(A28,Macronutrients,7,FALSE)*E28+VLOOKUP(A29,Macronutrients,7,FALSE)*E29+VLOOKUP(A30,Macronutrients,7,FALSE)*E30+VLOOKUP(A31,Macronutrients,7,FALSE)*E31+VLOOKUP(A34,Micronutrients,7,FALSE)*E34+VLOOKUP(A35,Micronutrients,7,FALSE)*E35+VLOOKUP(A36,Micronutrients,7,FALSE)*E36+VLOOKUP(A37,Micronutrients,7,FALSE)*E37 -> 0 | K29: =VLOOKUP($A26,Macronutrients,6,FALSE)*$E$6+VLOOKUP($A27,Macronutrients,6,FALSE)*$E$7+VLOOKUP($A28,Macronutrients,6,FALSE)*$E$8+VLOOKUP($A29,Macronutrients,6,FALSE)*$E$9+VLOOKUP($A30,Macronutrients,6,FALSE)*$E$10+VLOOKUP($A31,Macronutrients,6,FALSE)*$E$11+VLOOKUP($A34,Micronutrients,6,FALSE)*$E$14+VLOOKUP($A35,Micronutrients,6,FALSE)*E35+VLOOKUP($A36,Micronutrients,6,FALSE)*$E$16+VLOOKUP($A37,Micronutrients,6,FALSE)*$E$17 -> 0 | M29: None | N29: 0 | O29: 0 | P29: 1 | Q29: 0 | R29: 0 | S29: 0 | U29: =VLOOKUP(M26,Macronutrients,5,FALSE)*Q26+VLOOKUP(M27,Macronutrients,5,FALSE)*Q27+VLOOKUP(M28,Macronutrients,5,FALSE)*Q28+VLOOKUP(M29,Macronutrients,5,FALSE)*Q29+VLOOKUP(M30,Macronutrients,5,FALSE)*Q30+VLOOKUP(M31,Macronutrients,5,FALSE)*Q31+VLOOKUP(M34,Micronutrients,5,FALSE)*Q34+VLOOKUP(M35,Micronutrients,5,FALSE)*Q35+VLOOKUP(M36,Micronutrients,5,FALSE)*Q36+VLOOKUP(M37,Micronutrients,5,FALSE)*Q37 -> 0 | V29: =VLOOKUP(M26,Macronutrients,7,FALSE)*Q26+VLOOKUP(M27,Macronutrients,7,FALSE)*Q27+VLOOKUP(M28,Macronutrients,7,FALSE)*Q28+VLOOKUP(M29,Macronutrients,7,FALSE)*Q29+VLOOKUP(M30,Macronutrients,7,FALSE)*Q30+VLOOKUP(M31,Macronutrients,7,FALSE)*Q31+VLOOKUP(M34,Micronutrients,7,FALSE)*Q34+VLOOKUP(M35,Micronutrients,7,FALSE)*Q35+VLOOKUP(M36,Micronutrients,7,FALSE)*Q36+VLOOKUP(M37,Micronutrients,7,FALSE)*Q37 -> 0 | W29: =VLOOKUP($A26,Macronutrients,6,FALSE)*$E$6+VLOOKUP($A27,Macronutrients,6,FALSE)*$E$7+VLOOKUP($A28,Macronutrients,6,FALSE)*$E$8+VLOOKUP($A29,Macronutrients,6,FALSE)*$E$9+VLOOKUP($A30,Macronutrients,6,FALSE)*$E$10+VLOOKUP($A31,Macronutrients,6,FALSE)*$E$11+VLOOKUP($A34,Micronutrients,6,FALSE)*$E$14+VLOOKUP($A35,Micronutrients,6,FALSE)*Q35+VLOOKUP($A36,Micronutrients,6,FALSE)*$E$16+VLOOKUP($A37,Micronutrients,6,FALSE)*$E$17 -> 0 | Y29: None | Z29: 0 | AA29: 0 | AB29: 1 | AC29: 0 | AD29: 0 | AE29: 0 | AG29: =VLOOKUP(Y26,Macronutrients,5,FALSE)*AC26+VLOOKUP(Y27,Macronutrients,5,FALSE)*AC27+VLOOKUP(Y28,Macronutrients,5,FALSE)*AC28+VLOOKUP(Y29,Macronutrients,5,FALSE)*AC29+VLOOKUP(Y30,Macronutrients,5,FALSE)*AC30+VLOOKUP(Y31,Macronutrients,5,FALSE)*AC31+VLOOKUP(Y34,Micronutrients,5,FALSE)*AC34+VLOOKUP(Y35,Micronutrients,5,FALSE)*AC35+VLOOKUP(Y36,Micronutrients,5,FALSE)*AC36+VLOOKUP(Y37,Micronutrients,5,FALSE)*AC37 -> 0 | AH29: =VLOOKUP(Y26,Macronutrients,7,FALSE)*AC26+VLOOKUP(Y27,Macronutrients,7,FALSE)*AC27+VLOOKUP(Y28,Macronutrients,7,FALSE)*AC28+VLOOKUP(Y29,Macronutrients,7,FALSE)*AC29+VLOOKUP(Y30,Macronutrients,7,FALSE)*AC30+VLOOKUP(Y31,Macronutrients,7,FALSE)*AC31+VLOOKUP(Y34,Micronutrients,7,FALSE)*AC34+VLOOKUP(Y35,Micronutrients,7,FALSE)*AC35+VLOOKUP(Y36,Micronutrients,7,FALSE)*AC36+VLOOKUP(Y37,Micronutrients,7,FALSE)*AC37 -> 0 | AI29: =VLOOKUP($A26,Macronutrients,6,FALSE)*$E$6+VLOOKUP($A27,Macronutrients,6,FALSE)*$E$7+VLOOKUP($A28,Macronutrients,6,FALSE)*$E$8+VLOOKUP($A29,Macronutrients,6,FALSE)*$E$9+VLOOKUP($A30,Macronutrients,6,FALSE)*$E$10+VLOOKUP($A31,Macronutrients,6,FALSE)*$E$11+VLOOKUP($A34,Micronutrients,6,FALSE)*$E$14+VLOOKUP($A35,Micronutrients,6,FALSE)*AC35+VLOOKUP($A36,Micronutrients,6,FALSE)*$E$16+VLOOKUP($A37,Micronutrients,6,FALSE)*$E$17 -> 0
A30: None | B30: 0 | C30: 0 | D30: 1 | E30: 0 | F30: 0 | G30: 0 | M30: None | N30: 0 | O30: 0 | P30: 1 | Q30: 0 | R30: 0 | S30: 0 | Y30: None | Z30: 0 | AA30: 0 | AB30: 1 | AC30: 0 | AD30: 0 | AE30: 0
A31: None | B31: 0 | C31: 0 | D31: 1 | E31: 0 | F31: 0 | G31: 0 | I31: Z | J31: B | K31: Mn | M31: None | N31: 0 | O31: 0 | P31: 1 | Q31: 0 | R31: 0 | S31: 0 | U31: Z | V31: B | W31: Mn | Y31: None | Z31: 0 | AA31: 0 | AB31: 1 | AC31: 0 | AD31: 0 | AE31: 0 | AG31: Z | AH31: B | AI31: Mn
I32: =VLOOKUP(A26,Macronutrients,8,FALSE)*E26+VLOOKUP(A27,Macronutrients,8,FALSE)*E27+VLOOKUP(A28,Macronutrients,8,FALSE)*E28+VLOOKUP(A29,Macronutrients,8,FALSE)*E29+VLOOKUP(A30,Macronutrients,8,FALSE)*E30+VLOOKUP(A31,Macronutrients,8,FALSE)*E31+VLOOKUP(A34,Micronutrients,8,FALSE)*E34+VLOOKUP(A35,Micronutrients,8,FALSE)*E35+VLOOKUP(A36,Micronutrients,8,FALSE)*E36+VLOOKUP(A37,Micronutrients,8,FALSE)*E37 -> 0 | J32: =VLOOKUP(A26,Macronutrients,9,FALSE)*E26+VLOOKUP(A27,Macronutrients,9,FALSE)*E27+VLOOKUP(A28,Macronutrients,9,FALSE)*E28+VLOOKUP(A29,Macronutrients,9,FALSE)*E29+VLOOKUP(A30,Macronutrients,9,FALSE)*E30+VLOOKUP(A31,Macronutrients,9,FALSE)*E31+VLOOKUP(A34,Micronutrients,9,FALSE)*E34+VLOOKUP(A35,Micronutrients,9,FALSE)*E35+VLOOKUP(A36,Micronutrients,9,FALSE)*E36+VLOOKUP(A37,Micronutrients,9,FALSE) -> 0 | K32: =VLOOKUP(A26,Macronutrients,10,FALSE)*E26+VLOOKUP(A27,Macronutrients,10,FALSE)*E27+VLOOKUP(A28,Macronutrients,10,FALSE)*E28+VLOOKUP(A29,Macronutrients,10,FALSE)*E29+VLOOKUP(A30,Macronutrients,10,FALSE)*E30+VLOOKUP(A31,Macronutrients,10,FALSE)*E31+VLOOKUP(A34,Micronutrients,10,FALSE)*E34+VLOOKUP(A35,Micronutrients,10,FALSE)*E35+VLOOKUP(A36,Micronutrients,10,FALSE)*E36+VLOOKUP(A37,Micronutrients,10,FALSE)*E37 -> 0 | U32: =VLOOKUP(M26,Macronutrients,8,FALSE)*Q26+VLOOKUP(M27,Macronutrients,8,FALSE)*Q27+VLOOKUP(M28,Macronutrients,8,FALSE)*Q28+VLOOKUP(M29,Macronutrients,8,FALSE)*Q29+VLOOKUP(M30,Macronutrients,8,FALSE)*Q30+VLOOKUP(M31,Macronutrients,8,FALSE)*Q31+VLOOKUP(M34,Micronutrients,8,FALSE)*Q34+VLOOKUP(M35,Micronutrients,8,FALSE)*Q35+VLOOKUP(M36,Micronutrients,8,FALSE)*Q36+VLOOKUP(M37,Micronutrients,8,FALSE)*Q37 -> 0 | V32: =VLOOKUP(M26,Macronutrients,9,FALSE)*Q26+VLOOKUP(M27,Macronutrients,9,FALSE)*Q27+VLOOKUP(M28,Macronutrients,9,FALSE)*Q28+VLOOKUP(M29,Macronutrients,9,FALSE)*Q29+VLOOKUP(M30,Macronutrients,9,FALSE)*Q30+VLOOKUP(M31,Macronutrients,9,FALSE)*Q31+VLOOKUP(M34,Micronutrients,9,FALSE)*Q34+VLOOKUP(M35,Micronutrients,9,FALSE)*Q35+VLOOKUP(M36,Micronutrients,9,FALSE)*Q36+VLOOKUP(M37,Micronutrients,9,FALSE) -> 0 | W32: =VLOOKUP(M26,Macronutrients,10,FALSE)*Q26+VLOOKUP(M27,Macronutrients,10,FALSE)*Q27+VLOOKUP(M28,Macronutrients,10,FALSE)*Q28+VLOOKUP(M29,Macronutrients,10,FALSE)*Q29+VLOOKUP(M30,Macronutrients,10,FALSE)*Q30+VLOOKUP(M31,Macronutrients,10,FALSE)*Q31+VLOOKUP(M34,Micronutrients,10,FALSE)*Q34+VLOOKUP(M35,Micronutrients,10,FALSE)*Q35+VLOOKUP(M36,Micronutrients,10,FALSE)*Q36+VLOOKUP(M37,Micronutrients,10,FALSE)*Q37 -> 0 | AG32: =VLOOKUP(Y26,Macronutrients,8,FALSE)*AC26+VLOOKUP(Y27,Macronutrients,8,FALSE)*AC27+VLOOKUP(Y28,Macronutrients,8,FALSE)*AC28+VLOOKUP(Y29,Macronutrients,8,FALSE)*AC29+VLOOKUP(Y30,Macronutrients,8,FALSE)*AC30+VLOOKUP(Y31,Macronutrients,8,FALSE)*AC31+VLOOKUP(Y34,Micronutrients,8,FALSE)*AC34+VLOOKUP(Y35,Micronutrients,8,FALSE)*AC35+VLOOKUP(Y36,Micronutrients,8,FALSE)*AC36+VLOOKUP(Y37,Micronutrients,8,FALSE)*AC37 -> 0 | AH32: =VLOOKUP(Y26,Macronutrients,9,FALSE)*AC26+VLOOKUP(Y27,Macronutrients,9,FALSE)*AC27+VLOOKUP(Y28,Macronutrients,9,FALSE)*AC28+VLOOKUP(Y29,Macronutrients,9,FALSE)*AC29+VLOOKUP(Y30,Macronutrients,9,FALSE)*AC30+VLOOKUP(Y31,Macronutrients,9,FALSE)*AC31+VLOOKUP(Y34,Micronutrients,9,FALSE)*AC34+VLOOKUP(Y35,Micronutrients,9,FALSE)*AC35+VLOOKUP(Y36,Micronutrients,9,FALSE)*AC36+VLOOKUP(Y37,Micronutrients,9,FALSE) -> 0 | AI32: =VLOOKUP(Y26,Macronutrients,10,FALSE)*AC26+VLOOKUP(Y27,Macronutrients,10,FALSE)*AC27+VLOOKUP(Y28,Macronutrients,10,FALSE)*AC28+VLOOKUP(Y29,Macronutrients,10,FALSE)*AC29+VLOOKUP(Y30,Macronutrients,10,FALSE)*AC30+VLOOKUP(Y31,Macronutrients,10,FALSE)*AC31+VLOOKUP(Y34,Micronutrients,10,FALSE)*AC34+VLOOKUP(Y35,Micronutrients,10,FALSE)*AC35+VLOOKUP(Y36,Micronutrients,10,FALSE)*AC36+VLOOKUP(Y37,Micronutrients,10,FALSE)*AC37 -> 0
A33: Micronutrients (drop down menu) | M33: Micronutrients (drop down menu) | Y33: Micronutrients (drop down menu)
A34: None | B34: =VLOOKUP($A34,Micronutrients,14,FALSE) -> 0 | C34: =VLOOKUP(A34,Micronutrients,18,FALSE) -> 0 | D34: =VLOOKUP(A34,Micronutrients,16,FALSE) -> 1 | E34: 0 | F34: =VLOOKUP(A34,Micronutrients,15,FALSE) -> 0 | G34: =(E34*VLOOKUP(A34,Micronutrients,14,FALSE)/D34)*C34 -> 0 | I34: Cu | J34: Mo | K34: Fe | M34: None | N34: =VLOOKUP($A34,Micronutrients,14,FALSE) -> 0 | O34: =VLOOKUP(M34,Micronutrients,18,FALSE) -> 0 | P34: =VLOOKUP(M34,Micronutrients,16,FALSE) -> 1 | Q34: 0 | R34: =VLOOKUP(M34,Micronutrients,15,FALSE) -> 0 | S34: =(Q34*VLOOKUP(M34,Micronutrients,14,FALSE)/P34)*O34 -> 0 | U34: Cu | V34: Mo | W34: Fe | Y34: None | Z34: =VLOOKUP($A34,Micronutrients,14,FALSE) -> 0 | AA34: =VLOOKUP(Y34,Micronutrients,18,FALSE) -> 0 | AB34: =VLOOKUP(Y34,Micronutrients,16,FALSE) -> 1 | AC34: 0 | AD34: =VLOOKUP(Y34,Micronutrients,15,FALSE) -> 0 | AE34: =(AC34*VLOOKUP(Y34,Micronutrients,14,FALSE)/AB34)*AA34 -> 0 | AG34: Cu | AH34: Mo | AI34: Fe
A35: None | B35: =VLOOKUP($A35,Micronutrients,14,FALSE) -> 0 | C35: =VLOOKUP(A35,Micronutrients,18,FALSE) -> 0 | D35: =VLOOKUP(A35,Micronutrients,16,FALSE) -> 1 | E35: 0 | F35: =VLOOKUP(A35,Micronutrients,15,FALSE) -> 0 | G35: =(E35*VLOOKUP(A35,Micronutrients,14,FALSE)/D35)*C35 -> 0 | I35: =VLOOKUP(A26,Macronutrients,11,FALSE)*E26+VLOOKUP(A27,Macronutrients,11,FALSE)*E27+VLOOKUP(A28,Macronutrients,11,FALSE)*E28+VLOOKUP(A29,Macronutrients,11,FALSE)*E29+VLOOKUP(A30,Macronutrients,11,FALSE)*E30+VLOOKUP(A31,Macronutrients,11,FALSE)*E31+VLOOKUP(A34,Micronutrients,11,FALSE)*E34+VLOOKUP(A35,Micronutrients,11,FALSE)*E35+VLOOKUP(A36,Micronutrients,11,FALSE)*E36+VLOOKUP(A37,Micronutrients,11,FALSE)*E37 -> 0 | J35: =VLOOKUP(A26,Macronutrients,12,FALSE)*E26+VLOOKUP(A27,Macronutrients,12,FALSE)*E27+VLOOKUP(A28,Macronutrients,12,FALSE)*E28+VLOOKUP(A29,Macronutrients,12,FALSE)*E29+VLOOKUP(A30,Macronutrients,12,FALSE)*E30+VLOOKUP(A31,Macronutrients,12,FALSE)*E31+VLOOKUP(A34,Micronutrients,12,FALSE)*E34+VLOOKUP(A35,Micronutrients,12,FALSE)*E35+VLOOKUP(A36,Micronutrients,12,FALSE)*E36+VLOOKUP(A37,Micronutrients,12,FALSE)*E37 -> 0 | K35: =VLOOKUP(A26,Macronutrients,13,FALSE)*E26+VLOOKUP(A27,Macronutrients,13,FALSE)*E27+VLOOKUP(A28,Macronutrients,13,FALSE)*E28+VLOOKUP(A29,Macronutrients,13,FALSE)*E29+VLOOKUP(A30,Macronutrients,13,FALSE)*E30+VLOOKUP(A31,Macronutrients,13,FALSE)*E31+VLOOKUP(A34,Micronutrients,13,FALSE)*E34+VLOOKUP(A35,Micronutrients,13,FALSE)*E35+VLOOKUP(A36,Micronutrients,13,FALSE)*E36+VLOOKUP(A37,Micronutrients,13,FALSE)*E37 -> 0 | M35: None | N35: =VLOOKUP($A35,Micronutrients,14,FALSE) -> 0 | O35: =VLOOKUP(M35,Micronutrients,18,FALSE) -> 0 | P35: =VLOOKUP(M35,Micronutrients,16,FALSE) -> 1 | Q35: 0 | R35: =VLOOKUP(M35,Micronutrients,15,FALSE) -> 0 | S35: =(Q35*VLOOKUP(M35,Micronutrients,14,FALSE)/P35)*O35 -> 0 | U35: =VLOOKUP(M26,Macronutrients,11,FALSE)*Q26+VLOOKUP(M27,Macronutrients,11,FALSE)*Q27+VLOOKUP(M28,Macronutrients,11,FALSE)*Q28+VLOOKUP(M29,Macronutrients,11,FALSE)*Q29+VLOOKUP(M30,Macronutrients,11,FALSE)*Q30+VLOOKUP(M31,Macronutrients,11,FALSE)*Q31+VLOOKUP(M34,Micronutrients,11,FALSE)*Q34+VLOOKUP(M35,Micronutrients,11,FALSE)*Q35+VLOOKUP(M36,Micronutrients,11,FALSE)*Q36+VLOOKUP(M37,Micronutrients,11,FALSE)*Q37 -> 0 | V35: =VLOOKUP(M26,Macronutrients,12,FALSE)*Q26+VLOOKUP(M27,Macronutrients,12,FALSE)*Q27+VLOOKUP(M28,Macronutrients,12,FALSE)*Q28+VLOOKUP(M29,Macronutrients,12,FALSE)*Q29+VLOOKUP(M30,Macronutrients,12,FALSE)*Q30+VLOOKUP(M31,Macronutrients,12,FALSE)*Q31+VLOOKUP(M34,Micronutrients,12,FALSE)*Q34+VLOOKUP(M35,Micronutrients,12,FALSE)*Q35+VLOOKUP(M36,Micronutrients,12,FALSE)*Q36+VLOOKUP(M37,Micronutrients,12,FALSE)*Q37 -> 0 | W35: =VLOOKUP(M26,Macronutrients,13,FALSE)*Q26+VLOOKUP(M27,Macronutrients,13,FALSE)*Q27+VLOOKUP(M28,Macronutrients,13,FALSE)*Q28+VLOOKUP(M29,Macronutrients,13,FALSE)*Q29+VLOOKUP(M30,Macronutrients,13,FALSE)*Q30+VLOOKUP(M31,Macronutrients,13,FALSE)*Q31+VLOOKUP(M34,Micronutrients,13,FALSE)*Q34+VLOOKUP(M35,Micronutrients,13,FALSE)*Q35+VLOOKUP(M36,Micronutrients,13,FALSE)*Q36+VLOOKUP(M37,Micronutrients,13,FALSE)*Q37 -> 0 | Y35: None | Z35: =VLOOKUP($A35,Micronutrients,14,FALSE) -> 0 | AA35: =VLOOKUP(Y35,Micronutrients,18,FALSE) -> 0 | AB35: =VLOOKUP(Y35,Micronutrients,16,FALSE) -> 1 | AC35: 0 | AD35: =VLOOKUP(Y35,Micronutrients,15,FALSE) -> 0 | AE35: =(AC35*VLOOKUP(Y35,Micronutrients,14,FALSE)/AB35)*AA35 -> 0 | AG35: =VLOOKUP(Y26,Macronutrients,11,FALSE)*AC26+VLOOKUP(Y27,Macronutrients,11,FALSE)*AC27+VLOOKUP(Y28,Macronutrients,11,FALSE)*AC28+VLOOKUP(Y29,Macronutrients,11,FALSE)*AC29+VLOOKUP(Y30,Macronutrients,11,FALSE)*AC30+VLOOKUP(Y31,Macronutrients,11,FALSE)*AC31+VLOOKUP(Y34,Micronutrients,11,FALSE)*AC34+VLOOKUP(Y35,Micronutrients,11,FALSE)*AC35+VLOOKUP(Y36,Micronutrients,11,FALSE)*AC36+VLOOKUP(Y37,Micronutrients,11,FALSE)*AC37 -> 0 | AH35: =VLOOKUP(Y26,Macronutrients,12,FALSE)*AC26+VLOOKUP(Y27,Macronutrients,12,FALSE)*AC27+VLOOKUP(Y28,Macronutrients,12,FALSE)*AC28+VLOOKUP(Y29,Macronutrients,12,FALSE)*AC29+VLOOKUP(Y30,Macronutrients,12,FALSE)*AC30+VLOOKUP(Y31,Macronutrients,12,FALSE)*AC31+VLOOKUP(Y34,Micronutrients,12,FALSE)*AC34+VLOOKUP(Y35,Micronutrients,12,FALSE)*AC35+VLOOKUP(Y36,Micronutrients,12,FALSE)*AC36+VLOOKUP(Y37,Micronutrients,12,FALSE)*AC37 -> 0 | AI35: =VLOOKUP(Y26,Macronutrients,13,FALSE)*AC26+VLOOKUP(Y27,Macronutrients,13,FALSE)*AC27+VLOOKUP(Y28,Macronutrients,13,FALSE)*AC28+VLOOKUP(Y29,Macronutrients,13,FALSE)*AC29+VLOOKUP(Y30,Macronutrients,13,FALSE)*AC30+VLOOKUP(Y31,Macronutrients,13,FALSE)*AC31+VLOOKUP(Y34,Micronutrients,13,FALSE)*AC34+VLOOKUP(Y35,Micronutrients,13,FALSE)*AC35+VLOOKUP(Y36,Micronutrients,13,FALSE)*AC36+VLOOKUP(Y37,Micronutrients,13,FALSE)*AC37 -> 0
A36: None | B36: =VLOOKUP($A36,Micronutrients,14,FALSE) -> 0 | C36: =VLOOKUP(A36,Micronutrients,18,FALSE) -> 0 | D36: =VLOOKUP(A36,Micronutrients,16,FALSE) -> 1 | E36: 0 | F36: =VLOOKUP(A36,Micronutrients,15,FALSE) -> 0 | G36: =(E36*VLOOKUP(A36,Micronutrients,14,FALSE)/D36)*C36 -> 0 | M36: None | N36: =VLOOKUP($A36,Micronutrients,14,FALSE) -> 0 | O36: =VLOOKUP(M36,Micronutrients,18,FALSE) -> 0 | P36: =VLOOKUP(M36,Micronutrients,16,FALSE) -> 1 | Q36: 0 | R36: =VLOOKUP(M36,Micronutrients,15,FALSE) -> 0 | S36: =(Q36*VLOOKUP(M36,Micronutrients,14,FALSE)/P36)*O36 -> 0 | Y36: None | Z36: =VLOOKUP($A36,Micronutrients,14,FALSE) -> 0 | AA36: =VLOOKUP(Y36,Micronutrients,18,FALSE) -> 0 | AB36: =VLOOKUP(Y36,Micronutrients,16,FALSE) -> 1 | AC36: 0 | AD36: =VLOOKUP(Y36,Micronutrients,15,FALSE) -> 0 | AE36: =(AC36*VLOOKUP(Y36,Micronutrients,14,FALSE)/AB36)*AA36 -> 0
A37: None | B37: =VLOOKUP($A37,Micronutrients,14,FALSE) -> 0 | C37: =VLOOKUP(A37,Micronutrients,18,FALSE) -> 0 | D37: =VLOOKUP(A37,Micronutrients,16,FALSE) -> 1 | E37: 0 | F37: =VLOOKUP(A37,Micronutrients,15,FALSE) -> 0 | G37: =(E37*VLOOKUP(A37,Micronutrients,14,FALSE)/D37)*C37 -> 0 | K37: More | M37: None | N37: =VLOOKUP($A37,Micronutrients,14,FALSE) -> 0 | O37: =VLOOKUP(M37,Micronutrients,18,FALSE) -> 0 | P37: =VLOOKUP(M37,Micronutrients,16,FALSE) -> 1 | Q37: 0 | R37: =VLOOKUP(M37,Micronutrients,15,FALSE) -> 0 | S37: =(Q37*VLOOKUP(M37,Micronutrients,14,FALSE)/P37)*O37 -> 0 | W37: More | Y37: None | Z37: =VLOOKUP($A37,Micronutrients,14,FALSE) -> 0 | AA37: =VLOOKUP(Y37,Micronutrients,18,FALSE) -> 0 | AB37: =VLOOKUP(Y37,Micronutrients,16,FALSE) -> 1 | AC37: 0 | AD37: =VLOOKUP(Y37,Micronutrients,15,FALSE) -> 0 | AE37: =(AC37*VLOOKUP(Y37,Micronutrients,14,FALSE)/AB37)*AA37 -> 0 | AI37: More
A38: 2nd Application Fertilizer Cost/Acre | G38: =SUM(G26:G37) -> 0 | K38: Below | M38: 2nd Application Fertilizer Cost/Acre | S38: =SUM(S26:S37) -> 0 | W38: Below | Y38: 2nd Application Fertilizer Cost/Acre | AE38: =SUM(AE26:AE37) -> 0 | AI38: Below
K39: ¯ | W39: ¯ | AI39: ¯
A40: Foliar Applications | M40: Foliar Applications | Y40: Foliar Applications
A41: Fertilizer Source | B41: Purchase Units | C41: Package Price (Gals, Lbs, etc.) | D41: Units/Pkg | E41: Rate/Acre | F41: Units | G41: Cost | M41: Fertilizer Source | N41: Purchase Units | O41: Package Price (Gals, Lbs, etc.) | P41: Units/Pkg | Q41: Rate/Acre | R41: Units | S41: Cost | Y41: Fertilizer Source | Z41: Purchase Units | AA41: Package Price (Gals, Lbs, etc.) | AB41: Units/Pkg | AC41: Rate/Acre | AD41: Units | AE41: Cost
A42: Foliars (drop down menu) | E42: (Enter Below) | I42: N | J42: P | K42: K | M42: Foliars (drop down menu) | Q42: (Enter Below) | U42: N | V42: P | W42: K | Y42: Foliars (drop down menu) | AC42: (Enter Below) | AG42: N | AH42: P | AI42: K
A43: None | B43: =VLOOKUP(A43,Foliars,14,FALSE) -> 0 | C43: =VLOOKUP(A43,Foliars,18,FALSE) -> 0 | D43: =VLOOKUP(A43,Foliars,16,FALSE) -> 1 | E43: 0 | F43: =VLOOKUP(A43,Foliars,15,FALSE) -> 0 | G43: =(E43*VLOOKUP(A43,Foliars,14,FALSE)/D43)*C43 -> 0 | I43: =VLOOKUP(A$43,Foliars,2,FALSE)*E$43+VLOOKUP(A$44,Foliars,2,FALSE)*E$44+VLOOKUP(A$45,Foliars,2,FALSE)*E$45+VLOOKUP(A$46,Foliars,2,FALSE)*E$46+VLOOKUP(A$47,Foliars,2,FALSE)*E$47+VLOOKUP(A$48,Foliars,2,FALSE)*E$48 -> 0 | J43: =VLOOKUP(A$43,Foliars,3,FALSE)*E$43+VLOOKUP(A$44,Foliars,3,FALSE)*E$44+VLOOKUP(A$45,Foliars,3,FALSE)*E$45+VLOOKUP(A$46,Foliars,3,FALSE)*E$46+VLOOKUP(A$47,Foliars,3,FALSE)*E$47+VLOOKUP(A$48,Foliars,3,FALSE)*E$48 -> 0 | K43: =VLOOKUP(A$43,Foliars,4,FALSE)*E$43+VLOOKUP(A$44,Foliars,4,FALSE)*E$44+VLOOKUP(A$45,Foliars,4,FALSE)*E$45+VLOOKUP(A$46,Foliars,4,FALSE)*E$46+VLOOKUP(A$47,Foliars,4,FALSE)*E$47+VLOOKUP(A$48,Foliars,4,FALSE)*E$48 -> 0 | M43: None | N43: =VLOOKUP(M43,Foliars,14,FALSE) -> 0 | O43: =VLOOKUP(M43,Foliars,18,FALSE) -> 0 | P43: =VLOOKUP(M43,Foliars,16,FALSE) -> 1 | Q43: 0 | R43: =VLOOKUP(M43,Foliars,15,FALSE) -> 0 | S43: =(Q43*VLOOKUP(M43,Foliars,14,FALSE)/P43)*O43 -> 0 | U43: =VLOOKUP(M$43,Foliars,2,FALSE)*Q$43+VLOOKUP(M$44,Foliars,2,FALSE)*Q$44+VLOOKUP(M$45,Foliars,2,FALSE)*Q$45+VLOOKUP(M$46,Foliars,2,FALSE)*Q$46+VLOOKUP(M$47,Foliars,2,FALSE)*Q$47+VLOOKUP(M$48,Foliars,2,FALSE)*Q$48 -> 0 | V43: =VLOOKUP(M$43,Foliars,3,FALSE)*Q$43+VLOOKUP(M$44,Foliars,3,FALSE)*Q$44+VLOOKUP(M$45,Foliars,3,FALSE)*Q$45+VLOOKUP(M$46,Foliars,3,FALSE)*Q$46+VLOOKUP(M$47,Foliars,3,FALSE)*Q$47+VLOOKUP(M$48,Foliars,3,FALSE)*Q$48 -> 0 | W43: =VLOOKUP(M$43,Foliars,4,FALSE)*Q$43+VLOOKUP(M$44,Foliars,4,FALSE)*Q$44+VLOOKUP(M$45,Foliars,4,FALSE)*Q$45+VLOOKUP(M$46,Foliars,4,FALSE)*Q$46+VLOOKUP(M$47,Foliars,4,FALSE)*Q$47+VLOOKUP(M$48,Foliars,4,FALSE)*Q$48 -> 0 | Y43: None | Z43: =VLOOKUP(Y43,Foliars,14,FALSE) -> 0 | AA43: =VLOOKUP(Y43,Foliars,18,FALSE) -> 0 | AB43: =VLOOKUP(Y43,Foliars,16,FALSE) -> 1 | AC43: 0 | AD43: =VLOOKUP(Y43,Foliars,15,FALSE) -> 0 | AE43: =(AC43*VLOOKUP(Y43,Foliars,14,FALSE)/AB43)*AA43 -> 0 | AG43: =VLOOKUP(Y$43,Foliars,2,FALSE)*AC$43+VLOOKUP(Y$44,Foliars,2,FALSE)*AC$44+VLOOKUP(Y$45,Foliars,2,FALSE)*AC$45+VLOOKUP(Y$46,Foliars,2,FALSE)*AC$46+VLOOKUP(Y$47,Foliars,2,FALSE)*AC$47+VLOOKUP(Y$48,Foliars,2,FALSE)*AC$48 -> 0 | AH43: =VLOOKUP(Y$43,Foliars,3,FALSE)*AC$43+VLOOKUP(Y$44,Foliars,3,FALSE)*AC$44+VLOOKUP(Y$45,Foliars,3,FALSE)*AC$45+VLOOKUP(Y$46,Foliars,3,FALSE)*AC$46+VLOOKUP(Y$47,Foliars,3,FALSE)*AC$47+VLOOKUP(Y$48,Foliars,3,FALSE)*AC$48 -> 0 | AI43: =VLOOKUP(Y$43,Foliars,4,FALSE)*AC$43+VLOOKUP(Y$44,Foliars,4,FALSE)*AC$44+VLOOKUP(Y$45,Foliars,4,FALSE)*AC$45+VLOOKUP(Y$46,Foliars,4,FALSE)*AC$46+VLOOKUP(Y$47,Foliars,4,FALSE)*AC$47+VLOOKUP(Y$48,Foliars,4,FALSE)*AC$48 -> 0
A44: None | B44: =VLOOKUP(A44,Foliars,14,FALSE) -> 0 | C44: 0 | D44: 1 | E44: 0 | F44: 0 | G44: 0 | M44: None | N44: 0 | O44: 0 | P44: 1 | Q44: 0 | R44: 0 | S44: 0 | Y44: None | Z44: 0 | AA44: 0 | AB44: 1 | AC44: 0 | AD44: 0 | AE44: 0
A45: None | B45: 0 | C45: 0 | D45: 1 | E45: 0 | F45: 0 | G45: 0 | I45: S | J45: Ca | K45: Mg | M45: None | N45: 0 | O45: 0 | P45: 1 | Q45: 0 | R45: 0 | S45: 0 | U45: S | V45: Ca | W45: Mg | Y45: None | Z45: 0 | AA45: 0 | AB45: 1 | AC45: 0 | AD45: 0 | AE45: 0 | AG45: S | AH45: Ca | AI45: Mg
A46: None | B46: 0 | C46: 0 | D46: 1 | E46: 0 | F46: 0 | G46: 0 | I46: =VLOOKUP(A$43,Foliars,5,FALSE)*E$43+VLOOKUP(A$44,Foliars,5,FALSE)*E$44+VLOOKUP(A$45,Foliars,5,FALSE)*E$45+VLOOKUP(A$46,Foliars,5,FALSE)*E$46+VLOOKUP(A$47,Foliars,5,FALSE)*E$47+VLOOKUP(A$48,Foliars,5,FALSE)*E$48 -> 0 | J46: =VLOOKUP(A$43,Foliars,7,FALSE)*E$43+VLOOKUP(A$44,Foliars,7,FALSE)*E$44+VLOOKUP(A$45,Foliars,7,FALSE)*E$45+VLOOKUP(A$46,Foliars,7,FALSE)*E$46+VLOOKUP(A$47,Foliars,7,FALSE)*E$47+VLOOKUP(A$48,Foliars,7,FALSE)*E$48 -> 0 | K46: =VLOOKUP(A$43,Foliars,6,FALSE)*E$43+VLOOKUP(A$44,Foliars,6,FALSE)*E$44+VLOOKUP(A$45,Foliars,6,FALSE)*E$45+VLOOKUP(A$46,Foliars,6,FALSE)*E$46+VLOOKUP(A$47,Foliars,6,FALSE)*E$47+VLOOKUP(A$48,Foliars,6,FALSE)*E$48 -> 0 | M46: None | N46: 0 | O46: 0 | P46: 1 | Q46: 0 | R46: 0 | S46: 0 | U46: =VLOOKUP(M$43,Foliars,5,FALSE)*Q$43+VLOOKUP(M$44,Foliars,5,FALSE)*Q$44+VLOOKUP(M$45,Foliars,5,FALSE)*Q$45+VLOOKUP(M$46,Foliars,5,FALSE)*Q$46+VLOOKUP(M$47,Foliars,5,FALSE)*Q$47+VLOOKUP(M$48,Foliars,5,FALSE)*Q$48 -> 0 | V46: =VLOOKUP(M$43,Foliars,7,FALSE)*Q$43+VLOOKUP(M$44,Foliars,7,FALSE)*Q$44+VLOOKUP(M$45,Foliars,7,FALSE)*Q$45+VLOOKUP(M$46,Foliars,7,FALSE)*Q$46+VLOOKUP(M$47,Foliars,7,FALSE)*Q$47+VLOOKUP(M$48,Foliars,7,FALSE)*Q$48 -> 0 | W46: =VLOOKUP(M$43,Foliars,6,FALSE)*Q$43+VLOOKUP(M$44,Foliars,6,FALSE)*Q$44+VLOOKUP(M$45,Foliars,6,FALSE)*Q$45+VLOOKUP(M$46,Foliars,6,FALSE)*Q$46+VLOOKUP(M$47,Foliars,6,FALSE)*Q$47+VLOOKUP(M$48,Foliars,6,FALSE)*Q$48 -> 0 | Y46: None | Z46: 0 | AA46: 0 | AB46: 1 | AC46: 0 | AD46: 0 | AE46: 0 | AG46: =VLOOKUP(Y$43,Foliars,5,FALSE)*AC$43+VLOOKUP(Y$44,Foliars,5,FALSE)*AC$44+VLOOKUP(Y$45,Foliars,5,FALSE)*AC$45+VLOOKUP(Y$46,Foliars,5,FALSE)*AC$46+VLOOKUP(Y$47,Foliars,5,FALSE)*AC$47+VLOOKUP(Y$48,Foliars,5,FALSE)*AC$48 -> 0 | AH46: =VLOOKUP(Y$43,Foliars,7,FALSE)*AC$43+VLOOKUP(Y$44,Foliars,7,FALSE)*AC$44+VLOOKUP(Y$45,Foliars,7,FALSE)*AC$45+VLOOKUP(Y$46,Foliars,7,FALSE)*AC$46+VLOOKUP(Y$47,Foliars,7,FALSE)*AC$47+VLOOKUP(Y$48,Foliars,7,FALSE)*AC$48 -> 0 | AI46: =VLOOKUP(Y$43,Foliars,6,FALSE)*AC$43+VLOOKUP(Y$44,Foliars,6,FALSE)*AC$44+VLOOKUP(Y$45,Foliars,6,FALSE)*AC$45+VLOOKUP(Y$46,Foliars,6,FALSE)*AC$46+VLOOKUP(Y$47,Foliars,6,FALSE)*AC$47+VLOOKUP(Y$48,Foliars,6,FALSE)*AC$48 -> 0
A47: None | B47: 0 | C47: 0 | D47: 1 | E47: 0 | F47: 0 | G47: 0 | M47: None | N47: 0 | O47: 0 | P47: 1 | Q47: 0 | R47: 0 | S47: 0 | Y47: None | Z47: 0 | AA47: 0 | AB47: 1 | AC47: 0 | AD47: 0 | AE47: 0
A48: None | B48: 0 | C48: 0 | D48: 1 | E48: 0 | F48: 0 | G48: 0 | I48: Z | J48: B | K48: Mn | M48: None | N48: 0 | O48: 0 | P48: 1 | Q48: 0 | R48: 0 | S48: 0 | U48: Z | V48: B | W48: Mn | Y48: None | Z48: 0 | AA48: 0 | AB48: 1 | AC48: 0 | AD48: 0 | AE48: 0 | AG48: Z | AH48: B | AI48: Mn
I49: =VLOOKUP(A$43,Foliars,8,FALSE)*E$43+VLOOKUP(A$44,Foliars,8,FALSE)*E$44+VLOOKUP(A$45,Foliars,8,FALSE)*E$45+VLOOKUP(A$46,Foliars,8,FALSE)*E$46+VLOOKUP(A$47,Foliars,8,FALSE)*E$47+VLOOKUP(A$48,Foliars,8,FALSE)*E$48 -> 0 | J49: =VLOOKUP(A$43,Foliars,9,FALSE)*E$43+VLOOKUP(A$44,Foliars,9,FALSE)*E$44+VLOOKUP(A$45,Foliars,9,FALSE)*E$45+VLOOKUP(A$46,Foliars,9,FALSE)*E$46+VLOOKUP(A$47,Foliars,9,FALSE)*E$47+VLOOKUP(A$48,Foliars,9,FALSE)*E$48 -> 0 | K49: =VLOOKUP(A$43,Foliars,10,FALSE)*E$43+VLOOKUP(A$44,Foliars,10,FALSE)*E$44+VLOOKUP(A$45,Foliars,10,FALSE)*E$45+VLOOKUP(A$46,Foliars,10,FALSE)*E$46+VLOOKUP(A$47,Foliars,10,FALSE)*E$47+VLOOKUP(A$48,Foliars,10,FALSE)*E$48 -> 0 | U49: =VLOOKUP(M$43,Foliars,8,FALSE)*Q$43+VLOOKUP(M$44,Foliars,8,FALSE)*Q$44+VLOOKUP(M$45,Foliars,8,FALSE)*Q$45+VLOOKUP(M$46,Foliars,8,FALSE)*Q$46+VLOOKUP(M$47,Foliars,8,FALSE)*Q$47+VLOOKUP(M$48,Foliars,8,FALSE)*Q$48 -> 0 | V49: =VLOOKUP(M$43,Foliars,9,FALSE)*Q$43+VLOOKUP(M$44,Foliars,9,FALSE)*Q$44+VLOOKUP(M$45,Foliars,9,FALSE)*Q$45+VLOOKUP(M$46,Foliars,9,FALSE)*Q$46+VLOOKUP(M$47,Foliars,9,FALSE)*Q$47+VLOOKUP(M$48,Foliars,9,FALSE)*Q$48 -> 0 | W49: =VLOOKUP(M$43,Foliars,10,FALSE)*Q$43+VLOOKUP(M$44,Foliars,10,FALSE)*Q$44+VLOOKUP(M$45,Foliars,10,FALSE)*Q$45+VLOOKUP(M$46,Foliars,10,FALSE)*Q$46+VLOOKUP(M$47,Foliars,10,FALSE)*Q$47+VLOOKUP(M$48,Foliars,10,FALSE)*Q$48 -> 0 | AG49: =VLOOKUP(Y$43,Foliars,8,FALSE)*AC$43+VLOOKUP(Y$44,Foliars,8,FALSE)*AC$44+VLOOKUP(Y$45,Foliars,8,FALSE)*AC$45+VLOOKUP(Y$46,Foliars,8,FALSE)*AC$46+VLOOKUP(Y$47,Foliars,8,FALSE)*AC$47+VLOOKUP(Y$48,Foliars,8,FALSE)*AC$48 -> 0 | AH49: =VLOOKUP(Y$43,Foliars,9,FALSE)*AC$43+VLOOKUP(Y$44,Foliars,9,FALSE)*AC$44+VLOOKUP(Y$45,Foliars,9,FALSE)*AC$45+VLOOKUP(Y$46,Foliars,9,FALSE)*AC$46+VLOOKUP(Y$47,Foliars,9,FALSE)*AC$47+VLOOKUP(Y$48,Foliars,9,FALSE)*AC$48 -> 0 | AI49: =VLOOKUP(Y$43,Foliars,10,FALSE)*AC$43+VLOOKUP(Y$44,Foliars,10,FALSE)*AC$44+VLOOKUP(Y$45,Foliars,10,FALSE)*AC$45+VLOOKUP(Y$46,Foliars,10,FALSE)*AC$46+VLOOKUP(Y$47,Foliars,10,FALSE)*AC$47+VLOOKUP(Y$48,Foliars,10,FALSE)*AC$48 -> 0
A51: Total Foliar Application Cost/Acre | G51: =SUM(G43:G48) -> 0 | I51: Cu | J51: Mo | K51: Fe | M51: Total Foliar Application Cost/Acre | S51: =SUM(S43:S48) -> 0 | U51: Cu | V51: Mo | W51: Fe | Y51: Total Foliar Application Cost/Acre | AE51: =SUM(AE43:AE48) -> 0 | AG51: Cu | AH51: Mo | AI51: Fe
I52: =VLOOKUP(A43,Foliars,11,FALSE)*E43+VLOOKUP(A44,Foliars,11,FALSE)*E44+VLOOKUP(A45,Foliars,11,FALSE)*E45+VLOOKUP(A46,Foliars,11,FALSE)*E46+VLOOKUP(A47,Foliars,11,FALSE)*E47+VLOOKUP(A48,Foliars,11,FALSE)*E48 -> 0 | J52: =VLOOKUP(A43,Foliars,12,FALSE)*E43+VLOOKUP(A44,Foliars,12,FALSE)*E44+VLOOKUP(A45,Foliars,12,FALSE)*E45+VLOOKUP(A46,Foliars,12,FALSE)*E46+VLOOKUP(A47,Foliars,12,FALSE)*E47+VLOOKUP(A48,Foliars,12,FALSE)*E48 -> 0 | K52: =VLOOKUP(A43,Foliars,13,FALSE)*E43+VLOOKUP(A44,Foliars,13,FALSE)*E44+VLOOKUP(A45,Foliars,13,FALSE)*E45+VLOOKUP(A46,Foliars,13,FALSE)*E46+VLOOKUP(A47,Foliars,13,FALSE)*E47+VLOOKUP(A48,Foliars,13,FALSE)*E48 -> 0 | U52: =VLOOKUP(M43,Foliars,11,FALSE)*Q43+VLOOKUP(M44,Foliars,11,FALSE)*Q44+VLOOKUP(M45,Foliars,11,FALSE)*Q45+VLOOKUP(M46,Foliars,11,FALSE)*Q46+VLOOKUP(M47,Foliars,11,FALSE)*Q47+VLOOKUP(M48,Foliars,11,FALSE)*Q48 -> 0 | V52: =VLOOKUP(M43,Foliars,12,FALSE)*Q43+VLOOKUP(M44,Foliars,12,FALSE)*Q44+VLOOKUP(M45,Foliars,12,FALSE)*Q45+VLOOKUP(M46,Foliars,12,FALSE)*Q46+VLOOKUP(M47,Foliars,12,FALSE)*Q47+VLOOKUP(M48,Foliars,12,FALSE)*Q48 -> 0 | W52: =VLOOKUP(M43,Foliars,13,FALSE)*Q43+VLOOKUP(M44,Foliars,13,FALSE)*Q44+VLOOKUP(M45,Foliars,13,FALSE)*Q45+VLOOKUP(M46,Foliars,13,FALSE)*Q46+VLOOKUP(M47,Foliars,13,FALSE)*Q47+VLOOKUP(M48,Foliars,13,FALSE)*Q48 -> 0 | AG52: =VLOOKUP(Y43,Foliars,11,FALSE)*AC43+VLOOKUP(Y44,Foliars,11,FALSE)*AC44+VLOOKUP(Y45,Foliars,11,FALSE)*AC45+VLOOKUP(Y46,Foliars,11,FALSE)*AC46+VLOOKUP(Y47,Foliars,11,FALSE)*AC47+VLOOKUP(Y48,Foliars,11,FALSE)*AC48 -> 0 | AH52: =VLOOKUP(Y43,Foliars,12,FALSE)*AC43+VLOOKUP(Y44,Foliars,12,FALSE)*AC44+VLOOKUP(Y45,Foliars,12,FALSE)*AC45+VLOOKUP(Y46,Foliars,12,FALSE)*AC46+VLOOKUP(Y47,Foliars,12,FALSE)*AC47+VLOOKUP(Y48,Foliars,12,FALSE)*AC48 -> 0 | AI52: =VLOOKUP(Y43,Foliars,13,FALSE)*AC43+VLOOKUP(Y44,Foliars,13,FALSE)*AC44+VLOOKUP(Y45,Foliars,13,FALSE)*AC45+VLOOKUP(Y46,Foliars,13,FALSE)*AC46+VLOOKUP(Y47,Foliars,13,FALSE)*AC47+VLOOKUP(Y48,Foliars,13,FALSE)*AC48 -> 0
A53: Fertigation Applications | M53: Fertigation Applications | Y53: Fertigation Applications
A54: Fertilizer Source | B54: Purchase Units | C54: Package Price (Gals, Lbs, etc.) | D54: Units/Pkg | E54: Rate/Acre | F54: Units | G54: Cost | M54: Fertilizer Source | N54: Purchase Units | O54: Package Price (Gals, Lbs, etc.) | P54: Units/Pkg | Q54: Rate/Acre | R54: Units | S54: Cost | Y54: Fertilizer Source | Z54: Purchase Units | AA54: Package Price (Gals, Lbs, etc.) | AB54: Units/Pkg | AC54: Rate/Acre | AD54: Units | AE54: Cost
A55: Fertigation (drop down menu) | E55: (Enter Below) | I55: N | J55: P | K55: K | M55: Fertigation (drop down menu) | Q55: (Enter Below) | U55: N | V55: P | W55: K | Y55: Fertigation (drop down menu) | AC55: (Enter Below) | AG55: N | AH55: P | AI55: K
A56: None | B56: =VLOOKUP(A56,Fertigation,14,FALSE) -> 0 | C56: =VLOOKUP(A56,Fertigation,18,FALSE) -> 0 | D56: =VLOOKUP(A56,Fertigation,16,FALSE) -> 1 | E56: 0 | F56: =VLOOKUP(A56,Fertigation,15,FALSE) -> 0 | G56: =(E56*VLOOKUP(A56,Foliars,14,FALSE)/D56)*C56 -> 0 | I56: =VLOOKUP(A$56,Fertigation,2,FALSE)*E$56+VLOOKUP(A$57,Fertigation,2,FALSE)*E$57+VLOOKUP(A$58,Fertigation,2,FALSE)*E$58+VLOOKUP(A$59,Fertigation,2,FALSE)*E$59+VLOOKUP(A$60,Fertigation,2,FALSE)*E$60+VLOOKUP(A$61,Fertigation,2,FALSE)*E$61 -> 0 | J56: =VLOOKUP(A$56,Fertigation,3,FALSE)*E$56+VLOOKUP(A$57,Fertigation,3,FALSE)*E$57+VLOOKUP(A$58,Fertigation,3,FALSE)*E$58+VLOOKUP(A$59,Fertigation,3,FALSE)*E$59+VLOOKUP(A$60,Fertigation,3,FALSE)*E$60+VLOOKUP(A$61,Fertigation,3,FALSE)*E$61 -> 0 | K56: =VLOOKUP(A$56,Fertigation,4,FALSE)*E$56+VLOOKUP(A$57,Fertigation,4,FALSE)*E$57+VLOOKUP(A$58,Fertigation,4,FALSE)*E$58+VLOOKUP(A$59,Fertigation,4,FALSE)*E$59+VLOOKUP(A$60,Fertigation,4,FALSE)*E$60+VLOOKUP(A$61,Fertigation,4,FALSE)*E$61 -> 0 | M56: None | N56: =VLOOKUP(M56,Fertigation,14,FALSE) -> 0 | O56: =VLOOKUP(M56,Fertigation,18,FALSE) -> 0 | P56: =VLOOKUP(M56,Fertigation,16,FALSE) -> 1 | Q56: 0 | R56: =VLOOKUP(M56,Fertigation,15,FALSE) -> 0 | S56: =(Q56*VLOOKUP(M56,Foliars,14,FALSE)/P56)*O56 -> 0 | U56: =VLOOKUP(M$56,Fertigation,2,FALSE)*Q$56+VLOOKUP(M$57,Fertigation,2,FALSE)*Q$57+VLOOKUP(M$58,Fertigation,2,FALSE)*Q$58+VLOOKUP(M$59,Fertigation,2,FALSE)*Q$59+VLOOKUP(M$60,Fertigation,2,FALSE)*Q$60+VLOOKUP(M$61,Fertigation,2,FALSE)*Q$61 -> 0 | V56: =VLOOKUP(M$56,Fertigation,3,FALSE)*Q$56+VLOOKUP(M$57,Fertigation,3,FALSE)*Q$57+VLOOKUP(M$58,Fertigation,3,FALSE)*Q$58+VLOOKUP(M$59,Fertigation,3,FALSE)*Q$59+VLOOKUP(M$60,Fertigation,3,FALSE)*Q$60+VLOOKUP(M$61,Fertigation,3,FALSE)*Q$61 -> 0 | W56: =VLOOKUP(M$56,Fertigation,4,FALSE)*Q$56+VLOOKUP(M$57,Fertigation,4,FALSE)*Q$57+VLOOKUP(M$58,Fertigation,4,FALSE)*Q$58+VLOOKUP(M$59,Fertigation,4,FALSE)*Q$59+VLOOKUP(M$60,Fertigation,4,FALSE)*Q$60+VLOOKUP(M$61,Fertigation,4,FALSE)*Q$61 -> 0 | Y56: None | Z56: =VLOOKUP(Y56,Fertigation,14,FALSE) -> 0 | AA56: =VLOOKUP(Y56,Fertigation,18,FALSE) -> 0 | AB56: =VLOOKUP(Y56,Fertigation,16,FALSE) -> 1 | AC56: 0 | AD56: =VLOOKUP(Y56,Fertigation,15,FALSE) -> 0 | AE56: =(AC56*VLOOKUP(Y56,Foliars,14,FALSE)/AB56)*AA56 -> 0 | AG56: =VLOOKUP(Y$56,Fertigation,2,FALSE)*AC$56+VLOOKUP(Y$57,Fertigation,2,FALSE)*AC$57+VLOOKUP(Y$58,Fertigation,2,FALSE)*AC$58+VLOOKUP(Y$59,Fertigation,2,FALSE)*AC$59+VLOOKUP(Y$60,Fertigation,2,FALSE)*AC$60+VLOOKUP(Y$61,Fertigation,2,FALSE)*AC$61 -> 0 | AH56: =VLOOKUP(Y$56,Fertigation,3,FALSE)*AC$56+VLOOKUP(Y$57,Fertigation,3,FALSE)*AC$57+VLOOKUP(Y$58,Fertigation,3,FALSE)*AC$58+VLOOKUP(Y$59,Fertigation,3,FALSE)*AC$59+VLOOKUP(Y$60,Fertigation,3,FALSE)*AC$60+VLOOKUP(Y$61,Fertigation,3,FALSE)*AC$61 -> 0 | AI56: =VLOOKUP(Y$56,Fertigation,4,FALSE)*AC$56+VLOOKUP(Y$57,Fertigation,4,FALSE)*AC$57+VLOOKUP(Y$58,Fertigation,4,FALSE)*AC$58+VLOOKUP(Y$59,Fertigation,4,FALSE)*AC$59+VLOOKUP(Y$60,Fertigation,4,FALSE)*AC$60+VLOOKUP(Y$61,Fertigation,4,FALSE)*AC$61 -> 0
A57: None | B57: =VLOOKUP(A57,Foliars,14,FALSE) -> 0 | C57: 0 | D57: 1 | E57: 0 | F57: 0 | G57: 0 | M57: None | N57: =VLOOKUP(M57,Foliars,14,FALSE) -> 0 | O57: 0 | P57: 1 | Q57: 0 | R57: 0 | S57: 0 | Y57: None | Z57: =VLOOKUP(Y57,Foliars,14,FALSE) -> 0 | AA57: 0 | AB57: 1 | AC57: 0 | AD57: 0 | AE57: 0
A58: None | B58: =VLOOKUP(A58,Foliars,14,FALSE) -> 0 | C58: 0 | D58: 1 | E58: 0 | F58: 0 | G58: 0 | I58: S | J58: Ca | K58: Mg | M58: None | N58: =VLOOKUP(M58,Foliars,14,FALSE) -> 0 | O58: 0 | P58: 1 | Q58: 0 | R58: 0 | S58: 0 | U58: S | V58: Ca | W58: Mg | Y58: None | Z58: =VLOOKUP(Y58,Foliars,14,FALSE) -> 0 | AA58: 0 | AB58: 1 | AC58: 0 | AD58: 0 | AE58: 0 | AG58: S | AH58: Ca | AI58: Mg
A59: None | B59: =VLOOKUP(A59,Foliars,14,FALSE) -> 0 | C59: 0 | D59: 1 | E59: 0 | F59: 0 | G59: 0 | I59: =VLOOKUP(A$56,Fertigation,5,FALSE)*E$56+VLOOKUP(A$57,Fertigation,5,FALSE)*E$57+VLOOKUP(A$58,Fertigation,5,FALSE)*E$58+VLOOKUP(A$59,Fertigation,5,FALSE)*E$59+VLOOKUP(A$60,Fertigation,5,FALSE)*E$60+VLOOKUP(A$61,Fertigation,5,FALSE)*E$61 -> 0 | J59: =VLOOKUP(A$56,Fertigation,7,FALSE)*E$56+VLOOKUP(A$57,Fertigation,7,FALSE)*E$57+VLOOKUP(A$58,Fertigation,7,FALSE)*E$58+VLOOKUP(A$59,Fertigation,7,FALSE)*E$59+VLOOKUP(A$60,Fertigation,7,FALSE)*E$60+VLOOKUP(A$61,Fertigation,7,FALSE)*E$61 -> 0 | K59: =VLOOKUP(A$56,Fertigation,6,FALSE)*E$56+VLOOKUP(A$57,Fertigation,6,FALSE)*E$57+VLOOKUP(A$58,Fertigation,6,FALSE)*E$58+VLOOKUP(A$59,Fertigation,6,FALSE)*E$59+VLOOKUP(A$60,Fertigation,6,FALSE)*E$60+VLOOKUP(A$61,Fertigation,6,FALSE)*E$61 -> 0 | M59: None | N59: =VLOOKUP(M59,Foliars,14,FALSE) -> 0 | O59: 0 | P59: 1 | Q59: 0 | R59: 0 | S59: 0 | U59: =VLOOKUP(M$56,Fertigation,5,FALSE)*Q$56+VLOOKUP(M$57,Fertigation,5,FALSE)*Q$57+VLOOKUP(M$58,Fertigation,5,FALSE)*Q$58+VLOOKUP(M$59,Fertigation,5,FALSE)*Q$59+VLOOKUP(M$60,Fertigation,5,FALSE)*Q$60+VLOOKUP(M$61,Fertigation,5,FALSE)*Q$61 -> 0 | V59: =VLOOKUP(M$56,Fertigation,7,FALSE)*Q$56+VLOOKUP(M$57,Fertigation,7,FALSE)*Q$57+VLOOKUP(M$58,Fertigation,7,FALSE)*Q$58+VLOOKUP(M$59,Fertigation,7,FALSE)*Q$59+VLOOKUP(M$60,Fertigation,7,FALSE)*Q$60+VLOOKUP(M$61,Fertigation,7,FALSE)*Q$61 -> 0 | W59: =VLOOKUP(M$56,Fertigation,6,FALSE)*Q$56+VLOOKUP(M$57,Fertigation,6,FALSE)*Q$57+VLOOKUP(M$58,Fertigation,6,FALSE)*Q$58+VLOOKUP(M$59,Fertigation,6,FALSE)*Q$59+VLOOKUP(M$60,Fertigation,6,FALSE)*Q$60+VLOOKUP(M$61,Fertigation,6,FALSE)*Q$61 -> 0 | Y59: None | Z59: =VLOOKUP(Y59,Foliars,14,FALSE) -> 0 | AA59: 0 | AB59: 1 | AC59: 0 | AD59: 0 | AE59: 0 | AG59: =VLOOKUP(Y$56,Fertigation,5,FALSE)*AC$56+VLOOKUP(Y$57,Fertigation,5,FALSE)*AC$57+VLOOKUP(Y$58,Fertigation,5,FALSE)*AC$58+VLOOKUP(Y$59,Fertigation,5,FALSE)*AC$59+VLOOKUP(Y$60,Fertigation,5,FALSE)*AC$60+VLOOKUP(Y$61,Fertigation,5,FALSE)*AC$61 -> 0 | AH59: =VLOOKUP(Y$56,Fertigation,7,FALSE)*AC$56+VLOOKUP(Y$57,Fertigation,7,FALSE)*AC$57+VLOOKUP(Y$58,Fertigation,7,FALSE)*AC$58+VLOOKUP(Y$59,Fertigation,7,FALSE)*AC$59+VLOOKUP(Y$60,Fertigation,7,FALSE)*AC$60+VLOOKUP(Y$61,Fertigation,7,FALSE)*AC$61 -> 0 | AI59: =VLOOKUP(Y$56,Fertigation,6,FALSE)*AC$56+VLOOKUP(Y$57,Fertigation,6,FALSE)*AC$57+VLOOKUP(Y$58,Fertigation,6,FALSE)*AC$58+VLOOKUP(Y$59,Fertigation,6,FALSE)*AC$59+VLOOKUP(Y$60,Fertigation,6,FALSE)*AC$60+VLOOKUP(Y$61,Fertigation,6,FALSE)*AC$61 -> 0
A60: None | B60: =VLOOKUP(A60,Foliars,14,FALSE) -> 0 | C60: 0 | D60: 1 | E60: 0 | F60: 0 | G60: 0 | M60: None | N60: =VLOOKUP(M60,Foliars,14,FALSE) -> 0 | O60: 0 | P60: 1 | Q60: 0 | R60: 0 | S60: 0 | Y60: None | Z60: =VLOOKUP(Y60,Foliars,14,FALSE) -> 0 | AA60: 0 | AB60: 1 | AC60: 0 | AD60: 0 | AE60: 0
A61: None | B61: =VLOOKUP(A61,Foliars,14,FALSE) -> 0 | C61: 0 | D61: 1 | E61: 0 | F61: 0 | G61: 0 | I61: Z | J61: B | K61: Mn | M61: None | N61: =VLOOKUP(M61,Foliars,14,FALSE) -> 0 | O61: 0 | P61: 1 | Q61: 0 | R61: 0 | S61: 0 | U61: Z | V61: B | W61: Mn | Y61: None | Z61: =VLOOKUP(Y61,Foliars,14,FALSE) -> 0 | AA61: 0 | AB61: 1 | AC61: 0 | AD61: 0 | AE61: 0 | AG61: Z | AH61: B | AI61: Mn
I62: =VLOOKUP(A$56,Fertigation,8,FALSE)*E$56+VLOOKUP(A$57,Fertigation,8,FALSE)*E$57+VLOOKUP(A$58,Fertigation,8,FALSE)*E$58+VLOOKUP(A$59,Fertigation,8,FALSE)*E$59+VLOOKUP(A$60,Fertigation,8,FALSE)*E$60+VLOOKUP(A$61,Fertigation,8,FALSE)*E$61 -> 0 | J62: =VLOOKUP(A$56,Fertigation,9,FALSE)*E$56+VLOOKUP(A$57,Fertigation,9,FALSE)*E$57+VLOOKUP(A$58,Fertigation,9,FALSE)*E$58+VLOOKUP(A$59,Fertigation,9,FALSE)*E$59+VLOOKUP(A$60,Fertigation,9,FALSE)*E$60+VLOOKUP(A$61,Fertigation,9,FALSE)*E$61 -> 0 | K62: =VLOOKUP(A$56,Fertigation,10,FALSE)*E$56+VLOOKUP(A$57,Fertigation,10,FALSE)*E$57+VLOOKUP(A$58,Fertigation,10,FALSE)*E$58+VLOOKUP(A$59,Fertigation,10,FALSE)*E$59+VLOOKUP(A$60,Fertigation,10,FALSE)*E$60+VLOOKUP(A$61,Fertigation,10,FALSE)*E$61 -> 0 | U62: =VLOOKUP(M$56,Fertigation,8,FALSE)*Q$56+VLOOKUP(M$57,Fertigation,8,FALSE)*Q$57+VLOOKUP(M$58,Fertigation,8,FALSE)*Q$58+VLOOKUP(M$59,Fertigation,8,FALSE)*Q$59+VLOOKUP(M$60,Fertigation,8,FALSE)*Q$60+VLOOKUP(M$61,Fertigation,8,FALSE)*Q$61 -> 0 | V62: =VLOOKUP(M$56,Fertigation,9,FALSE)*Q$56+VLOOKUP(M$57,Fertigation,9,FALSE)*Q$57+VLOOKUP(M$58,Fertigation,9,FALSE)*Q$58+VLOOKUP(M$59,Fertigation,9,FALSE)*Q$59+VLOOKUP(M$60,Fertigation,9,FALSE)*Q$60+VLOOKUP(M$61,Fertigation,9,FALSE)*Q$61 -> 0 | W62: =VLOOKUP(M$56,Fertigation,10,FALSE)*Q$56+VLOOKUP(M$57,Fertigation,10,FALSE)*Q$57+VLOOKUP(M$58,Fertigation,10,FALSE)*Q$58+VLOOKUP(M$59,Fertigation,10,FALSE)*Q$59+VLOOKUP(M$60,Fertigation,10,FALSE)*Q$60+VLOOKUP(M$61,Fertigation,10,FALSE)*Q$61 -> 0 | AG62: =VLOOKUP(Y$56,Fertigation,8,FALSE)*AC$56+VLOOKUP(Y$57,Fertigation,8,FALSE)*AC$57+VLOOKUP(Y$58,Fertigation,8,FALSE)*AC$58+VLOOKUP(Y$59,Fertigation,8,FALSE)*AC$59+VLOOKUP(Y$60,Fertigation,8,FALSE)*AC$60+VLOOKUP(Y$61,Fertigation,8,FALSE)*AC$61 -> 0 | AH62: =VLOOKUP(Y$56,Fertigation,9,FALSE)*AC$56+VLOOKUP(Y$57,Fertigation,9,FALSE)*AC$57+VLOOKUP(Y$58,Fertigation,9,FALSE)*AC$58+VLOOKUP(Y$59,Fertigation,9,FALSE)*AC$59+VLOOKUP(Y$60,Fertigation,9,FALSE)*AC$60+VLOOKUP(Y$61,Fertigation,9,FALSE)*AC$61 -> 0 | AI62: =VLOOKUP(Y$56,Fertigation,10,FALSE)*AC$56+VLOOKUP(Y$57,Fertigation,10,FALSE)*AC$57+VLOOKUP(Y$58,Fertigation,10,FALSE)*AC$58+VLOOKUP(Y$59,Fertigation,10,FALSE)*AC$59+VLOOKUP(Y$60,Fertigation,10,FALSE)*AC$60+VLOOKUP(Y$61,Fertigation,10,FALSE)*AC$61 -> 0
A64: Total Fertigation Cost/Acre | G64: =SUM(G56:G61) -> 0 | I64: Cu | J64: Mo | K64: Fe | M64: Total Fertigation Cost/Acre | S64: =SUM(S56:S61) -> 0 | U64: Cu | V64: Mo | W64: Fe | Y64: Total Fertigation Cost/Acre | AE64: =SUM(AE56:AE61) -> 0 | AG64: Cu | AH64: Mo | AI64: Fe
I65: =VLOOKUP(A56,Fertigation,11,FALSE)*E56+VLOOKUP(A57,Fertigation,11,FALSE)*E57+VLOOKUP(A58,Fertigation,11,FALSE)*E58+VLOOKUP(A59,Fertigation,11,FALSE)*E59+VLOOKUP(A60,Fertigation,11,FALSE)*E60+VLOOKUP(A61,Fertigation,11,FALSE)*E61 -> 0 | J65: =VLOOKUP(A56,Fertigation,12,FALSE)*E56+VLOOKUP(A57,Fertigation,12,FALSE)*E57+VLOOKUP(A58,Fertigation,12,FALSE)*E58+VLOOKUP(A59,Fertigation,12,FALSE)*E59+VLOOKUP(A60,Fertigation,12,FALSE)*E60+VLOOKUP(A61,Fertigation,12,FALSE)*E61 -> 0 | K65: =VLOOKUP(A56,Fertigation,13,FALSE)*E56+VLOOKUP(A57,Fertigation,13,FALSE)*E57+VLOOKUP(A58,Fertigation,13,FALSE)*E58+VLOOKUP(A59,Fertigation,13,FALSE)*E59+VLOOKUP(A60,Fertigation,13,FALSE)*E60+VLOOKUP(A61,Fertigation,13,FALSE)*E61 -> 0 | U65: =VLOOKUP(M56,Fertigation,11,FALSE)*Q56+VLOOKUP(M57,Fertigation,11,FALSE)*Q57+VLOOKUP(M58,Fertigation,11,FALSE)*Q58+VLOOKUP(M59,Fertigation,11,FALSE)*Q59+VLOOKUP(M60,Fertigation,11,FALSE)*Q60+VLOOKUP(M61,Fertigation,11,FALSE)*Q61 -> 0 | V65: =VLOOKUP(M56,Fertigation,12,FALSE)*Q56+VLOOKUP(M57,Fertigation,12,FALSE)*Q57+VLOOKUP(M58,Fertigation,12,FALSE)*Q58+VLOOKUP(M59,Fertigation,12,FALSE)*Q59+VLOOKUP(M60,Fertigation,12,FALSE)*Q60+VLOOKUP(M61,Fertigation,12,FALSE)*Q61 -> 0 | W65: =VLOOKUP(M56,Fertigation,13,FALSE)*Q56+VLOOKUP(M57,Fertigation,13,FALSE)*Q57+VLOOKUP(M58,Fertigation,13,FALSE)*Q58+VLOOKUP(M59,Fertigation,13,FALSE)*Q59+VLOOKUP(M60,Fertigation,13,FALSE)*Q60+VLOOKUP(M61,Fertigation,13,FALSE)*Q61 -> 0 | AG65: =VLOOKUP(Y56,Fertigation,11,FALSE)*AC56+VLOOKUP(Y57,Fertigation,11,FALSE)*AC57+VLOOKUP(Y58,Fertigation,11,FALSE)*AC58+VLOOKUP(Y59,Fertigation,11,FALSE)*AC59+VLOOKUP(Y60,Fertigation,11,FALSE)*AC60+VLOOKUP(Y61,Fertigation,11,FALSE)*AC61 -> 0 | AH65: =VLOOKUP(Y56,Fertigation,12,FALSE)*AC56+VLOOKUP(Y57,Fertigation,12,FALSE)*AC57+VLOOKUP(Y58,Fertigation,12,FALSE)*AC58+VLOOKUP(Y59,Fertigation,12,FALSE)*AC59+VLOOKUP(Y60,Fertigation,12,FALSE)*AC60+VLOOKUP(Y61,Fertigation,12,FALSE)*AC61 -> 0 | AI65: =VLOOKUP(Y56,Fertigation,13,FALSE)*AC56+VLOOKUP(Y57,Fertigation,13,FALSE)*AC57+VLOOKUP(Y58,Fertigation,13,FALSE)*AC58+VLOOKUP(Y59,Fertigation,13,FALSE)*AC59+VLOOKUP(Y60,Fertigation,13,FALSE)*AC60+VLOOKUP(Y61,Fertigation,13,FALSE)*AC61 -> 0
A67: Total Fertilizer Cost/Acre | G67: =G38+G21+G51 -> 0 | M67: Total Fertilizer Cost/Acre | S67: =S38+S21+S51 -> 0 | Y67: Total Fertilizer Cost/Acre | AE67: =AE38+AE21+AE51 -> 0
E69: Total Nutrient Needs | I69: Total Fertilizer Program | Q69: Total Nutrient Needs | U69: Total Fertilizer Program | AC69: Total Nutrient Needs | AG69: Total Fertilizer Program
E70: Based on: | F70: Soil Test Based Recs | I70: Comparison 1 | Q70: Based on: | R70: Soil Test Based Recs | U70: Comparison 2 | AC70: Based on: | AD70: Soil Test Based Recs | AG70: Comparison 3
A71: Farm Name | E71: N | F71: P | G71: K | I71: N | J71: P | K71: K | M71: =A71 -> Farm Name | Q71: N | R71: P | S71: K | U71: N | V71: P | W71: K | Y71: =A71 -> Farm Name | AC71: N | AD71: P | AE71: K | AG71: N | AH71: P | AI71: K
A72: Farm Tract | E72: ='Nutrient Management'!$F$56 -> 0 | F72: ='Nutrient Management'!$G$56 -> 0 | G72: ='Nutrient Management'!$H$56 -> 0 | I72: =I43+I26+I6+I56 -> 0 | J72: =J43+J26+J6+J56 -> 0 | K72: =K43+K26+K6+K56 -> 0 | M72: =A72 -> Farm Tract | Q72: ='Nutrient Management'!$F$56 -> 0 | R72: ='Nutrient Management'!$G$56 -> 0 | S72: ='Nutrient Management'!$H$56 -> 0 | U72: =U43+U26+U6+U56 -> 0 | V72: =V43+V26+V6+V56 -> 0 | W72: =W43+W26+W6+W56 -> 0 | Y72: =A72 -> Farm Tract | AC72: ='Nutrient Management'!$F$56 -> 0 | AD72: ='Nutrient Management'!$G$56 -> 0 | AE72: ='Nutrient Management'!$H$56 -> 0 | AG72: =AG43+AG26+AG6+AG56 -> 0 | AH72: =AH43+AH26+AH6+AH56 -> 0 | AI72: =AI43+AI26+AI6+AI56 -> 0
A73: Farm Number | E73: S | F73: Ca | G73: Mg | I73: S | J73: Ca | K73: Mg | M73: Farm Number | Q73: S | R73: Ca | S73: Mg | U73: S | V73: Ca | W73: Mg | Y73: Farm Number | AC73: S | AD73: Ca | AE73: Mg | AG73: S | AH73: Ca | AI73: Mg
E74: ='Nutrient Management'!$F$59 -> 0 | F74: ='Nutrient Management'!$G$59 -> 0 | G74: ='Nutrient Management'!$H$59 -> 0 | I74: =I46+I29+I9+I59 -> 0 | J74: =J46+J29+J9+J59 -> 0 | K74: =K46+K29+K9+K59 -> 0 | Q74: ='Nutrient Management'!$F$59 -> 0 | R74: ='Nutrient Management'!$G$59 -> 0 | S74: ='Nutrient Management'!$H$59 -> 0 | U74: =U46+U29+U9+U59 -> 0 | V74: =V46+V29+V9+V59 -> 0 | W74: =W46+W29+W9+W59 -> 0 | AC74: ='Nutrient Management'!$F$59 -> 0 | AD74: ='Nutrient Management'!$G$59 -> 0 | AE74: ='Nutrient Management'!$H$59 -> 0 | AG74: =AG46+AG29+AG9+AG59 -> 0 | AH74: =AH46+AH29+AH9+AH59 -> 0 | AI74: =AI46+AI29+AI9+AI59 -> 0
E75: Z | F75: B | G75: Mn | I75: Z | J75: B | K75: Mn | Q75: Z | R75: B | S75: Mn | U75: Z | V75: B | W75: Mn | AC75: Z | AD75: B | AE75: Mn | AG75: Z | AH75: B | AI75: Mn
E76: ='Nutrient Management'!$F$61 -> 0 | F76: ='Nutrient Management'!$G$61 -> 0 | G76: ='Nutrient Management'!$H$61 -> 0 | I76: =I49+I32+I12+I62 -> 0 | J76: =J49+J32+J12+J62 -> 0 | K76: =K49+K32+K12+K62 -> 0 | Q76: ='Nutrient Management'!$F$61 -> 0 | R76: ='Nutrient Management'!$G$61 -> 0 | S76: ='Nutrient Management'!$H$61 -> 0 | U76: =U49+U32+U12+U62 -> 0 | V76: =V49+V32+V12+V62 -> 0 | W76: =W49+W32+W12+W62 -> 0 | AC76: ='Nutrient Management'!$F$61 -> 0 | AD76: ='Nutrient Management'!$G$61 -> 0 | AE76: ='Nutrient Management'!$H$61 -> 0 | AG76: =AG49+AG32+AG12+AG62 -> 0 | AH76: =AH49+AH32+AH12+AH62 -> 0 | AI76: =AI49+AI32+AI12+AI62 -> 0
E77: Cu | F77: Mo | G77: Fe | I77: Cu | J77: Mo | K77: Fe | Q77: Cu | R77: Mo | S77: Fe | U77: Cu | V77: Mo | W77: Fe | AC77: Cu | AD77: Mo | AE77: Fe | AG77: Cu | AH77: Mo | AI77: Fe
E78: ='Nutrient Management'!$F$63 -> 0 | F78: ='Nutrient Management'!$G$63 -> 0 | G78: ='Nutrient Management'!$H$63 -> 0 | I78: =I65+I52+I35+I15 -> 0 | J78: =J65+J52+J35+J15 -> 0 | K78: 0 | Q78: ='Nutrient Management'!$F$63 -> 0 | R78: ='Nutrient Management'!$G$63 -> 0 | S78: ='Nutrient Management'!$H$63 -> 0 | U78: =U65+U52+U35+U15 -> 0 | V78: =V65+V52+V35+V15 -> 0 | W78: 0 | AC78: ='Nutrient Management'!$F$63 -> 0 | AD78: ='Nutrient Management'!$G$63 -> 0 | AE78: ='Nutrient Management'!$H$63 -> 0 | AG78: =AG65+AG52+AG35+AG15 -> 0 | AH78: =AH65+AH52+AH35+AH15 -> 0 | AI78: 0
E79: * from Nutrient Management tab | Q79: * from Nutrient Management tab | AC79: * from Nutrient Management tab

Sheet Fertilizer Plan (Fruit 3)
A1: ='Nutrient Management'!J2 -> Enter Crop Name | M1: =A1 -> Enter Crop Name | Y1: =A1 -> Enter Crop Name
A2: Comparison Plan 1 | M2: Comparison Plan 2 | Y2: Comparison Plan 3
A3: 1st Application (i.e., Pre-Plant or Broadcast Fertilizer) | M3: 1st Application (i.e., Pre-Plant or Broadcast Fertilizer) | Y3: 1st Application (i.e., Pre-Plant or Broadcast Fertilizer)
A4: Fertilizer Source | B4: Purchase Units | C4: Package Price (Gals, Lbs, etc.) | D4: Units/Pkg | E4: Rate/Acre | F4: Units | G4: Cost | M4: Fertilizer Source | N4: Purchase Units | O4: Package Price (Gals, Lbs, etc.) | P4: Units/Pkg | Q4: Rate/Acre | R4: Units | S4: Cost | Y4: Fertilizer Source | Z4: Purchase Units | AA4: Package Price (Gals, Lbs, etc.) | AB4: Units/Pkg | AC4: Rate/Acre | AD4: Units | AE4: Cost
A5: Macronutrients (drop down menu) | E5: (Enter Below) | I5: N | J5: P | K5: K | M5: Macronutrients (drop down menu) | Q5: (Enter Below) | U5: N | V5: P | W5: K | Y5: Macronutrients (drop down menu) | AC5: (Enter Below) | AG5: N | AH5: P | AI5: K
A6: None | B6: =VLOOKUP(A6,Macronutrients,18,FALSE) -> 0 | C6: =VLOOKUP(A6,Macronutrients,18,FALSE) -> 0 | D6: =VLOOKUP(A6,Macronutrients,16,FALSE) -> 1 | E6: 0 | F6: =VLOOKUP(A6,Macronutrients,15,FALSE) -> 0 | G6: =(E6*VLOOKUP(A6,Macronutrients,14,FALSE)/D6)*C6 -> 0 | I6: =VLOOKUP(A6,Macronutrients,2,FALSE)*E6+VLOOKUP(A7,Macronutrients,2,FALSE)*E7+VLOOKUP(A8,Macronutrients,2,FALSE)*E8+VLOOKUP(A9,Macronutrients,2,FALSE)*E9+VLOOKUP(A10,Macronutrients,2,FALSE)*E10+VLOOKUP(A11,Macronutrients,2,FALSE)*E11+VLOOKUP(A14,Micronutrients,2,FALSE)*E14+VLOOKUP(A15,Micronutrients,2,FALSE)*E15+VLOOKUP(A16,Micronutrients,2,FALSE)*E16+VLOOKUP(A17,Micronutrients,2,FALSE)*E17 -> 0 | J6: =VLOOKUP(A6,Macronutrients,3,FALSE)*E6+VLOOKUP(A7,Macronutrients,3,FALSE)*E7+VLOOKUP(A8,Macronutrients,3,FALSE)*E8+VLOOKUP(A9,Macronutrients,3,FALSE)*E9+VLOOKUP(A10,Macronutrients,3,FALSE)*E10+VLOOKUP(A11,Macronutrients,3,FALSE)*E11+VLOOKUP(A14,Micronutrients,3,FALSE)*E14+VLOOKUP(A15,Micronutrients,3,FALSE)*E15+VLOOKUP(A16,Micronutrients,3,FALSE)*E16+VLOOKUP(A17,Micronutrients,3,FALSE)*E17 -> 0 | K6: =VLOOKUP(A6,Macronutrients,4,FALSE)*E6+VLOOKUP(A7,Macronutrients,4,FALSE)*E7+VLOOKUP(A8,Macronutrients,4,FALSE)*E8+VLOOKUP(A9,Macronutrients,4,FALSE)*E9+VLOOKUP(A10,Macronutrients,4,FALSE)*E10+VLOOKUP(A11,Macronutrients,4,FALSE)*E11+VLOOKUP(A14,Micronutrients,4,FALSE)*E14+VLOOKUP(A15,Micronutrients,4,FALSE)*E15+VLOOKUP(A16,Micronutrients,4,FALSE)*E16+VLOOKUP(A17,Micronutrients,4,FALSE)*E17 -> 0 | M6: None | N6: =VLOOKUP(M6,Macronutrients,14,FALSE) -> 0 | O6: =VLOOKUP(M6,Macronutrients,18,FALSE) -> 0 | P6: =VLOOKUP(M6,Macronutrients,16,FALSE) -> 1 | Q6: 0 | R6: =VLOOKUP(M6,Macronutrients,15,FALSE) -> 0 | S6: =(Q6*VLOOKUP(M6,Macronutrients,14,FALSE)/P6)*O6 -> 0 | U6: =VLOOKUP(M6,Macronutrients,2,FALSE)*Q6+VLOOKUP(M7,Macronutrients,2,FALSE)*Q7+VLOOKUP(M8,Macronutrients,2,FALSE)*Q8+VLOOKUP(M9,Macronutrients,2,FALSE)*Q9+VLOOKUP(M10,Macronutrients,2,FALSE)*Q10+VLOOKUP(M11,Macronutrients,2,FALSE)*Q11+VLOOKUP(M14,Micronutrients,2,FALSE)*Q14+VLOOKUP(M15,Micronutrients,2,FALSE)*Q15+VLOOKUP(M16,Micronutrients,2,FALSE)*Q16+VLOOKUP(M17,Micronutrients,2,FALSE)*Q17 -> 0 | V6: =VLOOKUP(M6,Macronutrients,3,FALSE)*Q6+VLOOKUP(M7,Macronutrients,3,FALSE)*Q7+VLOOKUP(M8,Macronutrients,3,FALSE)*Q8+VLOOKUP(M9,Macronutrients,3,FALSE)*Q9+VLOOKUP(M10,Macronutrients,3,FALSE)*Q10+VLOOKUP(M11,Macronutrients,3,FALSE)*Q11+VLOOKUP(M14,Micronutrients,3,FALSE)*Q14+VLOOKUP(M15,Micronutrients,3,FALSE)*Q15+VLOOKUP(M16,Micronutrients,3,FALSE)*Q16+VLOOKUP(M17,Micronutrients,3,FALSE)*Q17 -> 0 | W6: =VLOOKUP(M6,Macronutrients,4,FALSE)*Q6+VLOOKUP(M7,Macronutrients,4,FALSE)*Q7+VLOOKUP(M8,Macronutrients,4,FALSE)*Q8+VLOOKUP(M9,Macronutrients,4,FALSE)*Q9+VLOOKUP(M10,Macronutrients,4,FALSE)*Q10+VLOOKUP(M11,Macronutrients,4,FALSE)*Q11+VLOOKUP(M14,Micronutrients,4,FALSE)*Q14+VLOOKUP(M15,Micronutrients,4,FALSE)*Q15+VLOOKUP(M16,Micronutrients,4,FALSE)*Q16+VLOOKUP(M17,Micronutrients,4,FALSE)*Q17 -> 0 | Y6: None | Z6: =VLOOKUP(Y6,Macronutrients,14,FALSE) -> 0 | AA6: =VLOOKUP(Y6,Macronutrients,18,FALSE) -> 0 | AB6: =VLOOKUP(Y6,Macronutrients,16,FALSE) -> 1 | AC6: 0 | AD6: =VLOOKUP(Y6,Macronutrients,15,FALSE) -> 0 | AE6: =(AC6*VLOOKUP(Y6,Macronutrients,14,FALSE)/AB6)*AA6 -> 0 | AG6: =VLOOKUP(Y6,Macronutrients,2,FALSE)*AC6+VLOOKUP(Y7,Macronutrients,2,FALSE)*AC7+VLOOKUP(Y8,Macronutrients,2,FALSE)*AC8+VLOOKUP(Y9,Macronutrients,2,FALSE)*AC9+VLOOKUP(Y10,Macronutrients,2,FALSE)*AC10+VLOOKUP(Y11,Macronutrients,2,FALSE)*AC11+VLOOKUP(Y14,Micronutrients,2,FALSE)*AC14+VLOOKUP(Y15,Micronutrients,2,FALSE)*AC15+VLOOKUP(Y16,Micronutrients,2,FALSE)*AC16+VLOOKUP(Y17,Micronutrients,2,FALSE)*AC17 -> 0 | AH6: =VLOOKUP(Y6,Macronutrients,3,FALSE)*AC6+VLOOKUP(Y7,Macronutrients,3,FALSE)*AC7+VLOOKUP(Y8,Macronutrients,3,FALSE)*AC8+VLOOKUP(Y9,Macronutrients,3,FALSE)*AC9+VLOOKUP(Y10,Macronutrients,3,FALSE)*AC10+VLOOKUP(Y11,Macronutrients,3,FALSE)*AC11+VLOOKUP(Y14,Micronutrients,3,FALSE)*AC14+VLOOKUP(Y15,Micronutrients,3,FALSE)*AC15+VLOOKUP(Y16,Micronutrients,3,FALSE)*AC16+VLOOKUP(Y17,Micronutrients,3,FALSE)*AC17 -> 0 | AI6: =VLOOKUP(Y6,Macronutrients,4,FALSE)*AC6+VLOOKUP(Y7,Macronutrients,4,FALSE)*AC7+VLOOKUP(Y8,Macronutrients,4,FALSE)*AC8+VLOOKUP(Y9,Macronutrients,4,FALSE)*AC9+VLOOKUP(Y10,Macronutrients,4,FALSE)*AC10+VLOOKUP(Y11,Macronutrients,4,FALSE)*AC11+VLOOKUP(Y14,Micronutrients,4,FALSE)*AC14+VLOOKUP(Y15,Micronutrients,4,FALSE)*AC15+VLOOKUP(Y16,Micronutrients,4,FALSE)*AC16+VLOOKUP(Y17,Micronutrients,4,FALSE)*AC17 -> 0
A7: None | B7: =VLOOKUP(A7,Macronutrients,18,FALSE) -> 0 | C7: 0 | D7: 1 | E7: 0 | F7: 0 | G7: 0 | M7: None | N7: 0 | O7: 0 | P7: 1 | Q7: 0 | R7: 0 | S7: 0 | Y7: None | Z7: 0 | AA7: 0 | AB7: 1 | AC7: 0 | AD7: 0 | AE7: 0
A8: None | B8: =VLOOKUP(A8,Macronutrients,14,FALSE) -> 0 | C8: 0 | D8: 1 | E8: 0 | F8: 0 | G8: 0 | I8: S | J8: Ca | K8: Mg | M8: None | N8: 0 | O8: 0 | P8: 1 | Q8: 0 | R8: 0 | S8: 0 | U8: S | V8: Ca | W8: Mg | Y8: None | Z8: 0 | AA8: 0 | AB8: 1 | AC8: 0 | AD8: 0 | AE8: 0 | AG8: S | AH8: Ca | AI8: Mg
A9: None | B9: 0 | C9: 0 | D9: 1 | E9: 0 | F9: 0 | G9: 0 | I9: =VLOOKUP(A6,Macronutrients,5,FALSE)*E6+VLOOKUP(A7,Macronutrients,5,FALSE)*E7+VLOOKUP(A8,Macronutrients,5,FALSE)*E8+VLOOKUP(A9,Macronutrients,5,FALSE)*E9+VLOOKUP(A10,Macronutrients,5,FALSE)*E10+VLOOKUP(A11,Macronutrients,5,FALSE)*E11+VLOOKUP(A14,Micronutrients,5,FALSE)*E14+VLOOKUP(A15,Micronutrients,5,FALSE)*E15+VLOOKUP(A16,Micronutrients,5,FALSE)*E16+VLOOKUP(A17,Micronutrients,5,FALSE)*E17+VLOOKUP(A20,Lime,5,FALSE)*E20 -> 0 | J9: =VLOOKUP(A6,Macronutrients,7,FALSE)*E6+VLOOKUP(A7,Macronutrients,7,FALSE)*E7+VLOOKUP(A8,Macronutrients,7,FALSE)*E8+VLOOKUP(A9,Macronutrients,7,FALSE)*E9+VLOOKUP(A10,Macronutrients,7,FALSE)*E10+VLOOKUP(A11,Macronutrients,7,FALSE)*E11+VLOOKUP(A14,Micronutrients,7,FALSE)*E14+VLOOKUP(A15,Micronutrients,7,FALSE)*E15+VLOOKUP(A16,Micronutrients,7,FALSE)*E16+VLOOKUP(A17,Micronutrients,7,FALSE)*E17+VLOOKUP(A20,Lime,7,FALSE)*E20 -> 0 | K9: =VLOOKUP($A6,Macronutrients,6,FALSE)*$E$6+VLOOKUP($A7,Macronutrients,6,FALSE)*$E$7+VLOOKUP($A8,Macronutrients,6,FALSE)*$E$8+VLOOKUP($A9,Macronutrients,6,FALSE)*$E$9+VLOOKUP($A10,Macronutrients,6,FALSE)*$E$10+VLOOKUP($A11,Macronutrients,6,FALSE)*$E$11+VLOOKUP($A14,Micronutrients,6,FALSE)*$E$14+VLOOKUP($A15,Micronutrients,6,FALSE)*E15+VLOOKUP($A16,Micronutrients,6,FALSE)*$E$16+VLOOKUP($A17,Micronutrients,6,FALSE)*$E$17+VLOOKUP($A20,Lime,6,FALSE)*E20 -> 0 | M9: None | N9: 0 | O9: 0 | P9: 1 | Q9: 0 | R9: 0 | S9: 0 | U9: =VLOOKUP(M6,Macronutrients,5,FALSE)*Q6+VLOOKUP(M7,Macronutrients,5,FALSE)*Q7+VLOOKUP(M8,Macronutrients,5,FALSE)*Q8+VLOOKUP(M9,Macronutrients,5,FALSE)*Q9+VLOOKUP(M10,Macronutrients,5,FALSE)*Q10+VLOOKUP(M11,Macronutrients,5,FALSE)*Q11+VLOOKUP(M14,Micronutrients,5,FALSE)*Q14+VLOOKUP(M15,Micronutrients,5,FALSE)*Q15+VLOOKUP(M16,Micronutrients,5,FALSE)*Q16+VLOOKUP(M17,Micronutrients,5,FALSE)*Q17+VLOOKUP(M20,Lime,5,FALSE)*Q20 -> 0 | V9: =VLOOKUP(M6,Macronutrients,7,FALSE)*Q6+VLOOKUP(M7,Macronutrients,7,FALSE)*Q7+VLOOKUP(M8,Macronutrients,7,FALSE)*Q8+VLOOKUP(M9,Macronutrients,7,FALSE)*Q9+VLOOKUP(M10,Macronutrients,7,FALSE)*Q10+VLOOKUP(M11,Macronutrients,7,FALSE)*Q11+VLOOKUP(M14,Micronutrients,7,FALSE)*Q14+VLOOKUP(M15,Micronutrients,7,FALSE)*Q15+VLOOKUP(M16,Micronutrients,7,FALSE)*Q16+VLOOKUP(M17,Micronutrients,7,FALSE)*Q17+VLOOKUP(M20,Lime,7,FALSE)*Q20 -> 0 | W9: =VLOOKUP($A6,Macronutrients,6,FALSE)*$E$6+VLOOKUP($A7,Macronutrients,6,FALSE)*$E$7+VLOOKUP($A8,Macronutrients,6,FALSE)*$E$8+VLOOKUP($A9,Macronutrients,6,FALSE)*$E$9+VLOOKUP($A10,Macronutrients,6,FALSE)*$E$10+VLOOKUP($A11,Macronutrients,6,FALSE)*$E$11+VLOOKUP($A14,Micronutrients,6,FALSE)*$E$14+VLOOKUP($A15,Micronutrients,6,FALSE)*Q15+VLOOKUP($A16,Micronutrients,6,FALSE)*$E$16+VLOOKUP($A17,Micronutrients,6,FALSE)*$E$17+VLOOKUP($A20,Lime,6,FALSE)*Q20 -> 0 | Y9: None | Z9: 0 | AA9: 0 | AB9: 1 | AC9: 0 | AD9: 0 | AE9: 0 | AG9: =VLOOKUP(Y6,Macronutrients,5,FALSE)*AC6+VLOOKUP(Y7,Macronutrients,5,FALSE)*AC7+VLOOKUP(Y8,Macronutrients,5,FALSE)*AC8+VLOOKUP(Y9,Macronutrients,5,FALSE)*AC9+VLOOKUP(Y10,Macronutrients,5,FALSE)*AC10+VLOOKUP(Y11,Macronutrients,5,FALSE)*AC11+VLOOKUP(Y14,Micronutrients,5,FALSE)*AC14+VLOOKUP(Y15,Micronutrients,5,FALSE)*AC15+VLOOKUP(Y16,Micronutrients,5,FALSE)*AC16+VLOOKUP(Y17,Micronutrients,5,FALSE)*AC17+VLOOKUP(Y20,Lime,5,FALSE)*AC20 -> 0 | AH9: =VLOOKUP(Y6,Macronutrients,7,FALSE)*AC6+VLOOKUP(Y7,Macronutrients,7,FALSE)*AC7+VLOOKUP(Y8,Macronutrients,7,FALSE)*AC8+VLOOKUP(Y9,Macronutrients,7,FALSE)*AC9+VLOOKUP(Y10,Macronutrients,7,FALSE)*AC10+VLOOKUP(Y11,Macronutrients,7,FALSE)*AC11+VLOOKUP(Y14,Micronutrients,7,FALSE)*AC14+VLOOKUP(Y15,Micronutrients,7,FALSE)*AC15+VLOOKUP(Y16,Micronutrients,7,FALSE)*AC16+VLOOKUP(Y17,Micronutrients,7,FALSE)*AC17+VLOOKUP(Y20,Lime,7,FALSE)*AC20 -> 0 | AI9: =VLOOKUP($A6,Macronutrients,6,FALSE)*$E$6+VLOOKUP($A7,Macronutrients,6,FALSE)*$E$7+VLOOKUP($A8,Macronutrients,6,FALSE)*$E$8+VLOOKUP($A9,Macronutrients,6,FALSE)*$E$9+VLOOKUP($A10,Macronutrients,6,FALSE)*$E$10+VLOOKUP($A11,Macronutrients,6,FALSE)*$E$11+VLOOKUP($A14,Micronutrients,6,FALSE)*$E$14+VLOOKUP($A15,Micronutrients,6,FALSE)*AC15+VLOOKUP($A16,Micronutrients,6,FALSE)*$E$16+VLOOKUP($A17,Micronutrients,6,FALSE)*$E$17+VLOOKUP($A20,Lime,6,FALSE)*AC20 -> 0
A10: None | B10: 0 | C10: 0 | D10: 1 | E10: 0 | F10: 0 | G10: 0 | M10: None | N10: 0 | O10: 0 | P10: 1 | Q10: 0 | R10: 0 | S10: 0 | Y10: None | Z10: 0 | AA10: 0 | AB10: 1 | AC10: 0 | AD10: 0 | AE10: 0
A11: None | B11: 0 | C11: 0 | D11: 1 | E11: 0 | F11: 0 | G11: 0 | I11: Z | J11: B | K11: Mn | M11: None | N11: 0 | O11: 0 | P11: 1 | Q11: 0 | R11: 0 | S11: 0 | U11: Z | V11: B | W11: Mn | Y11: None | Z11: 0 | AA11: 0 | AB11: 1 | AC11: 0 | AD11: 0 | AE11: 0 | AG11: Z | AH11: B | AI11: Mn
I12: =VLOOKUP(A6,Macronutrients,8,FALSE)*E6+VLOOKUP(A7,Macronutrients,8,FALSE)*E7+VLOOKUP(A8,Macronutrients,8,FALSE)*E8+VLOOKUP(A9,Macronutrients,8,FALSE)*E9+VLOOKUP(A10,Macronutrients,8,FALSE)*E10+VLOOKUP(A11,Macronutrients,8,FALSE)*E11+VLOOKUP(A14,Micronutrients,8,FALSE)*E14+VLOOKUP(A15,Micronutrients,8,FALSE)*E15+VLOOKUP(A16,Micronutrients,8,FALSE)*E16+VLOOKUP(A17,Micronutrients,8,FALSE)*E17+VLOOKUP(A20,Lime,8,FALSE)*E20 -> 0 | J12: =VLOOKUP(A6,Macronutrients,9,FALSE)*E6+VLOOKUP(A7,Macronutrients,9,FALSE)*E7+VLOOKUP(A8,Macronutrients,9,FALSE)*E8+VLOOKUP(A9,Macronutrients,9,FALSE)*E9+VLOOKUP(A10,Macronutrients,9,FALSE)*E10+VLOOKUP(A11,Macronutrients,9,FALSE)*E11+VLOOKUP(A14,Micronutrients,9,FALSE)*E14+VLOOKUP(A15,Micronutrients,9,FALSE)*E15+VLOOKUP(A16,Micronutrients,9,FALSE)*E16+VLOOKUP(A17,Micronutrients,9,FALSE)*E17+VLOOKUP(A20,Lime,9,FALSE)*E20 -> 0 | K12: =VLOOKUP(A6,Macronutrients,10,FALSE)*E6+VLOOKUP(A7,Macronutrients,10,FALSE)*E7+VLOOKUP(A8,Macronutrients,10,FALSE)*E8+VLOOKUP(A9,Macronutrients,10,FALSE)*E9+VLOOKUP(A10,Macronutrients,10,FALSE)*E10+VLOOKUP(A11,Macronutrients,10,FALSE)*E11+VLOOKUP(A14,Micronutrients,10,FALSE)*E14+VLOOKUP(A15,Micronutrients,10,FALSE)*E15+VLOOKUP(A16,Micronutrients,10,FALSE)*E16+VLOOKUP(A17,Micronutrients,10,FALSE)*E17+VLOOKUP(A20,Lime,10,FALSE)*E20 -> 0 | U12: =VLOOKUP(M6,Macronutrients,8,FALSE)*Q6+VLOOKUP(M7,Macronutrients,8,FALSE)*Q7+VLOOKUP(M8,Macronutrients,8,FALSE)*Q8+VLOOKUP(M9,Macronutrients,8,FALSE)*Q9+VLOOKUP(M10,Macronutrients,8,FALSE)*Q10+VLOOKUP(M11,Macronutrients,8,FALSE)*Q11+VLOOKUP(M14,Micronutrients,8,FALSE)*Q14+VLOOKUP(M15,Micronutrients,8,FALSE)*Q15+VLOOKUP(M16,Micronutrients,8,FALSE)*Q16+VLOOKUP(M17,Micronutrients,8,FALSE)*Q17+VLOOKUP(M20,Lime,8,FALSE)*Q20 -> 0 | V12: =VLOOKUP(M6,Macronutrients,9,FALSE)*Q6+VLOOKUP(M7,Macronutrients,9,FALSE)*Q7+VLOOKUP(M8,Macronutrients,9,FALSE)*Q8+VLOOKUP(M9,Macronutrients,9,FALSE)*Q9+VLOOKUP(M10,Macronutrients,9,FALSE)*Q10+VLOOKUP(M11,Macronutrients,9,FALSE)*Q11+VLOOKUP(M14,Micronutrients,9,FALSE)*Q14+VLOOKUP(M15,Micronutrients,9,FALSE)*Q15+VLOOKUP(M16,Micronutrients,9,FALSE)*Q16+VLOOKUP(M17,Micronutrients,9,FALSE)*Q17+VLOOKUP(M20,Lime,9,FALSE)*Q20 -> 0 | W12: =VLOOKUP(M6,Macronutrients,10,FALSE)*Q6+VLOOKUP(M7,Macronutrients,10,FALSE)*Q7+VLOOKUP(M8,Macronutrients,10,FALSE)*Q8+VLOOKUP(M9,Macronutrients,10,FALSE)*Q9+VLOOKUP(M10,Macronutrients,10,FALSE)*Q10+VLOOKUP(M11,Macronutrients,10,FALSE)*Q11+VLOOKUP(M14,Micronutrients,10,FALSE)*Q14+VLOOKUP(M15,Micronutrients,10,FALSE)*Q15+VLOOKUP(M16,Micronutrients,10,FALSE)*Q16+VLOOKUP(M17,Micronutrients,10,FALSE)*Q17+VLOOKUP(M20,Lime,10,FALSE)*Q20 -> 0 | AG12: =VLOOKUP(Y6,Macronutrients,8,FALSE)*AC6+VLOOKUP(Y7,Macronutrients,8,FALSE)*AC7+VLOOKUP(Y8,Macronutrients,8,FALSE)*AC8+VLOOKUP(Y9,Macronutrients,8,FALSE)*AC9+VLOOKUP(Y10,Macronutrients,8,FALSE)*AC10+VLOOKUP(Y11,Macronutrients,8,FALSE)*AC11+VLOOKUP(Y14,Micronutrients,8,FALSE)*AC14+VLOOKUP(Y15,Micronutrients,8,FALSE)*AC15+VLOOKUP(Y16,Micronutrients,8,FALSE)*AC16+VLOOKUP(Y17,Micronutrients,8,FALSE)*AC17+VLOOKUP(Y20,Lime,8,FALSE)*AC20 -> 0 | AH12: =VLOOKUP(Y6,Macronutrients,9,FALSE)*AC6+VLOOKUP(Y7,Macronutrients,9,FALSE)*AC7+VLOOKUP(Y8,Macronutrients,9,FALSE)*AC8+VLOOKUP(Y9,Macronutrients,9,FALSE)*AC9+VLOOKUP(Y10,Macronutrients,9,FALSE)*AC10+VLOOKUP(Y11,Macronutrients,9,FALSE)*AC11+VLOOKUP(Y14,Micronutrients,9,FALSE)*AC14+VLOOKUP(Y15,Micronutrients,9,FALSE)*AC15+VLOOKUP(Y16,Micronutrients,9,FALSE)*AC16+VLOOKUP(Y17,Micronutrients,9,FALSE)*AC17+VLOOKUP(Y20,Lime,9,FALSE)*AC20 -> 0 | AI12: =VLOOKUP(Y6,Macronutrients,10,FALSE)*AC6+VLOOKUP(Y7,Macronutrients,10,FALSE)*AC7+VLOOKUP(Y8,Macronutrients,10,FALSE)*AC8+VLOOKUP(Y9,Macronutrients,10,FALSE)*AC9+VLOOKUP(Y10,Macronutrients,10,FALSE)*AC10+VLOOKUP(Y11,Macronutrients,10,FALSE)*AC11+VLOOKUP(Y14,Micronutrients,10,FALSE)*AC14+VLOOKUP(Y15,Micronutrients,10,FALSE)*AC15+VLOOKUP(Y16,Micronutrients,10,FALSE)*AC16+VLOOKUP(Y17,Micronutrients,10,FALSE)*AC17+VLOOKUP(Y20,Lime,10,FALSE)*AC20 -> 0
A13: Micronutrients (drop down menu) | M13: Micronutrients (drop down menu) | Y13: Micronutrients (drop down menu)
A14: None | B14: =VLOOKUP($A14,Micronutrients,18,FALSE) -> 0 | C14: =VLOOKUP(A14,Micronutrients,18,FALSE) -> 0 | D14: =VLOOKUP(A14,Micronutrients,16,FALSE) -> 1 | E14: 0 | F14: =VLOOKUP(A14,Micronutrients,15,FALSE) -> 0 | G14: =(E14*VLOOKUP(A14,Micronutrients,14,FALSE)/D14)*C14 -> 0 | I14: Cu | J14: Mo | K14: Fe | M14: None | N14: =VLOOKUP($A14,Micronutrients,14,FALSE) -> 0 | O14: =VLOOKUP(M14,Micronutrients,18,FALSE) -> 0 | P14: =VLOOKUP(M14,Micronutrients,16,FALSE) -> 1 | Q14: 0 | R14: =VLOOKUP(M14,Micronutrients,15,FALSE) -> 0 | S14: =(Q14*VLOOKUP(M14,Micronutrients,14,FALSE)/P14)*O14 -> 0 | U14: Cu | V14: Mo | W14: Fe | Y14: None | Z14: =VLOOKUP($A14,Micronutrients,14,FALSE) -> 0 | AA14: =VLOOKUP(Y14,Micronutrients,18,FALSE) -> 0 | AB14: =VLOOKUP(Y14,Micronutrients,16,FALSE) -> 1 | AC14: 0 | AD14: =VLOOKUP(Y14,Micronutrients,15,FALSE) -> 0 | AE14: =(AC14*VLOOKUP(Y14,Micronutrients,14,FALSE)/AB14)*AA14 -> 0 | AG14: Cu | AH14: Mo | AI14: Fe
A15: None | B15: =VLOOKUP($A15,Micronutrients,14,FALSE) -> 0 | C15: =VLOOKUP(A15,Micronutrients,18,FALSE) -> 0 | D15: =VLOOKUP(A15,Micronutrients,16,FALSE) -> 1 | E15: 0 | F15: =VLOOKUP(A15,Micronutrients,15,FALSE) -> 0 | G15: =(E15*VLOOKUP(A15,Micronutrients,14,FALSE)/D15)*C15 -> 0 | I15: =VLOOKUP(A6,Macronutrients,11,FALSE)*E6+VLOOKUP(A7,Macronutrients,11,FALSE)*E7+VLOOKUP(A8,Macronutrients,11,FALSE)*E8+VLOOKUP(A9,Macronutrients,11,FALSE)*E9+VLOOKUP(A10,Macronutrients,11,FALSE)*E10+VLOOKUP(A11,Macronutrients,11,FALSE)*E11+VLOOKUP(A14,Micronutrients,11,FALSE)*E14+VLOOKUP(A15,Micronutrients,11,FALSE)*E15+VLOOKUP(A16,Micronutrients,11,FALSE)*E16+VLOOKUP(A17,Micronutrients,11,FALSE)*E17+VLOOKUP(A20,Lime,11,FALSE)*E20 -> 0 | J15: =VLOOKUP(A6,Macronutrients,12,FALSE)*E6+VLOOKUP(A7,Macronutrients,12,FALSE)*E7+VLOOKUP(A8,Macronutrients,12,FALSE)*E8+VLOOKUP(A9,Macronutrients,12,FALSE)*E9+VLOOKUP(A10,Macronutrients,12,FALSE)*E10+VLOOKUP(A11,Macronutrients,12,FALSE)*E11+VLOOKUP(A14,Micronutrients,12,FALSE)*E14+VLOOKUP(A15,Micronutrients,12,FALSE)*E15+VLOOKUP(A16,Micronutrients,12,FALSE)*E16+VLOOKUP(A17,Micronutrients,12,FALSE)*E17+VLOOKUP(A20,Lime,12,FALSE)*E20 -> 0 | K15: =VLOOKUP(A6,Macronutrients,13,FALSE)*E6+VLOOKUP(A7,Macronutrients,13,FALSE)*E7+VLOOKUP(A8,Macronutrients,13,FALSE)*E8+VLOOKUP(A9,Macronutrients,13,FALSE)*E9+VLOOKUP(A10,Macronutrients,13,FALSE)*E10+VLOOKUP(A11,Macronutrients,13,FALSE)*E11+VLOOKUP(A14,Micronutrients,13,FALSE)*E14+VLOOKUP(A15,Micronutrients,13,FALSE)*E15+VLOOKUP(A16,Micronutrients,13,FALSE)*E16+VLOOKUP(A17,Micronutrients,13,FALSE)*E17+VLOOKUP(A20,Lime,13,FALSE)*E20 -> 0 | M15: None | N15: =VLOOKUP($A15,Micronutrients,14,FALSE) -> 0 | O15: =VLOOKUP(M15,Micronutrients,18,FALSE) -> 0 | P15: =VLOOKUP(M15,Micronutrients,16,FALSE) -> 1 | Q15: 0 | R15: =VLOOKUP(M15,Micronutrients,15,FALSE) -> 0 | S15: =(Q15*VLOOKUP(M15,Micronutrients,14,FALSE)/P15)*O15 -> 0 | U15: =VLOOKUP(M6,Macronutrients,11,FALSE)*Q6+VLOOKUP(M7,Macronutrients,11,FALSE)*Q7+VLOOKUP(M8,Macronutrients,11,FALSE)*Q8+VLOOKUP(M9,Macronutrients,11,FALSE)*Q9+VLOOKUP(M10,Macronutrients,11,FALSE)*Q10+VLOOKUP(M11,Macronutrients,11,FALSE)*Q11+VLOOKUP(M14,Micronutrients,11,FALSE)*Q14+VLOOKUP(M15,Micronutrients,11,FALSE)*Q15+VLOOKUP(M16,Micronutrients,11,FALSE)*Q16+VLOOKUP(M17,Micronutrients,11,FALSE)*Q17+VLOOKUP(M20,Lime,11,FALSE)*Q20 -> 0 | V15: =VLOOKUP(M6,Macronutrients,12,FALSE)*Q6+VLOOKUP(M7,Macronutrients,12,FALSE)*Q7+VLOOKUP(M8,Macronutrients,12,FALSE)*Q8+VLOOKUP(M9,Macronutrients,12,FALSE)*Q9+VLOOKUP(M10,Macronutrients,12,FALSE)*Q10+VLOOKUP(M11,Macronutrients,12,FALSE)*Q11+VLOOKUP(M14,Micronutrients,12,FALSE)*Q14+VLOOKUP(M15,Micronutrients,12,FALSE)*Q15+VLOOKUP(M16,Micronutrients,12,FALSE)*Q16+VLOOKUP(M17,Micronutrients,12,FALSE)*Q17+VLOOKUP(M20,Lime,12,FALSE)*Q20 -> 0 | W15: =VLOOKUP(M6,Macronutrients,13,FALSE)*Q6+VLOOKUP(M7,Macronutrients,13,FALSE)*Q7+VLOOKUP(M8,Macronutrients,13,FALSE)*Q8+VLOOKUP(M9,Macronutrients,13,FALSE)*Q9+VLOOKUP(M10,Macronutrients,13,FALSE)*Q10+VLOOKUP(M11,Macronutrients,13,FALSE)*Q11+VLOOKUP(M14,Micronutrients,13,FALSE)*Q14+VLOOKUP(M15,Micronutrients,13,FALSE)*Q15+VLOOKUP(M16,Micronutrients,13,FALSE)*Q16+VLOOKUP(M17,Micronutrients,13,FALSE)*Q17+VLOOKUP(M20,Lime,13,FALSE)*Q20 -> 0 | Y15: None | Z15: =VLOOKUP($A15,Micronutrients,14,FALSE) -> 0 | AA15: =VLOOKUP(Y15,Micronutrients,18,FALSE) -> 0 | AB15: =VLOOKUP(Y15,Micronutrients,16,FALSE) -> 1 | AC15: 0 | AD15: =VLOOKUP(Y15,Micronutrients,15,FALSE) -> 0 | AE15: =(AC15*VLOOKUP(Y15,Micronutrients,14,FALSE)/AB15)*AA15 -> 0 | AG15: =VLOOKUP(Y6,Macronutrients,11,FALSE)*AC6+VLOOKUP(Y7,Macronutrients,11,FALSE)*AC7+VLOOKUP(Y8,Macronutrients,11,FALSE)*AC8+VLOOKUP(Y9,Macronutrients,11,FALSE)*AC9+VLOOKUP(Y10,Macronutrients,11,FALSE)*AC10+VLOOKUP(Y11,Macronutrients,11,FALSE)*AC11+VLOOKUP(Y14,Micronutrients,11,FALSE)*AC14+VLOOKUP(Y15,Micronutrients,11,FALSE)*AC15+VLOOKUP(Y16,Micronutrients,11,FALSE)*AC16+VLOOKUP(Y17,Micronutrients,11,FALSE)*AC17+VLOOKUP(Y20,Lime,11,FALSE)*AC20 -> 0 | AH15: =VLOOKUP(Y6,Macronutrients,12,FALSE)*AC6+VLOOKUP(Y7,Macronutrients,12,FALSE)*AC7+VLOOKUP(Y8,Macronutrients,12,FALSE)*AC8+VLOOKUP(Y9,Macronutrients,12,FALSE)*AC9+VLOOKUP(Y10,Macronutrients,12,FALSE)*AC10+VLOOKUP(Y11,Macronutrients,12,FALSE)*AC11+VLOOKUP(Y14,Micronutrients,12,FALSE)*AC14+VLOOKUP(Y15,Micronutrients,12,FALSE)*AC15+VLOOKUP(Y16,Micronutrients,12,FALSE)*AC16+VLOOKUP(Y17,Micronutrients,12,FALSE)*AC17+VLOOKUP(Y20,Lime,12,FALSE)*AC20 -> 0 | AI15: =VLOOKUP(Y6,Macronutrients,13,FALSE)*AC6+VLOOKUP(Y7,Macronutrients,13,FALSE)*AC7+VLOOKUP(Y8,Macronutrients,13,FALSE)*AC8+VLOOKUP(Y9,Macronutrients,13,FALSE)*AC9+VLOOKUP(Y10,Macronutrients,13,FALSE)*AC10+VLOOKUP(Y11,Macronutrients,13,FALSE)*AC11+VLOOKUP(Y14,Micronutrients,13,FALSE)*AC14+VLOOKUP(Y15,Micronutrients,13,FALSE)*AC15+VLOOKUP(Y16,Micronutrients,13,FALSE)*AC16+VLOOKUP(Y17,Micronutrients,13,FALSE)*AC17+VLOOKUP(Y20,Lime,13,FALSE)*AC20 -> 0
A16: None | B16: =VLOOKUP($A16,Micronutrients,14,FALSE) -> 0 | C16: =VLOOKUP(A16,Micronutrients,18,FALSE) -> 0 | D16: =VLOOKUP(A16,Micronutrients,16,FALSE) -> 1 | E16: 0 | F16: =VLOOKUP(A16,Micronutrients,15,FALSE) -> 0 | G16: =(E16*VLOOKUP(A16,Micronutrients,14,FALSE)/D16)*C16 -> 0 | M16: None | N16: =VLOOKUP($A16,Micronutrients,14,FALSE) -> 0 | O16: =VLOOKUP(M16,Micronutrients,18,FALSE) -> 0 | P16: =VLOOKUP(M16,Micronutrients,16,FALSE) -> 1 | Q16: 0 | R16: =VLOOKUP(M16,Micronutrients,15,FALSE) -> 0 | S16: =(Q16*VLOOKUP(M16,Micronutrients,14,FALSE)/P16)*O16 -> 0 | Y16: None | Z16: =VLOOKUP($A16,Micronutrients,14,FALSE) -> 0 | AA16: =VLOOKUP(Y16,Micronutrients,18,FALSE) -> 0 | AB16: =VLOOKUP(Y16,Micronutrients,16,FALSE) -> 1 | AC16: 0 | AD16: =VLOOKUP(Y16,Micronutrients,15,FALSE) -> 0 | AE16: =(AC16*VLOOKUP(Y16,Micronutrients,14,FALSE)/AB16)*AA16 -> 0
A17: None | B17: =VLOOKUP($A17,Micronutrients,14,FALSE) -> 0 | C17: =VLOOKUP(A17,Micronutrients,18,FALSE) -> 0 | D17: =VLOOKUP(A17,Micronutrients,16,FALSE) -> 1 | E17: 0 | F17: =VLOOKUP(A17,Micronutrients,15,FALSE) -> 0 | G17: =(E17*VLOOKUP(A17,Micronutrients,14,FALSE)/D17)*C17 -> 0 | M17: None | N17: =VLOOKUP($A17,Micronutrients,14,FALSE) -> 0 | O17: =VLOOKUP(M17,Micronutrients,18,FALSE) -> 0 | P17: =VLOOKUP(M17,Micronutrients,16,FALSE) -> 1 | Q17: 0 | R17: =VLOOKUP(M17,Micronutrients,15,FALSE) -> 0 | S17: =(Q17*VLOOKUP(M17,Micronutrients,14,FALSE)/P17)*O17 -> 0 | Y17: None | Z17: =VLOOKUP($A17,Micronutrients,14,FALSE) -> 0 | AA17: =VLOOKUP(Y17,Micronutrients,18,FALSE) -> 0 | AB17: =VLOOKUP(Y17,Micronutrients,16,FALSE) -> 1 | AC17: 0 | AD17: =VLOOKUP(Y17,Micronutrients,15,FALSE) -> 0 | AE17: =(AC17*VLOOKUP(Y17,Micronutrients,14,FALSE)/AB17)*AA17 -> 0
A19: Lime (drop down menu) | M19: Lime (drop down menu) | Y19: Lime (drop down menu)
A20: None | B20: =VLOOKUP(A20,Lime,14,FALSE) -> 0 | C20: =VLOOKUP(A20,Lime,18,FALSE) -> 0 | D20: =VLOOKUP(A20,Lime,16,FALSE) -> 1 | E20: 0 | F20: =VLOOKUP(A20,Lime,15,FALSE) -> 0 | G20: =(E20*VLOOKUP(A20,Lime,14,FALSE)/D20)*C20 -> 0 | M20: None | N20: =VLOOKUP(M20,Lime,14,FALSE) -> 0 | O20: =VLOOKUP(M20,Lime,18,FALSE) -> 0 | P20: =VLOOKUP(M20,Lime,16,FALSE) -> 1 | Q20: 0 | R20: =VLOOKUP(M20,Lime,15,FALSE) -> 0 | S20: =(Q20*VLOOKUP(M20,Lime,14,FALSE)/P20)*O20 -> 0 | Y20: None | Z20: =VLOOKUP(Y20,Lime,14,FALSE) -> 0 | AA20: =VLOOKUP(Y20,Lime,18,FALSE) -> 0 | AB20: =VLOOKUP(Y20,Lime,16,FALSE) -> 1 | AC20: 0 | AD20: =VLOOKUP(Y20,Lime,15,FALSE) -> 0 | AE20: =(AC20*VLOOKUP(Y20,Lime,14,FALSE)/AB20)*AA20 -> 0
A21: 1st Application Fertilizer Cost/Acre | G21: =SUM(G6:G20) -> 0 | M21: 1st Application Fertilizer Cost/Acre | S21: =SUM(S6:S20) -> 0 | Y21: 1st Application Fertilizer Cost/Acre | AE21: =SUM(AE6:AE20) -> 0
A23: 2nd Application (i.e., Broadcast) | M23: 2nd Application (i.e., Broadcast) | Y23: 2nd Application (i.e., Broadcast)
A24: Fertilizer Source | B24: Purchase Units | C24: Package Price (Gals, Lbs, etc.) | D24: Units/Pkg | E24: Rate/Acre | F24: Units | G24: Cost | M24: Fertilizer Source | N24: Purchase Units | O24: Package Price (Gals, Lbs, etc.) | P24: Units/Pkg | Q24: Rate/Acre | R24: Units | S24: Cost | Y24: Fertilizer Source | Z24: Purchase Units | AA24: Package Price (Gals, Lbs, etc.) | AB24: Units/Pkg | AC24: Rate/Acre | AD24: Units | AE24: Cost
A25: Macronutrients (drop down menu) | E25: (Enter Below) | I25: N | J25: P | K25: K | M25: Macronutrients (drop down menu) | Q25: (Enter Below) | U25: N | V25: P | W25: K | Y25: Macronutrients (drop down menu) | AC25: (Enter Below) | AG25: N | AH25: P | AI25: K
A26: None | B26: =VLOOKUP(A26,Macronutrients,14,FALSE) -> 0 | C26: =VLOOKUP(A26,Macronutrients,18,FALSE) -> 0 | D26: =VLOOKUP(A26,Macronutrients,16,FALSE) -> 1 | E26: 0 | F26: =VLOOKUP(A26,Macronutrients,15,FALSE) -> 0 | G26: =(E26*VLOOKUP(A26,Macronutrients,14,FALSE)/D26)*C26 -> 0 | I26: =VLOOKUP(A26,Macronutrients,2,FALSE)*E26+VLOOKUP(A27,Macronutrients,2,FALSE)*E27+VLOOKUP(A28,Macronutrients,2,FALSE)*E28+VLOOKUP(A29,Macronutrients,2,FALSE)*E29+VLOOKUP(A30,Macronutrients,2,FALSE)*E30+VLOOKUP(A31,Macronutrients,2,FALSE)*E31+VLOOKUP(A34,Micronutrients,2,FALSE)*E34+VLOOKUP(A35,Micronutrients,2,FALSE)*E35+VLOOKUP(A36,Micronutrients,2,FALSE)*E36+VLOOKUP(A37,Micronutrients,2,FALSE)*E37 -> 0 | J26: =VLOOKUP(A26,Macronutrients,3,FALSE)*E26+VLOOKUP(A27,Macronutrients,3,FALSE)*E27+VLOOKUP(A28,Macronutrients,3,FALSE)*E28+VLOOKUP(A29,Macronutrients,3,FALSE)*E29+VLOOKUP(A30,Macronutrients,3,FALSE)*E30+VLOOKUP(A31,Macronutrients,3,FALSE)*E31+VLOOKUP(A34,Micronutrients,3,FALSE)*E34+VLOOKUP(A35,Micronutrients,3,FALSE)*E35+VLOOKUP(A36,Micronutrients,3,FALSE)*E36+VLOOKUP(A37,Micronutrients,3,FALSE)*E37 -> 0 | K26: =VLOOKUP(A26,Macronutrients,4,FALSE)*E26+VLOOKUP(A27,Macronutrients,4,FALSE)*E27+VLOOKUP(A28,Macronutrients,4,FALSE)*E28+VLOOKUP(A29,Macronutrients,4,FALSE)*E29+VLOOKUP(A30,Macronutrients,4,FALSE)*E30+VLOOKUP(A31,Macronutrients,4,FALSE)*E31+VLOOKUP(A34,Micronutrients,4,FALSE)*E34+VLOOKUP(A35,Micronutrients,4,FALSE)*E35+VLOOKUP(A36,Micronutrients,4,FALSE)*E36+VLOOKUP(A37,Micronutrients,4,FALSE)*E37 -> 0 | M26: None | N26: =VLOOKUP(M26,Macronutrients,14,FALSE) -> 0 | O26: =VLOOKUP(M26,Macronutrients,18,FALSE) -> 0 | P26: =VLOOKUP(M26,Macronutrients,16,FALSE) -> 1 | Q26: 0 | R26: =VLOOKUP(M26,Macronutrients,15,FALSE) -> 0 | S26: =(Q26*VLOOKUP(M26,Macronutrients,14,FALSE)/P26)*O26 -> 0 | U26: =VLOOKUP(M26,Macronutrients,2,FALSE)*Q26+VLOOKUP(M27,Macronutrients,2,FALSE)*Q27+VLOOKUP(M28,Macronutrients,2,FALSE)*Q28+VLOOKUP(M29,Macronutrients,2,FALSE)*Q29+VLOOKUP(M30,Macronutrients,2,FALSE)*Q30+VLOOKUP(M31,Macronutrients,2,FALSE)*Q31+VLOOKUP(M34,Micronutrients,2,FALSE)*Q34+VLOOKUP(M35,Micronutrients,2,FALSE)*Q35+VLOOKUP(M36,Micronutrients,2,FALSE)*Q36+VLOOKUP(M37,Micronutrients,2,FALSE)*Q37 -> 0 | V26: =VLOOKUP(M26,Macronutrients,3,FALSE)*Q26+VLOOKUP(M27,Macronutrients,3,FALSE)*Q27+VLOOKUP(M28,Macronutrients,3,FALSE)*Q28+VLOOKUP(M29,Macronutrients,3,FALSE)*Q29+VLOOKUP(M30,Macronutrients,3,FALSE)*Q30+VLOOKUP(M31,Macronutrients,3,FALSE)*Q31+VLOOKUP(M34,Micronutrients,3,FALSE)*Q34+VLOOKUP(M35,Micronutrients,3,FALSE)*Q35+VLOOKUP(M36,Micronutrients,3,FALSE)*Q36+VLOOKUP(M37,Micronutrients,3,FALSE)*Q37 -> 0 | W26: =VLOOKUP(M26,Macronutrients,4,FALSE)*Q26+VLOOKUP(M27,Macronutrients,4,FALSE)*Q27+VLOOKUP(M28,Macronutrients,4,FALSE)*Q28+VLOOKUP(M29,Macronutrients,4,FALSE)*Q29+VLOOKUP(M30,Macronutrients,4,FALSE)*Q30+VLOOKUP(M31,Macronutrients,4,FALSE)*Q31+VLOOKUP(M34,Micronutrients,4,FALSE)*Q34+VLOOKUP(M35,Micronutrients,4,FALSE)*Q35+VLOOKUP(M36,Micronutrients,4,FALSE)*Q36+VLOOKUP(M37,Micronutrients,4,FALSE)*Q37 -> 0 | Y26: None | Z26: =VLOOKUP(Y26,Macronutrients,14,FALSE) -> 0 | AA26: =VLOOKUP(Y26,Macronutrients,18,FALSE) -> 0 | AB26: =VLOOKUP(Y26,Macronutrients,16,FALSE) -> 1 | AC26: 0 | AD26: =VLOOKUP(Y26,Macronutrients,15,FALSE) -> 0 | AE26: =(AC26*VLOOKUP(Y26,Macronutrients,14,FALSE)/AB26)*AA26 -> 0 | AG26: =VLOOKUP(Y26,Macronutrients,2,FALSE)*AC26+VLOOKUP(Y27,Macronutrients,2,FALSE)*AC27+VLOOKUP(Y28,Macronutrients,2,FALSE)*AC28+VLOOKUP(Y29,Macronutrients,2,FALSE)*AC29+VLOOKUP(Y30,Macronutrients,2,FALSE)*AC30+VLOOKUP(Y31,Macronutrients,2,FALSE)*AC31+VLOOKUP(Y34,Micronutrients,2,FALSE)*AC34+VLOOKUP(Y35,Micronutrients,2,FALSE)*AC35+VLOOKUP(Y36,Micronutrients,2,FALSE)*AC36+VLOOKUP(Y37,Micronutrients,2,FALSE)*AC37 -> 0 | AH26: =VLOOKUP(Y26,Macronutrients,3,FALSE)*AC26+VLOOKUP(Y27,Macronutrients,3,FALSE)*AC27+VLOOKUP(Y28,Macronutrients,3,FALSE)*AC28+VLOOKUP(Y29,Macronutrients,3,FALSE)*AC29+VLOOKUP(Y30,Macronutrients,3,FALSE)*AC30+VLOOKUP(Y31,Macronutrients,3,FALSE)*AC31+VLOOKUP(Y34,Micronutrients,3,FALSE)*AC34+VLOOKUP(Y35,Micronutrients,3,FALSE)*AC35+VLOOKUP(Y36,Micronutrients,3,FALSE)*AC36+VLOOKUP(Y37,Micronutrients,3,FALSE)*AC37 -> 0 | AI26: =VLOOKUP(Y26,Macronutrients,4,FALSE)*AC26+VLOOKUP(Y27,Macronutrients,4,FALSE)*AC27+VLOOKUP(Y28,Macronutrients,4,FALSE)*AC28+VLOOKUP(Y29,Macronutrients,4,FALSE)*AC29+VLOOKUP(Y30,Macronutrients,4,FALSE)*AC30+VLOOKUP(Y31,Macronutrients,4,FALSE)*AC31+VLOOKUP(Y34,Micronutrients,4,FALSE)*AC34+VLOOKUP(Y35,Micronutrients,4,FALSE)*AC35+VLOOKUP(Y36,Micronutrients,4,FALSE)*AC36+VLOOKUP(Y37,Micronutrients,4,FALSE)*AC37 -> 0
A27: None | B27: 0 | C27: 0 | D27: 1 | E27: 0 | F27: 0 | G27: 0 | M27: None | N27: 0 | O27: 0 | P27: 1 | Q27: 0 | R27: 0 | S27: 0 | Y27: None | Z27: 0 | AA27: 0 | AB27: 1 | AC27: 0 | AD27: 0 | AE27: 0
A28: None | B28: 0 | C28: 0 | D28: 1 | E28: 0 | F28: 0 | G28: 0 | I28: S | J28: Ca | K28: Mg | M28: None | N28: 0 | O28: 0 | P28: 1 | Q28: 0 | R28: 0 | S28: 0 | U28: S | V28: Ca | W28: Mg | Y28: None | Z28: 0 | AA28: 0 | AB28: 1 | AC28: 0 | AD28: 0 | AE28: 0 | AG28: S | AH28: Ca | AI28: Mg
A29: None | B29: 0 | C29: 0 | D29: 1 | E29: 0 | F29: 0 | G29: 0 | I29: =VLOOKUP(A26,Macronutrients,5,FALSE)*E26+VLOOKUP(A27,Macronutrients,5,FALSE)*E27+VLOOKUP(A28,Macronutrients,5,FALSE)*E28+VLOOKUP(A29,Macronutrients,5,FALSE)*E29+VLOOKUP(A30,Macronutrients,5,FALSE)*E30+VLOOKUP(A31,Macronutrients,5,FALSE)*E31+VLOOKUP(A34,Micronutrients,5,FALSE)*E34+VLOOKUP(A35,Micronutrients,5,FALSE)*E35+VLOOKUP(A36,Micronutrients,5,FALSE)*E36+VLOOKUP(A37,Micronutrients,5,FALSE)*E37 -> 0 | J29: =VLOOKUP(A26,Macronutrients,7,FALSE)*E26+VLOOKUP(A27,Macronutrients,7,FALSE)*E27+VLOOKUP(A28,Macronutrients,7,FALSE)*E28+VLOOKUP(A29,Macronutrients,7,FALSE)*E29+VLOOKUP(A30,Macronutrients,7,FALSE)*E30+VLOOKUP(A31,Macronutrients,7,FALSE)*E31+VLOOKUP(A34,Micronutrients,7,FALSE)*E34+VLOOKUP(A35,Micronutrients,7,FALSE)*E35+VLOOKUP(A36,Micronutrients,7,FALSE)*E36+VLOOKUP(A37,Micronutrients,7,FALSE)*E37 -> 0 | K29: =VLOOKUP($A26,Macronutrients,6,FALSE)*$E$6+VLOOKUP($A27,Macronutrients,6,FALSE)*$E$7+VLOOKUP($A28,Macronutrients,6,FALSE)*$E$8+VLOOKUP($A29,Macronutrients,6,FALSE)*$E$9+VLOOKUP($A30,Macronutrients,6,FALSE)*$E$10+VLOOKUP($A31,Macronutrients,6,FALSE)*$E$11+VLOOKUP($A34,Micronutrients,6,FALSE)*$E$14+VLOOKUP($A35,Micronutrients,6,FALSE)*E35+VLOOKUP($A36,Micronutrients,6,FALSE)*$E$16+VLOOKUP($A37,Micronutrients,6,FALSE)*$E$17 -> 0 | M29: None | N29: 0 | O29: 0 | P29: 1 | Q29: 0 | R29: 0 | S29: 0 | U29: =VLOOKUP(M26,Macronutrients,5,FALSE)*Q26+VLOOKUP(M27,Macronutrients,5,FALSE)*Q27+VLOOKUP(M28,Macronutrients,5,FALSE)*Q28+VLOOKUP(M29,Macronutrients,5,FALSE)*Q29+VLOOKUP(M30,Macronutrients,5,FALSE)*Q30+VLOOKUP(M31,Macronutrients,5,FALSE)*Q31+VLOOKUP(M34,Micronutrients,5,FALSE)*Q34+VLOOKUP(M35,Micronutrients,5,FALSE)*Q35+VLOOKUP(M36,Micronutrients,5,FALSE)*Q36+VLOOKUP(M37,Micronutrients,5,FALSE)*Q37 -> 0 | V29: =VLOOKUP(M26,Macronutrients,7,FALSE)*Q26+VLOOKUP(M27,Macronutrients,7,FALSE)*Q27+VLOOKUP(M28,Macronutrients,7,FALSE)*Q28+VLOOKUP(M29,Macronutrients,7,FALSE)*Q29+VLOOKUP(M30,Macronutrients,7,FALSE)*Q30+VLOOKUP(M31,Macronutrients,7,FALSE)*Q31+VLOOKUP(M34,Micronutrients,7,FALSE)*Q34+VLOOKUP(M35,Micronutrients,7,FALSE)*Q35+VLOOKUP(M36,Micronutrients,7,FALSE)*Q36+VLOOKUP(M37,Micronutrients,7,FALSE)*Q37 -> 0 | W29: =VLOOKUP($A26,Macronutrients,6,FALSE)*$E$6+VLOOKUP($A27,Macronutrients,6,FALSE)*$E$7+VLOOKUP($A28,Macronutrients,6,FALSE)*$E$8+VLOOKUP($A29,Macronutrients,6,FALSE)*$E$9+VLOOKUP($A30,Macronutrients,6,FALSE)*$E$10+VLOOKUP($A31,Macronutrients,6,FALSE)*$E$11+VLOOKUP($A34,Micronutrients,6,FALSE)*$E$14+VLOOKUP($A35,Micronutrients,6,FALSE)*Q35+VLOOKUP($A36,Micronutrients,6,FALSE)*$E$16+VLOOKUP($A37,Micronutrients,6,FALSE)*$E$17 -> 0 | Y29: None | Z29: 0 | AA29: 0 | AB29: 1 | AC29: 0 | AD29: 0 | AE29: 0 | AG29: =VLOOKUP(Y26,Macronutrients,5,FALSE)*AC26+VLOOKUP(Y27,Macronutrients,5,FALSE)*AC27+VLOOKUP(Y28,Macronutrients,5,FALSE)*AC28+VLOOKUP(Y29,Macronutrients,5,FALSE)*AC29+VLOOKUP(Y30,Macronutrients,5,FALSE)*AC30+VLOOKUP(Y31,Macronutrients,5,FALSE)*AC31+VLOOKUP(Y34,Micronutrients,5,FALSE)*AC34+VLOOKUP(Y35,Micronutrients,5,FALSE)*AC35+VLOOKUP(Y36,Micronutrients,5,FALSE)*AC36+VLOOKUP(Y37,Micronutrients,5,FALSE)*AC37 -> 0 | AH29: =VLOOKUP(Y26,Macronutrients,7,FALSE)*AC26+VLOOKUP(Y27,Macronutrients,7,FALSE)*AC27+VLOOKUP(Y28,Macronutrients,7,FALSE)*AC28+VLOOKUP(Y29,Macronutrients,7,FALSE)*AC29+VLOOKUP(Y30,Macronutrients,7,FALSE)*AC30+VLOOKUP(Y31,Macronutrients,7,FALSE)*AC31+VLOOKUP(Y34,Micronutrients,7,FALSE)*AC34+VLOOKUP(Y35,Micronutrients,7,FALSE)*AC35+VLOOKUP(Y36,Micronutrients,7,FALSE)*AC36+VLOOKUP(Y37,Micronutrients,7,FALSE)*AC37 -> 0 | AI29: =VLOOKUP($A26,Macronutrients,6,FALSE)*$E$6+VLOOKUP($A27,Macronutrients,6,FALSE)*$E$7+VLOOKUP($A28,Macronutrients,6,FALSE)*$E$8+VLOOKUP($A29,Macronutrients,6,FALSE)*$E$9+VLOOKUP($A30,Macronutrients,6,FALSE)*$E$10+VLOOKUP($A31,Macronutrients,6,FALSE)*$E$11+VLOOKUP($A34,Micronutrients,6,FALSE)*$E$14+VLOOKUP($A35,Micronutrients,6,FALSE)*AC35+VLOOKUP($A36,Micronutrients,6,FALSE)*$E$16+VLOOKUP($A37,Micronutrients,6,FALSE)*$E$17 -> 0
A30: None | B30: 0 | C30: 0 | D30: 1 | E30: 0 | F30: 0 | G30: 0 | M30: None | N30: 0 | O30: 0 | P30: 1 | Q30: 0 | R30: 0 | S30: 0 | Y30: None | Z30: 0 | AA30: 0 | AB30: 1 | AC30: 0 | AD30: 0 | AE30: 0
A31: None | B31: 0 | C31: 0 | D31: 1 | E31: 0 | F31: 0 | G31: 0 | I31: Z | J31: B | K31: Mn | M31: None | N31: 0 | O31: 0 | P31: 1 | Q31: 0 | R31: 0 | S31: 0 | U31: Z | V31: B | W31: Mn | Y31: None | Z31: 0 | AA31: 0 | AB31: 1 | AC31: 0 | AD31: 0 | AE31: 0 | AG31: Z | AH31: B | AI31: Mn
I32: =VLOOKUP(A26,Macronutrients,8,FALSE)*E26+VLOOKUP(A27,Macronutrients,8,FALSE)*E27+VLOOKUP(A28,Macronutrients,8,FALSE)*E28+VLOOKUP(A29,Macronutrients,8,FALSE)*E29+VLOOKUP(A30,Macronutrients,8,FALSE)*E30+VLOOKUP(A31,Macronutrients,8,FALSE)*E31+VLOOKUP(A34,Micronutrients,8,FALSE)*E34+VLOOKUP(A35,Micronutrients,8,FALSE)*E35+VLOOKUP(A36,Micronutrients,8,FALSE)*E36+VLOOKUP(A37,Micronutrients,8,FALSE)*E37 -> 0 | J32: =VLOOKUP(A26,Macronutrients,9,FALSE)*E26+VLOOKUP(A27,Macronutrients,9,FALSE)*E27+VLOOKUP(A28,Macronutrients,9,FALSE)*E28+VLOOKUP(A29,Macronutrients,9,FALSE)*E29+VLOOKUP(A30,Macronutrients,9,FALSE)*E30+VLOOKUP(A31,Macronutrients,9,FALSE)*E31+VLOOKUP(A34,Micronutrients,9,FALSE)*E34+VLOOKUP(A35,Micronutrients,9,FALSE)*E35+VLOOKUP(A36,Micronutrients,9,FALSE)*E36+VLOOKUP(A37,Micronutrients,9,FALSE) -> 0 | K32: =VLOOKUP(A26,Macronutrients,10,FALSE)*E26+VLOOKUP(A27,Macronutrients,10,FALSE)*E27+VLOOKUP(A28,Macronutrients,10,FALSE)*E28+VLOOKUP(A29,Macronutrients,10,FALSE)*E29+VLOOKUP(A30,Macronutrients,10,FALSE)*E30+VLOOKUP(A31,Macronutrients,10,FALSE)*E31+VLOOKUP(A34,Micronutrients,10,FALSE)*E34+VLOOKUP(A35,Micronutrients,10,FALSE)*E35+VLOOKUP(A36,Micronutrients,10,FALSE)*E36+VLOOKUP(A37,Micronutrients,10,FALSE)*E37 -> 0 | U32: =VLOOKUP(M26,Macronutrients,8,FALSE)*Q26+VLOOKUP(M27,Macronutrients,8,FALSE)*Q27+VLOOKUP(M28,Macronutrients,8,FALSE)*Q28+VLOOKUP(M29,Macronutrients,8,FALSE)*Q29+VLOOKUP(M30,Macronutrients,8,FALSE)*Q30+VLOOKUP(M31,Macronutrients,8,FALSE)*Q31+VLOOKUP(M34,Micronutrients,8,FALSE)*Q34+VLOOKUP(M35,Micronutrients,8,FALSE)*Q35+VLOOKUP(M36,Micronutrients,8,FALSE)*Q36+VLOOKUP(M37,Micronutrients,8,FALSE)*Q37 -> 0 | V32: =VLOOKUP(M26,Macronutrients,9,FALSE)*Q26+VLOOKUP(M27,Macronutrients,9,FALSE)*Q27+VLOOKUP(M28,Macronutrients,9,FALSE)*Q28+VLOOKUP(M29,Macronutrients,9,FALSE)*Q29+VLOOKUP(M30,Macronutrients,9,FALSE)*Q30+VLOOKUP(M31,Macronutrients,9,FALSE)*Q31+VLOOKUP(M34,Micronutrients,9,FALSE)*Q34+VLOOKUP(M35,Micronutrients,9,FALSE)*Q35+VLOOKUP(M36,Micronutrients,9,FALSE)*Q36+VLOOKUP(M37,Micronutrients,9,FALSE) -> 0 | W32: =VLOOKUP(M26,Macronutrients,10,FALSE)*Q26+VLOOKUP(M27,Macronutrients,10,FALSE)*Q27+VLOOKUP(M28,Macronutrients,10,FALSE)*Q28+VLOOKUP(M29,Macronutrients,10,FALSE)*Q29+VLOOKUP(M30,Macronutrients,10,FALSE)*Q30+VLOOKUP(M31,Macronutrients,10,FALSE)*Q31+VLOOKUP(M34,Micronutrients,10,FALSE)*Q34+VLOOKUP(M35,Micronutrients,10,FALSE)*Q35+VLOOKUP(M36,Micronutrients,10,FALSE)*Q36+VLOOKUP(M37,Micronutrients,10,FALSE)*Q37 -> 0 | AG32: =VLOOKUP(Y26,Macronutrients,8,FALSE)*AC26+VLOOKUP(Y27,Macronutrients,8,FALSE)*AC27+VLOOKUP(Y28,Macronutrients,8,FALSE)*AC28+VLOOKUP(Y29,Macronutrients,8,FALSE)*AC29+VLOOKUP(Y30,Macronutrients,8,FALSE)*AC30+VLOOKUP(Y31,Macronutrients,8,FALSE)*AC31+VLOOKUP(Y34,Micronutrients,8,FALSE)*AC34+VLOOKUP(Y35,Micronutrients,8,FALSE)*AC35+VLOOKUP(Y36,Micronutrients,8,FALSE)*AC36+VLOOKUP(Y37,Micronutrients,8,FALSE)*AC37 -> 0 | AH32: =VLOOKUP(Y26,Macronutrients,9,FALSE)*AC26+VLOOKUP(Y27,Macronutrients,9,FALSE)*AC27+VLOOKUP(Y28,Macronutrients,9,FALSE)*AC28+VLOOKUP(Y29,Macronutrients,9,FALSE)*AC29+VLOOKUP(Y30,Macronutrients,9,FALSE)*AC30+VLOOKUP(Y31,Macronutrients,9,FALSE)*AC31+VLOOKUP(Y34,Micronutrients,9,FALSE)*AC34+VLOOKUP(Y35,Micronutrients,9,FALSE)*AC35+VLOOKUP(Y36,Micronutrients,9,FALSE)*AC36+VLOOKUP(Y37,Micronutrients,9,FALSE) -> 0 | AI32: =VLOOKUP(Y26,Macronutrients,10,FALSE)*AC26+VLOOKUP(Y27,Macronutrients,10,FALSE)*AC27+VLOOKUP(Y28,Macronutrients,10,FALSE)*AC28+VLOOKUP(Y29,Macronutrients,10,FALSE)*AC29+VLOOKUP(Y30,Macronutrients,10,FALSE)*AC30+VLOOKUP(Y31,Macronutrients,10,FALSE)*AC31+VLOOKUP(Y34,Micronutrients,10,FALSE)*AC34+VLOOKUP(Y35,Micronutrients,10,FALSE)*AC35+VLOOKUP(Y36,Micronutrients,10,FALSE)*AC36+VLOOKUP(Y37,Micronutrients,10,FALSE)*AC37 -> 0
A33: Micronutrients (drop down menu) | M33: Micronutrients (drop down menu) | Y33: Micronutrients (drop down menu)
A34: None | B34: =VLOOKUP($A34,Micronutrients,14,FALSE) -> 0 | C34: =VLOOKUP(A34,Micronutrients,18,FALSE) -> 0 | D34: =VLOOKUP(A34,Micronutrients,16,FALSE) -> 1 | E34: 0 | F34: =VLOOKUP(A34,Micronutrients,15,FALSE) -> 0 | G34: =(E34*VLOOKUP(A34,Micronutrients,14,FALSE)/D34)*C34 -> 0 | I34: Cu | J34: Mo | K34: Fe | M34: None | N34: =VLOOKUP($A34,Micronutrients,14,FALSE) -> 0 | O34: =VLOOKUP(M34,Micronutrients,18,FALSE) -> 0 | P34: =VLOOKUP(M34,Micronutrients,16,FALSE) -> 1 | Q34: 0 | R34: =VLOOKUP(M34,Micronutrients,15,FALSE) -> 0 | S34: =(Q34*VLOOKUP(M34,Micronutrients,14,FALSE)/P34)*O34 -> 0 | U34: Cu | V34: Mo | W34: Fe | Y34: None | Z34: =VLOOKUP($A34,Micronutrients,14,FALSE) -> 0 | AA34: =VLOOKUP(Y34,Micronutrients,18,FALSE) -> 0 | AB34: =VLOOKUP(Y34,Micronutrients,16,FALSE) -> 1 | AC34: 0 | AD34: =VLOOKUP(Y34,Micronutrients,15,FALSE) -> 0 | AE34: =(AC34*VLOOKUP(Y34,Micronutrients,14,FALSE)/AB34)*AA34 -> 0 | AG34: Cu | AH34: Mo | AI34: Fe
A35: None | B35: =VLOOKUP($A35,Micronutrients,14,FALSE) -> 0 | C35: =VLOOKUP(A35,Micronutrients,18,FALSE) -> 0 | D35: =VLOOKUP(A35,Micronutrients,16,FALSE) -> 1 | E35: 0 | F35: =VLOOKUP(A35,Micronutrients,15,FALSE) -> 0 | G35: =(E35*VLOOKUP(A35,Micronutrients,14,FALSE)/D35)*C35 -> 0 | I35: =VLOOKUP(A26,Macronutrients,11,FALSE)*E26+VLOOKUP(A27,Macronutrients,11,FALSE)*E27+VLOOKUP(A28,Macronutrients,11,FALSE)*E28+VLOOKUP(A29,Macronutrients,11,FALSE)*E29+VLOOKUP(A30,Macronutrients,11,FALSE)*E30+VLOOKUP(A31,Macronutrients,11,FALSE)*E31+VLOOKUP(A34,Micronutrients,11,FALSE)*E34+VLOOKUP(A35,Micronutrients,11,FALSE)*E35+VLOOKUP(A36,Micronutrients,11,FALSE)*E36+VLOOKUP(A37,Micronutrients,11,FALSE)*E37 -> 0 | J35: =VLOOKUP(A26,Macronutrients,12,FALSE)*E26+VLOOKUP(A27,Macronutrients,12,FALSE)*E27+VLOOKUP(A28,Macronutrients,12,FALSE)*E28+VLOOKUP(A29,Macronutrients,12,FALSE)*E29+VLOOKUP(A30,Macronutrients,12,FALSE)*E30+VLOOKUP(A31,Macronutrients,12,FALSE)*E31+VLOOKUP(A34,Micronutrients,12,FALSE)*E34+VLOOKUP(A35,Micronutrients,12,FALSE)*E35+VLOOKUP(A36,Micronutrients,12,FALSE)*E36+VLOOKUP(A37,Micronutrients,12,FALSE)*E37 -> 0 | K35: =VLOOKUP(A26,Macronutrients,13,FALSE)*E26+VLOOKUP(A27,Macronutrients,13,FALSE)*E27+VLOOKUP(A28,Macronutrients,13,FALSE)*E28+VLOOKUP(A29,Macronutrients,13,FALSE)*E29+VLOOKUP(A30,Macronutrients,13,FALSE)*E30+VLOOKUP(A31,Macronutrients,13,FALSE)*E31+VLOOKUP(A34,Micronutrients,13,FALSE)*E34+VLOOKUP(A35,Micronutrients,13,FALSE)*E35+VLOOKUP(A36,Micronutrients,13,FALSE)*E36+VLOOKUP(A37,Micronutrients,13,FALSE)*E37 -> 0 | M35: None | N35: =VLOOKUP($A35,Micronutrients,14,FALSE) -> 0 | O35: =VLOOKUP(M35,Micronutrients,18,FALSE) -> 0 | P35: =VLOOKUP(M35,Micronutrients,16,FALSE) -> 1 | Q35: 0 | R35: =VLOOKUP(M35,Micronutrients,15,FALSE) -> 0 | S35: =(Q35*VLOOKUP(M35,Micronutrients,14,FALSE)/P35)*O35 -> 0 | U35: =VLOOKUP(M26,Macronutrients,11,FALSE)*Q26+VLOOKUP(M27,Macronutrients,11,FALSE)*Q27+VLOOKUP(M28,Macronutrients,11,FALSE)*Q28+VLOOKUP(M29,Macronutrients,11,FALSE)*Q29+VLOOKUP(M30,Macronutrients,11,FALSE)*Q30+VLOOKUP(M31,Macronutrients,11,FALSE)*Q31+VLOOKUP(M34,Micronutrients,11,FALSE)*Q34+VLOOKUP(M35,Micronutrients,11,FALSE)*Q35+VLOOKUP(M36,Micronutrients,11,FALSE)*Q36+VLOOKUP(M37,Micronutrients,11,FALSE)*Q37 -> 0 | V35: =VLOOKUP(M26,Macronutrients,12,FALSE)*Q26+VLOOKUP(M27,Macronutrients,12,FALSE)*Q27+VLOOKUP(M28,Macronutrients,12,FALSE)*Q28+VLOOKUP(M29,Macronutrients,12,FALSE)*Q29+VLOOKUP(M30,Macronutrients,12,FALSE)*Q30+VLOOKUP(M31,Macronutrients,12,FALSE)*Q31+VLOOKUP(M34,Micronutrients,12,FALSE)*Q34+VLOOKUP(M35,Micronutrients,12,FALSE)*Q35+VLOOKUP(M36,Micronutrients,12,FALSE)*Q36+VLOOKUP(M37,Micronutrients,12,FALSE)*Q37 -> 0 | W35: =VLOOKUP(M26,Macronutrients,13,FALSE)*Q26+VLOOKUP(M27,Macronutrients,13,FALSE)*Q27+VLOOKUP(M28,Macronutrients,13,FALSE)*Q28+VLOOKUP(M29,Macronutrients,13,FALSE)*Q29+VLOOKUP(M30,Macronutrients,13,FALSE)*Q30+VLOOKUP(M31,Macronutrients,13,FALSE)*Q31+VLOOKUP(M34,Micronutrients,13,FALSE)*Q34+VLOOKUP(M35,Micronutrients,13,FALSE)*Q35+VLOOKUP(M36,Micronutrients,13,FALSE)*Q36+VLOOKUP(M37,Micronutrients,13,FALSE)*Q37 -> 0 | Y35: None | Z35: =VLOOKUP($A35,Micronutrients,14,FALSE) -> 0 | AA35: =VLOOKUP(Y35,Micronutrients,18,FALSE) -> 0 | AB35: =VLOOKUP(Y35,Micronutrients,16,FALSE) -> 1 | AC35: 0 | AD35: =VLOOKUP(Y35,Micronutrients,15,FALSE) -> 0 | AE35: =(AC35*VLOOKUP(Y35,Micronutrients,14,FALSE)/AB35)*AA35 -> 0 | AG35: =VLOOKUP(Y26,Macronutrients,11,FALSE)*AC26+VLOOKUP(Y27,Macronutrients,11,FALSE)*AC27+VLOOKUP(Y28,Macronutrients,11,FALSE)*AC28+VLOOKUP(Y29,Macronutrients,11,FALSE)*AC29+VLOOKUP(Y30,Macronutrients,11,FALSE)*AC30+VLOOKUP(Y31,Macronutrients,11,FALSE)*AC31+VLOOKUP(Y34,Micronutrients,11,FALSE)*AC34+VLOOKUP(Y35,Micronutrients,11,FALSE)*AC35+VLOOKUP(Y36,Micronutrients,11,FALSE)*AC36+VLOOKUP(Y37,Micronutrients,11,FALSE)*AC37 -> 0 | AH35: =VLOOKUP(Y26,Macronutrients,12,FALSE)*AC26+VLOOKUP(Y27,Macronutrients,12,FALSE)*AC27+VLOOKUP(Y28,Macronutrients,12,FALSE)*AC28+VLOOKUP(Y29,Macronutrients,12,FALSE)*AC29+VLOOKUP(Y30,Macronutrients,12,FALSE)*AC30+VLOOKUP(Y31,Macronutrients,12,FALSE)*AC31+VLOOKUP(Y34,Micronutrients,12,FALSE)*AC34+VLOOKUP(Y35,Micronutrients,12,FALSE)*AC35+VLOOKUP(Y36,Micronutrients,12,FALSE)*AC36+VLOOKUP(Y37,Micronutrients,12,FALSE)*AC37 -> 0 | AI35: =VLOOKUP(Y26,Macronutrients,13,FALSE)*AC26+VLOOKUP(Y27,Macronutrients,13,FALSE)*AC27+VLOOKUP(Y28,Macronutrients,13,FALSE)*AC28+VLOOKUP(Y29,Macronutrients,13,FALSE)*AC29+VLOOKUP(Y30,Macronutrients,13,FALSE)*AC30+VLOOKUP(Y31,Macronutrients,13,FALSE)*AC31+VLOOKUP(Y34,Micronutrients,13,FALSE)*AC34+VLOOKUP(Y35,Micronutrients,13,FALSE)*AC35+VLOOKUP(Y36,Micronutrients,13,FALSE)*AC36+VLOOKUP(Y37,Micronutrients,13,FALSE)*AC37 -> 0
A36: None | B36: =VLOOKUP($A36,Micronutrients,14,FALSE) -> 0 | C36: =VLOOKUP(A36,Micronutrients,18,FALSE) -> 0 | D36: =VLOOKUP(A36,Micronutrients,16,FALSE) -> 1 | E36: 0 | F36: =VLOOKUP(A36,Micronutrients,15,FALSE) -> 0 | G36: =(E36*VLOOKUP(A36,Micronutrients,14,FALSE)/D36)*C36 -> 0 | M36: None | N36: =VLOOKUP($A36,Micronutrients,14,FALSE) -> 0 | O36: =VLOOKUP(M36,Micronutrients,18,FALSE) -> 0 | P36: =VLOOKUP(M36,Micronutrients,16,FALSE) -> 1 | Q36: 0 | R36: =VLOOKUP(M36,Micronutrients,15,FALSE) -> 0 | S36: =(Q36*VLOOKUP(M36,Micronutrients,14,FALSE)/P36)*O36 -> 0 | Y36: None | Z36: =VLOOKUP($A36,Micronutrients,14,FALSE) -> 0 | AA36: =VLOOKUP(Y36,Micronutrients,18,FALSE) -> 0 | AB36: =VLOOKUP(Y36,Micronutrients,16,FALSE) -> 1 | AC36: 0 | AD36: =VLOOKUP(Y36,Micronutrients,15,FALSE) -> 0 | AE36: =(AC36*VLOOKUP(Y36,Micronutrients,14,FALSE)/AB36)*AA36 -> 0
A37: None | B37: =VLOOKUP($A37,Micronutrients,14,FALSE) -> 0 | C37: =VLOOKUP(A37,Micronutrients,18,FALSE) -> 0 | D37: =VLOOKUP(A37,Micronutrients,16,FALSE) -> 1 | E37: 0 | F37: =VLOOKUP(A37,Micronutrients,15,FALSE) -> 0 | G37: =(E37*VLOOKUP(A37,Micronutrients,14,FALSE)/D37)*C37 -> 0 | K37: More | M37: None | N37: =VLOOKUP($A37,Micronutrients,14,FALSE) -> 0 | O37: =VLOOKUP(M37,Micronutrients,18,FALSE) -> 0 | P37: =VLOOKUP(M37,Micronutrients,16,FALSE) -> 1 | Q37: 0 | R37: =VLOOKUP(M37,Micronutrients,15,FALSE) -> 0 | S37: =(Q37*VLOOKUP(M37,Micronutrients,14,FALSE)/P37)*O37 -> 0 | W37: More | Y37: None | Z37: =VLOOKUP($A37,Micronutrients,14,FALSE) -> 0 | AA37: =VLOOKUP(Y37,Micronutrients,18,FALSE) -> 0 | AB37: =VLOOKUP(Y37,Micronutrients,16,FALSE) -> 1 | AC37: 0 | AD37: =VLOOKUP(Y37,Micronutrients,15,FALSE) -> 0 | AE37: =(AC37*VLOOKUP(Y37,Micronutrients,14,FALSE)/AB37)*AA37 -> 0 | AI37: More
A38: 2nd Application Fertilizer Cost/Acre | G38: =SUM(G26:G37) -> 0 | K38: Below | M38: 2nd Application Fertilizer Cost/Acre | S38: =SUM(S26:S37) -> 0 | W38: Below | Y38: 2nd Application Fertilizer Cost/Acre | AE38: =SUM(AE26:AE37) -> 0 | AI38: Below
K39: ¯ | W39: ¯ | AI39: ¯
A40: Foliar Applications | M40: Foliar Applications | Y40: Foliar Applications
A41: Fertilizer Source | B41: Purchase Units | C41: Package Price (Gals, Lbs, etc.) | D41: Units/Pkg | E41: Rate/Acre | F41: Units | G41: Cost | M41: Fertilizer Source | N41: Purchase Units | O41: Package Price (Gals, Lbs, etc.) | P41: Units/Pkg | Q41: Rate/Acre | R41: Units | S41: Cost | Y41: Fertilizer Source | Z41: Purchase Units | AA41: Package Price (Gals, Lbs, etc.) | AB41: Units/Pkg | AC41: Rate/Acre | AD41: Units | AE41: Cost
A42: Foliars (drop down menu) | E42: (Enter Below) | I42: N | J42: P | K42: K | M42: Foliars (drop down menu) | Q42: (Enter Below) | U42: N | V42: P | W42: K | Y42: Foliars (drop down menu) | AC42: (Enter Below) | AG42: N | AH42: P | AI42: K
A43: None | B43: =VLOOKUP(A43,Foliars,14,FALSE) -> 0 | C43: =VLOOKUP(A43,Foliars,18,FALSE) -> 0 | D43: =VLOOKUP(A43,Foliars,16,FALSE) -> 1 | E43: 0 | F43: =VLOOKUP(A43,Foliars,15,FALSE) -> 0 | G43: =(E43*VLOOKUP(A43,Foliars,14,FALSE)/D43)*C43 -> 0 | I43: =VLOOKUP(A$43,Foliars,2,FALSE)*E$43+VLOOKUP(A$44,Foliars,2,FALSE)*E$44+VLOOKUP(A$45,Foliars,2,FALSE)*E$45+VLOOKUP(A$46,Foliars,2,FALSE)*E$46+VLOOKUP(A$47,Foliars,2,FALSE)*E$47+VLOOKUP(A$48,Foliars,2,FALSE)*E$48 -> 0 | J43: =VLOOKUP(A$43,Foliars,3,FALSE)*E$43+VLOOKUP(A$44,Foliars,3,FALSE)*E$44+VLOOKUP(A$45,Foliars,3,FALSE)*E$45+VLOOKUP(A$46,Foliars,3,FALSE)*E$46+VLOOKUP(A$47,Foliars,3,FALSE)*E$47+VLOOKUP(A$48,Foliars,3,FALSE)*E$48 -> 0 | K43: =VLOOKUP(A$43,Foliars,4,FALSE)*E$43+VLOOKUP(A$44,Foliars,4,FALSE)*E$44+VLOOKUP(A$45,Foliars,4,FALSE)*E$45+VLOOKUP(A$46,Foliars,4,FALSE)*E$46+VLOOKUP(A$47,Foliars,4,FALSE)*E$47+VLOOKUP(A$48,Foliars,4,FALSE)*E$48 -> 0 | M43: None | N43: =VLOOKUP(M43,Foliars,14,FALSE) -> 0 | O43: =VLOOKUP(M43,Foliars,18,FALSE) -> 0 | P43: =VLOOKUP(M43,Foliars,16,FALSE) -> 1 | Q43: 0 | R43: =VLOOKUP(M43,Foliars,15,FALSE) -> 0 | S43: =(Q43*VLOOKUP(M43,Foliars,14,FALSE)/P43)*O43 -> 0 | U43: =VLOOKUP(M$43,Foliars,2,FALSE)*Q$43+VLOOKUP(M$44,Foliars,2,FALSE)*Q$44+VLOOKUP(M$45,Foliars,2,FALSE)*Q$45+VLOOKUP(M$46,Foliars,2,FALSE)*Q$46+VLOOKUP(M$47,Foliars,2,FALSE)*Q$47+VLOOKUP(M$48,Foliars,2,FALSE)*Q$48 -> 0 | V43: =VLOOKUP(M$43,Foliars,3,FALSE)*Q$43+VLOOKUP(M$44,Foliars,3,FALSE)*Q$44+VLOOKUP(M$45,Foliars,3,FALSE)*Q$45+VLOOKUP(M$46,Foliars,3,FALSE)*Q$46+VLOOKUP(M$47,Foliars,3,FALSE)*Q$47+VLOOKUP(M$48,Foliars,3,FALSE)*Q$48 -> 0 | W43: =VLOOKUP(M$43,Foliars,4,FALSE)*Q$43+VLOOKUP(M$44,Foliars,4,FALSE)*Q$44+VLOOKUP(M$45,Foliars,4,FALSE)*Q$45+VLOOKUP(M$46,Foliars,4,FALSE)*Q$46+VLOOKUP(M$47,Foliars,4,FALSE)*Q$47+VLOOKUP(M$48,Foliars,4,FALSE)*Q$48 -> 0 | Y43: None | Z43: =VLOOKUP(Y43,Foliars,14,FALSE) -> 0 | AA43: =VLOOKUP(Y43,Foliars,18,FALSE) -> 0 | AB43: =VLOOKUP(Y43,Foliars,16,FALSE) -> 1 | AC43: 0 | AD43: =VLOOKUP(Y43,Foliars,15,FALSE) -> 0 | AE43: =(AC43*VLOOKUP(Y43,Foliars,14,FALSE)/AB43)*AA43 -> 0 | AG43: =VLOOKUP(Y$43,Foliars,2,FALSE)*AC$43+VLOOKUP(Y$44,Foliars,2,FALSE)*AC$44+VLOOKUP(Y$45,Foliars,2,FALSE)*AC$45+VLOOKUP(Y$46,Foliars,2,FALSE)*AC$46+VLOOKUP(Y$47,Foliars,2,FALSE)*AC$47+VLOOKUP(Y$48,Foliars,2,FALSE)*AC$48 -> 0 | AH43: =VLOOKUP(Y$43,Foliars,3,FALSE)*AC$43+VLOOKUP(Y$44,Foliars,3,FALSE)*AC$44+VLOOKUP(Y$45,Foliars,3,FALSE)*AC$45+VLOOKUP(Y$46,Foliars,3,FALSE)*AC$46+VLOOKUP(Y$47,Foliars,3,FALSE)*AC$47+VLOOKUP(Y$48,Foliars,3,FALSE)*AC$48 -> 0 | AI43: =VLOOKUP(Y$43,Foliars,4,FALSE)*AC$43+VLOOKUP(Y$44,Foliars,4,FALSE)*AC$44+VLOOKUP(Y$45,Foliars,4,FALSE)*AC$45+VLOOKUP(Y$46,Foliars,4,FALSE)*AC$46+VLOOKUP(Y$47,Foliars,4,FALSE)*AC$47+VLOOKUP(Y$48,Foliars,4,FALSE)*AC$48 -> 0
A44: None | B44: =VLOOKUP(A44,Foliars,14,FALSE) -> 0 | C44: 0 | D44: 1 | E44: 0 | F44: 0 | G44: 0 | M44: None | N44: 0 | O44: 0 | P44: 1 | Q44: 0 | R44: 0 | S44: 0 | Y44: None | Z44: 0 | AA44: 0 | AB44: 1 | AC44: 0 | AD44: 0 | AE44: 0
A45: None | B45: 0 | C45: 0 | D45: 1 | E45: 0 | F45: 0 | G45: 0 | I45: S | J45: Ca | K45: Mg | M45: None | N45: 0 | O45: 0 | P45: 1 | Q45: 0 | R45: 0 | S45: 0 | U45: S | V45: Ca | W45: Mg | Y45: None | Z45: 0 | AA45: 0 | AB45: 1 | AC45: 0 | AD45: 0 | AE45: 0 | AG45: S | AH45: Ca | AI45: Mg
A46: None | B46: 0 | C46: 0 | D46: 1 | E46: 0 | F46: 0 | G46: 0 | I46: =VLOOKUP(A$43,Foliars,5,FALSE)*E$43+VLOOKUP(A$44,Foliars,5,FALSE)*E$44+VLOOKUP(A$45,Foliars,5,FALSE)*E$45+VLOOKUP(A$46,Foliars,5,FALSE)*E$46+VLOOKUP(A$47,Foliars,5,FALSE)*E$47+VLOOKUP(A$48,Foliars,5,FALSE)*E$48 -> 0 | J46: =VLOOKUP(A$43,Foliars,7,FALSE)*E$43+VLOOKUP(A$44,Foliars,7,FALSE)*E$44+VLOOKUP(A$45,Foliars,7,FALSE)*E$45+VLOOKUP(A$46,Foliars,7,FALSE)*E$46+VLOOKUP(A$47,Foliars,7,FALSE)*E$47+VLOOKUP(A$48,Foliars,7,FALSE)*E$48 -> 0 | K46: =VLOOKUP(A$43,Foliars,6,FALSE)*E$43+VLOOKUP(A$44,Foliars,6,FALSE)*E$44+VLOOKUP(A$45,Foliars,6,FALSE)*E$45+VLOOKUP(A$46,Foliars,6,FALSE)*E$46+VLOOKUP(A$47,Foliars,6,FALSE)*E$47+VLOOKUP(A$48,Foliars,6,FALSE)*E$48 -> 0 | M46: None | N46: 0 | O46: 0 | P46: 1 | Q46: 0 | R46: 0 | S46: 0 | U46: =VLOOKUP(M$43,Foliars,5,FALSE)*Q$43+VLOOKUP(M$44,Foliars,5,FALSE)*Q$44+VLOOKUP(M$45,Foliars,5,FALSE)*Q$45+VLOOKUP(M$46,Foliars,5,FALSE)*Q$46+VLOOKUP(M$47,Foliars,5,FALSE)*Q$47+VLOOKUP(M$48,Foliars,5,FALSE)*Q$48 -> 0 | V46: =VLOOKUP(M$43,Foliars,7,FALSE)*Q$43+VLOOKUP(M$44,Foliars,7,FALSE)*Q$44+VLOOKUP(M$45,Foliars,7,FALSE)*Q$45+VLOOKUP(M$46,Foliars,7,FALSE)*Q$46+VLOOKUP(M$47,Foliars,7,FALSE)*Q$47+VLOOKUP(M$48,Foliars,7,FALSE)*Q$48 -> 0 | W46: =VLOOKUP(M$43,Foliars,6,FALSE)*Q$43+VLOOKUP(M$44,Foliars,6,FALSE)*Q$44+VLOOKUP(M$45,Foliars,6,FALSE)*Q$45+VLOOKUP(M$46,Foliars,6,FALSE)*Q$46+VLOOKUP(M$47,Foliars,6,FALSE)*Q$47+VLOOKUP(M$48,Foliars,6,FALSE)*Q$48 -> 0 | Y46: None | Z46: 0 | AA46: 0 | AB46: 1 | AC46: 0 | AD46: 0 | AE46: 0 | AG46: =VLOOKUP(Y$43,Foliars,5,FALSE)*AC$43+VLOOKUP(Y$44,Foliars,5,FALSE)*AC$44+VLOOKUP(Y$45,Foliars,5,FALSE)*AC$45+VLOOKUP(Y$46,Foliars,5,FALSE)*AC$46+VLOOKUP(Y$47,Foliars,5,FALSE)*AC$47+VLOOKUP(Y$48,Foliars,5,FALSE)*AC$48 -> 0 | AH46: =VLOOKUP(Y$43,Foliars,7,FALSE)*AC$43+VLOOKUP(Y$44,Foliars,7,FALSE)*AC$44+VLOOKUP(Y$45,Foliars,7,FALSE)*AC$45+VLOOKUP(Y$46,Foliars,7,FALSE)*AC$46+VLOOKUP(Y$47,Foliars,7,FALSE)*AC$47+VLOOKUP(Y$48,Foliars,7,FALSE)*AC$48 -> 0 | AI46: =VLOOKUP(Y$43,Foliars,6,FALSE)*AC$43+VLOOKUP(Y$44,Foliars,6,FALSE)*AC$44+VLOOKUP(Y$45,Foliars,6,FALSE)*AC$45+VLOOKUP(Y$46,Foliars,6,FALSE)*AC$46+VLOOKUP(Y$47,Foliars,6,FALSE)*AC$47+VLOOKUP(Y$48,Foliars,6,FALSE)*AC$48 -> 0
A47: None | B47: 0 | C47: 0 | D47: 1 | E47: 0 | F47: 0 | G47: 0 | M47: None | N47: 0 | O47: 0 | P47: 1 | Q47: 0 | R47: 0 | S47: 0 | Y47: None | Z47: 0 | AA47: 0 | AB47: 1 | AC47: 0 | AD47: 0 | AE47: 0
A48: None | B48: 0 | C48: 0 | D48: 1 | E48: 0 | F48: 0 | G48: 0 | I48: Z | J48: B | K48: Mn | M48: None | N48: 0 | O48: 0 | P48: 1 | Q48: 0 | R48: 0 | S48: 0 | U48: Z | V48: B | W48: Mn | Y48: None | Z48: 0 | AA48: 0 | AB48: 1 | AC48: 0 | AD48: 0 | AE48: 0 | AG48: Z | AH48: B | AI48: Mn
I49: =VLOOKUP(A$43,Foliars,8,FALSE)*E$43+VLOOKUP(A$44,Foliars,8,FALSE)*E$44+VLOOKUP(A$45,Foliars,8,FALSE)*E$45+VLOOKUP(A$46,Foliars,8,FALSE)*E$46+VLOOKUP(A$47,Foliars,8,FALSE)*E$47+VLOOKUP(A$48,Foliars,8,FALSE)*E$48 -> 0 | J49: =VLOOKUP(A$43,Foliars,9,FALSE)*E$43+VLOOKUP(A$44,Foliars,9,FALSE)*E$44+VLOOKUP(A$45,Foliars,9,FALSE)*E$45+VLOOKUP(A$46,Foliars,9,FALSE)*E$46+VLOOKUP(A$47,Foliars,9,FALSE)*E$47+VLOOKUP(A$48,Foliars,9,FALSE)*E$48 -> 0 | K49: =VLOOKUP(A$43,Foliars,10,FALSE)*E$43+VLOOKUP(A$44,Foliars,10,FALSE)*E$44+VLOOKUP(A$45,Foliars,10,FALSE)*E$45+VLOOKUP(A$46,Foliars,10,FALSE)*E$46+VLOOKUP(A$47,Foliars,10,FALSE)*E$47+VLOOKUP(A$48,Foliars,10,FALSE)*E$48 -> 0 | U49: =VLOOKUP(M$43,Foliars,8,FALSE)*Q$43+VLOOKUP(M$44,Foliars,8,FALSE)*Q$44+VLOOKUP(M$45,Foliars,8,FALSE)*Q$45+VLOOKUP(M$46,Foliars,8,FALSE)*Q$46+VLOOKUP(M$47,Foliars,8,FALSE)*Q$47+VLOOKUP(M$48,Foliars,8,FALSE)*Q$48 -> 0 | V49: =VLOOKUP(M$43,Foliars,9,FALSE)*Q$43+VLOOKUP(M$44,Foliars,9,FALSE)*Q$44+VLOOKUP(M$45,Foliars,9,FALSE)*Q$45+VLOOKUP(M$46,Foliars,9,FALSE)*Q$46+VLOOKUP(M$47,Foliars,9,FALSE)*Q$47+VLOOKUP(M$48,Foliars,9,FALSE)*Q$48 -> 0 | W49: =VLOOKUP(M$43,Foliars,10,FALSE)*Q$43+VLOOKUP(M$44,Foliars,10,FALSE)*Q$44+VLOOKUP(M$45,Foliars,10,FALSE)*Q$45+VLOOKUP(M$46,Foliars,10,FALSE)*Q$46+VLOOKUP(M$47,Foliars,10,FALSE)*Q$47+VLOOKUP(M$48,Foliars,10,FALSE)*Q$48 -> 0 | AG49: =VLOOKUP(Y$43,Foliars,8,FALSE)*AC$43+VLOOKUP(Y$44,Foliars,8,FALSE)*AC$44+VLOOKUP(Y$45,Foliars,8,FALSE)*AC$45+VLOOKUP(Y$46,Foliars,8,FALSE)*AC$46+VLOOKUP(Y$47,Foliars,8,FALSE)*AC$47+VLOOKUP(Y$48,Foliars,8,FALSE)*AC$48 -> 0 | AH49: =VLOOKUP(Y$43,Foliars,9,FALSE)*AC$43+VLOOKUP(Y$44,Foliars,9,FALSE)*AC$44+VLOOKUP(Y$45,Foliars,9,FALSE)*AC$45+VLOOKUP(Y$46,Foliars,9,FALSE)*AC$46+VLOOKUP(Y$47,Foliars,9,FALSE)*AC$47+VLOOKUP(Y$48,Foliars,9,FALSE)*AC$48 -> 0 | AI49: =VLOOKUP(Y$43,Foliars,10,FALSE)*AC$43+VLOOKUP(Y$44,Foliars,10,FALSE)*AC$44+VLOOKUP(Y$45,Foliars,10,FALSE)*AC$45+VLOOKUP(Y$46,Foliars,10,FALSE)*AC$46+VLOOKUP(Y$47,Foliars,10,FALSE)*AC$47+VLOOKUP(Y$48,Foliars,10,FALSE)*AC$48 -> 0
A51: Total Foliar Application Cost/Acre | G51: =SUM(G43:G48) -> 0 | I51: Cu | J51: Mo | K51: Fe | M51: Total Foliar Application Cost/Acre | S51: =SUM(S43:S48) -> 0 | U51: Cu | V51: Mo | W51: Fe | Y51: Total Foliar Application Cost/Acre | AE51: =SUM(AE43:AE48) -> 0 | AG51: Cu | AH51: Mo | AI51: Fe
I52: =VLOOKUP(A43,Foliars,11,FALSE)*E43+VLOOKUP(A44,Foliars,11,FALSE)*E44+VLOOKUP(A45,Foliars,11,FALSE)*E45+VLOOKUP(A46,Foliars,11,FALSE)*E46+VLOOKUP(A47,Foliars,11,FALSE)*E47+VLOOKUP(A48,Foliars,11,FALSE)*E48 -> 0 | J52: =VLOOKUP(A43,Foliars,12,FALSE)*E43+VLOOKUP(A44,Foliars,12,FALSE)*E44+VLOOKUP(A45,Foliars,12,FALSE)*E45+VLOOKUP(A46,Foliars,12,FALSE)*E46+VLOOKUP(A47,Foliars,12,FALSE)*E47+VLOOKUP(A48,Foliars,12,FALSE)*E48 -> 0 | K52: =VLOOKUP(A43,Foliars,13,FALSE)*E43+VLOOKUP(A44,Foliars,13,FALSE)*E44+VLOOKUP(A45,Foliars,13,FALSE)*E45+VLOOKUP(A46,Foliars,13,FALSE)*E46+VLOOKUP(A47,Foliars,13,FALSE)*E47+VLOOKUP(A48,Foliars,13,FALSE)*E48 -> 0 | U52: =VLOOKUP(M43,Foliars,11,FALSE)*Q43+VLOOKUP(M44,Foliars,11,FALSE)*Q44+VLOOKUP(M45,Foliars,11,FALSE)*Q45+VLOOKUP(M46,Foliars,11,FALSE)*Q46+VLOOKUP(M47,Foliars,11,FALSE)*Q47+VLOOKUP(M48,Foliars,11,FALSE)*Q48 -> 0 | V52: =VLOOKUP(M43,Foliars,12,FALSE)*Q43+VLOOKUP(M44,Foliars,12,FALSE)*Q44+VLOOKUP(M45,Foliars,12,FALSE)*Q45+VLOOKUP(M46,Foliars,12,FALSE)*Q46+VLOOKUP(M47,Foliars,12,FALSE)*Q47+VLOOKUP(M48,Foliars,12,FALSE)*Q48 -> 0 | W52: =VLOOKUP(M43,Foliars,13,FALSE)*Q43+VLOOKUP(M44,Foliars,13,FALSE)*Q44+VLOOKUP(M45,Foliars,13,FALSE)*Q45+VLOOKUP(M46,Foliars,13,FALSE)*Q46+VLOOKUP(M47,Foliars,13,FALSE)*Q47+VLOOKUP(M48,Foliars,13,FALSE)*Q48 -> 0 | AG52: =VLOOKUP(Y43,Foliars,11,FALSE)*AC43+VLOOKUP(Y44,Foliars,11,FALSE)*AC44+VLOOKUP(Y45,Foliars,11,FALSE)*AC45+VLOOKUP(Y46,Foliars,11,FALSE)*AC46+VLOOKUP(Y47,Foliars,11,FALSE)*AC47+VLOOKUP(Y48,Foliars,11,FALSE)*AC48 -> 0 | AH52: =VLOOKUP(Y43,Foliars,12,FALSE)*AC43+VLOOKUP(Y44,Foliars,12,FALSE)*AC44+VLOOKUP(Y45,Foliars,12,FALSE)*AC45+VLOOKUP(Y46,Foliars,12,FALSE)*AC46+VLOOKUP(Y47,Foliars,12,FALSE)*AC47+VLOOKUP(Y48,Foliars,12,FALSE)*AC48 -> 0 | AI52: =VLOOKUP(Y43,Foliars,13,FALSE)*AC43+VLOOKUP(Y44,Foliars,13,FALSE)*AC44+VLOOKUP(Y45,Foliars,13,FALSE)*AC45+VLOOKUP(Y46,Foliars,13,FALSE)*AC46+VLOOKUP(Y47,Foliars,13,FALSE)*AC47+VLOOKUP(Y48,Foliars,13,FALSE)*AC48 -> 0
A53: Fertigation Applications | M53: Fertigation Applications | Y53: Fertigation Applications
A54: Fertilizer Source | B54: Purchase Units | C54: Package Price (Gals, Lbs, etc.) | D54: Units/Pkg | E54: Rate/Acre | F54: Units | G54: Cost | M54: Fertilizer Source | N54: Purchase Units | O54: Package Price (Gals, Lbs, etc.) | P54: Units/Pkg | Q54: Rate/Acre | R54: Units | S54: Cost | Y54: Fertilizer Source | Z54: Purchase Units | AA54: Package Price (Gals, Lbs, etc.) | AB54: Units/Pkg | AC54: Rate/Acre | AD54: Units | AE54: Cost
A55: Fertigation (drop down menu) | E55: (Enter Below) | I55: N | J55: P | K55: K | M55: Fertigation (drop down menu) | Q55: (Enter Below) | U55: N | V55: P | W55: K | Y55: Fertigation (drop down menu) | AC55: (Enter Below) | AG55: N | AH55: P | AI55: K
A56: None | B56: =VLOOKUP(A56,Fertigation,14,FALSE) -> 0 | C56: =VLOOKUP(A56,Fertigation,18,FALSE) -> 0 | D56: =VLOOKUP(A56,Fertigation,16,FALSE) -> 1 | E56: 0 | F56: =VLOOKUP(A56,Fertigation,15,FALSE) -> 0 | G56: =(E56*VLOOKUP(A56,Foliars,14,FALSE)/D56)*C56 -> 0 | I56: =VLOOKUP(A$56,Fertigation,2,FALSE)*E$56+VLOOKUP(A$57,Fertigation,2,FALSE)*E$57+VLOOKUP(A$58,Fertigation,2,FALSE)*E$58+VLOOKUP(A$59,Fertigation,2,FALSE)*E$59+VLOOKUP(A$60,Fertigation,2,FALSE)*E$60+VLOOKUP(A$61,Fertigation,2,FALSE)*E$61 -> 0 | J56: =VLOOKUP(A$56,Fertigation,3,FALSE)*E$56+VLOOKUP(A$57,Fertigation,3,FALSE)*E$57+VLOOKUP(A$58,Fertigation,3,FALSE)*E$58+VLOOKUP(A$59,Fertigation,3,FALSE)*E$59+VLOOKUP(A$60,Fertigation,3,FALSE)*E$60+VLOOKUP(A$61,Fertigation,3,FALSE)*E$61 -> 0 | K56: =VLOOKUP(A$56,Fertigation,4,FALSE)*E$56+VLOOKUP(A$57,Fertigation,4,FALSE)*E$57+VLOOKUP(A$58,Fertigation,4,FALSE)*E$58+VLOOKUP(A$59,Fertigation,4,FALSE)*E$59+VLOOKUP(A$60,Fertigation,4,FALSE)*E$60+VLOOKUP(A$61,Fertigation,4,FALSE)*E$61 -> 0 | M56: None | N56: =VLOOKUP(M56,Fertigation,14,FALSE) -> 0 | O56: =VLOOKUP(M56,Fertigation,18,FALSE) -> 0 | P56: =VLOOKUP(M56,Fertigation,16,FALSE) -> 1 | Q56: 0 | R56: =VLOOKUP(M56,Fertigation,15,FALSE) -> 0 | S56: =(Q56*VLOOKUP(M56,Foliars,14,FALSE)/P56)*O56 -> 0 | U56: =VLOOKUP(M$56,Fertigation,2,FALSE)*Q$56+VLOOKUP(M$57,Fertigation,2,FALSE)*Q$57+VLOOKUP(M$58,Fertigation,2,FALSE)*Q$58+VLOOKUP(M$59,Fertigation,2,FALSE)*Q$59+VLOOKUP(M$60,Fertigation,2,FALSE)*Q$60+VLOOKUP(M$61,Fertigation,2,FALSE)*Q$61 -> 0 | V56: =VLOOKUP(M$56,Fertigation,3,FALSE)*Q$56+VLOOKUP(M$57,Fertigation,3,FALSE)*Q$57+VLOOKUP(M$58,Fertigation,3,FALSE)*Q$58+VLOOKUP(M$59,Fertigation,3,FALSE)*Q$59+VLOOKUP(M$60,Fertigation,3,FALSE)*Q$60+VLOOKUP(M$61,Fertigation,3,FALSE)*Q$61 -> 0 | W56: =VLOOKUP(M$56,Fertigation,4,FALSE)*Q$56+VLOOKUP(M$57,Fertigation,4,FALSE)*Q$57+VLOOKUP(M$58,Fertigation,4,FALSE)*Q$58+VLOOKUP(M$59,Fertigation,4,FALSE)*Q$59+VLOOKUP(M$60,Fertigation,4,FALSE)*Q$60+VLOOKUP(M$61,Fertigation,4,FALSE)*Q$61 -> 0 | Y56: None | Z56: =VLOOKUP(Y56,Fertigation,14,FALSE) -> 0 | AA56: =VLOOKUP(Y56,Fertigation,18,FALSE) -> 0 | AB56: =VLOOKUP(Y56,Fertigation,16,FALSE) -> 1 | AC56: 0 | AD56: =VLOOKUP(Y56,Fertigation,15,FALSE) -> 0 | AE56: =(AC56*VLOOKUP(Y56,Foliars,14,FALSE)/AB56)*AA56 -> 0 | AG56: =VLOOKUP(Y$56,Fertigation,2,FALSE)*AC$56+VLOOKUP(Y$57,Fertigation,2,FALSE)*AC$57+VLOOKUP(Y$58,Fertigation,2,FALSE)*AC$58+VLOOKUP(Y$59,Fertigation,2,FALSE)*AC$59+VLOOKUP(Y$60,Fertigation,2,FALSE)*AC$60+VLOOKUP(Y$61,Fertigation,2,FALSE)*AC$61 -> 0 | AH56: =VLOOKUP(Y$56,Fertigation,3,FALSE)*AC$56+VLOOKUP(Y$57,Fertigation,3,FALSE)*AC$57+VLOOKUP(Y$58,Fertigation,3,FALSE)*AC$58+VLOOKUP(Y$59,Fertigation,3,FALSE)*AC$59+VLOOKUP(Y$60,Fertigation,3,FALSE)*AC$60+VLOOKUP(Y$61,Fertigation,3,FALSE)*AC$61 -> 0 | AI56: =VLOOKUP(Y$56,Fertigation,4,FALSE)*AC$56+VLOOKUP(Y$57,Fertigation,4,FALSE)*AC$57+VLOOKUP(Y$58,Fertigation,4,FALSE)*AC$58+VLOOKUP(Y$59,Fertigation,4,FALSE)*AC$59+VLOOKUP(Y$60,Fertigation,4,FALSE)*AC$60+VLOOKUP(Y$61,Fertigation,4,FALSE)*AC$61 -> 0
A57: None | B57: =VLOOKUP(A57,Foliars,14,FALSE) -> 0 | C57: 0 | D57: 1 | E57: 0 | F57: 0 | G57: 0 | M57: None | N57: =VLOOKUP(M57,Foliars,14,FALSE) -> 0 | O57: 0 | P57: 1 | Q57: 0 | R57: 0 | S57: 0 | Y57: None | Z57: =VLOOKUP(Y57,Foliars,14,FALSE) -> 0 | AA57: 0 | AB57: 1 | AC57: 0 | AD57: 0 | AE57: 0
A58: None | B58: =VLOOKUP(A58,Foliars,14,FALSE) -> 0 | C58: 0 | D58: 1 | E58: 0 | F58: 0 | G58: 0 | I58: S | J58: Ca | K58: Mg | M58: None | N58: =VLOOKUP(M58,Foliars,14,FALSE) -> 0 | O58: 0 | P58: 1 | Q58: 0 | R58: 0 | S58: 0 | U58: S | V58: Ca | W58: Mg | Y58: None | Z58: =VLOOKUP(Y58,Foliars,14,FALSE) -> 0 | AA58: 0 | AB58: 1 | AC58: 0 | AD58: 0 | AE58: 0 | AG58: S | AH58: Ca | AI58: Mg
A59: None | B59: =VLOOKUP(A59,Foliars,14,FALSE) -> 0 | C59: 0 | D59: 1 | E59: 0 | F59: 0 | G59: 0 | I59: =VLOOKUP(A$56,Fertigation,5,FALSE)*E$56+VLOOKUP(A$57,Fertigation,5,FALSE)*E$57+VLOOKUP(A$58,Fertigation,5,FALSE)*E$58+VLOOKUP(A$59,Fertigation,5,FALSE)*E$59+VLOOKUP(A$60,Fertigation,5,FALSE)*E$60+VLOOKUP(A$61,Fertigation,5,FALSE)*E$61 -> 0 | J59: =VLOOKUP(A$56,Fertigation,7,FALSE)*E$56+VLOOKUP(A$57,Fertigation,7,FALSE)*E$57+VLOOKUP(A$58,Fertigation,7,FALSE)*E$58+VLOOKUP(A$59,Fertigation,7,FALSE)*E$59+VLOOKUP(A$60,Fertigation,7,FALSE)*E$60+VLOOKUP(A$61,Fertigation,7,FALSE)*E$61 -> 0 | K59: =VLOOKUP(A$56,Fertigation,6,FALSE)*E$56+VLOOKUP(A$57,Fertigation,6,FALSE)*E$57+VLOOKUP(A$58,Fertigation,6,FALSE)*E$58+VLOOKUP(A$59,Fertigation,6,FALSE)*E$59+VLOOKUP(A$60,Fertigation,6,FALSE)*E$60+VLOOKUP(A$61,Fertigation,6,FALSE)*E$61 -> 0 | M59: None | N59: =VLOOKUP(M59,Foliars,14,FALSE) -> 0 | O59: 0 | P59: 1 | Q59: 0 | R59: 0 | S59: 0 | U59: =VLOOKUP(M$56,Fertigation,5,FALSE)*Q$56+VLOOKUP(M$57,Fertigation,5,FALSE)*Q$57+VLOOKUP(M$58,Fertigation,5,FALSE)*Q$58+VLOOKUP(M$59,Fertigation,5,FALSE)*Q$59+VLOOKUP(M$60,Fertigation,5,FALSE)*Q$60+VLOOKUP(M$61,Fertigation,5,FALSE)*Q$61 -> 0 | V59: =VLOOKUP(M$56,Fertigation,7,FALSE)*Q$56+VLOOKUP(M$57,Fertigation,7,FALSE)*Q$57+VLOOKUP(M$58,Fertigation,7,FALSE)*Q$58+VLOOKUP(M$59,Fertigation,7,FALSE)*Q$59+VLOOKUP(M$60,Fertigation,7,FALSE)*Q$60+VLOOKUP(M$61,Fertigation,7,FALSE)*Q$61 -> 0 | W59: =VLOOKUP(M$56,Fertigation,6,FALSE)*Q$56+VLOOKUP(M$57,Fertigation,6,FALSE)*Q$57+VLOOKUP(M$58,Fertigation,6,FALSE)*Q$58+VLOOKUP(M$59,Fertigation,6,FALSE)*Q$59+VLOOKUP(M$60,Fertigation,6,FALSE)*Q$60+VLOOKUP(M$61,Fertigation,6,FALSE)*Q$61 -> 0 | Y59: None | Z59: =VLOOKUP(Y59,Foliars,14,FALSE) -> 0 | AA59: 0 | AB59: 1 | AC59: 0 | AD59: 0 | AE59: 0 | AG59: =VLOOKUP(Y$56,Fertigation,5,FALSE)*AC$56+VLOOKUP(Y$57,Fertigation,5,FALSE)*AC$57+VLOOKUP(Y$58,Fertigation,5,FALSE)*AC$58+VLOOKUP(Y$59,Fertigation,5,FALSE)*AC$59+VLOOKUP(Y$60,Fertigation,5,FALSE)*AC$60+VLOOKUP(Y$61,Fertigation,5,FALSE)*AC$61 -> 0 | AH59: =VLOOKUP(Y$56,Fertigation,7,FALSE)*AC$56+VLOOKUP(Y$57,Fertigation,7,FALSE)*AC$57+VLOOKUP(Y$58,Fertigation,7,FALSE)*AC$58+VLOOKUP(Y$59,Fertigation,7,FALSE)*AC$59+VLOOKUP(Y$60,Fertigation,7,FALSE)*AC$60+VLOOKUP(Y$61,Fertigation,7,FALSE)*AC$61 -> 0 | AI59: =VLOOKUP(Y$56,Fertigation,6,FALSE)*AC$56+VLOOKUP(Y$57,Fertigation,6,FALSE)*AC$57+VLOOKUP(Y$58,Fertigation,6,FALSE)*AC$58+VLOOKUP(Y$59,Fertigation,6,FALSE)*AC$59+VLOOKUP(Y$60,Fertigation,6,FALSE)*AC$60+VLOOKUP(Y$61,Fertigation,6,FALSE)*AC$61 -> 0
A60: None | B60: =VLOOKUP(A60,Foliars,14,FALSE) -> 0 | C60: 0 | D60: 1 | E60: 0 | F60: 0 | G60: 0 | M60: None | N60: =VLOOKUP(M60,Foliars,14,FALSE) -> 0 | O60: 0 | P60: 1 | Q60: 0 | R60: 0 | S60: 0 | Y60: None | Z60: =VLOOKUP(Y60,Foliars,14,FALSE) -> 0 | AA60: 0 | AB60: 1 | AC60: 0 | AD60: 0 | AE60: 0
A61: None | B61: =VLOOKUP(A61,Foliars,14,FALSE) -> 0 | C61: 0 | D61: 1 | E61: 0 | F61: 0 | G61: 0 | I61: Z | J61: B | K61: Mn | M61: None | N61: =VLOOKUP(M61,Foliars,14,FALSE) -> 0 | O61: 0 | P61: 1 | Q61: 0 | R61: 0 | S61: 0 | U61: Z | V61: B | W61: Mn | Y61: None | Z61: =VLOOKUP(Y61,Foliars,14,FALSE) -> 0 | AA61: 0 | AB61: 1 | AC61: 0 | AD61: 0 | AE61: 0 | AG61: Z | AH61: B | AI61: Mn
I62: =VLOOKUP(A$56,Fertigation,8,FALSE)*E$56+VLOOKUP(A$57,Fertigation,8,FALSE)*E$57+VLOOKUP(A$58,Fertigation,8,FALSE)*E$58+VLOOKUP(A$59,Fertigation,8,FALSE)*E$59+VLOOKUP(A$60,Fertigation,8,FALSE)*E$60+VLOOKUP(A$61,Fertigation,8,FALSE)*E$61 -> 0 | J62: =VLOOKUP(A$56,Fertigation,9,FALSE)*E$56+VLOOKUP(A$57,Fertigation,9,FALSE)*E$57+VLOOKUP(A$58,Fertigation,9,FALSE)*E$58+VLOOKUP(A$59,Fertigation,9,FALSE)*E$59+VLOOKUP(A$60,Fertigation,9,FALSE)*E$60+VLOOKUP(A$61,Fertigation,9,FALSE)*E$61 -> 0 | K62: =VLOOKUP(A$56,Fertigation,10,FALSE)*E$56+VLOOKUP(A$57,Fertigation,10,FALSE)*E$57+VLOOKUP(A$58,Fertigation,10,FALSE)*E$58+VLOOKUP(A$59,Fertigation,10,FALSE)*E$59+VLOOKUP(A$60,Fertigation,10,FALSE)*E$60+VLOOKUP(A$61,Fertigation,10,FALSE)*E$61 -> 0 | U62: =VLOOKUP(M$56,Fertigation,8,FALSE)*Q$56+VLOOKUP(M$57,Fertigation,8,FALSE)*Q$57+VLOOKUP(M$58,Fertigation,8,FALSE)*Q$58+VLOOKUP(M$59,Fertigation,8,FALSE)*Q$59+VLOOKUP(M$60,Fertigation,8,FALSE)*Q$60+VLOOKUP(M$61,Fertigation,8,FALSE)*Q$61 -> 0 | V62: =VLOOKUP(M$56,Fertigation,9,FALSE)*Q$56+VLOOKUP(M$57,Fertigation,9,FALSE)*Q$57+VLOOKUP(M$58,Fertigation,9,FALSE)*Q$58+VLOOKUP(M$59,Fertigation,9,FALSE)*Q$59+VLOOKUP(M$60,Fertigation,9,FALSE)*Q$60+VLOOKUP(M$61,Fertigation,9,FALSE)*Q$61 -> 0 | W62: =VLOOKUP(M$56,Fertigation,10,FALSE)*Q$56+VLOOKUP(M$57,Fertigation,10,FALSE)*Q$57+VLOOKUP(M$58,Fertigation,10,FALSE)*Q$58+VLOOKUP(M$59,Fertigation,10,FALSE)*Q$59+VLOOKUP(M$60,Fertigation,10,FALSE)*Q$60+VLOOKUP(M$61,Fertigation,10,FALSE)*Q$61 -> 0 | AG62: =VLOOKUP(Y$56,Fertigation,8,FALSE)*AC$56+VLOOKUP(Y$57,Fertigation,8,FALSE)*AC$57+VLOOKUP(Y$58,Fertigation,8,FALSE)*AC$58+VLOOKUP(Y$59,Fertigation,8,FALSE)*AC$59+VLOOKUP(Y$60,Fertigation,8,FALSE)*AC$60+VLOOKUP(Y$61,Fertigation,8,FALSE)*AC$61 -> 0 | AH62: =VLOOKUP(Y$56,Fertigation,9,FALSE)*AC$56+VLOOKUP(Y$57,Fertigation,9,FALSE)*AC$57+VLOOKUP(Y$58,Fertigation,9,FALSE)*AC$58+VLOOKUP(Y$59,Fertigation,9,FALSE)*AC$59+VLOOKUP(Y$60,Fertigation,9,FALSE)*AC$60+VLOOKUP(Y$61,Fertigation,9,FALSE)*AC$61 -> 0 | AI62: =VLOOKUP(Y$56,Fertigation,10,FALSE)*AC$56+VLOOKUP(Y$57,Fertigation,10,FALSE)*AC$57+VLOOKUP(Y$58,Fertigation,10,FALSE)*AC$58+VLOOKUP(Y$59,Fertigation,10,FALSE)*AC$59+VLOOKUP(Y$60,Fertigation,10,FALSE)*AC$60+VLOOKUP(Y$61,Fertigation,10,FALSE)*AC$61 -> 0
A64: Total Fertigation Cost/Acre | G64: =SUM(G56:G61) -> 0 | I64: Cu | J64: Mo | K64: Fe | M64: Total Fertigation Cost/Acre | S64: =SUM(S56:S61) -> 0 | U64: Cu | V64: Mo | W64: Fe | Y64: Total Fertigation Cost/Acre | AE64: =SUM(AE56:AE61) -> 0 | AG64: Cu | AH64: Mo | AI64: Fe
I65: =VLOOKUP(A56,Fertigation,11,FALSE)*E56+VLOOKUP(A57,Fertigation,11,FALSE)*E57+VLOOKUP(A58,Fertigation,11,FALSE)*E58+VLOOKUP(A59,Fertigation,11,FALSE)*E59+VLOOKUP(A60,Fertigation,11,FALSE)*E60+VLOOKUP(A61,Fertigation,11,FALSE)*E61 -> 0 | J65: =VLOOKUP(A56,Fertigation,12,FALSE)*E56+VLOOKUP(A57,Fertigation,12,FALSE)*E57+VLOOKUP(A58,Fertigation,12,FALSE)*E58+VLOOKUP(A59,Fertigation,12,FALSE)*E59+VLOOKUP(A60,Fertigation,12,FALSE)*E60+VLOOKUP(A61,Fertigation,12,FALSE)*E61 -> 0 | K65: =VLOOKUP(A56,Fertigation,13,FALSE)*E56+VLOOKUP(A57,Fertigation,13,FALSE)*E57+VLOOKUP(A58,Fertigation,13,FALSE)*E58+VLOOKUP(A59,Fertigation,13,FALSE)*E59+VLOOKUP(A60,Fertigation,13,FALSE)*E60+VLOOKUP(A61,Fertigation,13,FALSE)*E61 -> 0 | U65: =VLOOKUP(M56,Fertigation,11,FALSE)*Q56+VLOOKUP(M57,Fertigation,11,FALSE)*Q57+VLOOKUP(M58,Fertigation,11,FALSE)*Q58+VLOOKUP(M59,Fertigation,11,FALSE)*Q59+VLOOKUP(M60,Fertigation,11,FALSE)*Q60+VLOOKUP(M61,Fertigation,11,FALSE)*Q61 -> 0 | V65: =VLOOKUP(M56,Fertigation,12,FALSE)*Q56+VLOOKUP(M57,Fertigation,12,FALSE)*Q57+VLOOKUP(M58,Fertigation,12,FALSE)*Q58+VLOOKUP(M59,Fertigation,12,FALSE)*Q59+VLOOKUP(M60,Fertigation,12,FALSE)*Q60+VLOOKUP(M61,Fertigation,12,FALSE)*Q61 -> 0 | W65: =VLOOKUP(M56,Fertigation,13,FALSE)*Q56+VLOOKUP(M57,Fertigation,13,FALSE)*Q57+VLOOKUP(M58,Fertigation,13,FALSE)*Q58+VLOOKUP(M59,Fertigation,13,FALSE)*Q59+VLOOKUP(M60,Fertigation,13,FALSE)*Q60+VLOOKUP(M61,Fertigation,13,FALSE)*Q61 -> 0 | AG65: =VLOOKUP(Y56,Fertigation,11,FALSE)*AC56+VLOOKUP(Y57,Fertigation,11,FALSE)*AC57+VLOOKUP(Y58,Fertigation,11,FALSE)*AC58+VLOOKUP(Y59,Fertigation,11,FALSE)*AC59+VLOOKUP(Y60,Fertigation,11,FALSE)*AC60+VLOOKUP(Y61,Fertigation,11,FALSE)*AC61 -> 0 | AH65: =VLOOKUP(Y56,Fertigation,12,FALSE)*AC56+VLOOKUP(Y57,Fertigation,12,FALSE)*AC57+VLOOKUP(Y58,Fertigation,12,FALSE)*AC58+VLOOKUP(Y59,Fertigation,12,FALSE)*AC59+VLOOKUP(Y60,Fertigation,12,FALSE)*AC60+VLOOKUP(Y61,Fertigation,12,FALSE)*AC61 -> 0 | AI65: =VLOOKUP(Y56,Fertigation,13,FALSE)*AC56+VLOOKUP(Y57,Fertigation,13,FALSE)*AC57+VLOOKUP(Y58,Fertigation,13,FALSE)*AC58+VLOOKUP(Y59,Fertigation,13,FALSE)*AC59+VLOOKUP(Y60,Fertigation,13,FALSE)*AC60+VLOOKUP(Y61,Fertigation,13,FALSE)*AC61 -> 0
A67: Total Fertilizer Cost/Acre | G67: =G38+G21+G51 -> 0 | M67: Total Fertilizer Cost/Acre | S67: =S38+S21+S51 -> 0 | Y67: Total Fertilizer Cost/Acre | AE67: =AE38+AE21+AE51 -> 0
E69: Total Nutrient Needs | I69: Total Fertilizer Program | Q69: Total Nutrient Needs | U69: Total Fertilizer Program | AC69: Total Nutrient Needs | AG69: Total Fertilizer Program
E70: Based on: | F70: Soil Test Based Recs | I70: Comparison 1 | Q70: Based on: | R70: Soil Test Based Recs | U70: Comparison 2 | AC70: Based on: | AD70: Soil Test Based Recs | AG70: Comparison 3
A71: Farm Name | E71: N | F71: P | G71: K | I71: N | J71: P | K71: K | M71: =A71 -> Farm Name | Q71: N | R71: P | S71: K | U71: N | V71: P | W71: K | Y71: =A71 -> Farm Name | AC71: N | AD71: P | AE71: K | AG71: N | AH71: P | AI71: K
A72: Farm Tract | E72: ='Nutrient Management'!$J$56 -> 0 | F72: ='Nutrient Management'!$K$56 -> 0 | G72: ='Nutrient Management'!$L$56 -> 0 | I72: =I43+I26+I6+I56 -> 0 | J72: =J43+J26+J6+J56 -> 0 | K72: =K43+K26+K6+K56 -> 0 | M72: =A72 -> Farm Tract | Q72: ='Nutrient Management'!$J$56 -> 0 | R72: ='Nutrient Management'!$K$56 -> 0 | S72: ='Nutrient Management'!$L$56 -> 0 | U72: =U43+U26+U6+U56 -> 0 | V72: =V43+V26+V6+V56 -> 0 | W72: =W43+W26+W6+W56 -> 0 | Y72: =A72 -> Farm Tract | AC72: ='Nutrient Management'!$J$56 -> 0 | AD72: ='Nutrient Management'!$K$56 -> 0 | AE72: ='Nutrient Management'!$L$56 -> 0 | AG72: =AG43+AG26+AG6+AG56 -> 0 | AH72: =AH43+AH26+AH6+AH56 -> 0 | AI72: =AI43+AI26+AI6+AI56 -> 0
A73: Farm Number | E73: S | F73: Ca | G73: Mg | I73: S | J73: Ca | K73: Mg | M73: Farm Number | Q73: S | R73: Ca | S73: Mg | U73: S | V73: Ca | W73: Mg | Y73: Farm Number | AC73: S | AD73: Ca | AE73: Mg | AG73: S | AH73: Ca | AI73: Mg
E74: ='Nutrient Management'!$J$59 -> 0 | F74: ='Nutrient Management'!$K$59 -> 0 | G74: ='Nutrient Management'!$L$59 -> 0 | I74: =I46+I29+I9+I59 -> 0 | J74: =J46+J29+J9+J59 -> 0 | K74: =K46+K29+K9+K59 -> 0 | Q74: ='Nutrient Management'!$J$59 -> 0 | R74: ='Nutrient Management'!$K$59 -> 0 | S74: ='Nutrient Management'!$L$59 -> 0 | U74: =U46+U29+U9+U59 -> 0 | V74: =V46+V29+V9+V59 -> 0 | W74: =W46+W29+W9+W59 -> 0 | AC74: ='Nutrient Management'!$J$59 -> 0 | AD74: ='Nutrient Management'!$K$59 -> 0 | AE74: ='Nutrient Management'!$L$59 -> 0 | AG74: =AG46+AG29+AG9+AG59 -> 0 | AH74: =AH46+AH29+AH9+AH59 -> 0 | AI74: =AI46+AI29+AI9+AI59 -> 0
E75: Z | F75: B | G75: Mn | I75: Z | J75: B | K75: Mn | Q75: Z | R75: B | S75: Mn | U75: Z | V75: B | W75: Mn | AC75: Z | AD75: B | AE75: Mn | AG75: Z | AH75: B | AI75: Mn
E76: ='Nutrient Management'!$J$61 -> 0 | F76: ='Nutrient Management'!$K$61 -> 0 | G76: ='Nutrient Management'!$L$61 -> 0 | I76: =I49+I32+I12+I62 -> 0 | J76: =J49+J32+J12+J62 -> 0 | K76: =K49+K32+K12+K62 -> 0 | Q76: ='Nutrient Management'!$J$61 -> 0 | R76: ='Nutrient Management'!$K$61 -> 0 | S76: ='Nutrient Management'!$L$61 -> 0 | U76: =U49+U32+U12+U62 -> 0 | V76: =V49+V32+V12+V62 -> 0 | W76: =W49+W32+W12+W62 -> 0 | AC76: ='Nutrient Management'!$J$61 -> 0 | AD76: ='Nutrient Management'!$K$61 -> 0 | AE76: ='Nutrient Management'!$L$61 -> 0 | AG76: =AG49+AG32+AG12+AG62 -> 0 | AH76: =AH49+AH32+AH12+AH62 -> 0 | AI76: =AI49+AI32+AI12+AI62 -> 0
E77: Cu | F77: Mo | G77: Fe | I77: Cu | J77: Mo | K77: Fe | Q77: Cu | R77: Mo | S77: Fe | U77: Cu | V77: Mo | W77: Fe | AC77: Cu | AD77: Mo | AE77: Fe | AG77: Cu | AH77: Mo | AI77: Fe
E78: ='Nutrient Management'!$J$63 -> 0 | F78: ='Nutrient Management'!$K$63 -> 0 | G78: ='Nutrient Management'!$L$63 -> 0 | I78: =I65+I52+I35+I15 -> 0 | J78: =J65+J52+J35+J15 -> 0 | K78: 0 | Q78: ='Nutrient Management'!$J$63 -> 0 | R78: ='Nutrient Management'!$K$63 -> 0 | S78: ='Nutrient Management'!$L$63 -> 0 | U78: =U65+U52+U35+U15 -> 0 | V78: =V65+V52+V35+V15 -> 0 | W78: 0 | AC78: ='Nutrient Management'!$J$63 -> 0 | AD78: ='Nutrient Management'!$K$63 -> 0 | AE78: ='Nutrient Management'!$L$63 -> 0 | AG78: =AG65+AG52+AG35+AG15 -> 0 | AH78: =AH65+AH52+AH35+AH15 -> 0 | AI78: 0
E79: * from Nutrient Management tab | Q79: * from Nutrient Management tab | AC79: * from Nutrient Management tab

Sheet Simple Fertilizer Calculator
B2: Fertilizer Calculator
C3: Source | D3: Price/ton | E3: Price/lb | F3: Amount | G3: Cost/Acre
C4: (Enter Below) | D4: (Enter Below) | F4: (Enter Below)
B5: Nitrogen | C5: 0.46 | D5: 361 | E5: =D5/H5 -> 0.3923913043 | F5: 86 | G5: =F5*E5 -> 33.74565217 | H5: =2000*C5 -> 920
B6: Nitrogen from Phosphate | C6: 0.18 | D6: 144 | E6: =D6/J20 -> 0.6 | F6: 40 | G6: =F6*E6 -> 24 | H6: =2000*C10 -> 920
B7: Nitrogen from Sulfur | C7: 0.21 | D7: 168 | E7: =D7/J35 -> 0.4 | F7: 40 | G7: =F7*E7 -> 16
G8: =SUM(G5:G7) -> 73.74565217
C9: (Enter Below) | D9: (Enter Below) | F9: (Enter Below)
B10: Phosphorus | C10: 0.46 | D10: 361 | E10: =D10/H6 -> 0.3923913043 | F10: 60 | G10: =F10*E10 -> 23.54347826 | H10: =2000*C6 -> 360
B11: Potassium | C11: 0.6 | D11: 355 | E11: =D11/H11 -> 0.2958333333 | F11: 75 | G11: =F11*E11 -> 22.1875 | H11: =2000*C11 -> 1200
B12: Sulfur | C12: 0.24 | D12: 157 | E12: =D12/H12 -> 0.3270833333 | F12: 60 | G12: =F12*E12 -> 19.625 | H12: =2000*C12 -> 480
G13: =SUM(G10:G12) -> 65.35597826
F14: Total Fertilizer | G14: =G8+G13 -> 139.1016304
B15: Source Code:
B16: Nitrogen | C16: 28-0-0 | D16: type in | E16: 0.28
B17: Phosphorus | C17: 18-46-0 | D17: type in | E17: 0.46
B18: Potassium | C18: 0-0-60 | D18: type in | E18: 0.6
I20: lbs/ton | J20: =2000*(C24/100) -> 240 | K20: =2000*(D24/100) -> 800
B21: Extract Nitrogen Cost from Phosphate Fertilizers | I21: %/ton | J21: =J20/(J20+K20) -> 0.2307692308 | K21: =K20/(J20+K20) -> 0.7692307692
C22: N | D22: P | E22: Price
C23: (Enter Below) | D23: (Enter Below) | E23: (Enter Below)
C24: 12 | D24: 40 | E24: 780
B25: Price/lb | C25: 0.31 | D25: =D26/K20 -> 0.882
B26: Price/ton | C26: =J20*C25 -> 74.4 | D26: =E24-C26 -> 705.6 | E26: =SUM(C26:D26) -> 780
B28: *Enter a price/lb of nitrogen to calculate the phosphate fertilizer price. The price as calculated above can be used if a price is not already known.
B31: *If nitrogen from Phosphate fertilizer will not be utilized by the crop, simply enter "0" in Amount and adjust the price of the phosphate fertilizer to the total cost/ton of the blend.
I35: lbs/ton | J35: =2000*(C39/100) -> 420 | K35: =2000*(D39/100) -> 480
B36: Extract Nitrogen Cost from Sulfur Fertilizers | I36: %/ton | J36: =J35/(J35+K35) -> 0.4666666667 | K36: =K35/(J35+K35) -> 0.5333333333
C37: N | D37: S | E37: Price
C38: (Enter Below) | D38: (Enter Below) | E38: (Enter Below)
C39: 21 | D39: 24 | E39: 325
B40: Price/lb | C40: 0.4 | D40: =D41/K35 -> 0.3270833333
B41: Price/ton | C41: =J35*C40 -> 168 | D41: =E39-C41 -> 157 | E41: =SUM(C41:D41) -> 325
B43: *Enter a price/lb of nitrogen to calculate the sulfur fertilizer price. The price as calculated above can be used if a price is not already known.
B46: *If nitrogen from sulfur fertilizer will not be utilized by the crop, simply enter "0" in Amount and adjust the price of the sulfur fertilizer to the total cost/ton of the blend.

Sheet Nutrient Removal Table (hidden)
B3: N Removal | C3: P Removal | D3: K Removal
A6: Select Crop | B6: 0 | C6: 0 | D6: 0
A7: Asparagus | B7: 13.4 | C7: 4 | D7: 10 | F7: IF(AND('Nutrient Management'!$D$11<=10),C7
A8: Beets, table | B8: 3.5 | C8: 2.2 | D8: 7.8
A9: Broccoli | B9: 4 | C9: 1.1 | D9: 11
A10: Brussels Sprouts | B10: 9.4 | C10: 3.2 | D10: 9.4
A11: Cabbage | B11: 7 | C11: 1.6 | D11: 6.8
A12: Carrots | B12: 3.4 | C12: 1.8 | D12: 6.8
A13: Cauliflower | B13: 6.6 | C13: 2.6 | D13: 6.6
A14: Celery | B14: 5 | C14: 2 | D14: 11.6
A15: Cucumber | B15: 2 | C15: 1.2 | D15: 3.6
A16: Eggplant | B16: 4.5 | C16: 1.6 | D16: 5.3
A17: Endive | B17: 4.8 | C17: 1.2 | D17: 7.5
A18: Garlic | B18: 5 | C18: 2.8 | D18: 5.6
A19: Lettuce | B19: 4.8 | C19: 2 | D19: 9
A20: Muskmelon | B20: 8.4 | C20: 2 | D20: 11
A21: Onions (dry) | B21: 5 | C21: 2.6 | D21: 4.8
A22: Onions (green) | B22: 5 | C22: 2.6 | D22: 4.8
A23: Parsley | B23: 4.8 | C23: 1.8 | D23: 12.9
A24: Parsnips | B24: 3.4 | C24: 3.2 | D24: 9
A25: Peas | B25: 20 | C25: 4.6 | D25: 11
A26: Peppers | B26: 4 | C26: 1.4 | D26: 5.6
A27: Potatoes | B27: 6.6 | C27: 2.6 | D27: 12.6
A28: Pumpkins | B28: 4 | C28: 1.2 | D28: 6.8
A29: Radishes | B29: 3 | C29: 0.8 | D29: 5.6
A30: Rhubarb | B30: 3.5 | C30: 0.6 | D30: 6.9
A31: Rutabagas | B31: 3.4 | C31: 2.6 | D31: 8.1
A32: Snap Beans | B32: 24 | C32: 2.4 | D32: 11
A33: Spinach | B33: 10 | C33: 2.7 | D33: 12
A34: Squash | B34: 4 | C34: 2.2 | D34: 6.6
A35: Sweet Corn | B35: 8.4 | C35: 2.8 | D35: 5.6
A36: Swiss Chard | B36: 3.5 | C36: 1.2 | D36: 9.1
A37: Tomatoes | B37: 4 | C37: 0.8 | D37: 7
A38: Turnips | B38: 3.4 | C38: 1.2 | D38: 4.6
A39: Watermelon | B39: 4.8 | C39: 0.4 | D39: 2.4
A40: Zucchini | B40: 4.6 | C40: 1.6 | D40: 6.6 | E40: Used Squash for soil test levels

Sheet Tri-State Recommendations (hidden)
B1: Tri-State Fertilizer Recommendations
B3: Corn | F3: Soybeans | J3: Wheat
A5: Yield Goal: | B5: ='Nutrient Management'!C6 -> 0 | F5: ='Nutrient Management'!G6 -> 0 | J5: ='Nutrient Management'!K6 -> 0
A7: Soil Test Level: | B7: Input amount of nutrients currently present in field (based on soil test results)
B8: (Enter Below) | C8: (Enter Below) | D8: (Enter Below) | F8: (Enter Below) | G8: (Enter Below) | H8: (Enter Below) | J8: (Enter Below) | K8: (Enter Below) | L8: (Enter Below)
B9: N | C9: P | D9: K | F9: N | G9: P | H9: K | J9: N | K9: P | L9: K
B10: 0 | C10: 0 | D10: 0 | F10: 0 | G10: 0 | H10: 0 | J10: 0 | K10: 0 | L10: 0
B11: S | C11: Ca | D11: Mag | F11: S | G11: Ca | H11: Mag | J11: S | K11: Ca | L11: Mag
B12: 0 | C12: 0 | D12: 0 | F12: 0 | G12: 0 | H12: 0 | J12: 0 | K12: 0 | L12: 0
B13: 0 | C13: 0 | D13: 0 | F13: 0 | G13: 0 | H13: 0 | J13: 0 | K13: 0 | L13: 0
B14: 0 | C14: 0 | D14: 0 | F14: 0 | G14: 0 | H14: 0 | J14: 0 | K14: 0 | L14: 0
C15: (Enter Below) | G15: (Enter Below) | K15: (Enter Below)
A16: Note: CEC & pH levels needed for calculation accuracy in Soil Test Based Recommendations | B16: CEC Level: | C16: 0 | F16: CEC Level: | G16: 0 | J16: CEC Level: | K16: 0
C17: (Enter Below) | G17: (Enter Below) | K17: (Enter Below)
B18: pH Level: | C18: 0 | F18: pH Level: | G18: 0 | J18: pH Level: | K18: 0
A20: Soil Test Based Recommendations: | B20: Based on soil test data, the following are tri-state recommendations for fertilizer needs to meet yield goals.
B22: N | C22: P | D22: K | F22: N | G22: P | H22: K | J22: N | K22: P | L22: K
B23: 0 | C23: =IF(AND(C10<20,B5<=150),105,IF(AND(C10<20,B5<=200),120,IF(AND(C10<20,B5<=250),140,IF(AND(C10<20,B5<=300),155,IF(AND(C10<30,B5<=150),80,IF(AND(C10<30,B5<=200),95,IF(AND(C10<30,B5<=250),115,IF(AND(C10<30,B5<=300),130,IF(AND(C10<80,B5<=150),55,IF(AND(C10<80,B5<=200),70,IF(AND(C10<80,B5<=250),90,IF(AND(C10<80,B5<=300),105,IF(AND(C10>=80,B5<=150),0,IF(AND(C10>=80,B5<=200),0,IF(AND(C10>=80,B5<=250),0,IF(AND(C10>=80,B5<=300),0)))))))))))))))) -> 105 | D23: =IF(AND(D10<=100,B5<=150,C16<=5),95,IF(AND(D10<=100,B5<=200,C16<=5),105,IF(AND(D10<=105,B5<=250,C16<=5),115,IF(AND(D10<=100,B5<=160,C16<=5),125,IF(AND(D10<=150,B5<=150,C16<=5),60,IF(AND(D10<=150,B5<=200,C16<=5),70,IF(AND(D10<=150,B5<=250,C16<=5),80,IF(AND(D10<=150,B5<=160,C16<=5),90,IF(AND(D10<=260,B5<=150,C16<=5),30,IF(AND(D10<=260,B5<=200,C16<=5),40,IF(AND(D10<=260,B5<=250,C16<=5),50,IF(AND(D10<=260,B5<=160,C16<=5),60,IF(AND(D10>=260,B5<=150,C16<=5),0,IF(AND(D10>=260,B5<=200,C16<=5),0,IF(AND(D10>=260,B5<=250,C16<=5),0,IF(AND(D10>=260,B5<=160,C16<=5),0,IF(AND(D10<=100,B5<=150,C16>=6),155,IF(AND(D10<=100,B5<=200,C16>=6),165,IF(AND(D10<=100,B5<=250,C16>=6),175,IF(AND(D10<=100,B5<=160,C16>=6),185,IF(AND(D10<=150,B5<=150,C16>=6),110,IF(AND(D10<=150,B5<=200,C16>=6),120,IF(AND(D10<=150,B5<=250,C16>=6),130,IF(AND(D10<=150,B5<=160,C16>=6),140,IF(AND(D10<=200,B5<=150,C16>=6),65,IF(AND(D10<=200,B5<=200,C16>=6),75,IF(AND(D10<=200,B5<=250,C16>=6),85,IF(AND(D10<=200,B5<=160,C16>=6),95,IF(AND(D10<=340,B5<=150,C16>=6),30,IF(AND(D10<=340,B5<=200,C16>=6),40,IF(AND(D10<=340,B5<=250,C16>=6),50,IF(AND(D10<=340,B5<=160,C16>=6),60,IF(AND(D10>=340,B5<=150,C16>=6),0,IF(AND(D10>=340,B5<=200,C16>=6),0,IF(AND(D10>=340,B5<=250,C16>=6),0,IF(AND(D10>=340,B5<=160,C16>=6),0)))))))))))))))))))))))))))))))))))) -> 95 | F23: 0 | G23: =IF(AND(G10<20,F5<=30),75,IF(AND(G10<20,F5<=50),90,IF(AND(G10<20,F5<=70),105,IF(AND(G10<20,F5<=90),120,IF(AND(G10<30,F5<=30),50,IF(AND(G10<30,F5<=50),65,IF(AND(G10<30,F5<=70),80,IF(AND(G10<30,F5<=90),95,IF(AND(G10<80,F5<=30),25,IF(AND(G10<80,F5<=50),40,IF(AND(G10<80,F5<=70),55,IF(AND(G10<80,F5<=90),70,IF(AND(G10>=80,F5<=30),0,IF(AND(G10>=80,F5<=50),0,IF(AND(G10>=80,F5<=70),0,IF(AND(G10>=80,F5<=90),0)))))))))))))))) -> 75 | H23: =IF(AND(H10<=100,F5<=30,G16<=5),95,IF(AND(H10<=100,F5<=50,G16<=5),120,IF(AND(H10<=100,F5<=70,G16<=5),145,IF(AND(H10<=100,F5<=90,G16<=5),165,IF(AND(H10<=150,F5<=30,G16<=5),65,IF(AND(H10<=150,F5<=50,G16<=5),90,IF(AND(H10<=150,F5<=70,G16<=5),110,IF(AND(H10<=150,F5<=90,G16<=5),135,IF(AND(H10<=260,F5<=30,G16<=5),35,IF(AND(H10<=260,F5<=50,G16<=5),60,IF(AND(H10<=260,F5<=70,G16<=5),80,IF(AND(H10<=260,F5<=90,G16<=5),105,IF(AND(H10>=260,F5<=30,G16<=5),0,IF(AND(H10>=260,F5<=50,G16<=5),0,IF(AND(H10>=260,F5<=70,G16<=5),0,IF(AND(H10>=260,F5<=90,G16<=5),0,IF(AND(H10<=100,F5<=30,G16>=6),155,IF(AND(H10<=100,F5<=50,G16>=6),180,IF(AND(H10<=100,F5<=70,G16>=6),205,IF(AND(H10<=100,F5<=90,G16>=6),225,IF(AND(H10<=150,F5<=30,G16>=6),115,IF(AND(H10<=150,F5<=50,G16>=6),135,IF(AND(H10<=150,F5<=70,G16>=6),160,IF(AND(H10<=150,F5<=90,G16>=6),180,IF(AND(H10<=200,F5<=30,G16>=6),70,IF(AND(H10<=200,F5<=50,G16>=6),95,IF(AND(H10<=200,F5<=70,G16>=6),115,IF(AND(H10<=200,F5<=90,G16>=6),140,IF(AND(H10<=340,F5<=30,G16>=6),35,IF(AND(H10<=340,F5<=50,G16>=6),60,IF(AND(H10<=340,F5<=70,G16>=6),80,IF(AND(H10<=340,F5<=90,G16>=6),105,IF(AND(H10>=340,F5<=30,G16>=6),0,IF(AND(H10>=340,F5<=50,G16>=6),0,IF(AND(H10>=340,F5<=70,G16>=6),0,IF(AND(H10>=340,F5<=90,G16>=6),0)))))))))))))))))))))))))))))))))))) -> 95 | J23: 0 | K23: =IF(AND(K10<20,J5<=60),130,IF(AND(K10<20,J5<=90),145,IF(AND(K10<20,J5<=120),160,IF(AND(K10<20,J5<=150),175,IF(AND(K10<40,J5<=60),80,IF(AND(K10<40,J5<=90),95,IF(AND(K10<40,J5<=120),110,IF(AND(K10<40,J5<=150),125,IF(AND(K10<100,J5<=60),30,IF(AND(K10<100,J5<=90),45,IF(AND(K10<100,J5<=120),60,IF(AND(K10<100,J5<=150),75,IF(AND(K10>=100,J5<=60),0,IF(AND(K10>=100,J5<=90),0,IF(AND(K10>=100,J5<=120),0,IF(AND(K10>=100,J5<=150),0)))))))))))))))) -> 130 | L23: =IF(AND(L10<=100,J5<=60,K16<=5),80,IF(AND(L10<=100,J5<=150,K16<=5),85,IF(AND(L10<=100,J5<=120,K16<=5),95,IF(AND(L10<=100,J5<=150,K16<=5),100,IF(AND(L10<=150,J5<=60,K16<=5),45,IF(AND(L10<=150,J5<=150,K16<=5),55,IF(AND(L10<=150,J5<=120,K16<=5),60,IF(AND(L10<=150,J5<=150,K16<=5),70,IF(AND(L10<=260,J5<=60,K16<=5),15,IF(AND(L10<=260,J5<=150,K16<=5),25,IF(AND(L10<=260,J5<=120,K16<=5),30,IF(AND(L10<=260,J5<=150,K16<=5),40,IF(AND(L10>=260,J5<=60,K16<=5),0,IF(AND(L10>=260,J5<=150,K16<=5),0,IF(AND(L10>=260,J5<=120,K16<=5),0,IF(AND(L10>=260,J5<=150,K16<=5),0,IF(AND(L10<=100,J5<=60,K16>=6),140,IF(AND(L10<=100,J5<=90,K16>=6),145,IF(AND(L10<=100,J5<=120,K16>=6),155,IF(AND(L10<=100,J5<=150,K16>=6),160,IF(AND(L10<=150,J5<=60,K16>=6),95,IF(AND(L10<=150,J5<=90,K16>=6),100,IF(AND(L10<=150,J5<=120,K16>=6),110,IF(AND(L10<=150,J5<=150,K16>=6),160,IF(AND(L10<=200,J5<=60,K16>=6),50,IF(AND(L10<=200,J5<=90,K16>=6),60,IF(AND(L10<=200,J5<=120,K16>=6),65,IF(AND(L10<=200,J5<=150,K16>=6),75,IF(AND(L10<=340,J5<=60,K16>=6),15,IF(AND(L10<=340,J5<=90,K16>=6),25,IF(AND(L10<=340,J5<=120,K16>=6),30,IF(AND(L10<=340,J5<=150,K16>=6),40,IF(AND(L10>=340,J5<=60,K16>=6),0,IF(AND(L10>=340,J5<=90,K16>=6),0,IF(AND(L10>=340,J5<=120,K16>=6),0,IF(AND(L10>=340,J5<=150,K16>=6),0)))))))))))))))))))))))))))))))))))) -> 80
B24: S | C24: Ca | D24: Mag | F24: S | G24: Ca | H24: Mag | J24: S | K24: Ca | L24: Mag
B25: 0 | C25: =IF(AND(C12<=200),42,IF(AND(C12>200),0)) -> 42 | D25: =MAX(IF(AND(C16<=8,C18<=7,D12<=70),11,IF(AND(C16>=8,C18>=7,D12<=100),50,IF(AND(D10>D12,C16<=8),11,IF(AND(D10>D12,C16>8),50))))) -> 11 | F25: 0 | G25: =IF(AND(G12<=200),42,IF(AND(G12>200),0)) -> 42 | H25: =MAX(IF(AND(G16<=8,G18<=7,H12<=70),11,IF(AND(G16>=8,G18>=7,H12<=100),50,IF(AND(H10>H12,G16<=8),11,IF(AND(H10>H12,G16>8),50))))) -> 11 | J25: 0 | K25: =IF(AND(K12<=200),42,IF(AND(K12>200),0)) -> 42 | L25: =MAX(IF(AND(K16<=8,K18<=7,L12<=70),11,IF(AND(K16>=8,K18>=7,L12<=100),50,IF(AND(L10>L12,K16<=8),11,IF(AND(L10>L12,K16>8),50))))) -> 11
B26: Z | C26: B | D26: Mn | F26: Z | G26: B | H26: Mn | J26: Z | K26: B | L26: Mn
B27: =MAX(((5*C18)-(0.4*B14)-32),0) -> 0 | C27: 0 | D27: 0 | F27: 0 | G27: 0 | H27: =MAX(0,((6.2*G18)-(0.35*H14))-36) -> 0 | J27: 0 | K27: 0 | L27: =MAX(0,((6.2*K18)-(0.35*L14))-36) -> 0
B30: Note: This section is not a replacement for recommendations from a soil test analysis obtained from soil test laboratories.
C31: For soil test based recommendations, visit the MSU Soil and Plant Nutrient Laboratory: | J31: https://www.canr.msu.edu/spnl/

Sheet Charts (hidden)
B1: Corn | C1: Soybeans | D1: Wheat | J1: Corn | K1: Soybeans | L1: Wheat
A2: Seed | B2: =#REF! ->  | C2: =#REF! ->  | D2: =#REF! ->  | I2: Variable | J2: =#REF! ->  | K2: =#REF! ->  | L2: =#REF! -> 
A3: Fertilizer | B3: =#REF! ->  | C3: =#REF! ->  | D3: =#REF! ->  | I3: Fixed | J3: =#REF! ->  | K3: =#REF! ->  | L3: =#REF! -> 
A4: Crop Chemicals | B4: =SUM(B5:B7) ->  | C4: =SUM(C5:C7) ->  | I4: Variable & Fixed | J4: =#REF! ->  | K4: =#REF! ->  | L4: =#REF! -> 
A5: Herbicides | B5: =#REF! ->  | C5: =#REF! ->  | D5: =#REF! -> 
A6: Fungicides | B6: =#REF! ->  | C6: =#REF! ->  | D6: =#REF! -> 
A7: Insecticides | B7: =#REF! ->  | C7: =#REF! ->  | D7: =#REF! -> 
A8: Crop Insurance | B8: =#REF! ->  | C8: =#REF! ->  | D8: =#REF! -> 
A9: Crop Miscellaneous | B9: =#REF! ->  | C9: =#REF! ->  | D9: =#REF! -> 
A10: Supplies | B10: =#REF! ->  | C10: =#REF! ->  | D10: =#REF! -> 
A11: Gas/Fuel | B11: =SUM(B12:B13) ->  | C11: =SUM(C12:C13) -> 
A12: Equipment Fuel | B12: =#REF! ->  | C12: =#REF! ->  | D12: =#REF! -> 
A13: Drying Propane | B13: =#REF! ->  | C13: =#REF! ->  | D13: =#REF! -> 
A14: Repairs & Maintenance | B14: =SUM(B15:B16) ->  | C14: =SUM(C15:C16) -> 
A15: Repair, Machinery | B15: =#REF! ->  | C15: =#REF! ->  | D15: =#REF! -> 
A16: Repair, Buildings | B16: =#REF! ->  | C16: =#REF! ->  | D16: =#REF! -> 
A17: Custom Hire | B17: =SUM(B18:B20) ->  | C17: =SUM(C18:C20) -> 
A18: Driver & Equipment Hire | B18: =#REF! ->  | C18: =#REF! ->  | D18: =#REF! -> 
A19: Equipment Hire | B19: =#REF! ->  | C19: =#REF! ->  | D19: =#REF! -> 
A20: Custom Application | B20: =#REF! ->  | C20: =#REF! ->  | D20: =#REF! -> 
A21: Freight & Trucking | B21: =#REF! ->  | C21: =#REF! ->  | D21: =#REF! -> 
A22: Storage | B22: =#REF! ->  | C22: =#REF! ->  | D22: =#REF! -> 
A23: Utilities | B23: =#REF! ->  | C23: =#REF! ->  | D23: =#REF! -> 
A24: Irrigation | B24: =SUM(B25:B26) ->  | C24: =SUM(C25:C26) -> 
A25: Repairs | B25: =#REF! ->  | C25: =#REF! ->  | D25: =#REF! -> 
A26: Fuel/Electricity | B26: =#REF! ->  | C26: =#REF! ->  | D26: =#REF! -> 
A27: Marketing | B27: =#REF! ->  | C27: =#REF! ->  | D27: =#REF! -> 
A28: Hired Labor | B28: =#REF! ->  | C28: =#REF! ->  | D28: =#REF! -> 
A29: Interest (Operating) | B29: =#REF! ->  | C29: =#REF! ->  | D29: =#REF! -> 
A30: Other (variable) | B30: =#REF! ->  | C30: =#REF! ->  | D30: =#REF! -> 
A31: Farm Insurance | B31: =#REF! ->  | C31: =#REF! ->  | D31: =#REF! -> 
A32: Real Estate Taxes | B32: =#REF! ->  | C32: =#REF! ->  | D32: =#REF! -> 
A33: Land Rent | B33: =#REF! ->  | C33: =#REF! ->  | D33: =#REF! -> 
A34: Depreciation (Economic ) | B34: =#REF! ->  | C34: =#REF! ->  | D34: =#REF! -> 
A35: Other (fixed) | B35: =#REF! ->  | C35: =#REF! ->  | D35: =#REF! -> 
A36: Other (variable & fixed) | B36: =B35+B30 ->  | C36: =C35+C30 ->  | D36: =D35+D30 -> 
A37: Income Taxes | B37: =#REF! ->  | C37: =#REF! ->  | D37: =#REF! -> 
A38: Owner Withdrawal | B38: =#REF! ->  | C38: =#REF! ->  | D38: =#REF! -> 
A39: Interest (Oper & Term) | B39: =B40+B29 ->  | C39: =C40+C29 ->  | D39: =D40+D29 -> 
A40: Interest (Term) | B40: =#REF! ->  | C40: =#REF! ->  | D40: =#REF! -> 
A41: Principal Payment | B41: =#REF! ->  | C41: =#REF! ->  | D41: =#REF! -> 
